Workbook

Sheet Rumfang 1
C1: Rumfang 1 - KASSEN | HE1: =1/0.06 -> 16.66666667
I2: Forlæns | J2: 1 | K2: 2 | L2: 3 | M2: 4 | N2: 5 | O2: 6 | P2: 7 | Q2: 8 | R2: 9 | S2: 10 | T2: 11 | U2: 12 | V2: 13 | W2: 14 | X2: 15 | Y2: 16 | Z2: 17 | AA2: 18 | AB2: 19 | AC2: 20 | AD2: 21 | AE2: 22 | AF2: 23 | AG2: 24 | AH2: 25 | AI2: 26 | AJ2: 27 | AK2: 28 | AL2: 29 | AM2: 30 | AN2: 31 | AO2: 32 | AP2: 33 | AQ2: 34 | AR2: 35 | AS2: 36 | AT2: 37 | AU2: 38 | AV2: 39 | AW2: 40 | AX2: 41 | AY2: 42 | AZ2: 43 | BA2: 44 | BB2: 45 | BC2: 46 | BD2: 47 | BE2: 48 | BF2: 49 | BG2: 50 | BH2: 51 | BI2: 52 | BJ2: 53 | BK2: 54 | BL2: 55 | BM2: 56 | BN2: 57 | BO2: 58 | BP2: 59 | BQ2: 60 | BR2: 61 | BS2: 62 | BT2: 63 | BU2: 64 | BV2: 65 | BW2: 66 | BX2: 67 | BY2: 68 | BZ2: 69 | CA2: 70 | CB2: 71 | CC2: 72 | CD2: 73 | CE2: 74 | CF2: 75 | CG2: 76 | CH2: 77 | CI2: 78 | CJ2: 79 | CK2: 80 | CL2: 81 | CM2: 82 | CN2: 83 | CO2: 84 | CP2: 85 | CQ2: 86 | CR2: 87 | CS2: 88 | CT2: 89 | CU2: 90 | CV2: 91 | CW2: 92 | CX2: 93 | CY2: 94 | CZ2: 95 | DA2: 96 | DB2: 97 | DC2: 98 | DD2: 99 | DE2: 100 | DF2: 101 | DG2: 102 | DH2: 103 | DI2: 104 | DJ2: 105 | DK2: 106 | DL2: 107 | DM2: 108 | DN2: 109 | DO2: 110 | DP2: 111 | DQ2: 112 | DR2: 113 | DS2: 114 | DT2: 115 | DU2: 116 | DV2: 117 | DW2: 118 | DX2: 119 | DY2: 120 | DZ2: 121 | EA2: 122 | EB2: 123 | EC2: 124 | ED2: 125 | EE2: 126 | EF2: 127 | EG2: 128 | EH2: 129 | EI2: 130 | EJ2: 131 | EK2: 132 | EL2: 133 | EM2: 134 | EN2: 135 | EO2: 136 | EP2: 137 | EQ2: 138 | ER2: 139 | ES2: 140 | ET2: 141 | EU2: 142 | EV2: 143 | EW2: 144 | EX2: 145 | EY2: 146 | EZ2: 147 | FA2: 148 | FB2: 149 | FC2: 150 | FD2: 151 | FE2: 152 | FF2: 153 | FG2: 154 | FH2: 155 | FI2: 156 | FJ2: 157 | FK2: 158 | FL2: 159 | FM2: 160 | FN2: 161 | FO2: 162 | FP2: 163 | FQ2: 164 | FR2: 165 | FS2: 166 | FT2: 167 | FU2: 168 | FV2: 169 | FW2: 170 | FX2: 171 | FY2: 172 | FZ2: 173 | GA2: 174 | GB2: 175 | GC2: 176 | GD2: 177 | GE2: 178 | GF2: 179 | GG2: 180 | GH2: 181 | GI2: 182 | GJ2: 183 | GK2: 184 | GL2: 185 | GM2: 186 | GN2: 187 | GO2: 188 | GP2: 189 | GQ2: 190 | GR2: 191 | GS2: 192 | GT2: 193 | GU2: 194 | GV2: 195 | GW2: 196 | GX2: 197 | GY2: 198 | GZ2: 199 | HA2: 200 | HB2: 201
C3: Indsæt forskellige højder, bredder og dybder (længder).
C4: Løs derefter opgaverne i Fordybelseshæfte 5
C7: Bredde : | D7: 30 | E7: cm | F7: (max = | G7: 180 | H7: )
C8: Højde : | D8: 60 | E8: cm | F8: (max = | G8: 180 | H8: )
C9: Dybde : | D9: 10 | E9: cm | F9: (max = | G9: =IF(A14<=A15,A14,A15) -> 140 | H9: )
A10: =IF(D7+D9<=200,200-D7,-(200-D7)) -> 170 | C10: Rumfang : | D10: =D7*D8*D9 -> 18000 | E10: cm³ ≈ | F10: =D10/1000000 -> 0.02 | G10: m³
A11: =IF(D8+D9<=200,200-D8,-(200-D8)) -> 140 | C11: Overflade : | D11: =2*(D7*D8+D8*D9+D7*D9) -> 5400 | E11: cm² ≈ | F11: =D11/10000 -> 0.54 | G11: m²
A12: =IF(A10<0,A10,IF(A11<0,A11)) -> FALSE
A13: =IF(A12=FALSE,IF(A10>A11,A11,A10)) -> 140 | C13: Overflade/rumfang : | D13: =D11/D10 -> 0.3000
A14: =IF(AND(D7+D9<=200,200-D7>=0),200-D7,200-D7) -> 170 | C14: Rumfang/overflade : | D14: =ABS((1-D10/D11/HE1))+1 -> 1.800000
A15: =IF(AND(D8+D9<=200,200-D8>=0),200-D8,200-D8) -> 140
A16: 201
A17: =IF(A14<=A15,A14,A15) -> 140
D18: 1 | E18: =$A$16-D18 -> 200 | J18: =IF($A$13,IF(AND(J$2>=1,J$2<=$D$7,$E18>=1,$E18<=$D$8),1,IF(AND(J$2>=$D$7+1,J$2<=$D$7+$D$9,$E18>=J$2-$D$7+1,$E18<=J$2-$D$7+$D$8),2,IF(AND($E18>=$D$8+1,$E18<=$D$8+$D$9,J$2>=$E18-$D$8+1,J$2<=$E18-$D$8+$D$7-1),3,""))),"") ->  | T18: =IF($A$13,IF(AND(T$2>=1,T$2<=$D$7,$E18>=1,$E18<=$D$8),1,IF(AND(T$2>=$D$7+1,T$2<=$D$7+$D$9,$E18>=T$2-$D$7+1,$E18<=T$2-$D$7+$D$8),2,IF(AND($E18>=$D$8+1,$E18<=$D$8+$D$9,T$2>=$E18-$D$8+1,T$2<=$E18-$D$8+$D$7-1),3,""))),"") ->  | AD18: =IF($A$13,IF(AND(AD$2>=1,AD$2<=$D$7,$E18>=1,$E18<=$D$8),1,IF(AND(AD$2>=$D$7+1,AD$2<=$D$7+$D$9,$E18>=AD$2-$D$7+1,$E18<=AD$2-$D$7+$D$8),2,IF(AND($E18>=$D$8+1,$E18<=$D$8+$D$9,AD$2>=$E18-$D$8+1,AD$2<=$E18-$D$8+$D$7-1),3,""))),"") ->  | AN18: =IF($A$13,IF(AND(AN$2>=1,AN$2<=$D$7,$E18>=1,$E18<=$D$8),1,IF(AND(AN$2>=$D$7+1,AN$2<=$D$7+$D$9,$E18>=AN$2-$D$7+1,$E18<=AN$2-$D$7+$D$8),2,IF(AND($E18>=$D$8+1,$E18<=$D$8+$D$9,AN$2>=$E18-$D$8+1,AN$2<=$E18-$D$8+$D$7-1),3,""))),"") ->  | AX18: =IF($A$13,IF(AND(AX$2>=1,AX$2<=$D$7,$E18>=1,$E18<=$D$8),1,IF(AND(AX$2>=$D$7+1,AX$2<=$D$7+$D$9,$E18>=AX$2-$D$7+1,$E18<=AX$2-$D$7+$D$8),2,IF(AND($E18>=$D$8+1,$E18<=$D$8+$D$9,AX$2>=$E18-$D$8+1,AX$2<=$E18-$D$8+$D$7-1),3,""))),"") ->  | BH18: =IF($A$13,IF(AND(BH$2>=1,BH$2<=$D$7,$E18>=1,$E18<=$D$8),1,IF(AND(BH$2>=$D$7+1,BH$2<=$D$7+$D$9,$E18>=BH$2-$D$7+1,$E18<=BH$2-$D$7+$D$8),2,IF(AND($E18>=$D$8+1,$E18<=$D$8+$D$9,BH$2>=$E18-$D$8+1,BH$2<=$E18-$D$8+$D$7-1),3,""))),"") ->  | BR18: =IF($A$13,IF(AND(BR$2>=1,BR$2<=$D$7,$E18>=1,$E18<=$D$8),1,IF(AND(BR$2>=$D$7+1,BR$2<=$D$7+$D$9,$E18>=BR$2-$D$7+1,$E18<=BR$2-$D$7+$D$8),2,IF(AND($E18>=$D$8+1,$E18<=$D$8+$D$9,BR$2>=$E18-$D$8+1,BR$2<=$E18-$D$8+$D$7-1),3,""))),"") ->  | CB18: =IF($A$13,IF(AND(CB$2>=1,CB$2<=$D$7,$E18>=1,$E18<=$D$8),1,IF(AND(CB$2>=$D$7+1,CB$2<=$D$7+$D$9,$E18>=CB$2-$D$7+1,$E18<=CB$2-$D$7+$D$8),2,IF(AND($E18>=$D$8+1,$E18<=$D$8+$D$9,CB$2>=$E18-$D$8+1,CB$2<=$E18-$D$8+$D$7-1),3,""))),"") ->  | CL18: =IF($A$13,IF(AND(CL$2>=1,CL$2<=$D$7,$E18>=1,$E18<=$D$8),1,IF(AND(CL$2>=$D$7+1,CL$2<=$D$7+$D$9,$E18>=CL$2-$D$7+1,$E18<=CL$2-$D$7+$D$8),2,IF(AND($E18>=$D$8+1,$E18<=$D$8+$D$9,CL$2>=$E18-$D$8+1,CL$2<=$E18-$D$8+$D$7-1),3,""))),"") ->  | CV18: =IF($A$13,IF(AND(CV$2>=1,CV$2<=$D$7,$E18>=1,$E18<=$D$8),1,IF(AND(CV$2>=$D$7+1,CV$2<=$D$7+$D$9,$E18>=CV$2-$D$7+1,$E18<=CV$2-$D$7+$D$8),2,IF(AND($E18>=$D$8+1,$E18<=$D$8+$D$9,CV$2>=$E18-$D$8+1,CV$2<=$E18-$D$8+$D$7-1),3,""))),"") ->  | DF18: =IF($A$13,IF(AND(DF$2>=1,DF$2<=$D$7,$E18>=1,$E18<=$D$8),1,IF(AND(DF$2>=$D$7+1,DF$2<=$D$7+$D$9,$E18>=DF$2-$D$7+1,$E18<=DF$2-$D$7+$D$8),2,IF(AND($E18>=$D$8+1,$E18<=$D$8+$D$9,DF$2>=$E18-$D$8+1,DF$2<=$E18-$D$8+$D$7-1),3,""))),"") ->  | DP18: =IF($A$13,IF(AND(DP$2>=1,DP$2<=$D$7,$E18>=1,$E18<=$D$8),1,IF(AND(DP$2>=$D$7+1,DP$2<=$D$7+$D$9,$E18>=DP$2-$D$7+1,$E18<=DP$2-$D$7+$D$8),2,IF(AND($E18>=$D$8+1,$E18<=$D$8+$D$9,DP$2>=$E18-$D$8+1,DP$2<=$E18-$D$8+$D$7-1),3,""))),"") ->  | DZ18: =IF($A$13,IF(AND(DZ$2>=1,DZ$2<=$D$7,$E18>=1,$E18<=$D$8),1,IF(AND(DZ$2>=$D$7+1,DZ$2<=$D$7+$D$9,$E18>=DZ$2-$D$7+1,$E18<=DZ$2-$D$7+$D$8),2,IF(AND($E18>=$D$8+1,$E18<=$D$8+$D$9,DZ$2>=$E18-$D$8+1,DZ$2<=$E18-$D$8+$D$7-1),3,""))),"") ->  | EJ18: =IF($A$13,IF(AND(EJ$2>=1,EJ$2<=$D$7,$E18>=1,$E18<=$D$8),1,IF(AND(EJ$2>=$D$7+1,EJ$2<=$D$7+$D$9,$E18>=EJ$2-$D$7+1,$E18<=EJ$2-$D$7+$D$8),2,IF(AND($E18>=$D$8+1,$E18<=$D$8+$D$9,EJ$2>=$E18-$D$8+1,EJ$2<=$E18-$D$8+$D$7-1),3,""))),"") ->  | ET18: =IF($A$13,IF(AND(ET$2>=1,ET$2<=$D$7,$E18>=1,$E18<=$D$8),1,IF(AND(ET$2>=$D$7+1,ET$2<=$D$7+$D$9,$E18>=ET$2-$D$7+1,$E18<=ET$2-$D$7+$D$8),2,IF(AND($E18>=$D$8+1,$E18<=$D$8+$D$9,ET$2>=$E18-$D$8+1,ET$2<=$E18-$D$8+$D$7-1),3,""))),"") ->  | FD18: =IF($A$13,IF(AND(FD$2>=1,FD$2<=$D$7,$E18>=1,$E18<=$D$8),1,IF(AND(FD$2>=$D$7+1,FD$2<=$D$7+$D$9,$E18>=FD$2-$D$7+1,$E18<=FD$2-$D$7+$D$8),2,IF(AND($E18>=$D$8+1,$E18<=$D$8+$D$9,FD$2>=$E18-$D$8+1,FD$2<=$E18-$D$8+$D$7-1),3,""))),"") ->  | FN18: =IF($A$13,IF(AND(FN$2>=1,FN$2<=$D$7,$E18>=1,$E18<=$D$8),1,IF(AND(FN$2>=$D$7+1,FN$2<=$D$7+$D$9,$E18>=FN$2-$D$7+1,$E18<=FN$2-$D$7+$D$8),2,IF(AND($E18>=$D$8+1,$E18<=$D$8+$D$9,FN$2>=$E18-$D$8+1,FN$2<=$E18-$D$8+$D$7-1),3,""))),"") ->  | FX18: =IF($A$13,IF(AND(FX$2>=1,FX$2<=$D$7,$E18>=1,$E18<=$D$8),1,IF(AND(FX$2>=$D$7+1,FX$2<=$D$7+$D$9,$E18>=FX$2-$D$7+1,$E18<=FX$2-$D$7+$D$8),2,IF(AND($E18>=$D$8+1,$E18<=$D$8+$D$9,FX$2>=$E18-$D$8+1,FX$2<=$E18-$D$8+$D$7-1),3,""))),"") ->  | GH18: =IF($A$13,IF(AND(GH$2>=1,GH$2<=$D$7,$E18>=1,$E18<=$D$8),1,IF(AND(GH$2>=$D$7+1,GH$2<=$D$7+$D$9,$E18>=GH$2-$D$7+1,$E18<=GH$2-$D$7+$D$8),2,IF(AND($E18>=$D$8+1,$E18<=$D$8+$D$9,GH$2>=$E18-$D$8+1,GH$2<=$E18-$D$8+$D$7-1),3,""))),"") ->  | GR18: =IF($A$13,IF(AND(GR$2>=1,GR$2<=$D$7,$E18>=1,$E18<=$D$8),1,IF(AND(GR$2>=$D$7+1,GR$2<=$D$7+$D$9,$E18>=GR$2-$D$7+1,$E18<=GR$2-$D$7+$D$8),2,IF(AND($E18>=$D$8+1,$E18<=$D$8+$D$9,GR$2>=$E18-$D$8+1,GR$2<=$E18-$D$8+$D$7-1),3,""))),"") -> 
D19: 2 | E19: 199
D20: 3 | E20: 198
D21: 4 | E21: 197
D22: 5 | E22: 196
D23: 6 | E23: 195
D24: 7 | E24: 194
D25: 8 | E25: 193
D26: 9 | E26: 192
D27: 10 | E27: 191
D28: 11 | E28: 190 | J28: =IF($A$13,IF(AND(J$2>=1,J$2<=$D$7,$E28>=1,$E28<=$D$8),1,IF(AND(J$2>=$D$7+1,J$2<=$D$7+$D$9,$E28>=J$2-$D$7+1,$E28<=J$2-$D$7+$D$8),2,IF(AND($E28>=$D$8+1,$E28<=$D$8+$D$9,J$2>=$E28-$D$8+1,J$2<=$E28-$D$8+$D$7-1),3,""))),"") ->  | T28: =IF($A$13,IF(AND(T$2>=1,T$2<=$D$7,$E28>=1,$E28<=$D$8),1,IF(AND(T$2>=$D$7+1,T$2<=$D$7+$D$9,$E28>=T$2-$D$7+1,$E28<=T$2-$D$7+$D$8),2,IF(AND($E28>=$D$8+1,$E28<=$D$8+$D$9,T$2>=$E28-$D$8+1,T$2<=$E28-$D$8+$D$7-1),3,""))),"") ->  | AD28: =IF($A$13,IF(AND(AD$2>=1,AD$2<=$D$7,$E28>=1,$E28<=$D$8),1,IF(AND(AD$2>=$D$7+1,AD$2<=$D$7+$D$9,$E28>=AD$2-$D$7+1,$E28<=AD$2-$D$7+$D$8),2,IF(AND($E28>=$D$8+1,$E28<=$D$8+$D$9,AD$2>=$E28-$D$8+1,AD$2<=$E28-$D$8+$D$7-1),3,""))),"") ->  | AN28: =IF($A$13,IF(AND(AN$2>=1,AN$2<=$D$7,$E28>=1,$E28<=$D$8),1,IF(AND(AN$2>=$D$7+1,AN$2<=$D$7+$D$9,$E28>=AN$2-$D$7+1,$E28<=AN$2-$D$7+$D$8),2,IF(AND($E28>=$D$8+1,$E28<=$D$8+$D$9,AN$2>=$E28-$D$8+1,AN$2<=$E28-$D$8+$D$7-1),3,""))),"") ->  | AX28: =IF($A$13,IF(AND(AX$2>=1,AX$2<=$D$7,$E28>=1,$E28<=$D$8),1,IF(AND(AX$2>=$D$7+1,AX$2<=$D$7+$D$9,$E28>=AX$2-$D$7+1,$E28<=AX$2-$D$7+$D$8),2,IF(AND($E28>=$D$8+1,$E28<=$D$8+$D$9,AX$2>=$E28-$D$8+1,AX$2<=$E28-$D$8+$D$7-1),3,""))),"") ->  | BH28: =IF($A$13,IF(AND(BH$2>=1,BH$2<=$D$7,$E28>=1,$E28<=$D$8),1,IF(AND(BH$2>=$D$7+1,BH$2<=$D$7+$D$9,$E28>=BH$2-$D$7+1,$E28<=BH$2-$D$7+$D$8),2,IF(AND($E28>=$D$8+1,$E28<=$D$8+$D$9,BH$2>=$E28-$D$8+1,BH$2<=$E28-$D$8+$D$7-1),3,""))),"") ->  | BR28: =IF($A$13,IF(AND(BR$2>=1,BR$2<=$D$7,$E28>=1,$E28<=$D$8),1,IF(AND(BR$2>=$D$7+1,BR$2<=$D$7+$D$9,$E28>=BR$2-$D$7+1,$E28<=BR$2-$D$7+$D$8),2,IF(AND($E28>=$D$8+1,$E28<=$D$8+$D$9,BR$2>=$E28-$D$8+1,BR$2<=$E28-$D$8+$D$7-1),3,""))),"") ->  | CB28: =IF($A$13,IF(AND(CB$2>=1,CB$2<=$D$7,$E28>=1,$E28<=$D$8),1,IF(AND(CB$2>=$D$7+1,CB$2<=$D$7+$D$9,$E28>=CB$2-$D$7+1,$E28<=CB$2-$D$7+$D$8),2,IF(AND($E28>=$D$8+1,$E28<=$D$8+$D$9,CB$2>=$E28-$D$8+1,CB$2<=$E28-$D$8+$D$7-1),3,""))),"") ->  | CL28: =IF($A$13,IF(AND(CL$2>=1,CL$2<=$D$7,$E28>=1,$E28<=$D$8),1,IF(AND(CL$2>=$D$7+1,CL$2<=$D$7+$D$9,$E28>=CL$2-$D$7+1,$E28<=CL$2-$D$7+$D$8),2,IF(AND($E28>=$D$8+1,$E28<=$D$8+$D$9,CL$2>=$E28-$D$8+1,CL$2<=$E28-$D$8+$D$7-1),3,""))),"") ->  | CV28: =IF($A$13,IF(AND(CV$2>=1,CV$2<=$D$7,$E28>=1,$E28<=$D$8),1,IF(AND(CV$2>=$D$7+1,CV$2<=$D$7+$D$9,$E28>=CV$2-$D$7+1,$E28<=CV$2-$D$7+$D$8),2,IF(AND($E28>=$D$8+1,$E28<=$D$8+$D$9,CV$2>=$E28-$D$8+1,CV$2<=$E28-$D$8+$D$7-1),3,""))),"") ->  | DF28: =IF($A$13,IF(AND(DF$2>=1,DF$2<=$D$7,$E28>=1,$E28<=$D$8),1,IF(AND(DF$2>=$D$7+1,DF$2<=$D$7+$D$9,$E28>=DF$2-$D$7+1,$E28<=DF$2-$D$7+$D$8),2,IF(AND($E28>=$D$8+1,$E28<=$D$8+$D$9,DF$2>=$E28-$D$8+1,DF$2<=$E28-$D$8+$D$7-1),3,""))),"") ->  | DP28: =IF($A$13,IF(AND(DP$2>=1,DP$2<=$D$7,$E28>=1,$E28<=$D$8),1,IF(AND(DP$2>=$D$7+1,DP$2<=$D$7+$D$9,$E28>=DP$2-$D$7+1,$E28<=DP$2-$D$7+$D$8),2,IF(AND($E28>=$D$8+1,$E28<=$D$8+$D$9,DP$2>=$E28-$D$8+1,DP$2<=$E28-$D$8+$D$7-1),3,""))),"") ->  | DZ28: =IF($A$13,IF(AND(DZ$2>=1,DZ$2<=$D$7,$E28>=1,$E28<=$D$8),1,IF(AND(DZ$2>=$D$7+1,DZ$2<=$D$7+$D$9,$E28>=DZ$2-$D$7+1,$E28<=DZ$2-$D$7+$D$8),2,IF(AND($E28>=$D$8+1,$E28<=$D$8+$D$9,DZ$2>=$E28-$D$8+1,DZ$2<=$E28-$D$8+$D$7-1),3,""))),"") ->  | EJ28: =IF($A$13,IF(AND(EJ$2>=1,EJ$2<=$D$7,$E28>=1,$E28<=$D$8),1,IF(AND(EJ$2>=$D$7+1,EJ$2<=$D$7+$D$9,$E28>=EJ$2-$D$7+1,$E28<=EJ$2-$D$7+$D$8),2,IF(AND($E28>=$D$8+1,$E28<=$D$8+$D$9,EJ$2>=$E28-$D$8+1,EJ$2<=$E28-$D$8+$D$7-1),3,""))),"") ->  | ET28: =IF($A$13,IF(AND(ET$2>=1,ET$2<=$D$7,$E28>=1,$E28<=$D$8),1,IF(AND(ET$2>=$D$7+1,ET$2<=$D$7+$D$9,$E28>=ET$2-$D$7+1,$E28<=ET$2-$D$7+$D$8),2,IF(AND($E28>=$D$8+1,$E28<=$D$8+$D$9,ET$2>=$E28-$D$8+1,ET$2<=$E28-$D$8+$D$7-1),3,""))),"") ->  | FD28: =IF($A$13,IF(AND(FD$2>=1,FD$2<=$D$7,$E28>=1,$E28<=$D$8),1,IF(AND(FD$2>=$D$7+1,FD$2<=$D$7+$D$9,$E28>=FD$2-$D$7+1,$E28<=FD$2-$D$7+$D$8),2,IF(AND($E28>=$D$8+1,$E28<=$D$8+$D$9,FD$2>=$E28-$D$8+1,FD$2<=$E28-$D$8+$D$7-1),3,""))),"") ->  | FN28: =IF($A$13,IF(AND(FN$2>=1,FN$2<=$D$7,$E28>=1,$E28<=$D$8),1,IF(AND(FN$2>=$D$7+1,FN$2<=$D$7+$D$9,$E28>=FN$2-$D$7+1,$E28<=FN$2-$D$7+$D$8),2,IF(AND($E28>=$D$8+1,$E28<=$D$8+$D$9,FN$2>=$E28-$D$8+1,FN$2<=$E28-$D$8+$D$7-1),3,""))),"") ->  | FX28: =IF($A$13,IF(AND(FX$2>=1,FX$2<=$D$7,$E28>=1,$E28<=$D$8),1,IF(AND(FX$2>=$D$7+1,FX$2<=$D$7+$D$9,$E28>=FX$2-$D$7+1,$E28<=FX$2-$D$7+$D$8),2,IF(AND($E28>=$D$8+1,$E28<=$D$8+$D$9,FX$2>=$E28-$D$8+1,FX$2<=$E28-$D$8+$D$7-1),3,""))),"") ->  | GH28: =IF($A$13,IF(AND(GH$2>=1,GH$2<=$D$7,$E28>=1,$E28<=$D$8),1,IF(AND(GH$2>=$D$7+1,GH$2<=$D$7+$D$9,$E28>=GH$2-$D$7+1,$E28<=GH$2-$D$7+$D$8),2,IF(AND($E28>=$D$8+1,$E28<=$D$8+$D$9,GH$2>=$E28-$D$8+1,GH$2<=$E28-$D$8+$D$7-1),3,""))),"") ->  | GR28: =IF($A$13,IF(AND(GR$2>=1,GR$2<=$D$7,$E28>=1,$E28<=$D$8),1,IF(AND(GR$2>=$D$7+1,GR$2<=$D$7+$D$9,$E28>=GR$2-$D$7+1,$E28<=GR$2-$D$7+$D$8),2,IF(AND($E28>=$D$8+1,$E28<=$D$8+$D$9,GR$2>=$E28-$D$8+1,GR$2<=$E28-$D$8+$D$7-1),3,""))),"") -> 
D29: 12 | E29: 189
D30: 13 | E30: 188
D31: 14 | E31: 187
D32: 15 | E32: 186
D33: 16 | E33: 185
D34: 17 | E34: 184
D35: 18 | E35: 183
D36: 19 | E36: 182
D37: 20 | E37: 181
D38: 21 | E38: 180 | J38: =IF($A$13,IF(AND(J$2>=1,J$2<=$D$7,$E38>=1,$E38<=$D$8),1,IF(AND(J$2>=$D$7+1,J$2<=$D$7+$D$9,$E38>=J$2-$D$7+1,$E38<=J$2-$D$7+$D$8),2,IF(AND($E38>=$D$8+1,$E38<=$D$8+$D$9,J$2>=$E38-$D$8+1,J$2<=$E38-$D$8+$D$7-1),3,""))),"") ->  | T38: =IF($A$13,IF(AND(T$2>=1,T$2<=$D$7,$E38>=1,$E38<=$D$8),1,IF(AND(T$2>=$D$7+1,T$2<=$D$7+$D$9,$E38>=T$2-$D$7+1,$E38<=T$2-$D$7+$D$8),2,IF(AND($E38>=$D$8+1,$E38<=$D$8+$D$9,T$2>=$E38-$D$8+1,T$2<=$E38-$D$8+$D$7-1),3,""))),"") ->  | AD38: =IF($A$13,IF(AND(AD$2>=1,AD$2<=$D$7,$E38>=1,$E38<=$D$8),1,IF(AND(AD$2>=$D$7+1,AD$2<=$D$7+$D$9,$E38>=AD$2-$D$7+1,$E38<=AD$2-$D$7+$D$8),2,IF(AND($E38>=$D$8+1,$E38<=$D$8+$D$9,AD$2>=$E38-$D$8+1,AD$2<=$E38-$D$8+$D$7-1),3,""))),"") ->  | AN38: =IF($A$13,IF(AND(AN$2>=1,AN$2<=$D$7,$E38>=1,$E38<=$D$8),1,IF(AND(AN$2>=$D$7+1,AN$2<=$D$7+$D$9,$E38>=AN$2-$D$7+1,$E38<=AN$2-$D$7+$D$8),2,IF(AND($E38>=$D$8+1,$E38<=$D$8+$D$9,AN$2>=$E38-$D$8+1,AN$2<=$E38-$D$8+$D$7-1),3,""))),"") ->  | AX38: =IF($A$13,IF(AND(AX$2>=1,AX$2<=$D$7,$E38>=1,$E38<=$D$8),1,IF(AND(AX$2>=$D$7+1,AX$2<=$D$7+$D$9,$E38>=AX$2-$D$7+1,$E38<=AX$2-$D$7+$D$8),2,IF(AND($E38>=$D$8+1,$E38<=$D$8+$D$9,AX$2>=$E38-$D$8+1,AX$2<=$E38-$D$8+$D$7-1),3,""))),"") ->  | BH38: =IF($A$13,IF(AND(BH$2>=1,BH$2<=$D$7,$E38>=1,$E38<=$D$8),1,IF(AND(BH$2>=$D$7+1,BH$2<=$D$7+$D$9,$E38>=BH$2-$D$7+1,$E38<=BH$2-$D$7+$D$8),2,IF(AND($E38>=$D$8+1,$E38<=$D$8+$D$9,BH$2>=$E38-$D$8+1,BH$2<=$E38-$D$8+$D$7-1),3,""))),"") ->  | BR38: =IF($A$13,IF(AND(BR$2>=1,BR$2<=$D$7,$E38>=1,$E38<=$D$8),1,IF(AND(BR$2>=$D$7+1,BR$2<=$D$7+$D$9,$E38>=BR$2-$D$7+1,$E38<=BR$2-$D$7+$D$8),2,IF(AND($E38>=$D$8+1,$E38<=$D$8+$D$9,BR$2>=$E38-$D$8+1,BR$2<=$E38-$D$8+$D$7-1),3,""))),"") ->  | CB38: =IF($A$13,IF(AND(CB$2>=1,CB$2<=$D$7,$E38>=1,$E38<=$D$8),1,IF(AND(CB$2>=$D$7+1,CB$2<=$D$7+$D$9,$E38>=CB$2-$D$7+1,$E38<=CB$2-$D$7+$D$8),2,IF(AND($E38>=$D$8+1,$E38<=$D$8+$D$9,CB$2>=$E38-$D$8+1,CB$2<=$E38-$D$8+$D$7-1),3,""))),"") ->  | CL38: =IF($A$13,IF(AND(CL$2>=1,CL$2<=$D$7,$E38>=1,$E38<=$D$8),1,IF(AND(CL$2>=$D$7+1,CL$2<=$D$7+$D$9,$E38>=CL$2-$D$7+1,$E38<=CL$2-$D$7+$D$8),2,IF(AND($E38>=$D$8+1,$E38<=$D$8+$D$9,CL$2>=$E38-$D$8+1,CL$2<=$E38-$D$8+$D$7-1),3,""))),"") ->  | CV38: =IF($A$13,IF(AND(CV$2>=1,CV$2<=$D$7,$E38>=1,$E38<=$D$8),1,IF(AND(CV$2>=$D$7+1,CV$2<=$D$7+$D$9,$E38>=CV$2-$D$7+1,$E38<=CV$2-$D$7+$D$8),2,IF(AND($E38>=$D$8+1,$E38<=$D$8+$D$9,CV$2>=$E38-$D$8+1,CV$2<=$E38-$D$8+$D$7-1),3,""))),"") ->  | DF38: =IF($A$13,IF(AND(DF$2>=1,DF$2<=$D$7,$E38>=1,$E38<=$D$8),1,IF(AND(DF$2>=$D$7+1,DF$2<=$D$7+$D$9,$E38>=DF$2-$D$7+1,$E38<=DF$2-$D$7+$D$8),2,IF(AND($E38>=$D$8+1,$E38<=$D$8+$D$9,DF$2>=$E38-$D$8+1,DF$2<=$E38-$D$8+$D$7-1),3,""))),"") ->  | DP38: =IF($A$13,IF(AND(DP$2>=1,DP$2<=$D$7,$E38>=1,$E38<=$D$8),1,IF(AND(DP$2>=$D$7+1,DP$2<=$D$7+$D$9,$E38>=DP$2-$D$7+1,$E38<=DP$2-$D$7+$D$8),2,IF(AND($E38>=$D$8+1,$E38<=$D$8+$D$9,DP$2>=$E38-$D$8+1,DP$2<=$E38-$D$8+$D$7-1),3,""))),"") ->  | DZ38: =IF($A$13,IF(AND(DZ$2>=1,DZ$2<=$D$7,$E38>=1,$E38<=$D$8),1,IF(AND(DZ$2>=$D$7+1,DZ$2<=$D$7+$D$9,$E38>=DZ$2-$D$7+1,$E38<=DZ$2-$D$7+$D$8),2,IF(AND($E38>=$D$8+1,$E38<=$D$8+$D$9,DZ$2>=$E38-$D$8+1,DZ$2<=$E38-$D$8+$D$7-1),3,""))),"") ->  | EJ38: =IF($A$13,IF(AND(EJ$2>=1,EJ$2<=$D$7,$E38>=1,$E38<=$D$8),1,IF(AND(EJ$2>=$D$7+1,EJ$2<=$D$7+$D$9,$E38>=EJ$2-$D$7+1,$E38<=EJ$2-$D$7+$D$8),2,IF(AND($E38>=$D$8+1,$E38<=$D$8+$D$9,EJ$2>=$E38-$D$8+1,EJ$2<=$E38-$D$8+$D$7-1),3,""))),"") ->  | ET38: =IF($A$13,IF(AND(ET$2>=1,ET$2<=$D$7,$E38>=1,$E38<=$D$8),1,IF(AND(ET$2>=$D$7+1,ET$2<=$D$7+$D$9,$E38>=ET$2-$D$7+1,$E38<=ET$2-$D$7+$D$8),2,IF(AND($E38>=$D$8+1,$E38<=$D$8+$D$9,ET$2>=$E38-$D$8+1,ET$2<=$E38-$D$8+$D$7-1),3,""))),"") ->  | FD38: =IF($A$13,IF(AND(FD$2>=1,FD$2<=$D$7,$E38>=1,$E38<=$D$8),1,IF(AND(FD$2>=$D$7+1,FD$2<=$D$7+$D$9,$E38>=FD$2-$D$7+1,$E38<=FD$2-$D$7+$D$8),2,IF(AND($E38>=$D$8+1,$E38<=$D$8+$D$9,FD$2>=$E38-$D$8+1,FD$2<=$E38-$D$8+$D$7-1),3,""))),"") ->  | FN38: =IF($A$13,IF(AND(FN$2>=1,FN$2<=$D$7,$E38>=1,$E38<=$D$8),1,IF(AND(FN$2>=$D$7+1,FN$2<=$D$7+$D$9,$E38>=FN$2-$D$7+1,$E38<=FN$2-$D$7+$D$8),2,IF(AND($E38>=$D$8+1,$E38<=$D$8+$D$9,FN$2>=$E38-$D$8+1,FN$2<=$E38-$D$8+$D$7-1),3,""))),"") ->  | FX38: =IF($A$13,IF(AND(FX$2>=1,FX$2<=$D$7,$E38>=1,$E38<=$D$8),1,IF(AND(FX$2>=$D$7+1,FX$2<=$D$7+$D$9,$E38>=FX$2-$D$7+1,$E38<=FX$2-$D$7+$D$8),2,IF(AND($E38>=$D$8+1,$E38<=$D$8+$D$9,FX$2>=$E38-$D$8+1,FX$2<=$E38-$D$8+$D$7-1),3,""))),"") ->  | GH38: =IF($A$13,IF(AND(GH$2>=1,GH$2<=$D$7,$E38>=1,$E38<=$D$8),1,IF(AND(GH$2>=$D$7+1,GH$2<=$D$7+$D$9,$E38>=GH$2-$D$7+1,$E38<=GH$2-$D$7+$D$8),2,IF(AND($E38>=$D$8+1,$E38<=$D$8+$D$9,GH$2>=$E38-$D$8+1,GH$2<=$E38-$D$8+$D$7-1),3,""))),"") ->  | GR38: =IF($A$13,IF(AND(GR$2>=1,GR$2<=$D$7,$E38>=1,$E38<=$D$8),1,IF(AND(GR$2>=$D$7+1,GR$2<=$D$7+$D$9,$E38>=GR$2-$D$7+1,$E38<=GR$2-$D$7+$D$8),2,IF(AND($E38>=$D$8+1,$E38<=$D$8+$D$9,GR$2>=$E38-$D$8+1,GR$2<=$E38-$D$8+$D$7-1),3,""))),"") -> 
D39: 22 | E39: 179
D40: 23 | E40: 178
D41: 24 | E41: 177
D42: 25 | E42: 176
D43: 26 | E43: 175
D44: 27 | E44: 174
D45: 28 | E45: 173
D46: 29 | E46: 172
D47: 30 | E47: 171
D48: 31 | E48: 170 | J48: =IF($A$13,IF(AND(J$2>=1,J$2<=$D$7,$E48>=1,$E48<=$D$8),1,IF(AND(J$2>=$D$7+1,J$2<=$D$7+$D$9,$E48>=J$2-$D$7+1,$E48<=J$2-$D$7+$D$8),2,IF(AND($E48>=$D$8+1,$E48<=$D$8+$D$9,J$2>=$E48-$D$8+1,J$2<=$E48-$D$8+$D$7-1),3,""))),"") ->  | T48: =IF($A$13,IF(AND(T$2>=1,T$2<=$D$7,$E48>=1,$E48<=$D$8),1,IF(AND(T$2>=$D$7+1,T$2<=$D$7+$D$9,$E48>=T$2-$D$7+1,$E48<=T$2-$D$7+$D$8),2,IF(AND($E48>=$D$8+1,$E48<=$D$8+$D$9,T$2>=$E48-$D$8+1,T$2<=$E48-$D$8+$D$7-1),3,""))),"") ->  | AD48: =IF($A$13,IF(AND(AD$2>=1,AD$2<=$D$7,$E48>=1,$E48<=$D$8),1,IF(AND(AD$2>=$D$7+1,AD$2<=$D$7+$D$9,$E48>=AD$2-$D$7+1,$E48<=AD$2-$D$7+$D$8),2,IF(AND($E48>=$D$8+1,$E48<=$D$8+$D$9,AD$2>=$E48-$D$8+1,AD$2<=$E48-$D$8+$D$7-1),3,""))),"") ->  | AN48: =IF($A$13,IF(AND(AN$2>=1,AN$2<=$D$7,$E48>=1,$E48<=$D$8),1,IF(AND(AN$2>=$D$7+1,AN$2<=$D$7+$D$9,$E48>=AN$2-$D$7+1,$E48<=AN$2-$D$7+$D$8),2,IF(AND($E48>=$D$8+1,$E48<=$D$8+$D$9,AN$2>=$E48-$D$8+1,AN$2<=$E48-$D$8+$D$7-1),3,""))),"") ->  | AX48: =IF($A$13,IF(AND(AX$2>=1,AX$2<=$D$7,$E48>=1,$E48<=$D$8),1,IF(AND(AX$2>=$D$7+1,AX$2<=$D$7+$D$9,$E48>=AX$2-$D$7+1,$E48<=AX$2-$D$7+$D$8),2,IF(AND($E48>=$D$8+1,$E48<=$D$8+$D$9,AX$2>=$E48-$D$8+1,AX$2<=$E48-$D$8+$D$7-1),3,""))),"") ->  | BH48: =IF($A$13,IF(AND(BH$2>=1,BH$2<=$D$7,$E48>=1,$E48<=$D$8),1,IF(AND(BH$2>=$D$7+1,BH$2<=$D$7+$D$9,$E48>=BH$2-$D$7+1,$E48<=BH$2-$D$7+$D$8),2,IF(AND($E48>=$D$8+1,$E48<=$D$8+$D$9,BH$2>=$E48-$D$8+1,BH$2<=$E48-$D$8+$D$7-1),3,""))),"") ->  | BR48: =IF($A$13,IF(AND(BR$2>=1,BR$2<=$D$7,$E48>=1,$E48<=$D$8),1,IF(AND(BR$2>=$D$7+1,BR$2<=$D$7+$D$9,$E48>=BR$2-$D$7+1,$E48<=BR$2-$D$7+$D$8),2,IF(AND($E48>=$D$8+1,$E48<=$D$8+$D$9,BR$2>=$E48-$D$8+1,BR$2<=$E48-$D$8+$D$7-1),3,""))),"") ->  | CB48: =IF($A$13,IF(AND(CB$2>=1,CB$2<=$D$7,$E48>=1,$E48<=$D$8),1,IF(AND(CB$2>=$D$7+1,CB$2<=$D$7+$D$9,$E48>=CB$2-$D$7+1,$E48<=CB$2-$D$7+$D$8),2,IF(AND($E48>=$D$8+1,$E48<=$D$8+$D$9,CB$2>=$E48-$D$8+1,CB$2<=$E48-$D$8+$D$7-1),3,""))),"") ->  | CL48: =IF($A$13,IF(AND(CL$2>=1,CL$2<=$D$7,$E48>=1,$E48<=$D$8),1,IF(AND(CL$2>=$D$7+1,CL$2<=$D$7+$D$9,$E48>=CL$2-$D$7+1,$E48<=CL$2-$D$7+$D$8),2,IF(AND($E48>=$D$8+1,$E48<=$D$8+$D$9,CL$2>=$E48-$D$8+1,CL$2<=$E48-$D$8+$D$7-1),3,""))),"") ->  | CV48: =IF($A$13,IF(AND(CV$2>=1,CV$2<=$D$7,$E48>=1,$E48<=$D$8),1,IF(AND(CV$2>=$D$7+1,CV$2<=$D$7+$D$9,$E48>=CV$2-$D$7+1,$E48<=CV$2-$D$7+$D$8),2,IF(AND($E48>=$D$8+1,$E48<=$D$8+$D$9,CV$2>=$E48-$D$8+1,CV$2<=$E48-$D$8+$D$7-1),3,""))),"") ->  | DF48: =IF($A$13,IF(AND(DF$2>=1,DF$2<=$D$7,$E48>=1,$E48<=$D$8),1,IF(AND(DF$2>=$D$7+1,DF$2<=$D$7+$D$9,$E48>=DF$2-$D$7+1,$E48<=DF$2-$D$7+$D$8),2,IF(AND($E48>=$D$8+1,$E48<=$D$8+$D$9,DF$2>=$E48-$D$8+1,DF$2<=$E48-$D$8+$D$7-1),3,""))),"") ->  | DP48: =IF($A$13,IF(AND(DP$2>=1,DP$2<=$D$7,$E48>=1,$E48<=$D$8),1,IF(AND(DP$2>=$D$7+1,DP$2<=$D$7+$D$9,$E48>=DP$2-$D$7+1,$E48<=DP$2-$D$7+$D$8),2,IF(AND($E48>=$D$8+1,$E48<=$D$8+$D$9,DP$2>=$E48-$D$8+1,DP$2<=$E48-$D$8+$D$7-1),3,""))),"") ->  | DZ48: =IF($A$13,IF(AND(DZ$2>=1,DZ$2<=$D$7,$E48>=1,$E48<=$D$8),1,IF(AND(DZ$2>=$D$7+1,DZ$2<=$D$7+$D$9,$E48>=DZ$2-$D$7+1,$E48<=DZ$2-$D$7+$D$8),2,IF(AND($E48>=$D$8+1,$E48<=$D$8+$D$9,DZ$2>=$E48-$D$8+1,DZ$2<=$E48-$D$8+$D$7-1),3,""))),"") ->  | EJ48: =IF($A$13,IF(AND(EJ$2>=1,EJ$2<=$D$7,$E48>=1,$E48<=$D$8),1,IF(AND(EJ$2>=$D$7+1,EJ$2<=$D$7+$D$9,$E48>=EJ$2-$D$7+1,$E48<=EJ$2-$D$7+$D$8),2,IF(AND($E48>=$D$8+1,$E48<=$D$8+$D$9,EJ$2>=$E48-$D$8+1,EJ$2<=$E48-$D$8+$D$7-1),3,""))),"") ->  | ET48: =IF($A$13,IF(AND(ET$2>=1,ET$2<=$D$7,$E48>=1,$E48<=$D$8),1,IF(AND(ET$2>=$D$7+1,ET$2<=$D$7+$D$9,$E48>=ET$2-$D$7+1,$E48<=ET$2-$D$7+$D$8),2,IF(AND($E48>=$D$8+1,$E48<=$D$8+$D$9,ET$2>=$E48-$D$8+1,ET$2<=$E48-$D$8+$D$7-1),3,""))),"") ->  | FD48: =IF($A$13,IF(AND(FD$2>=1,FD$2<=$D$7,$E48>=1,$E48<=$D$8),1,IF(AND(FD$2>=$D$7+1,FD$2<=$D$7+$D$9,$E48>=FD$2-$D$7+1,$E48<=FD$2-$D$7+$D$8),2,IF(AND($E48>=$D$8+1,$E48<=$D$8+$D$9,FD$2>=$E48-$D$8+1,FD$2<=$E48-$D$8+$D$7-1),3,""))),"") ->  | FN48: =IF($A$13,IF(AND(FN$2>=1,FN$2<=$D$7,$E48>=1,$E48<=$D$8),1,IF(AND(FN$2>=$D$7+1,FN$2<=$D$7+$D$9,$E48>=FN$2-$D$7+1,$E48<=FN$2-$D$7+$D$8),2,IF(AND($E48>=$D$8+1,$E48<=$D$8+$D$9,FN$2>=$E48-$D$8+1,FN$2<=$E48-$D$8+$D$7-1),3,""))),"") ->  | FX48: =IF($A$13,IF(AND(FX$2>=1,FX$2<=$D$7,$E48>=1,$E48<=$D$8),1,IF(AND(FX$2>=$D$7+1,FX$2<=$D$7+$D$9,$E48>=FX$2-$D$7+1,$E48<=FX$2-$D$7+$D$8),2,IF(AND($E48>=$D$8+1,$E48<=$D$8+$D$9,FX$2>=$E48-$D$8+1,FX$2<=$E48-$D$8+$D$7-1),3,""))),"") ->  | GH48: =IF($A$13,IF(AND(GH$2>=1,GH$2<=$D$7,$E48>=1,$E48<=$D$8),1,IF(AND(GH$2>=$D$7+1,GH$2<=$D$7+$D$9,$E48>=GH$2-$D$7+1,$E48<=GH$2-$D$7+$D$8),2,IF(AND($E48>=$D$8+1,$E48<=$D$8+$D$9,GH$2>=$E48-$D$8+1,GH$2<=$E48-$D$8+$D$7-1),3,""))),"") ->  | GR48: =IF($A$13,IF(AND(GR$2>=1,GR$2<=$D$7,$E48>=1,$E48<=$D$8),1,IF(AND(GR$2>=$D$7+1,GR$2<=$D$7+$D$9,$E48>=GR$2-$D$7+1,$E48<=GR$2-$D$7+$D$8),2,IF(AND($E48>=$D$8+1,$E48<=$D$8+$D$9,GR$2>=$E48-$D$8+1,GR$2<=$E48-$D$8+$D$7-1),3,""))),"") -> 
D49: 32 | E49: 169
D50: 33 | E50: 168
D51: 34 | E51: 167
D52: 35 | E52: 166
D53: 36 | E53: 165
D54: 37 | E54: 164
D55: 38 | E55: 163
D56: 39 | E56: 162
D57: 40 | E57: 161
D58: 41 | E58: 160 | J58: =IF($A$13,IF(AND(J$2>=1,J$2<=$D$7,$E58>=1,$E58<=$D$8),1,IF(AND(J$2>=$D$7+1,J$2<=$D$7+$D$9,$E58>=J$2-$D$7+1,$E58<=J$2-$D$7+$D$8),2,IF(AND($E58>=$D$8+1,$E58<=$D$8+$D$9,J$2>=$E58-$D$8+1,J$2<=$E58-$D$8+$D$7-1),3,""))),"") ->  | T58: =IF($A$13,IF(AND(T$2>=1,T$2<=$D$7,$E58>=1,$E58<=$D$8),1,IF(AND(T$2>=$D$7+1,T$2<=$D$7+$D$9,$E58>=T$2-$D$7+1,$E58<=T$2-$D$7+$D$8),2,IF(AND($E58>=$D$8+1,$E58<=$D$8+$D$9,T$2>=$E58-$D$8+1,T$2<=$E58-$D$8+$D$7-1),3,""))),"") ->  | AD58: =IF($A$13,IF(AND(AD$2>=1,AD$2<=$D$7,$E58>=1,$E58<=$D$8),1,IF(AND(AD$2>=$D$7+1,AD$2<=$D$7+$D$9,$E58>=AD$2-$D$7+1,$E58<=AD$2-$D$7+$D$8),2,IF(AND($E58>=$D$8+1,$E58<=$D$8+$D$9,AD$2>=$E58-$D$8+1,AD$2<=$E58-$D$8+$D$7-1),3,""))),"") ->  | AN58: =IF($A$13,IF(AND(AN$2>=1,AN$2<=$D$7,$E58>=1,$E58<=$D$8),1,IF(AND(AN$2>=$D$7+1,AN$2<=$D$7+$D$9,$E58>=AN$2-$D$7+1,$E58<=AN$2-$D$7+$D$8),2,IF(AND($E58>=$D$8+1,$E58<=$D$8+$D$9,AN$2>=$E58-$D$8+1,AN$2<=$E58-$D$8+$D$7-1),3,""))),"") ->  | AX58: =IF($A$13,IF(AND(AX$2>=1,AX$2<=$D$7,$E58>=1,$E58<=$D$8),1,IF(AND(AX$2>=$D$7+1,AX$2<=$D$7+$D$9,$E58>=AX$2-$D$7+1,$E58<=AX$2-$D$7+$D$8),2,IF(AND($E58>=$D$8+1,$E58<=$D$8+$D$9,AX$2>=$E58-$D$8+1,AX$2<=$E58-$D$8+$D$7-1),3,""))),"") ->  | BH58: =IF($A$13,IF(AND(BH$2>=1,BH$2<=$D$7,$E58>=1,$E58<=$D$8),1,IF(AND(BH$2>=$D$7+1,BH$2<=$D$7+$D$9,$E58>=BH$2-$D$7+1,$E58<=BH$2-$D$7+$D$8),2,IF(AND($E58>=$D$8+1,$E58<=$D$8+$D$9,BH$2>=$E58-$D$8+1,BH$2<=$E58-$D$8+$D$7-1),3,""))),"") ->  | BR58: =IF($A$13,IF(AND(BR$2>=1,BR$2<=$D$7,$E58>=1,$E58<=$D$8),1,IF(AND(BR$2>=$D$7+1,BR$2<=$D$7+$D$9,$E58>=BR$2-$D$7+1,$E58<=BR$2-$D$7+$D$8),2,IF(AND($E58>=$D$8+1,$E58<=$D$8+$D$9,BR$2>=$E58-$D$8+1,BR$2<=$E58-$D$8+$D$7-1),3,""))),"") ->  | CB58: =IF($A$13,IF(AND(CB$2>=1,CB$2<=$D$7,$E58>=1,$E58<=$D$8),1,IF(AND(CB$2>=$D$7+1,CB$2<=$D$7+$D$9,$E58>=CB$2-$D$7+1,$E58<=CB$2-$D$7+$D$8),2,IF(AND($E58>=$D$8+1,$E58<=$D$8+$D$9,CB$2>=$E58-$D$8+1,CB$2<=$E58-$D$8+$D$7-1),3,""))),"") ->  | CL58: =IF($A$13,IF(AND(CL$2>=1,CL$2<=$D$7,$E58>=1,$E58<=$D$8),1,IF(AND(CL$2>=$D$7+1,CL$2<=$D$7+$D$9,$E58>=CL$2-$D$7+1,$E58<=CL$2-$D$7+$D$8),2,IF(AND($E58>=$D$8+1,$E58<=$D$8+$D$9,CL$2>=$E58-$D$8+1,CL$2<=$E58-$D$8+$D$7-1),3,""))),"") ->  | CV58: =IF($A$13,IF(AND(CV$2>=1,CV$2<=$D$7,$E58>=1,$E58<=$D$8),1,IF(AND(CV$2>=$D$7+1,CV$2<=$D$7+$D$9,$E58>=CV$2-$D$7+1,$E58<=CV$2-$D$7+$D$8),2,IF(AND($E58>=$D$8+1,$E58<=$D$8+$D$9,CV$2>=$E58-$D$8+1,CV$2<=$E58-$D$8+$D$7-1),3,""))),"") ->  | DF58: =IF($A$13,IF(AND(DF$2>=1,DF$2<=$D$7,$E58>=1,$E58<=$D$8),1,IF(AND(DF$2>=$D$7+1,DF$2<=$D$7+$D$9,$E58>=DF$2-$D$7+1,$E58<=DF$2-$D$7+$D$8),2,IF(AND($E58>=$D$8+1,$E58<=$D$8+$D$9,DF$2>=$E58-$D$8+1,DF$2<=$E58-$D$8+$D$7-1),3,""))),"") ->  | DP58: =IF($A$13,IF(AND(DP$2>=1,DP$2<=$D$7,$E58>=1,$E58<=$D$8),1,IF(AND(DP$2>=$D$7+1,DP$2<=$D$7+$D$9,$E58>=DP$2-$D$7+1,$E58<=DP$2-$D$7+$D$8),2,IF(AND($E58>=$D$8+1,$E58<=$D$8+$D$9,DP$2>=$E58-$D$8+1,DP$2<=$E58-$D$8+$D$7-1),3,""))),"") ->  | DZ58: =IF($A$13,IF(AND(DZ$2>=1,DZ$2<=$D$7,$E58>=1,$E58<=$D$8),1,IF(AND(DZ$2>=$D$7+1,DZ$2<=$D$7+$D$9,$E58>=DZ$2-$D$7+1,$E58<=DZ$2-$D$7+$D$8),2,IF(AND($E58>=$D$8+1,$E58<=$D$8+$D$9,DZ$2>=$E58-$D$8+1,DZ$2<=$E58-$D$8+$D$7-1),3,""))),"") ->  | EJ58: =IF($A$13,IF(AND(EJ$2>=1,EJ$2<=$D$7,$E58>=1,$E58<=$D$8),1,IF(AND(EJ$2>=$D$7+1,EJ$2<=$D$7+$D$9,$E58>=EJ$2-$D$7+1,$E58<=EJ$2-$D$7+$D$8),2,IF(AND($E58>=$D$8+1,$E58<=$D$8+$D$9,EJ$2>=$E58-$D$8+1,EJ$2<=$E58-$D$8+$D$7-1),3,""))),"") ->  | ET58: =IF($A$13,IF(AND(ET$2>=1,ET$2<=$D$7,$E58>=1,$E58<=$D$8),1,IF(AND(ET$2>=$D$7+1,ET$2<=$D$7+$D$9,$E58>=ET$2-$D$7+1,$E58<=ET$2-$D$7+$D$8),2,IF(AND($E58>=$D$8+1,$E58<=$D$8+$D$9,ET$2>=$E58-$D$8+1,ET$2<=$E58-$D$8+$D$7-1),3,""))),"") ->  | FD58: =IF($A$13,IF(AND(FD$2>=1,FD$2<=$D$7,$E58>=1,$E58<=$D$8),1,IF(AND(FD$2>=$D$7+1,FD$2<=$D$7+$D$9,$E58>=FD$2-$D$7+1,$E58<=FD$2-$D$7+$D$8),2,IF(AND($E58>=$D$8+1,$E58<=$D$8+$D$9,FD$2>=$E58-$D$8+1,FD$2<=$E58-$D$8+$D$7-1),3,""))),"") ->  | FN58: =IF($A$13,IF(AND(FN$2>=1,FN$2<=$D$7,$E58>=1,$E58<=$D$8),1,IF(AND(FN$2>=$D$7+1,FN$2<=$D$7+$D$9,$E58>=FN$2-$D$7+1,$E58<=FN$2-$D$7+$D$8),2,IF(AND($E58>=$D$8+1,$E58<=$D$8+$D$9,FN$2>=$E58-$D$8+1,FN$2<=$E58-$D$8+$D$7-1),3,""))),"") ->  | FX58: =IF($A$13,IF(AND(FX$2>=1,FX$2<=$D$7,$E58>=1,$E58<=$D$8),1,IF(AND(FX$2>=$D$7+1,FX$2<=$D$7+$D$9,$E58>=FX$2-$D$7+1,$E58<=FX$2-$D$7+$D$8),2,IF(AND($E58>=$D$8+1,$E58<=$D$8+$D$9,FX$2>=$E58-$D$8+1,FX$2<=$E58-$D$8+$D$7-1),3,""))),"") ->  | GH58: =IF($A$13,IF(AND(GH$2>=1,GH$2<=$D$7,$E58>=1,$E58<=$D$8),1,IF(AND(GH$2>=$D$7+1,GH$2<=$D$7+$D$9,$E58>=GH$2-$D$7+1,$E58<=GH$2-$D$7+$D$8),2,IF(AND($E58>=$D$8+1,$E58<=$D$8+$D$9,GH$2>=$E58-$D$8+1,GH$2<=$E58-$D$8+$D$7-1),3,""))),"") ->  | GR58: =IF($A$13,IF(AND(GR$2>=1,GR$2<=$D$7,$E58>=1,$E58<=$D$8),1,IF(AND(GR$2>=$D$7+1,GR$2<=$D$7+$D$9,$E58>=GR$2-$D$7+1,$E58<=GR$2-$D$7+$D$8),2,IF(AND($E58>=$D$8+1,$E58<=$D$8+$D$9,GR$2>=$E58-$D$8+1,GR$2<=$E58-$D$8+$D$7-1),3,""))),"") -> 
D59: 42 | E59: 159
D60: 43 | E60: 158
D61: 44 | E61: 157
D62: 45 | E62: 156
D63: 46 | E63: 155
D64: 47 | E64: 154
D65: 48 | E65: 153
D66: 49 | E66: 152
D67: 50 | E67: 151
D68: 51 | E68: 150 | J68: =IF($A$13,IF(AND(J$2>=1,J$2<=$D$7,$E68>=1,$E68<=$D$8),1,IF(AND(J$2>=$D$7+1,J$2<=$D$7+$D$9,$E68>=J$2-$D$7+1,$E68<=J$2-$D$7+$D$8),2,IF(AND($E68>=$D$8+1,$E68<=$D$8+$D$9,J$2>=$E68-$D$8+1,J$2<=$E68-$D$8+$D$7-1),3,""))),"") ->  | T68: =IF($A$13,IF(AND(T$2>=1,T$2<=$D$7,$E68>=1,$E68<=$D$8),1,IF(AND(T$2>=$D$7+1,T$2<=$D$7+$D$9,$E68>=T$2-$D$7+1,$E68<=T$2-$D$7+$D$8),2,IF(AND($E68>=$D$8+1,$E68<=$D$8+$D$9,T$2>=$E68-$D$8+1,T$2<=$E68-$D$8+$D$7-1),3,""))),"") ->  | AD68: =IF($A$13,IF(AND(AD$2>=1,AD$2<=$D$7,$E68>=1,$E68<=$D$8),1,IF(AND(AD$2>=$D$7+1,AD$2<=$D$7+$D$9,$E68>=AD$2-$D$7+1,$E68<=AD$2-$D$7+$D$8),2,IF(AND($E68>=$D$8+1,$E68<=$D$8+$D$9,AD$2>=$E68-$D$8+1,AD$2<=$E68-$D$8+$D$7-1),3,""))),"") ->  | AN68: =IF($A$13,IF(AND(AN$2>=1,AN$2<=$D$7,$E68>=1,$E68<=$D$8),1,IF(AND(AN$2>=$D$7+1,AN$2<=$D$7+$D$9,$E68>=AN$2-$D$7+1,$E68<=AN$2-$D$7+$D$8),2,IF(AND($E68>=$D$8+1,$E68<=$D$8+$D$9,AN$2>=$E68-$D$8+1,AN$2<=$E68-$D$8+$D$7-1),3,""))),"") ->  | AX68: =IF($A$13,IF(AND(AX$2>=1,AX$2<=$D$7,$E68>=1,$E68<=$D$8),1,IF(AND(AX$2>=$D$7+1,AX$2<=$D$7+$D$9,$E68>=AX$2-$D$7+1,$E68<=AX$2-$D$7+$D$8),2,IF(AND($E68>=$D$8+1,$E68<=$D$8+$D$9,AX$2>=$E68-$D$8+1,AX$2<=$E68-$D$8+$D$7-1),3,""))),"") ->  | BH68: =IF($A$13,IF(AND(BH$2>=1,BH$2<=$D$7,$E68>=1,$E68<=$D$8),1,IF(AND(BH$2>=$D$7+1,BH$2<=$D$7+$D$9,$E68>=BH$2-$D$7+1,$E68<=BH$2-$D$7+$D$8),2,IF(AND($E68>=$D$8+1,$E68<=$D$8+$D$9,BH$2>=$E68-$D$8+1,BH$2<=$E68-$D$8+$D$7-1),3,""))),"") ->  | BR68: =IF($A$13,IF(AND(BR$2>=1,BR$2<=$D$7,$E68>=1,$E68<=$D$8),1,IF(AND(BR$2>=$D$7+1,BR$2<=$D$7+$D$9,$E68>=BR$2-$D$7+1,$E68<=BR$2-$D$7+$D$8),2,IF(AND($E68>=$D$8+1,$E68<=$D$8+$D$9,BR$2>=$E68-$D$8+1,BR$2<=$E68-$D$8+$D$7-1),3,""))),"") ->  | CB68: =IF($A$13,IF(AND(CB$2>=1,CB$2<=$D$7,$E68>=1,$E68<=$D$8),1,IF(AND(CB$2>=$D$7+1,CB$2<=$D$7+$D$9,$E68>=CB$2-$D$7+1,$E68<=CB$2-$D$7+$D$8),2,IF(AND($E68>=$D$8+1,$E68<=$D$8+$D$9,CB$2>=$E68-$D$8+1,CB$2<=$E68-$D$8+$D$7-1),3,""))),"") ->  | CL68: =IF($A$13,IF(AND(CL$2>=1,CL$2<=$D$7,$E68>=1,$E68<=$D$8),1,IF(AND(CL$2>=$D$7+1,CL$2<=$D$7+$D$9,$E68>=CL$2-$D$7+1,$E68<=CL$2-$D$7+$D$8),2,IF(AND($E68>=$D$8+1,$E68<=$D$8+$D$9,CL$2>=$E68-$D$8+1,CL$2<=$E68-$D$8+$D$7-1),3,""))),"") ->  | CV68: =IF($A$13,IF(AND(CV$2>=1,CV$2<=$D$7,$E68>=1,$E68<=$D$8),1,IF(AND(CV$2>=$D$7+1,CV$2<=$D$7+$D$9,$E68>=CV$2-$D$7+1,$E68<=CV$2-$D$7+$D$8),2,IF(AND($E68>=$D$8+1,$E68<=$D$8+$D$9,CV$2>=$E68-$D$8+1,CV$2<=$E68-$D$8+$D$7-1),3,""))),"") ->  | DF68: =IF($A$13,IF(AND(DF$2>=1,DF$2<=$D$7,$E68>=1,$E68<=$D$8),1,IF(AND(DF$2>=$D$7+1,DF$2<=$D$7+$D$9,$E68>=DF$2-$D$7+1,$E68<=DF$2-$D$7+$D$8),2,IF(AND($E68>=$D$8+1,$E68<=$D$8+$D$9,DF$2>=$E68-$D$8+1,DF$2<=$E68-$D$8+$D$7-1),3,""))),"") ->  | DP68: =IF($A$13,IF(AND(DP$2>=1,DP$2<=$D$7,$E68>=1,$E68<=$D$8),1,IF(AND(DP$2>=$D$7+1,DP$2<=$D$7+$D$9,$E68>=DP$2-$D$7+1,$E68<=DP$2-$D$7+$D$8),2,IF(AND($E68>=$D$8+1,$E68<=$D$8+$D$9,DP$2>=$E68-$D$8+1,DP$2<=$E68-$D$8+$D$7-1),3,""))),"") ->  | DZ68: =IF($A$13,IF(AND(DZ$2>=1,DZ$2<=$D$7,$E68>=1,$E68<=$D$8),1,IF(AND(DZ$2>=$D$7+1,DZ$2<=$D$7+$D$9,$E68>=DZ$2-$D$7+1,$E68<=DZ$2-$D$7+$D$8),2,IF(AND($E68>=$D$8+1,$E68<=$D$8+$D$9,DZ$2>=$E68-$D$8+1,DZ$2<=$E68-$D$8+$D$7-1),3,""))),"") ->  | EJ68: =IF($A$13,IF(AND(EJ$2>=1,EJ$2<=$D$7,$E68>=1,$E68<=$D$8),1,IF(AND(EJ$2>=$D$7+1,EJ$2<=$D$7+$D$9,$E68>=EJ$2-$D$7+1,$E68<=EJ$2-$D$7+$D$8),2,IF(AND($E68>=$D$8+1,$E68<=$D$8+$D$9,EJ$2>=$E68-$D$8+1,EJ$2<=$E68-$D$8+$D$7-1),3,""))),"") ->  | ET68: =IF($A$13,IF(AND(ET$2>=1,ET$2<=$D$7,$E68>=1,$E68<=$D$8),1,IF(AND(ET$2>=$D$7+1,ET$2<=$D$7+$D$9,$E68>=ET$2-$D$7+1,$E68<=ET$2-$D$7+$D$8),2,IF(AND($E68>=$D$8+1,$E68<=$D$8+$D$9,ET$2>=$E68-$D$8+1,ET$2<=$E68-$D$8+$D$7-1),3,""))),"") ->  | FD68: =IF($A$13,IF(AND(FD$2>=1,FD$2<=$D$7,$E68>=1,$E68<=$D$8),1,IF(AND(FD$2>=$D$7+1,FD$2<=$D$7+$D$9,$E68>=FD$2-$D$7+1,$E68<=FD$2-$D$7+$D$8),2,IF(AND($E68>=$D$8+1,$E68<=$D$8+$D$9,FD$2>=$E68-$D$8+1,FD$2<=$E68-$D$8+$D$7-1),3,""))),"") ->  | FN68: =IF($A$13,IF(AND(FN$2>=1,FN$2<=$D$7,$E68>=1,$E68<=$D$8),1,IF(AND(FN$2>=$D$7+1,FN$2<=$D$7+$D$9,$E68>=FN$2-$D$7+1,$E68<=FN$2-$D$7+$D$8),2,IF(AND($E68>=$D$8+1,$E68<=$D$8+$D$9,FN$2>=$E68-$D$8+1,FN$2<=$E68-$D$8+$D$7-1),3,""))),"") ->  | FX68: =IF($A$13,IF(AND(FX$2>=1,FX$2<=$D$7,$E68>=1,$E68<=$D$8),1,IF(AND(FX$2>=$D$7+1,FX$2<=$D$7+$D$9,$E68>=FX$2-$D$7+1,$E68<=FX$2-$D$7+$D$8),2,IF(AND($E68>=$D$8+1,$E68<=$D$8+$D$9,FX$2>=$E68-$D$8+1,FX$2<=$E68-$D$8+$D$7-1),3,""))),"") ->  | GH68: =IF($A$13,IF(AND(GH$2>=1,GH$2<=$D$7,$E68>=1,$E68<=$D$8),1,IF(AND(GH$2>=$D$7+1,GH$2<=$D$7+$D$9,$E68>=GH$2-$D$7+1,$E68<=GH$2-$D$7+$D$8),2,IF(AND($E68>=$D$8+1,$E68<=$D$8+$D$9,GH$2>=$E68-$D$8+1,GH$2<=$E68-$D$8+$D$7-1),3,""))),"") ->  | GR68: =IF($A$13,IF(AND(GR$2>=1,GR$2<=$D$7,$E68>=1,$E68<=$D$8),1,IF(AND(GR$2>=$D$7+1,GR$2<=$D$7+$D$9,$E68>=GR$2-$D$7+1,$E68<=GR$2-$D$7+$D$8),2,IF(AND($E68>=$D$8+1,$E68<=$D$8+$D$9,GR$2>=$E68-$D$8+1,GR$2<=$E68-$D$8+$D$7-1),3,""))),"") -> 
D69: 52 | E69: 149
D70: 53 | E70: 148
D71: 54 | E71: 147
D72: 55 | E72: 146
D73: 56 | E73: 145
D74: 57 | E74: 144
D75: 58 | E75: 143
D76: 59 | E76: 142
D77: 60 | E77: 141
D78: 61 | E78: 140 | J78: =IF($A$13,IF(AND(J$2>=1,J$2<=$D$7,$E78>=1,$E78<=$D$8),1,IF(AND(J$2>=$D$7+1,J$2<=$D$7+$D$9,$E78>=J$2-$D$7+1,$E78<=J$2-$D$7+$D$8),2,IF(AND($E78>=$D$8+1,$E78<=$D$8+$D$9,J$2>=$E78-$D$8+1,J$2<=$E78-$D$8+$D$7-1),3,""))),"") ->  | T78: =IF($A$13,IF(AND(T$2>=1,T$2<=$D$7,$E78>=1,$E78<=$D$8),1,IF(AND(T$2>=$D$7+1,T$2<=$D$7+$D$9,$E78>=T$2-$D$7+1,$E78<=T$2-$D$7+$D$8),2,IF(AND($E78>=$D$8+1,$E78<=$D$8+$D$9,T$2>=$E78-$D$8+1,T$2<=$E78-$D$8+$D$7-1),3,""))),"") ->  | AD78: =IF($A$13,IF(AND(AD$2>=1,AD$2<=$D$7,$E78>=1,$E78<=$D$8),1,IF(AND(AD$2>=$D$7+1,AD$2<=$D$7+$D$9,$E78>=AD$2-$D$7+1,$E78<=AD$2-$D$7+$D$8),2,IF(AND($E78>=$D$8+1,$E78<=$D$8+$D$9,AD$2>=$E78-$D$8+1,AD$2<=$E78-$D$8+$D$7-1),3,""))),"") ->  | AN78: =IF($A$13,IF(AND(AN$2>=1,AN$2<=$D$7,$E78>=1,$E78<=$D$8),1,IF(AND(AN$2>=$D$7+1,AN$2<=$D$7+$D$9,$E78>=AN$2-$D$7+1,$E78<=AN$2-$D$7+$D$8),2,IF(AND($E78>=$D$8+1,$E78<=$D$8+$D$9,AN$2>=$E78-$D$8+1,AN$2<=$E78-$D$8+$D$7-1),3,""))),"") ->  | AX78: =IF($A$13,IF(AND(AX$2>=1,AX$2<=$D$7,$E78>=1,$E78<=$D$8),1,IF(AND(AX$2>=$D$7+1,AX$2<=$D$7+$D$9,$E78>=AX$2-$D$7+1,$E78<=AX$2-$D$7+$D$8),2,IF(AND($E78>=$D$8+1,$E78<=$D$8+$D$9,AX$2>=$E78-$D$8+1,AX$2<=$E78-$D$8+$D$7-1),3,""))),"") ->  | BH78: =IF($A$13,IF(AND(BH$2>=1,BH$2<=$D$7,$E78>=1,$E78<=$D$8),1,IF(AND(BH$2>=$D$7+1,BH$2<=$D$7+$D$9,$E78>=BH$2-$D$7+1,$E78<=BH$2-$D$7+$D$8),2,IF(AND($E78>=$D$8+1,$E78<=$D$8+$D$9,BH$2>=$E78-$D$8+1,BH$2<=$E78-$D$8+$D$7-1),3,""))),"") ->  | BR78: =IF($A$13,IF(AND(BR$2>=1,BR$2<=$D$7,$E78>=1,$E78<=$D$8),1,IF(AND(BR$2>=$D$7+1,BR$2<=$D$7+$D$9,$E78>=BR$2-$D$7+1,$E78<=BR$2-$D$7+$D$8),2,IF(AND($E78>=$D$8+1,$E78<=$D$8+$D$9,BR$2>=$E78-$D$8+1,BR$2<=$E78-$D$8+$D$7-1),3,""))),"") ->  | CB78: =IF($A$13,IF(AND(CB$2>=1,CB$2<=$D$7,$E78>=1,$E78<=$D$8),1,IF(AND(CB$2>=$D$7+1,CB$2<=$D$7+$D$9,$E78>=CB$2-$D$7+1,$E78<=CB$2-$D$7+$D$8),2,IF(AND($E78>=$D$8+1,$E78<=$D$8+$D$9,CB$2>=$E78-$D$8+1,CB$2<=$E78-$D$8+$D$7-1),3,""))),"") ->  | CL78: =IF($A$13,IF(AND(CL$2>=1,CL$2<=$D$7,$E78>=1,$E78<=$D$8),1,IF(AND(CL$2>=$D$7+1,CL$2<=$D$7+$D$9,$E78>=CL$2-$D$7+1,$E78<=CL$2-$D$7+$D$8),2,IF(AND($E78>=$D$8+1,$E78<=$D$8+$D$9,CL$2>=$E78-$D$8+1,CL$2<=$E78-$D$8+$D$7-1),3,""))),"") ->  | CV78: =IF($A$13,IF(AND(CV$2>=1,CV$2<=$D$7,$E78>=1,$E78<=$D$8),1,IF(AND(CV$2>=$D$7+1,CV$2<=$D$7+$D$9,$E78>=CV$2-$D$7+1,$E78<=CV$2-$D$7+$D$8),2,IF(AND($E78>=$D$8+1,$E78<=$D$8+$D$9,CV$2>=$E78-$D$8+1,CV$2<=$E78-$D$8+$D$7-1),3,""))),"") ->  | DF78: =IF($A$13,IF(AND(DF$2>=1,DF$2<=$D$7,$E78>=1,$E78<=$D$8),1,IF(AND(DF$2>=$D$7+1,DF$2<=$D$7+$D$9,$E78>=DF$2-$D$7+1,$E78<=DF$2-$D$7+$D$8),2,IF(AND($E78>=$D$8+1,$E78<=$D$8+$D$9,DF$2>=$E78-$D$8+1,DF$2<=$E78-$D$8+$D$7-1),3,""))),"") ->  | DP78: =IF($A$13,IF(AND(DP$2>=1,DP$2<=$D$7,$E78>=1,$E78<=$D$8),1,IF(AND(DP$2>=$D$7+1,DP$2<=$D$7+$D$9,$E78>=DP$2-$D$7+1,$E78<=DP$2-$D$7+$D$8),2,IF(AND($E78>=$D$8+1,$E78<=$D$8+$D$9,DP$2>=$E78-$D$8+1,DP$2<=$E78-$D$8+$D$7-1),3,""))),"") ->  | DZ78: =IF($A$13,IF(AND(DZ$2>=1,DZ$2<=$D$7,$E78>=1,$E78<=$D$8),1,IF(AND(DZ$2>=$D$7+1,DZ$2<=$D$7+$D$9,$E78>=DZ$2-$D$7+1,$E78<=DZ$2-$D$7+$D$8),2,IF(AND($E78>=$D$8+1,$E78<=$D$8+$D$9,DZ$2>=$E78-$D$8+1,DZ$2<=$E78-$D$8+$D$7-1),3,""))),"") ->  | EJ78: =IF($A$13,IF(AND(EJ$2>=1,EJ$2<=$D$7,$E78>=1,$E78<=$D$8),1,IF(AND(EJ$2>=$D$7+1,EJ$2<=$D$7+$D$9,$E78>=EJ$2-$D$7+1,$E78<=EJ$2-$D$7+$D$8),2,IF(AND($E78>=$D$8+1,$E78<=$D$8+$D$9,EJ$2>=$E78-$D$8+1,EJ$2<=$E78-$D$8+$D$7-1),3,""))),"") ->  | ET78: =IF($A$13,IF(AND(ET$2>=1,ET$2<=$D$7,$E78>=1,$E78<=$D$8),1,IF(AND(ET$2>=$D$7+1,ET$2<=$D$7+$D$9,$E78>=ET$2-$D$7+1,$E78<=ET$2-$D$7+$D$8),2,IF(AND($E78>=$D$8+1,$E78<=$D$8+$D$9,ET$2>=$E78-$D$8+1,ET$2<=$E78-$D$8+$D$7-1),3,""))),"") ->  | FD78: =IF($A$13,IF(AND(FD$2>=1,FD$2<=$D$7,$E78>=1,$E78<=$D$8),1,IF(AND(FD$2>=$D$7+1,FD$2<=$D$7+$D$9,$E78>=FD$2-$D$7+1,$E78<=FD$2-$D$7+$D$8),2,IF(AND($E78>=$D$8+1,$E78<=$D$8+$D$9,FD$2>=$E78-$D$8+1,FD$2<=$E78-$D$8+$D$7-1),3,""))),"") ->  | FN78: =IF($A$13,IF(AND(FN$2>=1,FN$2<=$D$7,$E78>=1,$E78<=$D$8),1,IF(AND(FN$2>=$D$7+1,FN$2<=$D$7+$D$9,$E78>=FN$2-$D$7+1,$E78<=FN$2-$D$7+$D$8),2,IF(AND($E78>=$D$8+1,$E78<=$D$8+$D$9,FN$2>=$E78-$D$8+1,FN$2<=$E78-$D$8+$D$7-1),3,""))),"") ->  | FX78: =IF($A$13,IF(AND(FX$2>=1,FX$2<=$D$7,$E78>=1,$E78<=$D$8),1,IF(AND(FX$2>=$D$7+1,FX$2<=$D$7+$D$9,$E78>=FX$2-$D$7+1,$E78<=FX$2-$D$7+$D$8),2,IF(AND($E78>=$D$8+1,$E78<=$D$8+$D$9,FX$2>=$E78-$D$8+1,FX$2<=$E78-$D$8+$D$7-1),3,""))),"") ->  | GH78: =IF($A$13,IF(AND(GH$2>=1,GH$2<=$D$7,$E78>=1,$E78<=$D$8),1,IF(AND(GH$2>=$D$7+1,GH$2<=$D$7+$D$9,$E78>=GH$2-$D$7+1,$E78<=GH$2-$D$7+$D$8),2,IF(AND($E78>=$D$8+1,$E78<=$D$8+$D$9,GH$2>=$E78-$D$8+1,GH$2<=$E78-$D$8+$D$7-1),3,""))),"") ->  | GR78: =IF($A$13,IF(AND(GR$2>=1,GR$2<=$D$7,$E78>=1,$E78<=$D$8),1,IF(AND(GR$2>=$D$7+1,GR$2<=$D$7+$D$9,$E78>=GR$2-$D$7+1,$E78<=GR$2-$D$7+$D$8),2,IF(AND($E78>=$D$8+1,$E78<=$D$8+$D$9,GR$2>=$E78-$D$8+1,GR$2<=$E78-$D$8+$D$7-1),3,""))),"") -> 
D79: 62 | E79: 139
D80: 63 | E80: 138
D81: 64 | E81: =$A$16-D81 -> 137
D82: 65 | E82: 136
D83: 66 | E83: 135
D84: 67 | E84: 134
D85: 68 | E85: 133
D86: 69 | E86: 132
D87: 70 | E87: 131
D88: 71 | E88: 130 | J88: =IF($A$13,IF(AND(J$2>=1,J$2<=$D$7,$E88>=1,$E88<=$D$8),1,IF(AND(J$2>=$D$7+1,J$2<=$D$7+$D$9,$E88>=J$2-$D$7+1,$E88<=J$2-$D$7+$D$8),2,IF(AND($E88>=$D$8+1,$E88<=$D$8+$D$9,J$2>=$E88-$D$8+1,J$2<=$E88-$D$8+$D$7-1),3,""))),"") ->  | T88: =IF($A$13,IF(AND(T$2>=1,T$2<=$D$7,$E88>=1,$E88<=$D$8),1,IF(AND(T$2>=$D$7+1,T$2<=$D$7+$D$9,$E88>=T$2-$D$7+1,$E88<=T$2-$D$7+$D$8),2,IF(AND($E88>=$D$8+1,$E88<=$D$8+$D$9,T$2>=$E88-$D$8+1,T$2<=$E88-$D$8+$D$7-1),3,""))),"") ->  | AD88: =IF($A$13,IF(AND(AD$2>=1,AD$2<=$D$7,$E88>=1,$E88<=$D$8),1,IF(AND(AD$2>=$D$7+1,AD$2<=$D$7+$D$9,$E88>=AD$2-$D$7+1,$E88<=AD$2-$D$7+$D$8),2,IF(AND($E88>=$D$8+1,$E88<=$D$8+$D$9,AD$2>=$E88-$D$8+1,AD$2<=$E88-$D$8+$D$7-1),3,""))),"") ->  | AN88: =IF($A$13,IF(AND(AN$2>=1,AN$2<=$D$7,$E88>=1,$E88<=$D$8),1,IF(AND(AN$2>=$D$7+1,AN$2<=$D$7+$D$9,$E88>=AN$2-$D$7+1,$E88<=AN$2-$D$7+$D$8),2,IF(AND($E88>=$D$8+1,$E88<=$D$8+$D$9,AN$2>=$E88-$D$8+1,AN$2<=$E88-$D$8+$D$7-1),3,""))),"") ->  | AX88: =IF($A$13,IF(AND(AX$2>=1,AX$2<=$D$7,$E88>=1,$E88<=$D$8),1,IF(AND(AX$2>=$D$7+1,AX$2<=$D$7+$D$9,$E88>=AX$2-$D$7+1,$E88<=AX$2-$D$7+$D$8),2,IF(AND($E88>=$D$8+1,$E88<=$D$8+$D$9,AX$2>=$E88-$D$8+1,AX$2<=$E88-$D$8+$D$7-1),3,""))),"") ->  | BH88: =IF($A$13,IF(AND(BH$2>=1,BH$2<=$D$7,$E88>=1,$E88<=$D$8),1,IF(AND(BH$2>=$D$7+1,BH$2<=$D$7+$D$9,$E88>=BH$2-$D$7+1,$E88<=BH$2-$D$7+$D$8),2,IF(AND($E88>=$D$8+1,$E88<=$D$8+$D$9,BH$2>=$E88-$D$8+1,BH$2<=$E88-$D$8+$D$7-1),3,""))),"") ->  | BR88: =IF($A$13,IF(AND(BR$2>=1,BR$2<=$D$7,$E88>=1,$E88<=$D$8),1,IF(AND(BR$2>=$D$7+1,BR$2<=$D$7+$D$9,$E88>=BR$2-$D$7+1,$E88<=BR$2-$D$7+$D$8),2,IF(AND($E88>=$D$8+1,$E88<=$D$8+$D$9,BR$2>=$E88-$D$8+1,BR$2<=$E88-$D$8+$D$7-1),3,""))),"") ->  | CB88: =IF($A$13,IF(AND(CB$2>=1,CB$2<=$D$7,$E88>=1,$E88<=$D$8),1,IF(AND(CB$2>=$D$7+1,CB$2<=$D$7+$D$9,$E88>=CB$2-$D$7+1,$E88<=CB$2-$D$7+$D$8),2,IF(AND($E88>=$D$8+1,$E88<=$D$8+$D$9,CB$2>=$E88-$D$8+1,CB$2<=$E88-$D$8+$D$7-1),3,""))),"") ->  | CL88: =IF($A$13,IF(AND(CL$2>=1,CL$2<=$D$7,$E88>=1,$E88<=$D$8),1,IF(AND(CL$2>=$D$7+1,CL$2<=$D$7+$D$9,$E88>=CL$2-$D$7+1,$E88<=CL$2-$D$7+$D$8),2,IF(AND($E88>=$D$8+1,$E88<=$D$8+$D$9,CL$2>=$E88-$D$8+1,CL$2<=$E88-$D$8+$D$7-1),3,""))),"") ->  | CV88: =IF($A$13,IF(AND(CV$2>=1,CV$2<=$D$7,$E88>=1,$E88<=$D$8),1,IF(AND(CV$2>=$D$7+1,CV$2<=$D$7+$D$9,$E88>=CV$2-$D$7+1,$E88<=CV$2-$D$7+$D$8),2,IF(AND($E88>=$D$8+1,$E88<=$D$8+$D$9,CV$2>=$E88-$D$8+1,CV$2<=$E88-$D$8+$D$7-1),3,""))),"") ->  | DF88: =IF($A$13,IF(AND(DF$2>=1,DF$2<=$D$7,$E88>=1,$E88<=$D$8),1,IF(AND(DF$2>=$D$7+1,DF$2<=$D$7+$D$9,$E88>=DF$2-$D$7+1,$E88<=DF$2-$D$7+$D$8),2,IF(AND($E88>=$D$8+1,$E88<=$D$8+$D$9,DF$2>=$E88-$D$8+1,DF$2<=$E88-$D$8+$D$7-1),3,""))),"") ->  | DP88: =IF($A$13,IF(AND(DP$2>=1,DP$2<=$D$7,$E88>=1,$E88<=$D$8),1,IF(AND(DP$2>=$D$7+1,DP$2<=$D$7+$D$9,$E88>=DP$2-$D$7+1,$E88<=DP$2-$D$7+$D$8),2,IF(AND($E88>=$D$8+1,$E88<=$D$8+$D$9,DP$2>=$E88-$D$8+1,DP$2<=$E88-$D$8+$D$7-1),3,""))),"") ->  | DZ88: =IF($A$13,IF(AND(DZ$2>=1,DZ$2<=$D$7,$E88>=1,$E88<=$D$8),1,IF(AND(DZ$2>=$D$7+1,DZ$2<=$D$7+$D$9,$E88>=DZ$2-$D$7+1,$E88<=DZ$2-$D$7+$D$8),2,IF(AND($E88>=$D$8+1,$E88<=$D$8+$D$9,DZ$2>=$E88-$D$8+1,DZ$2<=$E88-$D$8+$D$7-1),3,""))),"") ->  | EJ88: =IF($A$13,IF(AND(EJ$2>=1,EJ$2<=$D$7,$E88>=1,$E88<=$D$8),1,IF(AND(EJ$2>=$D$7+1,EJ$2<=$D$7+$D$9,$E88>=EJ$2-$D$7+1,$E88<=EJ$2-$D$7+$D$8),2,IF(AND($E88>=$D$8+1,$E88<=$D$8+$D$9,EJ$2>=$E88-$D$8+1,EJ$2<=$E88-$D$8+$D$7-1),3,""))),"") ->  | ET88: =IF($A$13,IF(AND(ET$2>=1,ET$2<=$D$7,$E88>=1,$E88<=$D$8),1,IF(AND(ET$2>=$D$7+1,ET$2<=$D$7+$D$9,$E88>=ET$2-$D$7+1,$E88<=ET$2-$D$7+$D$8),2,IF(AND($E88>=$D$8+1,$E88<=$D$8+$D$9,ET$2>=$E88-$D$8+1,ET$2<=$E88-$D$8+$D$7-1),3,""))),"") ->  | FD88: =IF($A$13,IF(AND(FD$2>=1,FD$2<=$D$7,$E88>=1,$E88<=$D$8),1,IF(AND(FD$2>=$D$7+1,FD$2<=$D$7+$D$9,$E88>=FD$2-$D$7+1,$E88<=FD$2-$D$7+$D$8),2,IF(AND($E88>=$D$8+1,$E88<=$D$8+$D$9,FD$2>=$E88-$D$8+1,FD$2<=$E88-$D$8+$D$7-1),3,""))),"") ->  | FN88: =IF($A$13,IF(AND(FN$2>=1,FN$2<=$D$7,$E88>=1,$E88<=$D$8),1,IF(AND(FN$2>=$D$7+1,FN$2<=$D$7+$D$9,$E88>=FN$2-$D$7+1,$E88<=FN$2-$D$7+$D$8),2,IF(AND($E88>=$D$8+1,$E88<=$D$8+$D$9,FN$2>=$E88-$D$8+1,FN$2<=$E88-$D$8+$D$7-1),3,""))),"") ->  | FX88: =IF($A$13,IF(AND(FX$2>=1,FX$2<=$D$7,$E88>=1,$E88<=$D$8),1,IF(AND(FX$2>=$D$7+1,FX$2<=$D$7+$D$9,$E88>=FX$2-$D$7+1,$E88<=FX$2-$D$7+$D$8),2,IF(AND($E88>=$D$8+1,$E88<=$D$8+$D$9,FX$2>=$E88-$D$8+1,FX$2<=$E88-$D$8+$D$7-1),3,""))),"") ->  | GH88: =IF($A$13,IF(AND(GH$2>=1,GH$2<=$D$7,$E88>=1,$E88<=$D$8),1,IF(AND(GH$2>=$D$7+1,GH$2<=$D$7+$D$9,$E88>=GH$2-$D$7+1,$E88<=GH$2-$D$7+$D$8),2,IF(AND($E88>=$D$8+1,$E88<=$D$8+$D$9,GH$2>=$E88-$D$8+1,GH$2<=$E88-$D$8+$D$7-1),3,""))),"") ->  | GR88: =IF($A$13,IF(AND(GR$2>=1,GR$2<=$D$7,$E88>=1,$E88<=$D$8),1,IF(AND(GR$2>=$D$7+1,GR$2<=$D$7+$D$9,$E88>=GR$2-$D$7+1,$E88<=GR$2-$D$7+$D$8),2,IF(AND($E88>=$D$8+1,$E88<=$D$8+$D$9,GR$2>=$E88-$D$8+1,GR$2<=$E88-$D$8+$D$7-1),3,""))),"") -> 
D89: 72 | E89: 129
D90: 73 | E90: 128
D91: 74 | E91: 127
D92: 75 | E92: 126
D93: 76 | E93: 125
D94: 77 | E94: 124
D95: 78 | E95: 123
D96: 79 | E96: 122
D97: 80 | E97: 121
D98: 81 | E98: 120 | J98: =IF($A$13,IF(AND(J$2>=1,J$2<=$D$7,$E98>=1,$E98<=$D$8),1,IF(AND(J$2>=$D$7+1,J$2<=$D$7+$D$9,$E98>=J$2-$D$7+1,$E98<=J$2-$D$7+$D$8),2,IF(AND($E98>=$D$8+1,$E98<=$D$8+$D$9,J$2>=$E98-$D$8+1,J$2<=$E98-$D$8+$D$7-1),3,""))),"") ->  | T98: =IF($A$13,IF(AND(T$2>=1,T$2<=$D$7,$E98>=1,$E98<=$D$8),1,IF(AND(T$2>=$D$7+1,T$2<=$D$7+$D$9,$E98>=T$2-$D$7+1,$E98<=T$2-$D$7+$D$8),2,IF(AND($E98>=$D$8+1,$E98<=$D$8+$D$9,T$2>=$E98-$D$8+1,T$2<=$E98-$D$8+$D$7-1),3,""))),"") ->  | AD98: =IF($A$13,IF(AND(AD$2>=1,AD$2<=$D$7,$E98>=1,$E98<=$D$8),1,IF(AND(AD$2>=$D$7+1,AD$2<=$D$7+$D$9,$E98>=AD$2-$D$7+1,$E98<=AD$2-$D$7+$D$8),2,IF(AND($E98>=$D$8+1,$E98<=$D$8+$D$9,AD$2>=$E98-$D$8+1,AD$2<=$E98-$D$8+$D$7-1),3,""))),"") ->  | AN98: =IF($A$13,IF(AND(AN$2>=1,AN$2<=$D$7,$E98>=1,$E98<=$D$8),1,IF(AND(AN$2>=$D$7+1,AN$2<=$D$7+$D$9,$E98>=AN$2-$D$7+1,$E98<=AN$2-$D$7+$D$8),2,IF(AND($E98>=$D$8+1,$E98<=$D$8+$D$9,AN$2>=$E98-$D$8+1,AN$2<=$E98-$D$8+$D$7-1),3,""))),"") ->  | AX98: =IF($A$13,IF(AND(AX$2>=1,AX$2<=$D$7,$E98>=1,$E98<=$D$8),1,IF(AND(AX$2>=$D$7+1,AX$2<=$D$7+$D$9,$E98>=AX$2-$D$7+1,$E98<=AX$2-$D$7+$D$8),2,IF(AND($E98>=$D$8+1,$E98<=$D$8+$D$9,AX$2>=$E98-$D$8+1,AX$2<=$E98-$D$8+$D$7-1),3,""))),"") ->  | BH98: =IF($A$13,IF(AND(BH$2>=1,BH$2<=$D$7,$E98>=1,$E98<=$D$8),1,IF(AND(BH$2>=$D$7+1,BH$2<=$D$7+$D$9,$E98>=BH$2-$D$7+1,$E98<=BH$2-$D$7+$D$8),2,IF(AND($E98>=$D$8+1,$E98<=$D$8+$D$9,BH$2>=$E98-$D$8+1,BH$2<=$E98-$D$8+$D$7-1),3,""))),"") ->  | BR98: =IF($A$13,IF(AND(BR$2>=1,BR$2<=$D$7,$E98>=1,$E98<=$D$8),1,IF(AND(BR$2>=$D$7+1,BR$2<=$D$7+$D$9,$E98>=BR$2-$D$7+1,$E98<=BR$2-$D$7+$D$8),2,IF(AND($E98>=$D$8+1,$E98<=$D$8+$D$9,BR$2>=$E98-$D$8+1,BR$2<=$E98-$D$8+$D$7-1),3,""))),"") ->  | CB98: =IF($A$13,IF(AND(CB$2>=1,CB$2<=$D$7,$E98>=1,$E98<=$D$8),1,IF(AND(CB$2>=$D$7+1,CB$2<=$D$7+$D$9,$E98>=CB$2-$D$7+1,$E98<=CB$2-$D$7+$D$8),2,IF(AND($E98>=$D$8+1,$E98<=$D$8+$D$9,CB$2>=$E98-$D$8+1,CB$2<=$E98-$D$8+$D$7-1),3,""))),"") ->  | CL98: =IF($A$13,IF(AND(CL$2>=1,CL$2<=$D$7,$E98>=1,$E98<=$D$8),1,IF(AND(CL$2>=$D$7+1,CL$2<=$D$7+$D$9,$E98>=CL$2-$D$7+1,$E98<=CL$2-$D$7+$D$8),2,IF(AND($E98>=$D$8+1,$E98<=$D$8+$D$9,CL$2>=$E98-$D$8+1,CL$2<=$E98-$D$8+$D$7-1),3,""))),"") ->  | CV98: =IF($A$13,IF(AND(CV$2>=1,CV$2<=$D$7,$E98>=1,$E98<=$D$8),1,IF(AND(CV$2>=$D$7+1,CV$2<=$D$7+$D$9,$E98>=CV$2-$D$7+1,$E98<=CV$2-$D$7+$D$8),2,IF(AND($E98>=$D$8+1,$E98<=$D$8+$D$9,CV$2>=$E98-$D$8+1,CV$2<=$E98-$D$8+$D$7-1),3,""))),"") ->  | DF98: =IF($A$13,IF(AND(DF$2>=1,DF$2<=$D$7,$E98>=1,$E98<=$D$8),1,IF(AND(DF$2>=$D$7+1,DF$2<=$D$7+$D$9,$E98>=DF$2-$D$7+1,$E98<=DF$2-$D$7+$D$8),2,IF(AND($E98>=$D$8+1,$E98<=$D$8+$D$9,DF$2>=$E98-$D$8+1,DF$2<=$E98-$D$8+$D$7-1),3,""))),"") ->  | DP98: =IF($A$13,IF(AND(DP$2>=1,DP$2<=$D$7,$E98>=1,$E98<=$D$8),1,IF(AND(DP$2>=$D$7+1,DP$2<=$D$7+$D$9,$E98>=DP$2-$D$7+1,$E98<=DP$2-$D$7+$D$8),2,IF(AND($E98>=$D$8+1,$E98<=$D$8+$D$9,DP$2>=$E98-$D$8+1,DP$2<=$E98-$D$8+$D$7-1),3,""))),"") ->  | DZ98: =IF($A$13,IF(AND(DZ$2>=1,DZ$2<=$D$7,$E98>=1,$E98<=$D$8),1,IF(AND(DZ$2>=$D$7+1,DZ$2<=$D$7+$D$9,$E98>=DZ$2-$D$7+1,$E98<=DZ$2-$D$7+$D$8),2,IF(AND($E98>=$D$8+1,$E98<=$D$8+$D$9,DZ$2>=$E98-$D$8+1,DZ$2<=$E98-$D$8+$D$7-1),3,""))),"") ->  | EJ98: =IF($A$13,IF(AND(EJ$2>=1,EJ$2<=$D$7,$E98>=1,$E98<=$D$8),1,IF(AND(EJ$2>=$D$7+1,EJ$2<=$D$7+$D$9,$E98>=EJ$2-$D$7+1,$E98<=EJ$2-$D$7+$D$8),2,IF(AND($E98>=$D$8+1,$E98<=$D$8+$D$9,EJ$2>=$E98-$D$8+1,EJ$2<=$E98-$D$8+$D$7-1),3,""))),"") ->  | ET98: =IF($A$13,IF(AND(ET$2>=1,ET$2<=$D$7,$E98>=1,$E98<=$D$8),1,IF(AND(ET$2>=$D$7+1,ET$2<=$D$7+$D$9,$E98>=ET$2-$D$7+1,$E98<=ET$2-$D$7+$D$8),2,IF(AND($E98>=$D$8+1,$E98<=$D$8+$D$9,ET$2>=$E98-$D$8+1,ET$2<=$E98-$D$8+$D$7-1),3,""))),"") ->  | FD98: =IF($A$13,IF(AND(FD$2>=1,FD$2<=$D$7,$E98>=1,$E98<=$D$8),1,IF(AND(FD$2>=$D$7+1,FD$2<=$D$7+$D$9,$E98>=FD$2-$D$7+1,$E98<=FD$2-$D$7+$D$8),2,IF(AND($E98>=$D$8+1,$E98<=$D$8+$D$9,FD$2>=$E98-$D$8+1,FD$2<=$E98-$D$8+$D$7-1),3,""))),"") ->  | FN98: =IF($A$13,IF(AND(FN$2>=1,FN$2<=$D$7,$E98>=1,$E98<=$D$8),1,IF(AND(FN$2>=$D$7+1,FN$2<=$D$7+$D$9,$E98>=FN$2-$D$7+1,$E98<=FN$2-$D$7+$D$8),2,IF(AND($E98>=$D$8+1,$E98<=$D$8+$D$9,FN$2>=$E98-$D$8+1,FN$2<=$E98-$D$8+$D$7-1),3,""))),"") ->  | FX98: =IF($A$13,IF(AND(FX$2>=1,FX$2<=$D$7,$E98>=1,$E98<=$D$8),1,IF(AND(FX$2>=$D$7+1,FX$2<=$D$7+$D$9,$E98>=FX$2-$D$7+1,$E98<=FX$2-$D$7+$D$8),2,IF(AND($E98>=$D$8+1,$E98<=$D$8+$D$9,FX$2>=$E98-$D$8+1,FX$2<=$E98-$D$8+$D$7-1),3,""))),"") ->  | GH98: =IF($A$13,IF(AND(GH$2>=1,GH$2<=$D$7,$E98>=1,$E98<=$D$8),1,IF(AND(GH$2>=$D$7+1,GH$2<=$D$7+$D$9,$E98>=GH$2-$D$7+1,$E98<=GH$2-$D$7+$D$8),2,IF(AND($E98>=$D$8+1,$E98<=$D$8+$D$9,GH$2>=$E98-$D$8+1,GH$2<=$E98-$D$8+$D$7-1),3,""))),"") ->  | GR98: =IF($A$13,IF(AND(GR$2>=1,GR$2<=$D$7,$E98>=1,$E98<=$D$8),1,IF(AND(GR$2>=$D$7+1,GR$2<=$D$7+$D$9,$E98>=GR$2-$D$7+1,$E98<=GR$2-$D$7+$D$8),2,IF(AND($E98>=$D$8+1,$E98<=$D$8+$D$9,GR$2>=$E98-$D$8+1,GR$2<=$E98-$D$8+$D$7-1),3,""))),"") -> 
D99: 82 | E99: 119
D100: 83 | E100: 118
D101: 84 | E101: 117
D102: 85 | E102: 116
D103: 86 | E103: 115
D104: 87 | E104: 114
D105: 88 | E105: 113
D106: 89 | E106: 112
D107: 90 | E107: 111
D108: 91 | E108: 110 | J108: =IF($A$13,IF(AND(J$2>=1,J$2<=$D$7,$E108>=1,$E108<=$D$8),1,IF(AND(J$2>=$D$7+1,J$2<=$D$7+$D$9,$E108>=J$2-$D$7+1,$E108<=J$2-$D$7+$D$8),2,IF(AND($E108>=$D$8+1,$E108<=$D$8+$D$9,J$2>=$E108-$D$8+1,J$2<=$E108-$D$8+$D$7-1),3,""))),"") ->  | T108: =IF($A$13,IF(AND(T$2>=1,T$2<=$D$7,$E108>=1,$E108<=$D$8),1,IF(AND(T$2>=$D$7+1,T$2<=$D$7+$D$9,$E108>=T$2-$D$7+1,$E108<=T$2-$D$7+$D$8),2,IF(AND($E108>=$D$8+1,$E108<=$D$8+$D$9,T$2>=$E108-$D$8+1,T$2<=$E108-$D$8+$D$7-1),3,""))),"") ->  | AD108: =IF($A$13,IF(AND(AD$2>=1,AD$2<=$D$7,$E108>=1,$E108<=$D$8),1,IF(AND(AD$2>=$D$7+1,AD$2<=$D$7+$D$9,$E108>=AD$2-$D$7+1,$E108<=AD$2-$D$7+$D$8),2,IF(AND($E108>=$D$8+1,$E108<=$D$8+$D$9,AD$2>=$E108-$D$8+1,AD$2<=$E108-$D$8+$D$7-1),3,""))),"") ->  | AN108: =IF($A$13,IF(AND(AN$2>=1,AN$2<=$D$7,$E108>=1,$E108<=$D$8),1,IF(AND(AN$2>=$D$7+1,AN$2<=$D$7+$D$9,$E108>=AN$2-$D$7+1,$E108<=AN$2-$D$7+$D$8),2,IF(AND($E108>=$D$8+1,$E108<=$D$8+$D$9,AN$2>=$E108-$D$8+1,AN$2<=$E108-$D$8+$D$7-1),3,""))),"") ->  | AX108: =IF($A$13,IF(AND(AX$2>=1,AX$2<=$D$7,$E108>=1,$E108<=$D$8),1,IF(AND(AX$2>=$D$7+1,AX$2<=$D$7+$D$9,$E108>=AX$2-$D$7+1,$E108<=AX$2-$D$7+$D$8),2,IF(AND($E108>=$D$8+1,$E108<=$D$8+$D$9,AX$2>=$E108-$D$8+1,AX$2<=$E108-$D$8+$D$7-1),3,""))),"") ->  | BH108: =IF($A$13,IF(AND(BH$2>=1,BH$2<=$D$7,$E108>=1,$E108<=$D$8),1,IF(AND(BH$2>=$D$7+1,BH$2<=$D$7+$D$9,$E108>=BH$2-$D$7+1,$E108<=BH$2-$D$7+$D$8),2,IF(AND($E108>=$D$8+1,$E108<=$D$8+$D$9,BH$2>=$E108-$D$8+1,BH$2<=$E108-$D$8+$D$7-1),3,""))),"") ->  | BR108: =IF($A$13,IF(AND(BR$2>=1,BR$2<=$D$7,$E108>=1,$E108<=$D$8),1,IF(AND(BR$2>=$D$7+1,BR$2<=$D$7+$D$9,$E108>=BR$2-$D$7+1,$E108<=BR$2-$D$7+$D$8),2,IF(AND($E108>=$D$8+1,$E108<=$D$8+$D$9,BR$2>=$E108-$D$8+1,BR$2<=$E108-$D$8+$D$7-1),3,""))),"") ->  | CB108: =IF($A$13,IF(AND(CB$2>=1,CB$2<=$D$7,$E108>=1,$E108<=$D$8),1,IF(AND(CB$2>=$D$7+1,CB$2<=$D$7+$D$9,$E108>=CB$2-$D$7+1,$E108<=CB$2-$D$7+$D$8),2,IF(AND($E108>=$D$8+1,$E108<=$D$8+$D$9,CB$2>=$E108-$D$8+1,CB$2<=$E108-$D$8+$D$7-1),3,""))),"") ->  | CL108: =IF($A$13,IF(AND(CL$2>=1,CL$2<=$D$7,$E108>=1,$E108<=$D$8),1,IF(AND(CL$2>=$D$7+1,CL$2<=$D$7+$D$9,$E108>=CL$2-$D$7+1,$E108<=CL$2-$D$7+$D$8),2,IF(AND($E108>=$D$8+1,$E108<=$D$8+$D$9,CL$2>=$E108-$D$8+1,CL$2<=$E108-$D$8+$D$7-1),3,""))),"") ->  | CV108: =IF($A$13,IF(AND(CV$2>=1,CV$2<=$D$7,$E108>=1,$E108<=$D$8),1,IF(AND(CV$2>=$D$7+1,CV$2<=$D$7+$D$9,$E108>=CV$2-$D$7+1,$E108<=CV$2-$D$7+$D$8),2,IF(AND($E108>=$D$8+1,$E108<=$D$8+$D$9,CV$2>=$E108-$D$8+1,CV$2<=$E108-$D$8+$D$7-1),3,""))),"") ->  | DF108: =IF($A$13,IF(AND(DF$2>=1,DF$2<=$D$7,$E108>=1,$E108<=$D$8),1,IF(AND(DF$2>=$D$7+1,DF$2<=$D$7+$D$9,$E108>=DF$2-$D$7+1,$E108<=DF$2-$D$7+$D$8),2,IF(AND($E108>=$D$8+1,$E108<=$D$8+$D$9,DF$2>=$E108-$D$8+1,DF$2<=$E108-$D$8+$D$7-1),3,""))),"") ->  | DP108: =IF($A$13,IF(AND(DP$2>=1,DP$2<=$D$7,$E108>=1,$E108<=$D$8),1,IF(AND(DP$2>=$D$7+1,DP$2<=$D$7+$D$9,$E108>=DP$2-$D$7+1,$E108<=DP$2-$D$7+$D$8),2,IF(AND($E108>=$D$8+1,$E108<=$D$8+$D$9,DP$2>=$E108-$D$8+1,DP$2<=$E108-$D$8+$D$7-1),3,""))),"") ->  | DZ108: =IF($A$13,IF(AND(DZ$2>=1,DZ$2<=$D$7,$E108>=1,$E108<=$D$8),1,IF(AND(DZ$2>=$D$7+1,DZ$2<=$D$7+$D$9,$E108>=DZ$2-$D$7+1,$E108<=DZ$2-$D$7+$D$8),2,IF(AND($E108>=$D$8+1,$E108<=$D$8+$D$9,DZ$2>=$E108-$D$8+1,DZ$2<=$E108-$D$8+$D$7-1),3,""))),"") ->  | EJ108: =IF($A$13,IF(AND(EJ$2>=1,EJ$2<=$D$7,$E108>=1,$E108<=$D$8),1,IF(AND(EJ$2>=$D$7+1,EJ$2<=$D$7+$D$9,$E108>=EJ$2-$D$7+1,$E108<=EJ$2-$D$7+$D$8),2,IF(AND($E108>=$D$8+1,$E108<=$D$8+$D$9,EJ$2>=$E108-$D$8+1,EJ$2<=$E108-$D$8+$D$7-1),3,""))),"") ->  | ET108: =IF($A$13,IF(AND(ET$2>=1,ET$2<=$D$7,$E108>=1,$E108<=$D$8),1,IF(AND(ET$2>=$D$7+1,ET$2<=$D$7+$D$9,$E108>=ET$2-$D$7+1,$E108<=ET$2-$D$7+$D$8),2,IF(AND($E108>=$D$8+1,$E108<=$D$8+$D$9,ET$2>=$E108-$D$8+1,ET$2<=$E108-$D$8+$D$7-1),3,""))),"") ->  | FD108: =IF($A$13,IF(AND(FD$2>=1,FD$2<=$D$7,$E108>=1,$E108<=$D$8),1,IF(AND(FD$2>=$D$7+1,FD$2<=$D$7+$D$9,$E108>=FD$2-$D$7+1,$E108<=FD$2-$D$7+$D$8),2,IF(AND($E108>=$D$8+1,$E108<=$D$8+$D$9,FD$2>=$E108-$D$8+1,FD$2<=$E108-$D$8+$D$7-1),3,""))),"") ->  | FN108: =IF($A$13,IF(AND(FN$2>=1,FN$2<=$D$7,$E108>=1,$E108<=$D$8),1,IF(AND(FN$2>=$D$7+1,FN$2<=$D$7+$D$9,$E108>=FN$2-$D$7+1,$E108<=FN$2-$D$7+$D$8),2,IF(AND($E108>=$D$8+1,$E108<=$D$8+$D$9,FN$2>=$E108-$D$8+1,FN$2<=$E108-$D$8+$D$7-1),3,""))),"") ->  | FX108: =IF($A$13,IF(AND(FX$2>=1,FX$2<=$D$7,$E108>=1,$E108<=$D$8),1,IF(AND(FX$2>=$D$7+1,FX$2<=$D$7+$D$9,$E108>=FX$2-$D$7+1,$E108<=FX$2-$D$7+$D$8),2,IF(AND($E108>=$D$8+1,$E108<=$D$8+$D$9,FX$2>=$E108-$D$8+1,FX$2<=$E108-$D$8+$D$7-1),3,""))),"") ->  | GH108: =IF($A$13,IF(AND(GH$2>=1,GH$2<=$D$7,$E108>=1,$E108<=$D$8),1,IF(AND(GH$2>=$D$7+1,GH$2<=$D$7+$D$9,$E108>=GH$2-$D$7+1,$E108<=GH$2-$D$7+$D$8),2,IF(AND($E108>=$D$8+1,$E108<=$D$8+$D$9,GH$2>=$E108-$D$8+1,GH$2<=$E108-$D$8+$D$7-1),3,""))),"") ->  | GR108: =IF($A$13,IF(AND(GR$2>=1,GR$2<=$D$7,$E108>=1,$E108<=$D$8),1,IF(AND(GR$2>=$D$7+1,GR$2<=$D$7+$D$9,$E108>=GR$2-$D$7+1,$E108<=GR$2-$D$7+$D$8),2,IF(AND($E108>=$D$8+1,$E108<=$D$8+$D$9,GR$2>=$E108-$D$8+1,GR$2<=$E108-$D$8+$D$7-1),3,""))),"") -> 
D109: 92 | E109: 109
D110: 93 | E110: 108
D111: 94 | E111: 107
D112: 95 | E112: 106
D113: 96 | E113: 105
D114: 97 | E114: 104
D115: 98 | E115: 103
D116: 99 | E116: 102
D117: 100 | E117: 101
D118: 101 | E118: 100 | J118: =IF($A$13,IF(AND(J$2>=1,J$2<=$D$7,$E118>=1,$E118<=$D$8),1,IF(AND(J$2>=$D$7+1,J$2<=$D$7+$D$9,$E118>=J$2-$D$7+1,$E118<=J$2-$D$7+$D$8),2,IF(AND($E118>=$D$8+1,$E118<=$D$8+$D$9,J$2>=$E118-$D$8+1,J$2<=$E118-$D$8+$D$7-1),3,""))),"") ->  | T118: =IF($A$13,IF(AND(T$2>=1,T$2<=$D$7,$E118>=1,$E118<=$D$8),1,IF(AND(T$2>=$D$7+1,T$2<=$D$7+$D$9,$E118>=T$2-$D$7+1,$E118<=T$2-$D$7+$D$8),2,IF(AND($E118>=$D$8+1,$E118<=$D$8+$D$9,T$2>=$E118-$D$8+1,T$2<=$E118-$D$8+$D$7-1),3,""))),"") ->  | AD118: =IF($A$13,IF(AND(AD$2>=1,AD$2<=$D$7,$E118>=1,$E118<=$D$8),1,IF(AND(AD$2>=$D$7+1,AD$2<=$D$7+$D$9,$E118>=AD$2-$D$7+1,$E118<=AD$2-$D$7+$D$8),2,IF(AND($E118>=$D$8+1,$E118<=$D$8+$D$9,AD$2>=$E118-$D$8+1,AD$2<=$E118-$D$8+$D$7-1),3,""))),"") ->  | AN118: =IF($A$13,IF(AND(AN$2>=1,AN$2<=$D$7,$E118>=1,$E118<=$D$8),1,IF(AND(AN$2>=$D$7+1,AN$2<=$D$7+$D$9,$E118>=AN$2-$D$7+1,$E118<=AN$2-$D$7+$D$8),2,IF(AND($E118>=$D$8+1,$E118<=$D$8+$D$9,AN$2>=$E118-$D$8+1,AN$2<=$E118-$D$8+$D$7-1),3,""))),"") ->  | AX118: =IF($A$13,IF(AND(AX$2>=1,AX$2<=$D$7,$E118>=1,$E118<=$D$8),1,IF(AND(AX$2>=$D$7+1,AX$2<=$D$7+$D$9,$E118>=AX$2-$D$7+1,$E118<=AX$2-$D$7+$D$8),2,IF(AND($E118>=$D$8+1,$E118<=$D$8+$D$9,AX$2>=$E118-$D$8+1,AX$2<=$E118-$D$8+$D$7-1),3,""))),"") ->  | BH118: =IF($A$13,IF(AND(BH$2>=1,BH$2<=$D$7,$E118>=1,$E118<=$D$8),1,IF(AND(BH$2>=$D$7+1,BH$2<=$D$7+$D$9,$E118>=BH$2-$D$7+1,$E118<=BH$2-$D$7+$D$8),2,IF(AND($E118>=$D$8+1,$E118<=$D$8+$D$9,BH$2>=$E118-$D$8+1,BH$2<=$E118-$D$8+$D$7-1),3,""))),"") ->  | BR118: =IF($A$13,IF(AND(BR$2>=1,BR$2<=$D$7,$E118>=1,$E118<=$D$8),1,IF(AND(BR$2>=$D$7+1,BR$2<=$D$7+$D$9,$E118>=BR$2-$D$7+1,$E118<=BR$2-$D$7+$D$8),2,IF(AND($E118>=$D$8+1,$E118<=$D$8+$D$9,BR$2>=$E118-$D$8+1,BR$2<=$E118-$D$8+$D$7-1),3,""))),"") ->  | CB118: =IF($A$13,IF(AND(CB$2>=1,CB$2<=$D$7,$E118>=1,$E118<=$D$8),1,IF(AND(CB$2>=$D$7+1,CB$2<=$D$7+$D$9,$E118>=CB$2-$D$7+1,$E118<=CB$2-$D$7+$D$8),2,IF(AND($E118>=$D$8+1,$E118<=$D$8+$D$9,CB$2>=$E118-$D$8+1,CB$2<=$E118-$D$8+$D$7-1),3,""))),"") ->  | CL118: =IF($A$13,IF(AND(CL$2>=1,CL$2<=$D$7,$E118>=1,$E118<=$D$8),1,IF(AND(CL$2>=$D$7+1,CL$2<=$D$7+$D$9,$E118>=CL$2-$D$7+1,$E118<=CL$2-$D$7+$D$8),2,IF(AND($E118>=$D$8+1,$E118<=$D$8+$D$9,CL$2>=$E118-$D$8+1,CL$2<=$E118-$D$8+$D$7-1),3,""))),"") ->  | CV118: =IF($A$13,IF(AND(CV$2>=1,CV$2<=$D$7,$E118>=1,$E118<=$D$8),1,IF(AND(CV$2>=$D$7+1,CV$2<=$D$7+$D$9,$E118>=CV$2-$D$7+1,$E118<=CV$2-$D$7+$D$8),2,IF(AND($E118>=$D$8+1,$E118<=$D$8+$D$9,CV$2>=$E118-$D$8+1,CV$2<=$E118-$D$8+$D$7-1),3,""))),"") ->  | DF118: =IF($A$13,IF(AND(DF$2>=1,DF$2<=$D$7,$E118>=1,$E118<=$D$8),1,IF(AND(DF$2>=$D$7+1,DF$2<=$D$7+$D$9,$E118>=DF$2-$D$7+1,$E118<=DF$2-$D$7+$D$8),2,IF(AND($E118>=$D$8+1,$E118<=$D$8+$D$9,DF$2>=$E118-$D$8+1,DF$2<=$E118-$D$8+$D$7-1),3,""))),"") ->  | DP118: =IF($A$13,IF(AND(DP$2>=1,DP$2<=$D$7,$E118>=1,$E118<=$D$8),1,IF(AND(DP$2>=$D$7+1,DP$2<=$D$7+$D$9,$E118>=DP$2-$D$7+1,$E118<=DP$2-$D$7+$D$8),2,IF(AND($E118>=$D$8+1,$E118<=$D$8+$D$9,DP$2>=$E118-$D$8+1,DP$2<=$E118-$D$8+$D$7-1),3,""))),"") ->  | DZ118: =IF($A$13,IF(AND(DZ$2>=1,DZ$2<=$D$7,$E118>=1,$E118<=$D$8),1,IF(AND(DZ$2>=$D$7+1,DZ$2<=$D$7+$D$9,$E118>=DZ$2-$D$7+1,$E118<=DZ$2-$D$7+$D$8),2,IF(AND($E118>=$D$8+1,$E118<=$D$8+$D$9,DZ$2>=$E118-$D$8+1,DZ$2<=$E118-$D$8+$D$7-1),3,""))),"") ->  | EJ118: =IF($A$13,IF(AND(EJ$2>=1,EJ$2<=$D$7,$E118>=1,$E118<=$D$8),1,IF(AND(EJ$2>=$D$7+1,EJ$2<=$D$7+$D$9,$E118>=EJ$2-$D$7+1,$E118<=EJ$2-$D$7+$D$8),2,IF(AND($E118>=$D$8+1,$E118<=$D$8+$D$9,EJ$2>=$E118-$D$8+1,EJ$2<=$E118-$D$8+$D$7-1),3,""))),"") ->  | ET118: =IF($A$13,IF(AND(ET$2>=1,ET$2<=$D$7,$E118>=1,$E118<=$D$8),1,IF(AND(ET$2>=$D$7+1,ET$2<=$D$7+$D$9,$E118>=ET$2-$D$7+1,$E118<=ET$2-$D$7+$D$8),2,IF(AND($E118>=$D$8+1,$E118<=$D$8+$D$9,ET$2>=$E118-$D$8+1,ET$2<=$E118-$D$8+$D$7-1),3,""))),"") ->  | FD118: =IF($A$13,IF(AND(FD$2>=1,FD$2<=$D$7,$E118>=1,$E118<=$D$8),1,IF(AND(FD$2>=$D$7+1,FD$2<=$D$7+$D$9,$E118>=FD$2-$D$7+1,$E118<=FD$2-$D$7+$D$8),2,IF(AND($E118>=$D$8+1,$E118<=$D$8+$D$9,FD$2>=$E118-$D$8+1,FD$2<=$E118-$D$8+$D$7-1),3,""))),"") ->  | FN118: =IF($A$13,IF(AND(FN$2>=1,FN$2<=$D$7,$E118>=1,$E118<=$D$8),1,IF(AND(FN$2>=$D$7+1,FN$2<=$D$7+$D$9,$E118>=FN$2-$D$7+1,$E118<=FN$2-$D$7+$D$8),2,IF(AND($E118>=$D$8+1,$E118<=$D$8+$D$9,FN$2>=$E118-$D$8+1,FN$2<=$E118-$D$8+$D$7-1),3,""))),"") ->  | FX118: =IF($A$13,IF(AND(FX$2>=1,FX$2<=$D$7,$E118>=1,$E118<=$D$8),1,IF(AND(FX$2>=$D$7+1,FX$2<=$D$7+$D$9,$E118>=FX$2-$D$7+1,$E118<=FX$2-$D$7+$D$8),2,IF(AND($E118>=$D$8+1,$E118<=$D$8+$D$9,FX$2>=$E118-$D$8+1,FX$2<=$E118-$D$8+$D$7-1),3,""))),"") ->  | GH118: =IF($A$13,IF(AND(GH$2>=1,GH$2<=$D$7,$E118>=1,$E118<=$D$8),1,IF(AND(GH$2>=$D$7+1,GH$2<=$D$7+$D$9,$E118>=GH$2-$D$7+1,$E118<=GH$2-$D$7+$D$8),2,IF(AND($E118>=$D$8+1,$E118<=$D$8+$D$9,GH$2>=$E118-$D$8+1,GH$2<=$E118-$D$8+$D$7-1),3,""))),"") ->  | GR118: =IF($A$13,IF(AND(GR$2>=1,GR$2<=$D$7,$E118>=1,$E118<=$D$8),1,IF(AND(GR$2>=$D$7+1,GR$2<=$D$7+$D$9,$E118>=GR$2-$D$7+1,$E118<=GR$2-$D$7+$D$8),2,IF(AND($E118>=$D$8+1,$E118<=$D$8+$D$9,GR$2>=$E118-$D$8+1,GR$2<=$E118-$D$8+$D$7-1),3,""))),"") -> 
D119: 102 | E119: 99
D120: 103 | E120: 98
D121: 104 | E121: 97
D122: 105 | E122: 96
D123: 106 | E123: 95
D124: 107 | E124: 94
D125: 108 | E125: 93
D126: 109 | E126: 92
D127: 110 | E127: 91
D128: 111 | E128: 90 | J128: =IF($A$13,IF(AND(J$2>=1,J$2<=$D$7,$E128>=1,$E128<=$D$8),1,IF(AND(J$2>=$D$7+1,J$2<=$D$7+$D$9,$E128>=J$2-$D$7+1,$E128<=J$2-$D$7+$D$8),2,IF(AND($E128>=$D$8+1,$E128<=$D$8+$D$9,J$2>=$E128-$D$8+1,J$2<=$E128-$D$8+$D$7-1),3,""))),"") ->  | T128: =IF($A$13,IF(AND(T$2>=1,T$2<=$D$7,$E128>=1,$E128<=$D$8),1,IF(AND(T$2>=$D$7+1,T$2<=$D$7+$D$9,$E128>=T$2-$D$7+1,$E128<=T$2-$D$7+$D$8),2,IF(AND($E128>=$D$8+1,$E128<=$D$8+$D$9,T$2>=$E128-$D$8+1,T$2<=$E128-$D$8+$D$7-1),3,""))),"") ->  | AD128: =IF($A$13,IF(AND(AD$2>=1,AD$2<=$D$7,$E128>=1,$E128<=$D$8),1,IF(AND(AD$2>=$D$7+1,AD$2<=$D$7+$D$9,$E128>=AD$2-$D$7+1,$E128<=AD$2-$D$7+$D$8),2,IF(AND($E128>=$D$8+1,$E128<=$D$8+$D$9,AD$2>=$E128-$D$8+1,AD$2<=$E128-$D$8+$D$7-1),3,""))),"") ->  | AN128: =IF($A$13,IF(AND(AN$2>=1,AN$2<=$D$7,$E128>=1,$E128<=$D$8),1,IF(AND(AN$2>=$D$7+1,AN$2<=$D$7+$D$9,$E128>=AN$2-$D$7+1,$E128<=AN$2-$D$7+$D$8),2,IF(AND($E128>=$D$8+1,$E128<=$D$8+$D$9,AN$2>=$E128-$D$8+1,AN$2<=$E128-$D$8+$D$7-1),3,""))),"") ->  | AX128: =IF($A$13,IF(AND(AX$2>=1,AX$2<=$D$7,$E128>=1,$E128<=$D$8),1,IF(AND(AX$2>=$D$7+1,AX$2<=$D$7+$D$9,$E128>=AX$2-$D$7+1,$E128<=AX$2-$D$7+$D$8),2,IF(AND($E128>=$D$8+1,$E128<=$D$8+$D$9,AX$2>=$E128-$D$8+1,AX$2<=$E128-$D$8+$D$7-1),3,""))),"") ->  | BH128: =IF($A$13,IF(AND(BH$2>=1,BH$2<=$D$7,$E128>=1,$E128<=$D$8),1,IF(AND(BH$2>=$D$7+1,BH$2<=$D$7+$D$9,$E128>=BH$2-$D$7+1,$E128<=BH$2-$D$7+$D$8),2,IF(AND($E128>=$D$8+1,$E128<=$D$8+$D$9,BH$2>=$E128-$D$8+1,BH$2<=$E128-$D$8+$D$7-1),3,""))),"") ->  | BR128: =IF($A$13,IF(AND(BR$2>=1,BR$2<=$D$7,$E128>=1,$E128<=$D$8),1,IF(AND(BR$2>=$D$7+1,BR$2<=$D$7+$D$9,$E128>=BR$2-$D$7+1,$E128<=BR$2-$D$7+$D$8),2,IF(AND($E128>=$D$8+1,$E128<=$D$8+$D$9,BR$2>=$E128-$D$8+1,BR$2<=$E128-$D$8+$D$7-1),3,""))),"") ->  | CB128: =IF($A$13,IF(AND(CB$2>=1,CB$2<=$D$7,$E128>=1,$E128<=$D$8),1,IF(AND(CB$2>=$D$7+1,CB$2<=$D$7+$D$9,$E128>=CB$2-$D$7+1,$E128<=CB$2-$D$7+$D$8),2,IF(AND($E128>=$D$8+1,$E128<=$D$8+$D$9,CB$2>=$E128-$D$8+1,CB$2<=$E128-$D$8+$D$7-1),3,""))),"") ->  | CL128: =IF($A$13,IF(AND(CL$2>=1,CL$2<=$D$7,$E128>=1,$E128<=$D$8),1,IF(AND(CL$2>=$D$7+1,CL$2<=$D$7+$D$9,$E128>=CL$2-$D$7+1,$E128<=CL$2-$D$7+$D$8),2,IF(AND($E128>=$D$8+1,$E128<=$D$8+$D$9,CL$2>=$E128-$D$8+1,CL$2<=$E128-$D$8+$D$7-1),3,""))),"") ->  | CV128: =IF($A$13,IF(AND(CV$2>=1,CV$2<=$D$7,$E128>=1,$E128<=$D$8),1,IF(AND(CV$2>=$D$7+1,CV$2<=$D$7+$D$9,$E128>=CV$2-$D$7+1,$E128<=CV$2-$D$7+$D$8),2,IF(AND($E128>=$D$8+1,$E128<=$D$8+$D$9,CV$2>=$E128-$D$8+1,CV$2<=$E128-$D$8+$D$7-1),3,""))),"") ->  | DF128: =IF($A$13,IF(AND(DF$2>=1,DF$2<=$D$7,$E128>=1,$E128<=$D$8),1,IF(AND(DF$2>=$D$7+1,DF$2<=$D$7+$D$9,$E128>=DF$2-$D$7+1,$E128<=DF$2-$D$7+$D$8),2,IF(AND($E128>=$D$8+1,$E128<=$D$8+$D$9,DF$2>=$E128-$D$8+1,DF$2<=$E128-$D$8+$D$7-1),3,""))),"") ->  | DP128: =IF($A$13,IF(AND(DP$2>=1,DP$2<=$D$7,$E128>=1,$E128<=$D$8),1,IF(AND(DP$2>=$D$7+1,DP$2<=$D$7+$D$9,$E128>=DP$2-$D$7+1,$E128<=DP$2-$D$7+$D$8),2,IF(AND($E128>=$D$8+1,$E128<=$D$8+$D$9,DP$2>=$E128-$D$8+1,DP$2<=$E128-$D$8+$D$7-1),3,""))),"") ->  | DZ128: =IF($A$13,IF(AND(DZ$2>=1,DZ$2<=$D$7,$E128>=1,$E128<=$D$8),1,IF(AND(DZ$2>=$D$7+1,DZ$2<=$D$7+$D$9,$E128>=DZ$2-$D$7+1,$E128<=DZ$2-$D$7+$D$8),2,IF(AND($E128>=$D$8+1,$E128<=$D$8+$D$9,DZ$2>=$E128-$D$8+1,DZ$2<=$E128-$D$8+$D$7-1),3,""))),"") ->  | EJ128: =IF($A$13,IF(AND(EJ$2>=1,EJ$2<=$D$7,$E128>=1,$E128<=$D$8),1,IF(AND(EJ$2>=$D$7+1,EJ$2<=$D$7+$D$9,$E128>=EJ$2-$D$7+1,$E128<=EJ$2-$D$7+$D$8),2,IF(AND($E128>=$D$8+1,$E128<=$D$8+$D$9,EJ$2>=$E128-$D$8+1,EJ$2<=$E128-$D$8+$D$7-1),3,""))),"") ->  | ET128: =IF($A$13,IF(AND(ET$2>=1,ET$2<=$D$7,$E128>=1,$E128<=$D$8),1,IF(AND(ET$2>=$D$7+1,ET$2<=$D$7+$D$9,$E128>=ET$2-$D$7+1,$E128<=ET$2-$D$7+$D$8),2,IF(AND($E128>=$D$8+1,$E128<=$D$8+$D$9,ET$2>=$E128-$D$8+1,ET$2<=$E128-$D$8+$D$7-1),3,""))),"") ->  | FD128: =IF($A$13,IF(AND(FD$2>=1,FD$2<=$D$7,$E128>=1,$E128<=$D$8),1,IF(AND(FD$2>=$D$7+1,FD$2<=$D$7+$D$9,$E128>=FD$2-$D$7+1,$E128<=FD$2-$D$7+$D$8),2,IF(AND($E128>=$D$8+1,$E128<=$D$8+$D$9,FD$2>=$E128-$D$8+1,FD$2<=$E128-$D$8+$D$7-1),3,""))),"") ->  | FN128: =IF($A$13,IF(AND(FN$2>=1,FN$2<=$D$7,$E128>=1,$E128<=$D$8),1,IF(AND(FN$2>=$D$7+1,FN$2<=$D$7+$D$9,$E128>=FN$2-$D$7+1,$E128<=FN$2-$D$7+$D$8),2,IF(AND($E128>=$D$8+1,$E128<=$D$8+$D$9,FN$2>=$E128-$D$8+1,FN$2<=$E128-$D$8+$D$7-1),3,""))),"") ->  | FX128: =IF($A$13,IF(AND(FX$2>=1,FX$2<=$D$7,$E128>=1,$E128<=$D$8),1,IF(AND(FX$2>=$D$7+1,FX$2<=$D$7+$D$9,$E128>=FX$2-$D$7+1,$E128<=FX$2-$D$7+$D$8),2,IF(AND($E128>=$D$8+1,$E128<=$D$8+$D$9,FX$2>=$E128-$D$8+1,FX$2<=$E128-$D$8+$D$7-1),3,""))),"") ->  | GH128: =IF($A$13,IF(AND(GH$2>=1,GH$2<=$D$7,$E128>=1,$E128<=$D$8),1,IF(AND(GH$2>=$D$7+1,GH$2<=$D$7+$D$9,$E128>=GH$2-$D$7+1,$E128<=GH$2-$D$7+$D$8),2,IF(AND($E128>=$D$8+1,$E128<=$D$8+$D$9,GH$2>=$E128-$D$8+1,GH$2<=$E128-$D$8+$D$7-1),3,""))),"") ->  | GR128: =IF($A$13,IF(AND(GR$2>=1,GR$2<=$D$7,$E128>=1,$E128<=$D$8),1,IF(AND(GR$2>=$D$7+1,GR$2<=$D$7+$D$9,$E128>=GR$2-$D$7+1,$E128<=GR$2-$D$7+$D$8),2,IF(AND($E128>=$D$8+1,$E128<=$D$8+$D$9,GR$2>=$E128-$D$8+1,GR$2<=$E128-$D$8+$D$7-1),3,""))),"") -> 
D129: 112 | E129: 89
D130: 113 | E130: 88
D131: 114 | E131: 87
D132: 115 | E132: 86
D133: 116 | E133: 85
D134: 117 | E134: 84
D135: 118 | E135: 83
D136: 119 | E136: 82
D137: 120 | E137: 81
C138: 80 | D138: 121 | E138: 80 | J138: =IF($A$13,IF(AND(J$2>=1,J$2<=$D$7,$E138>=1,$E138<=$D$8),1,IF(AND(J$2>=$D$7+1,J$2<=$D$7+$D$9,$E138>=J$2-$D$7+1,$E138<=J$2-$D$7+$D$8),2,IF(AND($E138>=$D$8+1,$E138<=$D$8+$D$9,J$2>=$E138-$D$8+1,J$2<=$E138-$D$8+$D$7-1),3,""))),"") ->  | T138: =IF($A$13,IF(AND(T$2>=1,T$2<=$D$7,$E138>=1,$E138<=$D$8),1,IF(AND(T$2>=$D$7+1,T$2<=$D$7+$D$9,$E138>=T$2-$D$7+1,$E138<=T$2-$D$7+$D$8),2,IF(AND($E138>=$D$8+1,$E138<=$D$8+$D$9,T$2>=$E138-$D$8+1,T$2<=$E138-$D$8+$D$7-1),3,""))),"") ->  | AD138: =IF($A$13,IF(AND(AD$2>=1,AD$2<=$D$7,$E138>=1,$E138<=$D$8),1,IF(AND(AD$2>=$D$7+1,AD$2<=$D$7+$D$9,$E138>=AD$2-$D$7+1,$E138<=AD$2-$D$7+$D$8),2,IF(AND($E138>=$D$8+1,$E138<=$D$8+$D$9,AD$2>=$E138-$D$8+1,AD$2<=$E138-$D$8+$D$7-1),3,""))),"") ->  | AN138: =IF($A$13,IF(AND(AN$2>=1,AN$2<=$D$7,$E138>=1,$E138<=$D$8),1,IF(AND(AN$2>=$D$7+1,AN$2<=$D$7+$D$9,$E138>=AN$2-$D$7+1,$E138<=AN$2-$D$7+$D$8),2,IF(AND($E138>=$D$8+1,$E138<=$D$8+$D$9,AN$2>=$E138-$D$8+1,AN$2<=$E138-$D$8+$D$7-1),3,""))),"") ->  | AX138: =IF($A$13,IF(AND(AX$2>=1,AX$2<=$D$7,$E138>=1,$E138<=$D$8),1,IF(AND(AX$2>=$D$7+1,AX$2<=$D$7+$D$9,$E138>=AX$2-$D$7+1,$E138<=AX$2-$D$7+$D$8),2,IF(AND($E138>=$D$8+1,$E138<=$D$8+$D$9,AX$2>=$E138-$D$8+1,AX$2<=$E138-$D$8+$D$7-1),3,""))),"") ->  | BH138: =IF($A$13,IF(AND(BH$2>=1,BH$2<=$D$7,$E138>=1,$E138<=$D$8),1,IF(AND(BH$2>=$D$7+1,BH$2<=$D$7+$D$9,$E138>=BH$2-$D$7+1,$E138<=BH$2-$D$7+$D$8),2,IF(AND($E138>=$D$8+1,$E138<=$D$8+$D$9,BH$2>=$E138-$D$8+1,BH$2<=$E138-$D$8+$D$7-1),3,""))),"") ->  | BR138: =IF($A$13,IF(AND(BR$2>=1,BR$2<=$D$7,$E138>=1,$E138<=$D$8),1,IF(AND(BR$2>=$D$7+1,BR$2<=$D$7+$D$9,$E138>=BR$2-$D$7+1,$E138<=BR$2-$D$7+$D$8),2,IF(AND($E138>=$D$8+1,$E138<=$D$8+$D$9,BR$2>=$E138-$D$8+1,BR$2<=$E138-$D$8+$D$7-1),3,""))),"") ->  | CB138: =IF($A$13,IF(AND(CB$2>=1,CB$2<=$D$7,$E138>=1,$E138<=$D$8),1,IF(AND(CB$2>=$D$7+1,CB$2<=$D$7+$D$9,$E138>=CB$2-$D$7+1,$E138<=CB$2-$D$7+$D$8),2,IF(AND($E138>=$D$8+1,$E138<=$D$8+$D$9,CB$2>=$E138-$D$8+1,CB$2<=$E138-$D$8+$D$7-1),3,""))),"") ->  | CL138: =IF($A$13,IF(AND(CL$2>=1,CL$2<=$D$7,$E138>=1,$E138<=$D$8),1,IF(AND(CL$2>=$D$7+1,CL$2<=$D$7+$D$9,$E138>=CL$2-$D$7+1,$E138<=CL$2-$D$7+$D$8),2,IF(AND($E138>=$D$8+1,$E138<=$D$8+$D$9,CL$2>=$E138-$D$8+1,CL$2<=$E138-$D$8+$D$7-1),3,""))),"") ->  | CV138: =IF($A$13,IF(AND(CV$2>=1,CV$2<=$D$7,$E138>=1,$E138<=$D$8),1,IF(AND(CV$2>=$D$7+1,CV$2<=$D$7+$D$9,$E138>=CV$2-$D$7+1,$E138<=CV$2-$D$7+$D$8),2,IF(AND($E138>=$D$8+1,$E138<=$D$8+$D$9,CV$2>=$E138-$D$8+1,CV$2<=$E138-$D$8+$D$7-1),3,""))),"") ->  | DF138: =IF($A$13,IF(AND(DF$2>=1,DF$2<=$D$7,$E138>=1,$E138<=$D$8),1,IF(AND(DF$2>=$D$7+1,DF$2<=$D$7+$D$9,$E138>=DF$2-$D$7+1,$E138<=DF$2-$D$7+$D$8),2,IF(AND($E138>=$D$8+1,$E138<=$D$8+$D$9,DF$2>=$E138-$D$8+1,DF$2<=$E138-$D$8+$D$7-1),3,""))),"") ->  | DP138: =IF($A$13,IF(AND(DP$2>=1,DP$2<=$D$7,$E138>=1,$E138<=$D$8),1,IF(AND(DP$2>=$D$7+1,DP$2<=$D$7+$D$9,$E138>=DP$2-$D$7+1,$E138<=DP$2-$D$7+$D$8),2,IF(AND($E138>=$D$8+1,$E138<=$D$8+$D$9,DP$2>=$E138-$D$8+1,DP$2<=$E138-$D$8+$D$7-1),3,""))),"") ->  | DZ138: =IF($A$13,IF(AND(DZ$2>=1,DZ$2<=$D$7,$E138>=1,$E138<=$D$8),1,IF(AND(DZ$2>=$D$7+1,DZ$2<=$D$7+$D$9,$E138>=DZ$2-$D$7+1,$E138<=DZ$2-$D$7+$D$8),2,IF(AND($E138>=$D$8+1,$E138<=$D$8+$D$9,DZ$2>=$E138-$D$8+1,DZ$2<=$E138-$D$8+$D$7-1),3,""))),"") ->  | EJ138: =IF($A$13,IF(AND(EJ$2>=1,EJ$2<=$D$7,$E138>=1,$E138<=$D$8),1,IF(AND(EJ$2>=$D$7+1,EJ$2<=$D$7+$D$9,$E138>=EJ$2-$D$7+1,$E138<=EJ$2-$D$7+$D$8),2,IF(AND($E138>=$D$8+1,$E138<=$D$8+$D$9,EJ$2>=$E138-$D$8+1,EJ$2<=$E138-$D$8+$D$7-1),3,""))),"") ->  | ET138: =IF($A$13,IF(AND(ET$2>=1,ET$2<=$D$7,$E138>=1,$E138<=$D$8),1,IF(AND(ET$2>=$D$7+1,ET$2<=$D$7+$D$9,$E138>=ET$2-$D$7+1,$E138<=ET$2-$D$7+$D$8),2,IF(AND($E138>=$D$8+1,$E138<=$D$8+$D$9,ET$2>=$E138-$D$8+1,ET$2<=$E138-$D$8+$D$7-1),3,""))),"") ->  | FD138: =IF($A$13,IF(AND(FD$2>=1,FD$2<=$D$7,$E138>=1,$E138<=$D$8),1,IF(AND(FD$2>=$D$7+1,FD$2<=$D$7+$D$9,$E138>=FD$2-$D$7+1,$E138<=FD$2-$D$7+$D$8),2,IF(AND($E138>=$D$8+1,$E138<=$D$8+$D$9,FD$2>=$E138-$D$8+1,FD$2<=$E138-$D$8+$D$7-1),3,""))),"") ->  | FN138: =IF($A$13,IF(AND(FN$2>=1,FN$2<=$D$7,$E138>=1,$E138<=$D$8),1,IF(AND(FN$2>=$D$7+1,FN$2<=$D$7+$D$9,$E138>=FN$2-$D$7+1,$E138<=FN$2-$D$7+$D$8),2,IF(AND($E138>=$D$8+1,$E138<=$D$8+$D$9,FN$2>=$E138-$D$8+1,FN$2<=$E138-$D$8+$D$7-1),3,""))),"") ->  | FX138: =IF($A$13,IF(AND(FX$2>=1,FX$2<=$D$7,$E138>=1,$E138<=$D$8),1,IF(AND(FX$2>=$D$7+1,FX$2<=$D$7+$D$9,$E138>=FX$2-$D$7+1,$E138<=FX$2-$D$7+$D$8),2,IF(AND($E138>=$D$8+1,$E138<=$D$8+$D$9,FX$2>=$E138-$D$8+1,FX$2<=$E138-$D$8+$D$7-1),3,""))),"") ->  | GH138: =IF($A$13,IF(AND(GH$2>=1,GH$2<=$D$7,$E138>=1,$E138<=$D$8),1,IF(AND(GH$2>=$D$7+1,GH$2<=$D$7+$D$9,$E138>=GH$2-$D$7+1,$E138<=GH$2-$D$7+$D$8),2,IF(AND($E138>=$D$8+1,$E138<=$D$8+$D$9,GH$2>=$E138-$D$8+1,GH$2<=$E138-$D$8+$D$7-1),3,""))),"") ->  | GR138: =IF($A$13,IF(AND(GR$2>=1,GR$2<=$D$7,$E138>=1,$E138<=$D$8),1,IF(AND(GR$2>=$D$7+1,GR$2<=$D$7+$D$9,$E138>=GR$2-$D$7+1,$E138<=GR$2-$D$7+$D$8),2,IF(AND($E138>=$D$8+1,$E138<=$D$8+$D$9,GR$2>=$E138-$D$8+1,GR$2<=$E138-$D$8+$D$7-1),3,""))),"") -> 
C139: 79 | D139: 122 | E139: 79
C140: 78 | D140: 123 | E140: 78
C141: 77 | D141: 124 | E141: 77
C142: 76 | D142: 125 | E142: 76
C143: 75 | D143: 126 | E143: 75
C144: 74 | D144: 127 | E144: 74
C145: 73 | D145: 128 | E145: =$A$16-D145 -> 73
C146: 72 | D146: 129 | E146: 72
C147: 71 | D147: 130 | E147: 71
C148: 70 | D148: 131 | E148: 70 | J148: =IF($A$13,IF(AND(J$2>=1,J$2<=$D$7,$E148>=1,$E148<=$D$8),1,IF(AND(J$2>=$D$7+1,J$2<=$D$7+$D$9,$E148>=J$2-$D$7+1,$E148<=J$2-$D$7+$D$8),2,IF(AND($E148>=$D$8+1,$E148<=$D$8+$D$9,J$2>=$E148-$D$8+1,J$2<=$E148-$D$8+$D$7-1),3,""))),"") ->  | T148: =IF($A$13,IF(AND(T$2>=1,T$2<=$D$7,$E148>=1,$E148<=$D$8),1,IF(AND(T$2>=$D$7+1,T$2<=$D$7+$D$9,$E148>=T$2-$D$7+1,$E148<=T$2-$D$7+$D$8),2,IF(AND($E148>=$D$8+1,$E148<=$D$8+$D$9,T$2>=$E148-$D$8+1,T$2<=$E148-$D$8+$D$7-1),3,""))),"") -> 3 | U148: 3 | V148: 3 | W148: 3 | X148: 3 | Y148: 3 | Z148: 3 | AA148: 3 | AB148: 3 | AC148: 3 | AD148: =IF($A$13,IF(AND(AD$2>=1,AD$2<=$D$7,$E148>=1,$E148<=$D$8),1,IF(AND(AD$2>=$D$7+1,AD$2<=$D$7+$D$9,$E148>=AD$2-$D$7+1,$E148<=AD$2-$D$7+$D$8),2,IF(AND($E148>=$D$8+1,$E148<=$D$8+$D$9,AD$2>=$E148-$D$8+1,AD$2<=$E148-$D$8+$D$7-1),3,""))),"") -> 3 | AE148: 3 | AF148: 3 | AG148: 3 | AH148: 3 | AI148: 3 | AJ148: 3 | AK148: 3 | AL148: 3 | AM148: 3 | AN148: =IF($A$13,IF(AND(AN$2>=1,AN$2<=$D$7,$E148>=1,$E148<=$D$8),1,IF(AND(AN$2>=$D$7+1,AN$2<=$D$7+$D$9,$E148>=AN$2-$D$7+1,$E148<=AN$2-$D$7+$D$8),2,IF(AND($E148>=$D$8+1,$E148<=$D$8+$D$9,AN$2>=$E148-$D$8+1,AN$2<=$E148-$D$8+$D$7-1),3,""))),"") -> 3 | AO148: 3 | AP148: 3 | AQ148: 3 | AR148: 3 | AS148: 3 | AT148: 3 | AU148: 3 | AV148: 3 | AW148: 2 | AX148: =IF($A$13,IF(AND(AX$2>=1,AX$2<=$D$7,$E148>=1,$E148<=$D$8),1,IF(AND(AX$2>=$D$7+1,AX$2<=$D$7+$D$9,$E148>=AX$2-$D$7+1,$E148<=AX$2-$D$7+$D$8),2,IF(AND($E148>=$D$8+1,$E148<=$D$8+$D$9,AX$2>=$E148-$D$8+1,AX$2<=$E148-$D$8+$D$7-1),3,""))),"") ->  | BH148: =IF($A$13,IF(AND(BH$2>=1,BH$2<=$D$7,$E148>=1,$E148<=$D$8),1,IF(AND(BH$2>=$D$7+1,BH$2<=$D$7+$D$9,$E148>=BH$2-$D$7+1,$E148<=BH$2-$D$7+$D$8),2,IF(AND($E148>=$D$8+1,$E148<=$D$8+$D$9,BH$2>=$E148-$D$8+1,BH$2<=$E148-$D$8+$D$7-1),3,""))),"") ->  | BR148: =IF($A$13,IF(AND(BR$2>=1,BR$2<=$D$7,$E148>=1,$E148<=$D$8),1,IF(AND(BR$2>=$D$7+1,BR$2<=$D$7+$D$9,$E148>=BR$2-$D$7+1,$E148<=BR$2-$D$7+$D$8),2,IF(AND($E148>=$D$8+1,$E148<=$D$8+$D$9,BR$2>=$E148-$D$8+1,BR$2<=$E148-$D$8+$D$7-1),3,""))),"") ->  | CB148: =IF($A$13,IF(AND(CB$2>=1,CB$2<=$D$7,$E148>=1,$E148<=$D$8),1,IF(AND(CB$2>=$D$7+1,CB$2<=$D$7+$D$9,$E148>=CB$2-$D$7+1,$E148<=CB$2-$D$7+$D$8),2,IF(AND($E148>=$D$8+1,$E148<=$D$8+$D$9,CB$2>=$E148-$D$8+1,CB$2<=$E148-$D$8+$D$7-1),3,""))),"") ->  | CL148: =IF($A$13,IF(AND(CL$2>=1,CL$2<=$D$7,$E148>=1,$E148<=$D$8),1,IF(AND(CL$2>=$D$7+1,CL$2<=$D$7+$D$9,$E148>=CL$2-$D$7+1,$E148<=CL$2-$D$7+$D$8),2,IF(AND($E148>=$D$8+1,$E148<=$D$8+$D$9,CL$2>=$E148-$D$8+1,CL$2<=$E148-$D$8+$D$7-1),3,""))),"") ->  | CV148: =IF($A$13,IF(AND(CV$2>=1,CV$2<=$D$7,$E148>=1,$E148<=$D$8),1,IF(AND(CV$2>=$D$7+1,CV$2<=$D$7+$D$9,$E148>=CV$2-$D$7+1,$E148<=CV$2-$D$7+$D$8),2,IF(AND($E148>=$D$8+1,$E148<=$D$8+$D$9,CV$2>=$E148-$D$8+1,CV$2<=$E148-$D$8+$D$7-1),3,""))),"") ->  | DF148: =IF($A$13,IF(AND(DF$2>=1,DF$2<=$D$7,$E148>=1,$E148<=$D$8),1,IF(AND(DF$2>=$D$7+1,DF$2<=$D$7+$D$9,$E148>=DF$2-$D$7+1,$E148<=DF$2-$D$7+$D$8),2,IF(AND($E148>=$D$8+1,$E148<=$D$8+$D$9,DF$2>=$E148-$D$8+1,DF$2<=$E148-$D$8+$D$7-1),3,""))),"") ->  | DP148: =IF($A$13,IF(AND(DP$2>=1,DP$2<=$D$7,$E148>=1,$E148<=$D$8),1,IF(AND(DP$2>=$D$7+1,DP$2<=$D$7+$D$9,$E148>=DP$2-$D$7+1,$E148<=DP$2-$D$7+$D$8),2,IF(AND($E148>=$D$8+1,$E148<=$D$8+$D$9,DP$2>=$E148-$D$8+1,DP$2<=$E148-$D$8+$D$7-1),3,""))),"") ->  | DZ148: =IF($A$13,IF(AND(DZ$2>=1,DZ$2<=$D$7,$E148>=1,$E148<=$D$8),1,IF(AND(DZ$2>=$D$7+1,DZ$2<=$D$7+$D$9,$E148>=DZ$2-$D$7+1,$E148<=DZ$2-$D$7+$D$8),2,IF(AND($E148>=$D$8+1,$E148<=$D$8+$D$9,DZ$2>=$E148-$D$8+1,DZ$2<=$E148-$D$8+$D$7-1),3,""))),"") ->  | EJ148: =IF($A$13,IF(AND(EJ$2>=1,EJ$2<=$D$7,$E148>=1,$E148<=$D$8),1,IF(AND(EJ$2>=$D$7+1,EJ$2<=$D$7+$D$9,$E148>=EJ$2-$D$7+1,$E148<=EJ$2-$D$7+$D$8),2,IF(AND($E148>=$D$8+1,$E148<=$D$8+$D$9,EJ$2>=$E148-$D$8+1,EJ$2<=$E148-$D$8+$D$7-1),3,""))),"") ->  | ET148: =IF($A$13,IF(AND(ET$2>=1,ET$2<=$D$7,$E148>=1,$E148<=$D$8),1,IF(AND(ET$2>=$D$7+1,ET$2<=$D$7+$D$9,$E148>=ET$2-$D$7+1,$E148<=ET$2-$D$7+$D$8),2,IF(AND($E148>=$D$8+1,$E148<=$D$8+$D$9,ET$2>=$E148-$D$8+1,ET$2<=$E148-$D$8+$D$7-1),3,""))),"") ->  | FD148: =IF($A$13,IF(AND(FD$2>=1,FD$2<=$D$7,$E148>=1,$E148<=$D$8),1,IF(AND(FD$2>=$D$7+1,FD$2<=$D$7+$D$9,$E148>=FD$2-$D$7+1,$E148<=FD$2-$D$7+$D$8),2,IF(AND($E148>=$D$8+1,$E148<=$D$8+$D$9,FD$2>=$E148-$D$8+1,FD$2<=$E148-$D$8+$D$7-1),3,""))),"") ->  | FN148: =IF($A$13,IF(AND(FN$2>=1,FN$2<=$D$7,$E148>=1,$E148<=$D$8),1,IF(AND(FN$2>=$D$7+1,FN$2<=$D$7+$D$9,$E148>=FN$2-$D$7+1,$E148<=FN$2-$D$7+$D$8),2,IF(AND($E148>=$D$8+1,$E148<=$D$8+$D$9,FN$2>=$E148-$D$8+1,FN$2<=$E148-$D$8+$D$7-1),3,""))),"") ->  | FX148: =IF($A$13,IF(AND(FX$2>=1,FX$2<=$D$7,$E148>=1,$E148<=$D$8),1,IF(AND(FX$2>=$D$7+1,FX$2<=$D$7+$D$9,$E148>=FX$2-$D$7+1,$E148<=FX$2-$D$7+$D$8),2,IF(AND($E148>=$D$8+1,$E148<=$D$8+$D$9,FX$2>=$E148-$D$8+1,FX$2<=$E148-$D$8+$D$7-1),3,""))),"") ->  | GH148: =IF($A$13,IF(AND(GH$2>=1,GH$2<=$D$7,$E148>=1,$E148<=$D$8),1,IF(AND(GH$2>=$D$7+1,GH$2<=$D$7+$D$9,$E148>=GH$2-$D$7+1,$E148<=GH$2-$D$7+$D$8),2,IF(AND($E148>=$D$8+1,$E148<=$D$8+$D$9,GH$2>=$E148-$D$8+1,GH$2<=$E148-$D$8+$D$7-1),3,""))),"") ->  | GR148: =IF($A$13,IF(AND(GR$2>=1,GR$2<=$D$7,$E148>=1,$E148<=$D$8),1,IF(AND(GR$2>=$D$7+1,GR$2<=$D$7+$D$9,$E148>=GR$2-$D$7+1,$E148<=GR$2-$D$7+$D$8),2,IF(AND($E148>=$D$8+1,$E148<=$D$8+$D$9,GR$2>=$E148-$D$8+1,GR$2<=$E148-$D$8+$D$7-1),3,""))),"") -> 
C149: 69 | D149: 132 | E149: 69 | S149: 3 | T149: 3 | U149: 3 | V149: 3 | W149: 3 | X149: 3 | Y149: 3 | Z149: 3 | AA149: 3 | AB149: 3 | AC149: 3 | AD149: 3 | AE149: 3 | AF149: 3 | AG149: 3 | AH149: 3 | AI149: 3 | AJ149: 3 | AK149: 3 | AL149: 3 | AM149: 3 | AN149: 3 | AO149: 3 | AP149: 3 | AQ149: 3 | AR149: 3 | AS149: 3 | AT149: 3 | AU149: 3 | AV149: 2 | AW149: 2
C150: 68 | D150: 133 | E150: 68 | R150: 3 | S150: 3 | T150: 3 | U150: 3 | V150: 3 | W150: 3 | X150: 3 | Y150: 3 | Z150: 3 | AA150: 3 | AB150: 3 | AC150: 3 | AD150: 3 | AE150: 3 | AF150: 3 | AG150: 3 | AH150: 3 | AI150: 3 | AJ150: 3 | AK150: 3 | AL150: 3 | AM150: 3 | AN150: 3 | AO150: 3 | AP150: 3 | AQ150: 3 | AR150: 3 | AS150: 3 | AT150: 3 | AU150: 2 | AV150: 2 | AW150: 2
C151: 67 | D151: 134 | E151: 67 | Q151: 3 | R151: 3 | S151: 3 | T151: 3 | U151: 3 | V151: 3 | W151: 3 | X151: 3 | Y151: 3 | Z151: 3 | AA151: 3 | AB151: 3 | AC151: 3 | AD151: 3 | AE151: 3 | AF151: 3 | AG151: 3 | AH151: 3 | AI151: 3 | AJ151: 3 | AK151: 3 | AL151: 3 | AM151: 3 | AN151: 3 | AO151: 3 | AP151: 3 | AQ151: 3 | AR151: 3 | AS151: 3 | AT151: 2 | AU151: 2 | AV151: 2 | AW151: 2
C152: 66 | D152: 135 | E152: 66 | P152: 3 | Q152: 3 | R152: 3 | S152: 3 | T152: 3 | U152: 3 | V152: 3 | W152: 3 | X152: 3 | Y152: 3 | Z152: 3 | AA152: 3 | AB152: 3 | AC152: 3 | AD152: 3 | AE152: 3 | AF152: 3 | AG152: 3 | AH152: 3 | AI152: 3 | AJ152: 3 | AK152: 3 | AL152: 3 | AM152: 3 | AN152: 3 | AO152: 3 | AP152: 3 | AQ152: 3 | AR152: 3 | AS152: 2 | AT152: 2 | AU152: 2 | AV152: 2 | AW152: 2
C153: 65 | D153: 136 | E153: 65 | O153: 3 | P153: 3 | Q153: 3 | R153: 3 | S153: 3 | T153: 3 | U153: 3 | V153: 3 | W153: 3 | X153: 3 | Y153: 3 | Z153: 3 | AA153: 3 | AB153: 3 | AC153: 3 | AD153: 3 | AE153: 3 | AF153: 3 | AG153: 3 | AH153: 3 | AI153: 3 | AJ153: 3 | AK153: 3 | AL153: 3 | AM153: 3 | AN153: 3 | AO153: 3 | AP153: 3 | AQ153: 3 | AR153: 2 | AS153: 2 | AT153: 2 | AU153: 2 | AV153: 2 | AW153: 2
C154: 64 | D154: 137 | E154: 64 | N154: 3 | O154: 3 | P154: 3 | Q154: 3 | R154: 3 | S154: 3 | T154: 3 | U154: 3 | V154: 3 | W154: 3 | X154: 3 | Y154: 3 | Z154: 3 | AA154: 3 | AB154: 3 | AC154: 3 | AD154: 3 | AE154: 3 | AF154: 3 | AG154: 3 | AH154: 3 | AI154: 3 | AJ154: 3 | AK154: 3 | AL154: 3 | AM154: 3 | AN154: 3 | AO154: 3 | AP154: 3 | AQ154: 2 | AR154: 2 | AS154: 2 | AT154: 2 | AU154: 2 | AV154: 2 | AW154: 2
C155: 63 | D155: 138 | E155: 63 | M155: 3 | N155: 3 | O155: 3 | P155: 3 | Q155: 3 | R155: 3 | S155: 3 | T155: 3 | U155: 3 | V155: 3 | W155: 3 | X155: 3 | Y155: 3 | Z155: 3 | AA155: 3 | AB155: 3 | AC155: 3 | AD155: 3 | AE155: 3 | AF155: 3 | AG155: 3 | AH155: 3 | AI155: 3 | AJ155: 3 | AK155: 3 | AL155: 3 | AM155: 3 | AN155: 3 | AO155: 3 | AP155: 2 | AQ155: 2 | AR155: 2 | AS155: 2 | AT155: 2 | AU155: 2 | AV155: 2 | AW155: 2
C156: 62 | D156: 139 | E156: 62 | L156: 3 | M156: 3 | N156: 3 | O156: 3 | P156: 3 | Q156: 3 | R156: 3 | S156: 3 | T156: 3 | U156: 3 | V156: 3 | W156: 3 | X156: 3 | Y156: 3 | Z156: 3 | AA156: 3 | AB156: 3 | AC156: 3 | AD156: 3 | AE156: 3 | AF156: 3 | AG156: 3 | AH156: 3 | AI156: 3 | AJ156: 3 | AK156: 3 | AL156: 3 | AM156: 3 | AN156: 3 | AO156: 2 | AP156: 2 | AQ156: 2 | AR156: 2 | AS156: 2 | AT156: 2 | AU156: 2 | AV156: 2 | AW156: 2
C157: 61 | D157: 140 | E157: 61 | K157: 3 | L157: 3 | M157: 3 | N157: 3 | O157: 3 | P157: 3 | Q157: 3 | R157: 3 | S157: 3 | T157: 3 | U157: 3 | V157: 3 | W157: 3 | X157: 3 | Y157: 3 | Z157: 3 | AA157: 3 | AB157: 3 | AC157: 3 | AD157: 3 | AE157: 3 | AF157: 3 | AG157: 3 | AH157: 3 | AI157: 3 | AJ157: 3 | AK157: 3 | AL157: 3 | AM157: 3 | AN157: 2 | AO157: 2 | AP157: 2 | AQ157: 2 | AR157: 2 | AS157: 2 | AT157: 2 | AU157: 2 | AV157: 2 | AW157: 2
C158: 60 | D158: 141 | E158: 60 | J158: =IF($A$13,IF(AND(J$2>=1,J$2<=$D$7,$E158>=1,$E158<=$D$8),1,IF(AND(J$2>=$D$7+1,J$2<=$D$7+$D$9,$E158>=J$2-$D$7+1,$E158<=J$2-$D$7+$D$8),2,IF(AND($E158>=$D$8+1,$E158<=$D$8+$D$9,J$2>=$E158-$D$8+1,J$2<=$E158-$D$8+$D$7-1),3,""))),"") -> 1 | K158: 1 | L158: 1 | M158: 1 | N158: 1 | O158: 1 | P158: 1 | Q158: 1 | R158: 1 | S158: 1 | T158: =IF($A$13,IF(AND(T$2>=1,T$2<=$D$7,$E158>=1,$E158<=$D$8),1,IF(AND(T$2>=$D$7+1,T$2<=$D$7+$D$9,$E158>=T$2-$D$7+1,$E158<=T$2-$D$7+$D$8),2,IF(AND($E158>=$D$8+1,$E158<=$D$8+$D$9,T$2>=$E158-$D$8+1,T$2<=$E158-$D$8+$D$7-1),3,""))),"") -> 1 | U158: 1 | V158: 1 | W158: 1 | X158: 1 | Y158: 1 | Z158: 1 | AA158: 1 | AB158: 1 | AC158: 1 | AD158: =IF($A$13,IF(AND(AD$2>=1,AD$2<=$D$7,$E158>=1,$E158<=$D$8),1,IF(AND(AD$2>=$D$7+1,AD$2<=$D$7+$D$9,$E158>=AD$2-$D$7+1,$E158<=AD$2-$D$7+$D$8),2,IF(AND($E158>=$D$8+1,$E158<=$D$8+$D$9,AD$2>=$E158-$D$8+1,AD$2<=$E158-$D$8+$D$7-1),3,""))),"") -> 1 | AE158: 1 | AF158: 1 | AG158: 1 | AH158: 1 | AI158: 1 | AJ158: 1 | AK158: 1 | AL158: 1 | AM158: 1 | AN158: =IF($A$13,IF(AND(AN$2>=1,AN$2<=$D$7,$E158>=1,$E158<=$D$8),1,IF(AND(AN$2>=$D$7+1,AN$2<=$D$7+$D$9,$E158>=AN$2-$D$7+1,$E158<=AN$2-$D$7+$D$8),2,IF(AND($E158>=$D$8+1,$E158<=$D$8+$D$9,AN$2>=$E158-$D$8+1,AN$2<=$E158-$D$8+$D$7-1),3,""))),"") -> 2 | AO158: 2 | AP158: 2 | AQ158: 2 | AR158: 2 | AS158: 2 | AT158: 2 | AU158: 2 | AV158: 2 | AW158: 2 | AX158: =IF($A$13,IF(AND(AX$2>=1,AX$2<=$D$7,$E158>=1,$E158<=$D$8),1,IF(AND(AX$2>=$D$7+1,AX$2<=$D$7+$D$9,$E158>=AX$2-$D$7+1,$E158<=AX$2-$D$7+$D$8),2,IF(AND($E158>=$D$8+1,$E158<=$D$8+$D$9,AX$2>=$E158-$D$8+1,AX$2<=$E158-$D$8+$D$7-1),3,""))),"") ->  | BH158: =IF($A$13,IF(AND(BH$2>=1,BH$2<=$D$7,$E158>=1,$E158<=$D$8),1,IF(AND(BH$2>=$D$7+1,BH$2<=$D$7+$D$9,$E158>=BH$2-$D$7+1,$E158<=BH$2-$D$7+$D$8),2,IF(AND($E158>=$D$8+1,$E158<=$D$8+$D$9,BH$2>=$E158-$D$8+1,BH$2<=$E158-$D$8+$D$7-1),3,""))),"") ->  | BR158: =IF($A$13,IF(AND(BR$2>=1,BR$2<=$D$7,$E158>=1,$E158<=$D$8),1,IF(AND(BR$2>=$D$7+1,BR$2<=$D$7+$D$9,$E158>=BR$2-$D$7+1,$E158<=BR$2-$D$7+$D$8),2,IF(AND($E158>=$D$8+1,$E158<=$D$8+$D$9,BR$2>=$E158-$D$8+1,BR$2<=$E158-$D$8+$D$7-1),3,""))),"") ->  | CB158: =IF($A$13,IF(AND(CB$2>=1,CB$2<=$D$7,$E158>=1,$E158<=$D$8),1,IF(AND(CB$2>=$D$7+1,CB$2<=$D$7+$D$9,$E158>=CB$2-$D$7+1,$E158<=CB$2-$D$7+$D$8),2,IF(AND($E158>=$D$8+1,$E158<=$D$8+$D$9,CB$2>=$E158-$D$8+1,CB$2<=$E158-$D$8+$D$7-1),3,""))),"") ->  | CL158: =IF($A$13,IF(AND(CL$2>=1,CL$2<=$D$7,$E158>=1,$E158<=$D$8),1,IF(AND(CL$2>=$D$7+1,CL$2<=$D$7+$D$9,$E158>=CL$2-$D$7+1,$E158<=CL$2-$D$7+$D$8),2,IF(AND($E158>=$D$8+1,$E158<=$D$8+$D$9,CL$2>=$E158-$D$8+1,CL$2<=$E158-$D$8+$D$7-1),3,""))),"") ->  | CV158: =IF($A$13,IF(AND(CV$2>=1,CV$2<=$D$7,$E158>=1,$E158<=$D$8),1,IF(AND(CV$2>=$D$7+1,CV$2<=$D$7+$D$9,$E158>=CV$2-$D$7+1,$E158<=CV$2-$D$7+$D$8),2,IF(AND($E158>=$D$8+1,$E158<=$D$8+$D$9,CV$2>=$E158-$D$8+1,CV$2<=$E158-$D$8+$D$7-1),3,""))),"") ->  | DF158: =IF($A$13,IF(AND(DF$2>=1,DF$2<=$D$7,$E158>=1,$E158<=$D$8),1,IF(AND(DF$2>=$D$7+1,DF$2<=$D$7+$D$9,$E158>=DF$2-$D$7+1,$E158<=DF$2-$D$7+$D$8),2,IF(AND($E158>=$D$8+1,$E158<=$D$8+$D$9,DF$2>=$E158-$D$8+1,DF$2<=$E158-$D$8+$D$7-1),3,""))),"") ->  | DP158: =IF($A$13,IF(AND(DP$2>=1,DP$2<=$D$7,$E158>=1,$E158<=$D$8),1,IF(AND(DP$2>=$D$7+1,DP$2<=$D$7+$D$9,$E158>=DP$2-$D$7+1,$E158<=DP$2-$D$7+$D$8),2,IF(AND($E158>=$D$8+1,$E158<=$D$8+$D$9,DP$2>=$E158-$D$8+1,DP$2<=$E158-$D$8+$D$7-1),3,""))),"") ->  | DZ158: =IF($A$13,IF(AND(DZ$2>=1,DZ$2<=$D$7,$E158>=1,$E158<=$D$8),1,IF(AND(DZ$2>=$D$7+1,DZ$2<=$D$7+$D$9,$E158>=DZ$2-$D$7+1,$E158<=DZ$2-$D$7+$D$8),2,IF(AND($E158>=$D$8+1,$E158<=$D$8+$D$9,DZ$2>=$E158-$D$8+1,DZ$2<=$E158-$D$8+$D$7-1),3,""))),"") ->  | EJ158: =IF($A$13,IF(AND(EJ$2>=1,EJ$2<=$D$7,$E158>=1,$E158<=$D$8),1,IF(AND(EJ$2>=$D$7+1,EJ$2<=$D$7+$D$9,$E158>=EJ$2-$D$7+1,$E158<=EJ$2-$D$7+$D$8),2,IF(AND($E158>=$D$8+1,$E158<=$D$8+$D$9,EJ$2>=$E158-$D$8+1,EJ$2<=$E158-$D$8+$D$7-1),3,""))),"") ->  | ET158: =IF($A$13,IF(AND(ET$2>=1,ET$2<=$D$7,$E158>=1,$E158<=$D$8),1,IF(AND(ET$2>=$D$7+1,ET$2<=$D$7+$D$9,$E158>=ET$2-$D$7+1,$E158<=ET$2-$D$7+$D$8),2,IF(AND($E158>=$D$8+1,$E158<=$D$8+$D$9,ET$2>=$E158-$D$8+1,ET$2<=$E158-$D$8+$D$7-1),3,""))),"") ->  | FD158: =IF($A$13,IF(AND(FD$2>=1,FD$2<=$D$7,$E158>=1,$E158<=$D$8),1,IF(AND(FD$2>=$D$7+1,FD$2<=$D$7+$D$9,$E158>=FD$2-$D$7+1,$E158<=FD$2-$D$7+$D$8),2,IF(AND($E158>=$D$8+1,$E158<=$D$8+$D$9,FD$2>=$E158-$D$8+1,FD$2<=$E158-$D$8+$D$7-1),3,""))),"") ->  | FN158: =IF($A$13,IF(AND(FN$2>=1,FN$2<=$D$7,$E158>=1,$E158<=$D$8),1,IF(AND(FN$2>=$D$7+1,FN$2<=$D$7+$D$9,$E158>=FN$2-$D$7+1,$E158<=FN$2-$D$7+$D$8),2,IF(AND($E158>=$D$8+1,$E158<=$D$8+$D$9,FN$2>=$E158-$D$8+1,FN$2<=$E158-$D$8+$D$7-1),3,""))),"") ->  | FX158: =IF($A$13,IF(AND(FX$2>=1,FX$2<=$D$7,$E158>=1,$E158<=$D$8),1,IF(AND(FX$2>=$D$7+1,FX$2<=$D$7+$D$9,$E158>=FX$2-$D$7+1,$E158<=FX$2-$D$7+$D$8),2,IF(AND($E158>=$D$8+1,$E158<=$D$8+$D$9,FX$2>=$E158-$D$8+1,FX$2<=$E158-$D$8+$D$7-1),3,""))),"") ->  | GH158: =IF($A$13,IF(AND(GH$2>=1,GH$2<=$D$7,$E158>=1,$E158<=$D$8),1,IF(AND(GH$2>=$D$7+1,GH$2<=$D$7+$D$9,$E158>=GH$2-$D$7+1,$E158<=GH$2-$D$7+$D$8),2,IF(AND($E158>=$D$8+1,$E158<=$D$8+$D$9,GH$2>=$E158-$D$8+1,GH$2<=$E158-$D$8+$D$7-1),3,""))),"") ->  | GR158: =IF($A$13,IF(AND(GR$2>=1,GR$2<=$D$7,$E158>=1,$E158<=$D$8),1,IF(AND(GR$2>=$D$7+1,GR$2<=$D$7+$D$9,$E158>=GR$2-$D$7+1,$E158<=GR$2-$D$7+$D$8),2,IF(AND($E158>=$D$8+1,$E158<=$D$8+$D$9,GR$2>=$E158-$D$8+1,GR$2<=$E158-$D$8+$D$7-1),3,""))),"") -> 
C159: 59 | D159: 142 | E159: 59 | J159: 1 | K159: 1 | L159: 1 | M159: 1 | N159: 1 | O159: 1 | P159: 1 | Q159: 1 | R159: 1 | S159: 1 | T159: 1 | U159: 1 | V159: 1 | W159: 1 | X159: 1 | Y159: 1 | Z159: 1 | AA159: 1 | AB159: 1 | AC159: 1 | AD159: 1 | AE159: 1 | AF159: 1 | AG159: 1 | AH159: 1 | AI159: 1 | AJ159: 1 | AK159: 1 | AL159: 1 | AM159: 1 | AN159: 2 | AO159: 2 | AP159: 2 | AQ159: 2 | AR159: 2 | AS159: 2 | AT159: 2 | AU159: 2 | AV159: 2 | AW159: 2
C160: 58 | D160: 143 | E160: 58 | J160: 1 | K160: 1 | L160: 1 | M160: 1 | N160: 1 | O160: 1 | P160: 1 | Q160: 1 | R160: 1 | S160: 1 | T160: 1 | U160: 1 | V160: 1 | W160: 1 | X160: 1 | Y160: 1 | Z160: 1 | AA160: 1 | AB160: 1 | AC160: 1 | AD160: 1 | AE160: 1 | AF160: 1 | AG160: 1 | AH160: 1 | AI160: 1 | AJ160: 1 | AK160: 1 | AL160: 1 | AM160: 1 | AN160: 2 | AO160: 2 | AP160: 2 | AQ160: 2 | AR160: 2 | AS160: 2 | AT160: 2 | AU160: 2 | AV160: 2 | AW160: 2
C161: 57 | D161: 144 | E161: 57 | J161: 1 | K161: 1 | L161: 1 | M161: 1 | N161: 1 | O161: 1 | P161: 1 | Q161: 1 | R161: 1 | S161: 1 | T161: 1 | U161: 1 | V161: 1 | W161: 1 | X161: 1 | Y161: 1 | Z161: 1 | AA161: 1 | AB161: 1 | AC161: 1 | AD161: 1 | AE161: 1 | AF161: 1 | AG161: 1 | AH161: 1 | AI161: 1 | AJ161: 1 | AK161: 1 | AL161: 1 | AM161: 1 | AN161: 2 | AO161: 2 | AP161: 2 | AQ161: 2 | AR161: 2 | AS161: 2 | AT161: 2 | AU161: 2 | AV161: 2 | AW161: 2
C162: 56 | D162: 145 | E162: 56 | J162: 1 | K162: 1 | L162: 1 | M162: 1 | N162: 1 | O162: 1 | P162: 1 | Q162: 1 | R162: 1 | S162: 1 | T162: 1 | U162: 1 | V162: 1 | W162: 1 | X162: 1 | Y162: 1 | Z162: 1 | AA162: 1 | AB162: 1 | AC162: 1 | AD162: 1 | AE162: 1 | AF162: 1 | AG162: 1 | AH162: 1 | AI162: 1 | AJ162: 1 | AK162: 1 | AL162: 1 | AM162: 1 | AN162: 2 | AO162: 2 | AP162: 2 | AQ162: 2 | AR162: 2 | AS162: 2 | AT162: 2 | AU162: 2 | AV162: 2 | AW162: 2
C163: 55 | D163: 146 | E163: 55 | J163: 1 | K163: 1 | L163: 1 | M163: 1 | N163: 1 | O163: 1 | P163: 1 | Q163: 1 | R163: 1 | S163: 1 | T163: 1 | U163: 1 | V163: 1 | W163: 1 | X163: 1 | Y163: 1 | Z163: 1 | AA163: 1 | AB163: 1 | AC163: 1 | AD163: 1 | AE163: 1 | AF163: 1 | AG163: 1 | AH163: 1 | AI163: 1 | AJ163: 1 | AK163: 1 | AL163: 1 | AM163: 1 | AN163: 2 | AO163: 2 | AP163: 2 | AQ163: 2 | AR163: 2 | AS163: 2 | AT163: 2 | AU163: 2 | AV163: 2 | AW163: 2
C164: 54 | D164: 147 | E164: 54 | J164: 1 | K164: 1 | L164: 1 | M164: 1 | N164: 1 | O164: 1 | P164: 1 | Q164: 1 | R164: 1 | S164: 1 | T164: 1 | U164: 1 | V164: 1 | W164: 1 | X164: 1 | Y164: 1 | Z164: 1 | AA164: 1 | AB164: 1 | AC164: 1 | AD164: 1 | AE164: 1 | AF164: 1 | AG164: 1 | AH164: 1 | AI164: 1 | AJ164: 1 | AK164: 1 | AL164: 1 | AM164: 1 | AN164: 2 | AO164: 2 | AP164: 2 | AQ164: 2 | AR164: 2 | AS164: 2 | AT164: 2 | AU164: 2 | AV164: 2 | AW164: 2
C165: 53 | D165: 148 | E165: 53 | J165: 1 | K165: 1 | L165: 1 | M165: 1 | N165: 1 | O165: 1 | P165: 1 | Q165: 1 | R165: 1 | S165: 1 | T165: 1 | U165: 1 | V165: 1 | W165: 1 | X165: 1 | Y165: 1 | Z165: 1 | AA165: 1 | AB165: 1 | AC165: 1 | AD165: 1 | AE165: 1 | AF165: 1 | AG165: 1 | AH165: 1 | AI165: 1 | AJ165: 1 | AK165: 1 | AL165: 1 | AM165: 1 | AN165: 2 | AO165: 2 | AP165: 2 | AQ165: 2 | AR165: 2 | AS165: 2 | AT165: 2 | AU165: 2 | AV165: 2 | AW165: 2
C166: 52 | D166: 149 | E166: 52 | J166: 1 | K166: 1 | L166: 1 | M166: 1 | N166: 1 | O166: 1 | P166: 1 | Q166: 1 | R166: 1 | S166: 1 | T166: 1 | U166: 1 | V166: 1 | W166: 1 | X166: 1 | Y166: 1 | Z166: 1 | AA166: 1 | AB166: 1 | AC166: 1 | AD166: 1 | AE166: 1 | AF166: 1 | AG166: 1 | AH166: 1 | AI166: 1 | AJ166: 1 | AK166: 1 | AL166: 1 | AM166: 1 | AN166: 2 | AO166: 2 | AP166: 2 | AQ166: 2 | AR166: 2 | AS166: 2 | AT166: 2 | AU166: 2 | AV166: 2 | AW166: 2
C167: 51 | D167: 150 | E167: 51 | J167: 1 | K167: 1 | L167: 1 | M167: 1 | N167: 1 | O167: 1 | P167: 1 | Q167: 1 | R167: 1 | S167: 1 | T167: 1 | U167: 1 | V167: 1 | W167: 1 | X167: 1 | Y167: 1 | Z167: 1 | AA167: 1 | AB167: 1 | AC167: 1 | AD167: 1 | AE167: 1 | AF167: 1 | AG167: 1 | AH167: 1 | AI167: 1 | AJ167: 1 | AK167: 1 | AL167: 1 | AM167: 1 | AN167: 2 | AO167: 2 | AP167: 2 | AQ167: 2 | AR167: 2 | AS167: 2 | AT167: 2 | AU167: 2 | AV167: 2 | AW167: 2
C168: 50 | D168: 151 | E168: 50 | J168: =IF($A$13,IF(AND(J$2>=1,J$2<=$D$7,$E168>=1,$E168<=$D$8),1,IF(AND(J$2>=$D$7+1,J$2<=$D$7+$D$9,$E168>=J$2-$D$7+1,$E168<=J$2-$D$7+$D$8),2,IF(AND($E168>=$D$8+1,$E168<=$D$8+$D$9,J$2>=$E168-$D$8+1,J$2<=$E168-$D$8+$D$7-1),3,""))),"") -> 1 | K168: 1 | L168: 1 | M168: 1 | N168: 1 | O168: 1 | P168: 1 | Q168: 1 | R168: 1 | S168: 1 | T168: =IF($A$13,IF(AND(T$2>=1,T$2<=$D$7,$E168>=1,$E168<=$D$8),1,IF(AND(T$2>=$D$7+1,T$2<=$D$7+$D$9,$E168>=T$2-$D$7+1,$E168<=T$2-$D$7+$D$8),2,IF(AND($E168>=$D$8+1,$E168<=$D$8+$D$9,T$2>=$E168-$D$8+1,T$2<=$E168-$D$8+$D$7-1),3,""))),"") -> 1 | U168: 1 | V168: 1 | W168: 1 | X168: 1 | Y168: 1 | Z168: 1 | AA168: 1 | AB168: 1 | AC168: 1 | AD168: =IF($A$13,IF(AND(AD$2>=1,AD$2<=$D$7,$E168>=1,$E168<=$D$8),1,IF(AND(AD$2>=$D$7+1,AD$2<=$D$7+$D$9,$E168>=AD$2-$D$7+1,$E168<=AD$2-$D$7+$D$8),2,IF(AND($E168>=$D$8+1,$E168<=$D$8+$D$9,AD$2>=$E168-$D$8+1,AD$2<=$E168-$D$8+$D$7-1),3,""))),"") -> 1 | AE168: 1 | AF168: 1 | AG168: 1 | AH168: 1 | AI168: 1 | AJ168: 1 | AK168: 1 | AL168: 1 | AM168: 1 | AN168: =IF($A$13,IF(AND(AN$2>=1,AN$2<=$D$7,$E168>=1,$E168<=$D$8),1,IF(AND(AN$2>=$D$7+1,AN$2<=$D$7+$D$9,$E168>=AN$2-$D$7+1,$E168<=AN$2-$D$7+$D$8),2,IF(AND($E168>=$D$8+1,$E168<=$D$8+$D$9,AN$2>=$E168-$D$8+1,AN$2<=$E168-$D$8+$D$7-1),3,""))),"") -> 2 | AO168: 2 | AP168: 2 | AQ168: 2 | AR168: 2 | AS168: 2 | AT168: 2 | AU168: 2 | AV168: 2 | AW168: 2 | AX168: =IF($A$13,IF(AND(AX$2>=1,AX$2<=$D$7,$E168>=1,$E168<=$D$8),1,IF(AND(AX$2>=$D$7+1,AX$2<=$D$7+$D$9,$E168>=AX$2-$D$7+1,$E168<=AX$2-$D$7+$D$8),2,IF(AND($E168>=$D$8+1,$E168<=$D$8+$D$9,AX$2>=$E168-$D$8+1,AX$2<=$E168-$D$8+$D$7-1),3,""))),"") ->  | BH168: =IF($A$13,IF(AND(BH$2>=1,BH$2<=$D$7,$E168>=1,$E168<=$D$8),1,IF(AND(BH$2>=$D$7+1,BH$2<=$D$7+$D$9,$E168>=BH$2-$D$7+1,$E168<=BH$2-$D$7+$D$8),2,IF(AND($E168>=$D$8+1,$E168<=$D$8+$D$9,BH$2>=$E168-$D$8+1,BH$2<=$E168-$D$8+$D$7-1),3,""))),"") ->  | BR168: =IF($A$13,IF(AND(BR$2>=1,BR$2<=$D$7,$E168>=1,$E168<=$D$8),1,IF(AND(BR$2>=$D$7+1,BR$2<=$D$7+$D$9,$E168>=BR$2-$D$7+1,$E168<=BR$2-$D$7+$D$8),2,IF(AND($E168>=$D$8+1,$E168<=$D$8+$D$9,BR$2>=$E168-$D$8+1,BR$2<=$E168-$D$8+$D$7-1),3,""))),"") ->  | CB168: =IF($A$13,IF(AND(CB$2>=1,CB$2<=$D$7,$E168>=1,$E168<=$D$8),1,IF(AND(CB$2>=$D$7+1,CB$2<=$D$7+$D$9,$E168>=CB$2-$D$7+1,$E168<=CB$2-$D$7+$D$8),2,IF(AND($E168>=$D$8+1,$E168<=$D$8+$D$9,CB$2>=$E168-$D$8+1,CB$2<=$E168-$D$8+$D$7-1),3,""))),"") ->  | CL168: =IF($A$13,IF(AND(CL$2>=1,CL$2<=$D$7,$E168>=1,$E168<=$D$8),1,IF(AND(CL$2>=$D$7+1,CL$2<=$D$7+$D$9,$E168>=CL$2-$D$7+1,$E168<=CL$2-$D$7+$D$8),2,IF(AND($E168>=$D$8+1,$E168<=$D$8+$D$9,CL$2>=$E168-$D$8+1,CL$2<=$E168-$D$8+$D$7-1),3,""))),"") ->  | CV168: =IF($A$13,IF(AND(CV$2>=1,CV$2<=$D$7,$E168>=1,$E168<=$D$8),1,IF(AND(CV$2>=$D$7+1,CV$2<=$D$7+$D$9,$E168>=CV$2-$D$7+1,$E168<=CV$2-$D$7+$D$8),2,IF(AND($E168>=$D$8+1,$E168<=$D$8+$D$9,CV$2>=$E168-$D$8+1,CV$2<=$E168-$D$8+$D$7-1),3,""))),"") ->  | DF168: =IF($A$13,IF(AND(DF$2>=1,DF$2<=$D$7,$E168>=1,$E168<=$D$8),1,IF(AND(DF$2>=$D$7+1,DF$2<=$D$7+$D$9,$E168>=DF$2-$D$7+1,$E168<=DF$2-$D$7+$D$8),2,IF(AND($E168>=$D$8+1,$E168<=$D$8+$D$9,DF$2>=$E168-$D$8+1,DF$2<=$E168-$D$8+$D$7-1),3,""))),"") ->  | DP168: =IF($A$13,IF(AND(DP$2>=1,DP$2<=$D$7,$E168>=1,$E168<=$D$8),1,IF(AND(DP$2>=$D$7+1,DP$2<=$D$7+$D$9,$E168>=DP$2-$D$7+1,$E168<=DP$2-$D$7+$D$8),2,IF(AND($E168>=$D$8+1,$E168<=$D$8+$D$9,DP$2>=$E168-$D$8+1,DP$2<=$E168-$D$8+$D$7-1),3,""))),"") ->  | DZ168: =IF($A$13,IF(AND(DZ$2>=1,DZ$2<=$D$7,$E168>=1,$E168<=$D$8),1,IF(AND(DZ$2>=$D$7+1,DZ$2<=$D$7+$D$9,$E168>=DZ$2-$D$7+1,$E168<=DZ$2-$D$7+$D$8),2,IF(AND($E168>=$D$8+1,$E168<=$D$8+$D$9,DZ$2>=$E168-$D$8+1,DZ$2<=$E168-$D$8+$D$7-1),3,""))),"") ->  | EJ168: =IF($A$13,IF(AND(EJ$2>=1,EJ$2<=$D$7,$E168>=1,$E168<=$D$8),1,IF(AND(EJ$2>=$D$7+1,EJ$2<=$D$7+$D$9,$E168>=EJ$2-$D$7+1,$E168<=EJ$2-$D$7+$D$8),2,IF(AND($E168>=$D$8+1,$E168<=$D$8+$D$9,EJ$2>=$E168-$D$8+1,EJ$2<=$E168-$D$8+$D$7-1),3,""))),"") ->  | ET168: =IF($A$13,IF(AND(ET$2>=1,ET$2<=$D$7,$E168>=1,$E168<=$D$8),1,IF(AND(ET$2>=$D$7+1,ET$2<=$D$7+$D$9,$E168>=ET$2-$D$7+1,$E168<=ET$2-$D$7+$D$8),2,IF(AND($E168>=$D$8+1,$E168<=$D$8+$D$9,ET$2>=$E168-$D$8+1,ET$2<=$E168-$D$8+$D$7-1),3,""))),"") ->  | FD168: =IF($A$13,IF(AND(FD$2>=1,FD$2<=$D$7,$E168>=1,$E168<=$D$8),1,IF(AND(FD$2>=$D$7+1,FD$2<=$D$7+$D$9,$E168>=FD$2-$D$7+1,$E168<=FD$2-$D$7+$D$8),2,IF(AND($E168>=$D$8+1,$E168<=$D$8+$D$9,FD$2>=$E168-$D$8+1,FD$2<=$E168-$D$8+$D$7-1),3,""))),"") ->  | FN168: =IF($A$13,IF(AND(FN$2>=1,FN$2<=$D$7,$E168>=1,$E168<=$D$8),1,IF(AND(FN$2>=$D$7+1,FN$2<=$D$7+$D$9,$E168>=FN$2-$D$7+1,$E168<=FN$2-$D$7+$D$8),2,IF(AND($E168>=$D$8+1,$E168<=$D$8+$D$9,FN$2>=$E168-$D$8+1,FN$2<=$E168-$D$8+$D$7-1),3,""))),"") ->  | FX168: =IF($A$13,IF(AND(FX$2>=1,FX$2<=$D$7,$E168>=1,$E168<=$D$8),1,IF(AND(FX$2>=$D$7+1,FX$2<=$D$7+$D$9,$E168>=FX$2-$D$7+1,$E168<=FX$2-$D$7+$D$8),2,IF(AND($E168>=$D$8+1,$E168<=$D$8+$D$9,FX$2>=$E168-$D$8+1,FX$2<=$E168-$D$8+$D$7-1),3,""))),"") ->  | GH168: =IF($A$13,IF(AND(GH$2>=1,GH$2<=$D$7,$E168>=1,$E168<=$D$8),1,IF(AND(GH$2>=$D$7+1,GH$2<=$D$7+$D$9,$E168>=GH$2-$D$7+1,$E168<=GH$2-$D$7+$D$8),2,IF(AND($E168>=$D$8+1,$E168<=$D$8+$D$9,GH$2>=$E168-$D$8+1,GH$2<=$E168-$D$8+$D$7-1),3,""))),"") ->  | GR168: =IF($A$13,IF(AND(GR$2>=1,GR$2<=$D$7,$E168>=1,$E168<=$D$8),1,IF(AND(GR$2>=$D$7+1,GR$2<=$D$7+$D$9,$E168>=GR$2-$D$7+1,$E168<=GR$2-$D$7+$D$8),2,IF(AND($E168>=$D$8+1,$E168<=$D$8+$D$9,GR$2>=$E168-$D$8+1,GR$2<=$E168-$D$8+$D$7-1),3,""))),"") -> 
C169: 49 | D169: 152 | E169: 49 | J169: 1 | K169: 1 | L169: 1 | M169: 1 | N169: 1 | O169: 1 | P169: 1 | Q169: 1 | R169: 1 | S169: 1 | T169: 1 | U169: 1 | V169: 1 | W169: 1 | X169: 1 | Y169: 1 | Z169: 1 | AA169: 1 | AB169: 1 | AC169: 1 | AD169: 1 | AE169: 1 | AF169: 1 | AG169: 1 | AH169: 1 | AI169: 1 | AJ169: 1 | AK169: 1 | AL169: 1 | AM169: 1 | AN169: 2 | AO169: 2 | AP169: 2 | AQ169: 2 | AR169: 2 | AS169: 2 | AT169: 2 | AU169: 2 | AV169: 2 | AW169: 2
C170: 48 | D170: 153 | E170: 48 | J170: 1 | K170: 1 | L170: 1 | M170: 1 | N170: 1 | O170: 1 | P170: 1 | Q170: 1 | R170: 1 | S170: 1 | T170: 1 | U170: 1 | V170: 1 | W170: 1 | X170: 1 | Y170: 1 | Z170: 1 | AA170: 1 | AB170: 1 | AC170: 1 | AD170: 1 | AE170: 1 | AF170: 1 | AG170: 1 | AH170: 1 | AI170: 1 | AJ170: 1 | AK170: 1 | AL170: 1 | AM170: 1 | AN170: 2 | AO170: 2 | AP170: 2 | AQ170: 2 | AR170: 2 | AS170: 2 | AT170: 2 | AU170: 2 | AV170: 2 | AW170: 2
C171: 47 | D171: 154 | E171: 47 | J171: 1 | K171: 1 | L171: 1 | M171: 1 | N171: 1 | O171: 1 | P171: 1 | Q171: 1 | R171: 1 | S171: 1 | T171: 1 | U171: 1 | V171: 1 | W171: 1 | X171: 1 | Y171: 1 | Z171: 1 | AA171: 1 | AB171: 1 | AC171: 1 | AD171: 1 | AE171: 1 | AF171: 1 | AG171: 1 | AH171: 1 | AI171: 1 | AJ171: 1 | AK171: 1 | AL171: 1 | AM171: 1 | AN171: 2 | AO171: 2 | AP171: 2 | AQ171: 2 | AR171: 2 | AS171: 2 | AT171: 2 | AU171: 2 | AV171: 2 | AW171: 2
C172: 46 | D172: 155 | E172: 46 | J172: 1 | K172: 1 | L172: 1 | M172: 1 | N172: 1 | O172: 1 | P172: 1 | Q172: 1 | R172: 1 | S172: 1 | T172: 1 | U172: 1 | V172: 1 | W172: 1 | X172: 1 | Y172: 1 | Z172: 1 | AA172: 1 | AB172: 1 | AC172: 1 | AD172: 1 | AE172: 1 | AF172: 1 | AG172: 1 | AH172: 1 | AI172: 1 | AJ172: 1 | AK172: 1 | AL172: 1 | AM172: 1 | AN172: 2 | AO172: 2 | AP172: 2 | AQ172: 2 | AR172: 2 | AS172: 2 | AT172: 2 | AU172: 2 | AV172: 2 | AW172: 2
C173: 45 | D173: 156 | E173: 45 | J173: 1 | K173: 1 | L173: 1 | M173: 1 | N173: 1 | O173: 1 | P173: 1 | Q173: 1 | R173: 1 | S173: 1 | T173: 1 | U173: 1 | V173: 1 | W173: 1 | X173: 1 | Y173: 1 | Z173: 1 | AA173: 1 | AB173: 1 | AC173: 1 | AD173: 1 | AE173: 1 | AF173: 1 | AG173: 1 | AH173: 1 | AI173: 1 | AJ173: 1 | AK173: 1 | AL173: 1 | AM173: 1 | AN173: 2 | AO173: 2 | AP173: 2 | AQ173: 2 | AR173: 2 | AS173: 2 | AT173: 2 | AU173: 2 | AV173: 2 | AW173: 2
C174: 44 | D174: 157 | E174: 44 | J174: 1 | K174: 1 | L174: 1 | M174: 1 | N174: 1 | O174: 1 | P174: 1 | Q174: 1 | R174: 1 | S174: 1 | T174: 1 | U174: 1 | V174: 1 | W174: 1 | X174: 1 | Y174: 1 | Z174: 1 | AA174: 1 | AB174: 1 | AC174: 1 | AD174: 1 | AE174: 1 | AF174: 1 | AG174: 1 | AH174: 1 | AI174: 1 | AJ174: 1 | AK174: 1 | AL174: 1 | AM174: 1 | AN174: 2 | AO174: 2 | AP174: 2 | AQ174: 2 | AR174: 2 | AS174: 2 | AT174: 2 | AU174: 2 | AV174: 2 | AW174: 2
C175: 43 | D175: 158 | E175: 43 | J175: 1 | K175: 1 | L175: 1 | M175: 1 | N175: 1 | O175: 1 | P175: 1 | Q175: 1 | R175: 1 | S175: 1 | T175: 1 | U175: 1 | V175: 1 | W175: 1 | X175: 1 | Y175: 1 | Z175: 1 | AA175: 1 | AB175: 1 | AC175: 1 | AD175: 1 | AE175: 1 | AF175: 1 | AG175: 1 | AH175: 1 | AI175: 1 | AJ175: 1 | AK175: 1 | AL175: 1 | AM175: 1 | AN175: 2 | AO175: 2 | AP175: 2 | AQ175: 2 | AR175: 2 | AS175: 2 | AT175: 2 | AU175: 2 | AV175: 2 | AW175: 2
C176: 42 | D176: 159 | E176: 42 | J176: 1 | K176: 1 | L176: 1 | M176: 1 | N176: 1 | O176: 1 | P176: 1 | Q176: 1 | R176: 1 | S176: 1 | T176: 1 | U176: 1 | V176: 1 | W176: 1 | X176: 1 | Y176: 1 | Z176: 1 | AA176: 1 | AB176: 1 | AC176: 1 | AD176: 1 | AE176: 1 | AF176: 1 | AG176: 1 | AH176: 1 | AI176: 1 | AJ176: 1 | AK176: 1 | AL176: 1 | AM176: 1 | AN176: 2 | AO176: 2 | AP176: 2 | AQ176: 2 | AR176: 2 | AS176: 2 | AT176: 2 | AU176: 2 | AV176: 2 | AW176: 2
C177: 41 | D177: 160 | E177: 41 | J177: 1 | K177: 1 | L177: 1 | M177: 1 | N177: 1 | O177: 1 | P177: 1 | Q177: 1 | R177: 1 | S177: 1 | T177: 1 | U177: 1 | V177: 1 | W177: 1 | X177: 1 | Y177: 1 | Z177: 1 | AA177: 1 | AB177: 1 | AC177: 1 | AD177: 1 | AE177: 1 | AF177: 1 | AG177: 1 | AH177: 1 | AI177: 1 | AJ177: 1 | AK177: 1 | AL177: 1 | AM177: 1 | AN177: 2 | AO177: 2 | AP177: 2 | AQ177: 2 | AR177: 2 | AS177: 2 | AT177: 2 | AU177: 2 | AV177: 2 | AW177: 2
C178: 40 | D178: 161 | E178: 40 | J178: =IF($A$13,IF(AND(J$2>=1,J$2<=$D$7,$E178>=1,$E178<=$D$8),1,IF(AND(J$2>=$D$7+1,J$2<=$D$7+$D$9,$E178>=J$2-$D$7+1,$E178<=J$2-$D$7+$D$8),2,IF(AND($E178>=$D$8+1,$E178<=$D$8+$D$9,J$2>=$E178-$D$8+1,J$2<=$E178-$D$8+$D$7-1),3,""))),"") -> 1 | K178: 1 | L178: 1 | M178: 1 | N178: 1 | O178: 1 | P178: 1 | Q178: 1 | R178: 1 | S178: 1 | T178: =IF($A$13,IF(AND(T$2>=1,T$2<=$D$7,$E178>=1,$E178<=$D$8),1,IF(AND(T$2>=$D$7+1,T$2<=$D$7+$D$9,$E178>=T$2-$D$7+1,$E178<=T$2-$D$7+$D$8),2,IF(AND($E178>=$D$8+1,$E178<=$D$8+$D$9,T$2>=$E178-$D$8+1,T$2<=$E178-$D$8+$D$7-1),3,""))),"") -> 1 | U178: 1 | V178: 1 | W178: 1 | X178: 1 | Y178: 1 | Z178: 1 | AA178: 1 | AB178: 1 | AC178: 1 | AD178: =IF($A$13,IF(AND(AD$2>=1,AD$2<=$D$7,$E178>=1,$E178<=$D$8),1,IF(AND(AD$2>=$D$7+1,AD$2<=$D$7+$D$9,$E178>=AD$2-$D$7+1,$E178<=AD$2-$D$7+$D$8),2,IF(AND($E178>=$D$8+1,$E178<=$D$8+$D$9,AD$2>=$E178-$D$8+1,AD$2<=$E178-$D$8+$D$7-1),3,""))),"") -> 1 | AE178: 1 | AF178: 1 | AG178: 1 | AH178: 1 | AI178: 1 | AJ178: 1 | AK178: 1 | AL178: 1 | AM178: 1 | AN178: =IF($A$13,IF(AND(AN$2>=1,AN$2<=$D$7,$E178>=1,$E178<=$D$8),1,IF(AND(AN$2>=$D$7+1,AN$2<=$D$7+$D$9,$E178>=AN$2-$D$7+1,$E178<=AN$2-$D$7+$D$8),2,IF(AND($E178>=$D$8+1,$E178<=$D$8+$D$9,AN$2>=$E178-$D$8+1,AN$2<=$E178-$D$8+$D$7-1),3,""))),"") -> 2 | AO178: 2 | AP178: 2 | AQ178: 2 | AR178: 2 | AS178: 2 | AT178: 2 | AU178: 2 | AV178: 2 | AW178: 2 | AX178: =IF($A$13,IF(AND(AX$2>=1,AX$2<=$D$7,$E178>=1,$E178<=$D$8),1,IF(AND(AX$2>=$D$7+1,AX$2<=$D$7+$D$9,$E178>=AX$2-$D$7+1,$E178<=AX$2-$D$7+$D$8),2,IF(AND($E178>=$D$8+1,$E178<=$D$8+$D$9,AX$2>=$E178-$D$8+1,AX$2<=$E178-$D$8+$D$7-1),3,""))),"") ->  | BH178: =IF($A$13,IF(AND(BH$2>=1,BH$2<=$D$7,$E178>=1,$E178<=$D$8),1,IF(AND(BH$2>=$D$7+1,BH$2<=$D$7+$D$9,$E178>=BH$2-$D$7+1,$E178<=BH$2-$D$7+$D$8),2,IF(AND($E178>=$D$8+1,$E178<=$D$8+$D$9,BH$2>=$E178-$D$8+1,BH$2<=$E178-$D$8+$D$7-1),3,""))),"") ->  | BR178: =IF($A$13,IF(AND(BR$2>=1,BR$2<=$D$7,$E178>=1,$E178<=$D$8),1,IF(AND(BR$2>=$D$7+1,BR$2<=$D$7+$D$9,$E178>=BR$2-$D$7+1,$E178<=BR$2-$D$7+$D$8),2,IF(AND($E178>=$D$8+1,$E178<=$D$8+$D$9,BR$2>=$E178-$D$8+1,BR$2<=$E178-$D$8+$D$7-1),3,""))),"") ->  | CB178: =IF($A$13,IF(AND(CB$2>=1,CB$2<=$D$7,$E178>=1,$E178<=$D$8),1,IF(AND(CB$2>=$D$7+1,CB$2<=$D$7+$D$9,$E178>=CB$2-$D$7+1,$E178<=CB$2-$D$7+$D$8),2,IF(AND($E178>=$D$8+1,$E178<=$D$8+$D$9,CB$2>=$E178-$D$8+1,CB$2<=$E178-$D$8+$D$7-1),3,""))),"") ->  | CL178: =IF($A$13,IF(AND(CL$2>=1,CL$2<=$D$7,$E178>=1,$E178<=$D$8),1,IF(AND(CL$2>=$D$7+1,CL$2<=$D$7+$D$9,$E178>=CL$2-$D$7+1,$E178<=CL$2-$D$7+$D$8),2,IF(AND($E178>=$D$8+1,$E178<=$D$8+$D$9,CL$2>=$E178-$D$8+1,CL$2<=$E178-$D$8+$D$7-1),3,""))),"") ->  | CV178: =IF($A$13,IF(AND(CV$2>=1,CV$2<=$D$7,$E178>=1,$E178<=$D$8),1,IF(AND(CV$2>=$D$7+1,CV$2<=$D$7+$D$9,$E178>=CV$2-$D$7+1,$E178<=CV$2-$D$7+$D$8),2,IF(AND($E178>=$D$8+1,$E178<=$D$8+$D$9,CV$2>=$E178-$D$8+1,CV$2<=$E178-$D$8+$D$7-1),3,""))),"") ->  | DF178: =IF($A$13,IF(AND(DF$2>=1,DF$2<=$D$7,$E178>=1,$E178<=$D$8),1,IF(AND(DF$2>=$D$7+1,DF$2<=$D$7+$D$9,$E178>=DF$2-$D$7+1,$E178<=DF$2-$D$7+$D$8),2,IF(AND($E178>=$D$8+1,$E178<=$D$8+$D$9,DF$2>=$E178-$D$8+1,DF$2<=$E178-$D$8+$D$7-1),3,""))),"") ->  | DP178: =IF($A$13,IF(AND(DP$2>=1,DP$2<=$D$7,$E178>=1,$E178<=$D$8),1,IF(AND(DP$2>=$D$7+1,DP$2<=$D$7+$D$9,$E178>=DP$2-$D$7+1,$E178<=DP$2-$D$7+$D$8),2,IF(AND($E178>=$D$8+1,$E178<=$D$8+$D$9,DP$2>=$E178-$D$8+1,DP$2<=$E178-$D$8+$D$7-1),3,""))),"") ->  | DZ178: =IF($A$13,IF(AND(DZ$2>=1,DZ$2<=$D$7,$E178>=1,$E178<=$D$8),1,IF(AND(DZ$2>=$D$7+1,DZ$2<=$D$7+$D$9,$E178>=DZ$2-$D$7+1,$E178<=DZ$2-$D$7+$D$8),2,IF(AND($E178>=$D$8+1,$E178<=$D$8+$D$9,DZ$2>=$E178-$D$8+1,DZ$2<=$E178-$D$8+$D$7-1),3,""))),"") ->  | EJ178: =IF($A$13,IF(AND(EJ$2>=1,EJ$2<=$D$7,$E178>=1,$E178<=$D$8),1,IF(AND(EJ$2>=$D$7+1,EJ$2<=$D$7+$D$9,$E178>=EJ$2-$D$7+1,$E178<=EJ$2-$D$7+$D$8),2,IF(AND($E178>=$D$8+1,$E178<=$D$8+$D$9,EJ$2>=$E178-$D$8+1,EJ$2<=$E178-$D$8+$D$7-1),3,""))),"") ->  | ET178: =IF($A$13,IF(AND(ET$2>=1,ET$2<=$D$7,$E178>=1,$E178<=$D$8),1,IF(AND(ET$2>=$D$7+1,ET$2<=$D$7+$D$9,$E178>=ET$2-$D$7+1,$E178<=ET$2-$D$7+$D$8),2,IF(AND($E178>=$D$8+1,$E178<=$D$8+$D$9,ET$2>=$E178-$D$8+1,ET$2<=$E178-$D$8+$D$7-1),3,""))),"") ->  | FD178: =IF($A$13,IF(AND(FD$2>=1,FD$2<=$D$7,$E178>=1,$E178<=$D$8),1,IF(AND(FD$2>=$D$7+1,FD$2<=$D$7+$D$9,$E178>=FD$2-$D$7+1,$E178<=FD$2-$D$7+$D$8),2,IF(AND($E178>=$D$8+1,$E178<=$D$8+$D$9,FD$2>=$E178-$D$8+1,FD$2<=$E178-$D$8+$D$7-1),3,""))),"") ->  | FN178: =IF($A$13,IF(AND(FN$2>=1,FN$2<=$D$7,$E178>=1,$E178<=$D$8),1,IF(AND(FN$2>=$D$7+1,FN$2<=$D$7+$D$9,$E178>=FN$2-$D$7+1,$E178<=FN$2-$D$7+$D$8),2,IF(AND($E178>=$D$8+1,$E178<=$D$8+$D$9,FN$2>=$E178-$D$8+1,FN$2<=$E178-$D$8+$D$7-1),3,""))),"") ->  | FX178: =IF($A$13,IF(AND(FX$2>=1,FX$2<=$D$7,$E178>=1,$E178<=$D$8),1,IF(AND(FX$2>=$D$7+1,FX$2<=$D$7+$D$9,$E178>=FX$2-$D$7+1,$E178<=FX$2-$D$7+$D$8),2,IF(AND($E178>=$D$8+1,$E178<=$D$8+$D$9,FX$2>=$E178-$D$8+1,FX$2<=$E178-$D$8+$D$7-1),3,""))),"") ->  | GH178: =IF($A$13,IF(AND(GH$2>=1,GH$2<=$D$7,$E178>=1,$E178<=$D$8),1,IF(AND(GH$2>=$D$7+1,GH$2<=$D$7+$D$9,$E178>=GH$2-$D$7+1,$E178<=GH$2-$D$7+$D$8),2,IF(AND($E178>=$D$8+1,$E178<=$D$8+$D$9,GH$2>=$E178-$D$8+1,GH$2<=$E178-$D$8+$D$7-1),3,""))),"") ->  | GR178: =IF($A$13,IF(AND(GR$2>=1,GR$2<=$D$7,$E178>=1,$E178<=$D$8),1,IF(AND(GR$2>=$D$7+1,GR$2<=$D$7+$D$9,$E178>=GR$2-$D$7+1,$E178<=GR$2-$D$7+$D$8),2,IF(AND($E178>=$D$8+1,$E178<=$D$8+$D$9,GR$2>=$E178-$D$8+1,GR$2<=$E178-$D$8+$D$7-1),3,""))),"") -> 
C179: 39 | D179: 162 | E179: 39 | J179: 1 | K179: 1 | L179: 1 | M179: 1 | N179: 1 | O179: 1 | P179: 1 | Q179: 1 | R179: 1 | S179: 1 | T179: 1 | U179: 1 | V179: 1 | W179: 1 | X179: 1 | Y179: 1 | Z179: 1 | AA179: 1 | AB179: 1 | AC179: 1 | AD179: 1 | AE179: 1 | AF179: 1 | AG179: 1 | AH179: 1 | AI179: 1 | AJ179: 1 | AK179: 1 | AL179: 1 | AM179: 1 | AN179: 2 | AO179: 2 | AP179: 2 | AQ179: 2 | AR179: 2 | AS179: 2 | AT179: 2 | AU179: 2 | AV179: 2 | AW179: 2
C180: 38 | D180: 163 | E180: 38 | J180: 1 | K180: 1 | L180: 1 | M180: 1 | N180: 1 | O180: 1 | P180: 1 | Q180: 1 | R180: 1 | S180: 1 | T180: 1 | U180: 1 | V180: 1 | W180: 1 | X180: 1 | Y180: 1 | Z180: 1 | AA180: 1 | AB180: 1 | AC180: 1 | AD180: 1 | AE180: 1 | AF180: 1 | AG180: 1 | AH180: 1 | AI180: 1 | AJ180: 1 | AK180: 1 | AL180: 1 | AM180: 1 | AN180: 2 | AO180: 2 | AP180: 2 | AQ180: 2 | AR180: 2 | AS180: 2 | AT180: 2 | AU180: 2 | AV180: 2 | AW180: 2
C181: 37 | D181: 164 | E181: 37 | J181: 1 | K181: 1 | L181: 1 | M181: 1 | N181: 1 | O181: 1 | P181: 1 | Q181: 1 | R181: 1 | S181: 1 | T181: 1 | U181: 1 | V181: 1 | W181: 1 | X181: 1 | Y181: 1 | Z181: 1 | AA181: 1 | AB181: 1 | AC181: 1 | AD181: 1 | AE181: 1 | AF181: 1 | AG181: 1 | AH181: 1 | AI181: 1 | AJ181: 1 | AK181: 1 | AL181: 1 | AM181: 1 | AN181: 2 | AO181: 2 | AP181: 2 | AQ181: 2 | AR181: 2 | AS181: 2 | AT181: 2 | AU181: 2 | AV181: 2 | AW181: 2
C182: 36 | D182: 165 | E182: 36 | J182: 1 | K182: 1 | L182: 1 | M182: 1 | N182: 1 | O182: 1 | P182: 1 | Q182: 1 | R182: 1 | S182: 1 | T182: 1 | U182: 1 | V182: 1 | W182: 1 | X182: 1 | Y182: 1 | Z182: 1 | AA182: 1 | AB182: 1 | AC182: 1 | AD182: 1 | AE182: 1 | AF182: 1 | AG182: 1 | AH182: 1 | AI182: 1 | AJ182: 1 | AK182: 1 | AL182: 1 | AM182: 1 | AN182: 2 | AO182: 2 | AP182: 2 | AQ182: 2 | AR182: 2 | AS182: 2 | AT182: 2 | AU182: 2 | AV182: 2 | AW182: 2
C183: 35 | D183: 166 | E183: 35 | J183: 1 | K183: 1 | L183: 1 | M183: 1 | N183: 1 | O183: 1 | P183: 1 | Q183: 1 | R183: 1 | S183: 1 | T183: 1 | U183: 1 | V183: 1 | W183: 1 | X183: 1 | Y183: 1 | Z183: 1 | AA183: 1 | AB183: 1 | AC183: 1 | AD183: 1 | AE183: 1 | AF183: 1 | AG183: 1 | AH183: 1 | AI183: 1 | AJ183: 1 | AK183: 1 | AL183: 1 | AM183: 1 | AN183: 2 | AO183: 2 | AP183: 2 | AQ183: 2 | AR183: 2 | AS183: 2 | AT183: 2 | AU183: 2 | AV183: 2 | AW183: 2
C184: 34 | D184: 167 | E184: 34 | J184: 1 | K184: 1 | L184: 1 | M184: 1 | N184: 1 | O184: 1 | P184: 1 | Q184: 1 | R184: 1 | S184: 1 | T184: 1 | U184: 1 | V184: 1 | W184: 1 | X184: 1 | Y184: 1 | Z184: 1 | AA184: 1 | AB184: 1 | AC184: 1 | AD184: 1 | AE184: 1 | AF184: 1 | AG184: 1 | AH184: 1 | AI184: 1 | AJ184: 1 | AK184: 1 | AL184: 1 | AM184: 1 | AN184: 2 | AO184: 2 | AP184: 2 | AQ184: 2 | AR184: 2 | AS184: 2 | AT184: 2 | AU184: 2 | AV184: 2 | AW184: 2
C185: 33 | D185: 168 | E185: 33 | J185: 1 | K185: 1 | L185: 1 | M185: 1 | N185: 1 | O185: 1 | P185: 1 | Q185: 1 | R185: 1 | S185: 1 | T185: 1 | U185: 1 | V185: 1 | W185: 1 | X185: 1 | Y185: 1 | Z185: 1 | AA185: 1 | AB185: 1 | AC185: 1 | AD185: 1 | AE185: 1 | AF185: 1 | AG185: 1 | AH185: 1 | AI185: 1 | AJ185: 1 | AK185: 1 | AL185: 1 | AM185: 1 | AN185: 2 | AO185: 2 | AP185: 2 | AQ185: 2 | AR185: 2 | AS185: 2 | AT185: 2 | AU185: 2 | AV185: 2 | AW185: 2
C186: 32 | D186: 169 | E186: 32 | J186: 1 | K186: 1 | L186: 1 | M186: 1 | N186: 1 | O186: 1 | P186: 1 | Q186: 1 | R186: 1 | S186: 1 | T186: 1 | U186: 1 | V186: 1 | W186: 1 | X186: 1 | Y186: 1 | Z186: 1 | AA186: 1 | AB186: 1 | AC186: 1 | AD186: 1 | AE186: 1 | AF186: 1 | AG186: 1 | AH186: 1 | AI186: 1 | AJ186: 1 | AK186: 1 | AL186: 1 | AM186: 1 | AN186: 2 | AO186: 2 | AP186: 2 | AQ186: 2 | AR186: 2 | AS186: 2 | AT186: 2 | AU186: 2 | AV186: 2 | AW186: 2
C187: 31 | D187: 170 | E187: 31 | J187: 1 | K187: 1 | L187: 1 | M187: 1 | N187: 1 | O187: 1 | P187: 1 | Q187: 1 | R187: 1 | S187: 1 | T187: 1 | U187: 1 | V187: 1 | W187: 1 | X187: 1 | Y187: 1 | Z187: 1 | AA187: 1 | AB187: 1 | AC187: 1 | AD187: 1 | AE187: 1 | AF187: 1 | AG187: 1 | AH187: 1 | AI187: 1 | AJ187: 1 | AK187: 1 | AL187: 1 | AM187: 1 | AN187: 2 | AO187: 2 | AP187: 2 | AQ187: 2 | AR187: 2 | AS187: 2 | AT187: 2 | AU187: 2 | AV187: 2 | AW187: 2
C188: 30 | D188: 171 | E188: 30 | J188: =IF($A$13,IF(AND(J$2>=1,J$2<=$D$7,$E188>=1,$E188<=$D$8),1,IF(AND(J$2>=$D$7+1,J$2<=$D$7+$D$9,$E188>=J$2-$D$7+1,$E188<=J$2-$D$7+$D$8),2,IF(AND($E188>=$D$8+1,$E188<=$D$8+$D$9,J$2>=$E188-$D$8+1,J$2<=$E188-$D$8+$D$7-1),3,""))),"") -> 1 | K188: 1 | L188: 1 | M188: 1 | N188: 1 | O188: 1 | P188: 1 | Q188: 1 | R188: 1 | S188: 1 | T188: =IF($A$13,IF(AND(T$2>=1,T$2<=$D$7,$E188>=1,$E188<=$D$8),1,IF(AND(T$2>=$D$7+1,T$2<=$D$7+$D$9,$E188>=T$2-$D$7+1,$E188<=T$2-$D$7+$D$8),2,IF(AND($E188>=$D$8+1,$E188<=$D$8+$D$9,T$2>=$E188-$D$8+1,T$2<=$E188-$D$8+$D$7-1),3,""))),"") -> 1 | U188: 1 | V188: 1 | W188: 1 | X188: 1 | Y188: 1 | Z188: 1 | AA188: 1 | AB188: 1 | AC188: 1 | AD188: =IF($A$13,IF(AND(AD$2>=1,AD$2<=$D$7,$E188>=1,$E188<=$D$8),1,IF(AND(AD$2>=$D$7+1,AD$2<=$D$7+$D$9,$E188>=AD$2-$D$7+1,$E188<=AD$2-$D$7+$D$8),2,IF(AND($E188>=$D$8+1,$E188<=$D$8+$D$9,AD$2>=$E188-$D$8+1,AD$2<=$E188-$D$8+$D$7-1),3,""))),"") -> 1 | AE188: 1 | AF188: 1 | AG188: 1 | AH188: 1 | AI188: 1 | AJ188: 1 | AK188: 1 | AL188: 1 | AM188: 1 | AN188: =IF($A$13,IF(AND(AN$2>=1,AN$2<=$D$7,$E188>=1,$E188<=$D$8),1,IF(AND(AN$2>=$D$7+1,AN$2<=$D$7+$D$9,$E188>=AN$2-$D$7+1,$E188<=AN$2-$D$7+$D$8),2,IF(AND($E188>=$D$8+1,$E188<=$D$8+$D$9,AN$2>=$E188-$D$8+1,AN$2<=$E188-$D$8+$D$7-1),3,""))),"") -> 2 | AO188: 2 | AP188: 2 | AQ188: 2 | AR188: 2 | AS188: 2 | AT188: 2 | AU188: 2 | AV188: 2 | AW188: 2 | AX188: =IF($A$13,IF(AND(AX$2>=1,AX$2<=$D$7,$E188>=1,$E188<=$D$8),1,IF(AND(AX$2>=$D$7+1,AX$2<=$D$7+$D$9,$E188>=AX$2-$D$7+1,$E188<=AX$2-$D$7+$D$8),2,IF(AND($E188>=$D$8+1,$E188<=$D$8+$D$9,AX$2>=$E188-$D$8+1,AX$2<=$E188-$D$8+$D$7-1),3,""))),"") ->  | BH188: =IF($A$13,IF(AND(BH$2>=1,BH$2<=$D$7,$E188>=1,$E188<=$D$8),1,IF(AND(BH$2>=$D$7+1,BH$2<=$D$7+$D$9,$E188>=BH$2-$D$7+1,$E188<=BH$2-$D$7+$D$8),2,IF(AND($E188>=$D$8+1,$E188<=$D$8+$D$9,BH$2>=$E188-$D$8+1,BH$2<=$E188-$D$8+$D$7-1),3,""))),"") ->  | BR188: =IF($A$13,IF(AND(BR$2>=1,BR$2<=$D$7,$E188>=1,$E188<=$D$8),1,IF(AND(BR$2>=$D$7+1,BR$2<=$D$7+$D$9,$E188>=BR$2-$D$7+1,$E188<=BR$2-$D$7+$D$8),2,IF(AND($E188>=$D$8+1,$E188<=$D$8+$D$9,BR$2>=$E188-$D$8+1,BR$2<=$E188-$D$8+$D$7-1),3,""))),"") ->  | CB188: =IF($A$13,IF(AND(CB$2>=1,CB$2<=$D$7,$E188>=1,$E188<=$D$8),1,IF(AND(CB$2>=$D$7+1,CB$2<=$D$7+$D$9,$E188>=CB$2-$D$7+1,$E188<=CB$2-$D$7+$D$8),2,IF(AND($E188>=$D$8+1,$E188<=$D$8+$D$9,CB$2>=$E188-$D$8+1,CB$2<=$E188-$D$8+$D$7-1),3,""))),"") ->  | CL188: =IF($A$13,IF(AND(CL$2>=1,CL$2<=$D$7,$E188>=1,$E188<=$D$8),1,IF(AND(CL$2>=$D$7+1,CL$2<=$D$7+$D$9,$E188>=CL$2-$D$7+1,$E188<=CL$2-$D$7+$D$8),2,IF(AND($E188>=$D$8+1,$E188<=$D$8+$D$9,CL$2>=$E188-$D$8+1,CL$2<=$E188-$D$8+$D$7-1),3,""))),"") ->  | CV188: =IF($A$13,IF(AND(CV$2>=1,CV$2<=$D$7,$E188>=1,$E188<=$D$8),1,IF(AND(CV$2>=$D$7+1,CV$2<=$D$7+$D$9,$E188>=CV$2-$D$7+1,$E188<=CV$2-$D$7+$D$8),2,IF(AND($E188>=$D$8+1,$E188<=$D$8+$D$9,CV$2>=$E188-$D$8+1,CV$2<=$E188-$D$8+$D$7-1),3,""))),"") ->  | DF188: =IF($A$13,IF(AND(DF$2>=1,DF$2<=$D$7,$E188>=1,$E188<=$D$8),1,IF(AND(DF$2>=$D$7+1,DF$2<=$D$7+$D$9,$E188>=DF$2-$D$7+1,$E188<=DF$2-$D$7+$D$8),2,IF(AND($E188>=$D$8+1,$E188<=$D$8+$D$9,DF$2>=$E188-$D$8+1,DF$2<=$E188-$D$8+$D$7-1),3,""))),"") ->  | DP188: =IF($A$13,IF(AND(DP$2>=1,DP$2<=$D$7,$E188>=1,$E188<=$D$8),1,IF(AND(DP$2>=$D$7+1,DP$2<=$D$7+$D$9,$E188>=DP$2-$D$7+1,$E188<=DP$2-$D$7+$D$8),2,IF(AND($E188>=$D$8+1,$E188<=$D$8+$D$9,DP$2>=$E188-$D$8+1,DP$2<=$E188-$D$8+$D$7-1),3,""))),"") ->  | DZ188: =IF($A$13,IF(AND(DZ$2>=1,DZ$2<=$D$7,$E188>=1,$E188<=$D$8),1,IF(AND(DZ$2>=$D$7+1,DZ$2<=$D$7+$D$9,$E188>=DZ$2-$D$7+1,$E188<=DZ$2-$D$7+$D$8),2,IF(AND($E188>=$D$8+1,$E188<=$D$8+$D$9,DZ$2>=$E188-$D$8+1,DZ$2<=$E188-$D$8+$D$7-1),3,""))),"") ->  | EJ188: =IF($A$13,IF(AND(EJ$2>=1,EJ$2<=$D$7,$E188>=1,$E188<=$D$8),1,IF(AND(EJ$2>=$D$7+1,EJ$2<=$D$7+$D$9,$E188>=EJ$2-$D$7+1,$E188<=EJ$2-$D$7+$D$8),2,IF(AND($E188>=$D$8+1,$E188<=$D$8+$D$9,EJ$2>=$E188-$D$8+1,EJ$2<=$E188-$D$8+$D$7-1),3,""))),"") ->  | ET188: =IF($A$13,IF(AND(ET$2>=1,ET$2<=$D$7,$E188>=1,$E188<=$D$8),1,IF(AND(ET$2>=$D$7+1,ET$2<=$D$7+$D$9,$E188>=ET$2-$D$7+1,$E188<=ET$2-$D$7+$D$8),2,IF(AND($E188>=$D$8+1,$E188<=$D$8+$D$9,ET$2>=$E188-$D$8+1,ET$2<=$E188-$D$8+$D$7-1),3,""))),"") ->  | FD188: =IF($A$13,IF(AND(FD$2>=1,FD$2<=$D$7,$E188>=1,$E188<=$D$8),1,IF(AND(FD$2>=$D$7+1,FD$2<=$D$7+$D$9,$E188>=FD$2-$D$7+1,$E188<=FD$2-$D$7+$D$8),2,IF(AND($E188>=$D$8+1,$E188<=$D$8+$D$9,FD$2>=$E188-$D$8+1,FD$2<=$E188-$D$8+$D$7-1),3,""))),"") ->  | FN188: =IF($A$13,IF(AND(FN$2>=1,FN$2<=$D$7,$E188>=1,$E188<=$D$8),1,IF(AND(FN$2>=$D$7+1,FN$2<=$D$7+$D$9,$E188>=FN$2-$D$7+1,$E188<=FN$2-$D$7+$D$8),2,IF(AND($E188>=$D$8+1,$E188<=$D$8+$D$9,FN$2>=$E188-$D$8+1,FN$2<=$E188-$D$8+$D$7-1),3,""))),"") ->  | FX188: =IF($A$13,IF(AND(FX$2>=1,FX$2<=$D$7,$E188>=1,$E188<=$D$8),1,IF(AND(FX$2>=$D$7+1,FX$2<=$D$7+$D$9,$E188>=FX$2-$D$7+1,$E188<=FX$2-$D$7+$D$8),2,IF(AND($E188>=$D$8+1,$E188<=$D$8+$D$9,FX$2>=$E188-$D$8+1,FX$2<=$E188-$D$8+$D$7-1),3,""))),"") ->  | GH188: =IF($A$13,IF(AND(GH$2>=1,GH$2<=$D$7,$E188>=1,$E188<=$D$8),1,IF(AND(GH$2>=$D$7+1,GH$2<=$D$7+$D$9,$E188>=GH$2-$D$7+1,$E188<=GH$2-$D$7+$D$8),2,IF(AND($E188>=$D$8+1,$E188<=$D$8+$D$9,GH$2>=$E188-$D$8+1,GH$2<=$E188-$D$8+$D$7-1),3,""))),"") ->  | GR188: =IF($A$13,IF(AND(GR$2>=1,GR$2<=$D$7,$E188>=1,$E188<=$D$8),1,IF(AND(GR$2>=$D$7+1,GR$2<=$D$7+$D$9,$E188>=GR$2-$D$7+1,$E188<=GR$2-$D$7+$D$8),2,IF(AND($E188>=$D$8+1,$E188<=$D$8+$D$9,GR$2>=$E188-$D$8+1,GR$2<=$E188-$D$8+$D$7-1),3,""))),"") -> 
C189: 29 | D189: 172 | E189: 29 | J189: 1 | K189: 1 | L189: 1 | M189: 1 | N189: 1 | O189: 1 | P189: 1 | Q189: 1 | R189: 1 | S189: 1 | T189: 1 | U189: 1 | V189: 1 | W189: 1 | X189: 1 | Y189: 1 | Z189: 1 | AA189: 1 | AB189: 1 | AC189: 1 | AD189: 1 | AE189: 1 | AF189: 1 | AG189: 1 | AH189: 1 | AI189: 1 | AJ189: 1 | AK189: 1 | AL189: 1 | AM189: 1 | AN189: 2 | AO189: 2 | AP189: 2 | AQ189: 2 | AR189: 2 | AS189: 2 | AT189: 2 | AU189: 2 | AV189: 2 | AW189: 2
C190: 28 | D190: 173 | E190: 28 | J190: 1 | K190: 1 | L190: 1 | M190: 1 | N190: 1 | O190: 1 | P190: 1 | Q190: 1 | R190: 1 | S190: 1 | T190: 1 | U190: 1 | V190: 1 | W190: 1 | X190: 1 | Y190: 1 | Z190: 1 | AA190: 1 | AB190: 1 | AC190: 1 | AD190: 1 | AE190: 1 | AF190: 1 | AG190: 1 | AH190: 1 | AI190: 1 | AJ190: 1 | AK190: 1 | AL190: 1 | AM190: 1 | AN190: 2 | AO190: 2 | AP190: 2 | AQ190: 2 | AR190: 2 | AS190: 2 | AT190: 2 | AU190: 2 | AV190: 2 | AW190: 2
C191: 27 | D191: 174 | E191: 27 | J191: 1 | K191: 1 | L191: 1 | M191: 1 | N191: 1 | O191: 1 | P191: 1 | Q191: 1 | R191: 1 | S191: 1 | T191: 1 | U191: 1 | V191: 1 | W191: 1 | X191: 1 | Y191: 1 | Z191: 1 | AA191: 1 | AB191: 1 | AC191: 1 | AD191: 1 | AE191: 1 | AF191: 1 | AG191: 1 | AH191: 1 | AI191: 1 | AJ191: 1 | AK191: 1 | AL191: 1 | AM191: 1 | AN191: 2 | AO191: 2 | AP191: 2 | AQ191: 2 | AR191: 2 | AS191: 2 | AT191: 2 | AU191: 2 | AV191: 2 | AW191: 2
C192: 26 | D192: 175 | E192: 26 | J192: 1 | K192: 1 | L192: 1 | M192: 1 | N192: 1 | O192: 1 | P192: 1 | Q192: 1 | R192: 1 | S192: 1 | T192: 1 | U192: 1 | V192: 1 | W192: 1 | X192: 1 | Y192: 1 | Z192: 1 | AA192: 1 | AB192: 1 | AC192: 1 | AD192: 1 | AE192: 1 | AF192: 1 | AG192: 1 | AH192: 1 | AI192: 1 | AJ192: 1 | AK192: 1 | AL192: 1 | AM192: 1 | AN192: 2 | AO192: 2 | AP192: 2 | AQ192: 2 | AR192: 2 | AS192: 2 | AT192: 2 | AU192: 2 | AV192: 2 | AW192: 2
C193: 25 | D193: 176 | E193: 25 | J193: 1 | K193: 1 | L193: 1 | M193: 1 | N193: 1 | O193: 1 | P193: 1 | Q193: 1 | R193: 1 | S193: 1 | T193: 1 | U193: 1 | V193: 1 | W193: 1 | X193: 1 | Y193: 1 | Z193: 1 | AA193: 1 | AB193: 1 | AC193: 1 | AD193: 1 | AE193: 1 | AF193: 1 | AG193: 1 | AH193: 1 | AI193: 1 | AJ193: 1 | AK193: 1 | AL193: 1 | AM193: 1 | AN193: 2 | AO193: 2 | AP193: 2 | AQ193: 2 | AR193: 2 | AS193: 2 | AT193: 2 | AU193: 2 | AV193: 2 | AW193: 2
C194: 24 | D194: 177 | E194: 24 | J194: 1 | K194: 1 | L194: 1 | M194: 1 | N194: 1 | O194: 1 | P194: 1 | Q194: 1 | R194: 1 | S194: 1 | T194: 1 | U194: 1 | V194: 1 | W194: 1 | X194: 1 | Y194: 1 | Z194: 1 | AA194: 1 | AB194: 1 | AC194: 1 | AD194: 1 | AE194: 1 | AF194: 1 | AG194: 1 | AH194: 1 | AI194: 1 | AJ194: 1 | AK194: 1 | AL194: 1 | AM194: 1 | AN194: 2 | AO194: 2 | AP194: 2 | AQ194: 2 | AR194: 2 | AS194: 2 | AT194: 2 | AU194: 2 | AV194: 2 | AW194: 2
C195: 23 | D195: 178 | E195: 23 | J195: 1 | K195: 1 | L195: 1 | M195: 1 | N195: 1 | O195: 1 | P195: 1 | Q195: 1 | R195: 1 | S195: 1 | T195: 1 | U195: 1 | V195: 1 | W195: 1 | X195: 1 | Y195: 1 | Z195: 1 | AA195: 1 | AB195: 1 | AC195: 1 | AD195: 1 | AE195: 1 | AF195: 1 | AG195: 1 | AH195: 1 | AI195: 1 | AJ195: 1 | AK195: 1 | AL195: 1 | AM195: 1 | AN195: 2 | AO195: 2 | AP195: 2 | AQ195: 2 | AR195: 2 | AS195: 2 | AT195: 2 | AU195: 2 | AV195: 2 | AW195: 2
C196: 22 | D196: 179 | E196: 22 | J196: 1 | K196: 1 | L196: 1 | M196: 1 | N196: 1 | O196: 1 | P196: 1 | Q196: 1 | R196: 1 | S196: 1 | T196: 1 | U196: 1 | V196: 1 | W196: 1 | X196: 1 | Y196: 1 | Z196: 1 | AA196: 1 | AB196: 1 | AC196: 1 | AD196: 1 | AE196: 1 | AF196: 1 | AG196: 1 | AH196: 1 | AI196: 1 | AJ196: 1 | AK196: 1 | AL196: 1 | AM196: 1 | AN196: 2 | AO196: 2 | AP196: 2 | AQ196: 2 | AR196: 2 | AS196: 2 | AT196: 2 | AU196: 2 | AV196: 2 | AW196: 2
C197: 21 | D197: 180 | E197: 21 | J197: 1 | K197: 1 | L197: 1 | M197: 1 | N197: 1 | O197: 1 | P197: 1 | Q197: 1 | R197: 1 | S197: 1 | T197: 1 | U197: 1 | V197: 1 | W197: 1 | X197: 1 | Y197: 1 | Z197: 1 | AA197: 1 | AB197: 1 | AC197: 1 | AD197: 1 | AE197: 1 | AF197: 1 | AG197: 1 | AH197: 1 | AI197: 1 | AJ197: 1 | AK197: 1 | AL197: 1 | AM197: 1 | AN197: 2 | AO197: 2 | AP197: 2 | AQ197: 2 | AR197: 2 | AS197: 2 | AT197: 2 | AU197: 2 | AV197: 2 | AW197: 2
C198: 20 | D198: 181 | E198: 20 | J198: =IF($A$13,IF(AND(J$2>=1,J$2<=$D$7,$E198>=1,$E198<=$D$8),1,IF(AND(J$2>=$D$7+1,J$2<=$D$7+$D$9,$E198>=J$2-$D$7+1,$E198<=J$2-$D$7+$D$8),2,IF(AND($E198>=$D$8+1,$E198<=$D$8+$D$9,J$2>=$E198-$D$8+1,J$2<=$E198-$D$8+$D$7-1),3,""))),"") -> 1 | K198: 1 | L198: 1 | M198: 1 | N198: 1 | O198: 1 | P198: 1 | Q198: 1 | R198: 1 | S198: 1 | T198: =IF($A$13,IF(AND(T$2>=1,T$2<=$D$7,$E198>=1,$E198<=$D$8),1,IF(AND(T$2>=$D$7+1,T$2<=$D$7+$D$9,$E198>=T$2-$D$7+1,$E198<=T$2-$D$7+$D$8),2,IF(AND($E198>=$D$8+1,$E198<=$D$8+$D$9,T$2>=$E198-$D$8+1,T$2<=$E198-$D$8+$D$7-1),3,""))),"") -> 1 | U198: 1 | V198: 1 | W198: 1 | X198: 1 | Y198: 1 | Z198: 1 | AA198: 1 | AB198: 1 | AC198: 1 | AD198: =IF($A$13,IF(AND(AD$2>=1,AD$2<=$D$7,$E198>=1,$E198<=$D$8),1,IF(AND(AD$2>=$D$7+1,AD$2<=$D$7+$D$9,$E198>=AD$2-$D$7+1,$E198<=AD$2-$D$7+$D$8),2,IF(AND($E198>=$D$8+1,$E198<=$D$8+$D$9,AD$2>=$E198-$D$8+1,AD$2<=$E198-$D$8+$D$7-1),3,""))),"") -> 1 | AE198: 1 | AF198: 1 | AG198: 1 | AH198: 1 | AI198: 1 | AJ198: 1 | AK198: 1 | AL198: 1 | AM198: 1 | AN198: =IF($A$13,IF(AND(AN$2>=1,AN$2<=$D$7,$E198>=1,$E198<=$D$8),1,IF(AND(AN$2>=$D$7+1,AN$2<=$D$7+$D$9,$E198>=AN$2-$D$7+1,$E198<=AN$2-$D$7+$D$8),2,IF(AND($E198>=$D$8+1,$E198<=$D$8+$D$9,AN$2>=$E198-$D$8+1,AN$2<=$E198-$D$8+$D$7-1),3,""))),"") -> 2 | AO198: 2 | AP198: 2 | AQ198: 2 | AR198: 2 | AS198: 2 | AT198: 2 | AU198: 2 | AV198: 2 | AW198: 2 | AX198: =IF($A$13,IF(AND(AX$2>=1,AX$2<=$D$7,$E198>=1,$E198<=$D$8),1,IF(AND(AX$2>=$D$7+1,AX$2<=$D$7+$D$9,$E198>=AX$2-$D$7+1,$E198<=AX$2-$D$7+$D$8),2,IF(AND($E198>=$D$8+1,$E198<=$D$8+$D$9,AX$2>=$E198-$D$8+1,AX$2<=$E198-$D$8+$D$7-1),3,""))),"") ->  | BH198: =IF($A$13,IF(AND(BH$2>=1,BH$2<=$D$7,$E198>=1,$E198<=$D$8),1,IF(AND(BH$2>=$D$7+1,BH$2<=$D$7+$D$9,$E198>=BH$2-$D$7+1,$E198<=BH$2-$D$7+$D$8),2,IF(AND($E198>=$D$8+1,$E198<=$D$8+$D$9,BH$2>=$E198-$D$8+1,BH$2<=$E198-$D$8+$D$7-1),3,""))),"") ->  | BR198: =IF($A$13,IF(AND(BR$2>=1,BR$2<=$D$7,$E198>=1,$E198<=$D$8),1,IF(AND(BR$2>=$D$7+1,BR$2<=$D$7+$D$9,$E198>=BR$2-$D$7+1,$E198<=BR$2-$D$7+$D$8),2,IF(AND($E198>=$D$8+1,$E198<=$D$8+$D$9,BR$2>=$E198-$D$8+1,BR$2<=$E198-$D$8+$D$7-1),3,""))),"") ->  | CB198: =IF($A$13,IF(AND(CB$2>=1,CB$2<=$D$7,$E198>=1,$E198<=$D$8),1,IF(AND(CB$2>=$D$7+1,CB$2<=$D$7+$D$9,$E198>=CB$2-$D$7+1,$E198<=CB$2-$D$7+$D$8),2,IF(AND($E198>=$D$8+1,$E198<=$D$8+$D$9,CB$2>=$E198-$D$8+1,CB$2<=$E198-$D$8+$D$7-1),3,""))),"") ->  | CL198: =IF($A$13,IF(AND(CL$2>=1,CL$2<=$D$7,$E198>=1,$E198<=$D$8),1,IF(AND(CL$2>=$D$7+1,CL$2<=$D$7+$D$9,$E198>=CL$2-$D$7+1,$E198<=CL$2-$D$7+$D$8),2,IF(AND($E198>=$D$8+1,$E198<=$D$8+$D$9,CL$2>=$E198-$D$8+1,CL$2<=$E198-$D$8+$D$7-1),3,""))),"") ->  | CV198: =IF($A$13,IF(AND(CV$2>=1,CV$2<=$D$7,$E198>=1,$E198<=$D$8),1,IF(AND(CV$2>=$D$7+1,CV$2<=$D$7+$D$9,$E198>=CV$2-$D$7+1,$E198<=CV$2-$D$7+$D$8),2,IF(AND($E198>=$D$8+1,$E198<=$D$8+$D$9,CV$2>=$E198-$D$8+1,CV$2<=$E198-$D$8+$D$7-1),3,""))),"") ->  | DF198: =IF($A$13,IF(AND(DF$2>=1,DF$2<=$D$7,$E198>=1,$E198<=$D$8),1,IF(AND(DF$2>=$D$7+1,DF$2<=$D$7+$D$9,$E198>=DF$2-$D$7+1,$E198<=DF$2-$D$7+$D$8),2,IF(AND($E198>=$D$8+1,$E198<=$D$8+$D$9,DF$2>=$E198-$D$8+1,DF$2<=$E198-$D$8+$D$7-1),3,""))),"") ->  | DP198: =IF($A$13,IF(AND(DP$2>=1,DP$2<=$D$7,$E198>=1,$E198<=$D$8),1,IF(AND(DP$2>=$D$7+1,DP$2<=$D$7+$D$9,$E198>=DP$2-$D$7+1,$E198<=DP$2-$D$7+$D$8),2,IF(AND($E198>=$D$8+1,$E198<=$D$8+$D$9,DP$2>=$E198-$D$8+1,DP$2<=$E198-$D$8+$D$7-1),3,""))),"") ->  | DZ198: =IF($A$13,IF(AND(DZ$2>=1,DZ$2<=$D$7,$E198>=1,$E198<=$D$8),1,IF(AND(DZ$2>=$D$7+1,DZ$2<=$D$7+$D$9,$E198>=DZ$2-$D$7+1,$E198<=DZ$2-$D$7+$D$8),2,IF(AND($E198>=$D$8+1,$E198<=$D$8+$D$9,DZ$2>=$E198-$D$8+1,DZ$2<=$E198-$D$8+$D$7-1),3,""))),"") ->  | EJ198: =IF($A$13,IF(AND(EJ$2>=1,EJ$2<=$D$7,$E198>=1,$E198<=$D$8),1,IF(AND(EJ$2>=$D$7+1,EJ$2<=$D$7+$D$9,$E198>=EJ$2-$D$7+1,$E198<=EJ$2-$D$7+$D$8),2,IF(AND($E198>=$D$8+1,$E198<=$D$8+$D$9,EJ$2>=$E198-$D$8+1,EJ$2<=$E198-$D$8+$D$7-1),3,""))),"") ->  | ET198: =IF($A$13,IF(AND(ET$2>=1,ET$2<=$D$7,$E198>=1,$E198<=$D$8),1,IF(AND(ET$2>=$D$7+1,ET$2<=$D$7+$D$9,$E198>=ET$2-$D$7+1,$E198<=ET$2-$D$7+$D$8),2,IF(AND($E198>=$D$8+1,$E198<=$D$8+$D$9,ET$2>=$E198-$D$8+1,ET$2<=$E198-$D$8+$D$7-1),3,""))),"") ->  | FD198: =IF($A$13,IF(AND(FD$2>=1,FD$2<=$D$7,$E198>=1,$E198<=$D$8),1,IF(AND(FD$2>=$D$7+1,FD$2<=$D$7+$D$9,$E198>=FD$2-$D$7+1,$E198<=FD$2-$D$7+$D$8),2,IF(AND($E198>=$D$8+1,$E198<=$D$8+$D$9,FD$2>=$E198-$D$8+1,FD$2<=$E198-$D$8+$D$7-1),3,""))),"") ->  | FN198: =IF($A$13,IF(AND(FN$2>=1,FN$2<=$D$7,$E198>=1,$E198<=$D$8),1,IF(AND(FN$2>=$D$7+1,FN$2<=$D$7+$D$9,$E198>=FN$2-$D$7+1,$E198<=FN$2-$D$7+$D$8),2,IF(AND($E198>=$D$8+1,$E198<=$D$8+$D$9,FN$2>=$E198-$D$8+1,FN$2<=$E198-$D$8+$D$7-1),3,""))),"") ->  | FX198: =IF($A$13,IF(AND(FX$2>=1,FX$2<=$D$7,$E198>=1,$E198<=$D$8),1,IF(AND(FX$2>=$D$7+1,FX$2<=$D$7+$D$9,$E198>=FX$2-$D$7+1,$E198<=FX$2-$D$7+$D$8),2,IF(AND($E198>=$D$8+1,$E198<=$D$8+$D$9,FX$2>=$E198-$D$8+1,FX$2<=$E198-$D$8+$D$7-1),3,""))),"") ->  | GH198: =IF($A$13,IF(AND(GH$2>=1,GH$2<=$D$7,$E198>=1,$E198<=$D$8),1,IF(AND(GH$2>=$D$7+1,GH$2<=$D$7+$D$9,$E198>=GH$2-$D$7+1,$E198<=GH$2-$D$7+$D$8),2,IF(AND($E198>=$D$8+1,$E198<=$D$8+$D$9,GH$2>=$E198-$D$8+1,GH$2<=$E198-$D$8+$D$7-1),3,""))),"") ->  | GR198: =IF($A$13,IF(AND(GR$2>=1,GR$2<=$D$7,$E198>=1,$E198<=$D$8),1,IF(AND(GR$2>=$D$7+1,GR$2<=$D$7+$D$9,$E198>=GR$2-$D$7+1,$E198<=GR$2-$D$7+$D$8),2,IF(AND($E198>=$D$8+1,$E198<=$D$8+$D$9,GR$2>=$E198-$D$8+1,GR$2<=$E198-$D$8+$D$7-1),3,""))),"") -> 
C199: 19 | D199: 182 | E199: 19 | J199: 1 | K199: 1 | L199: 1 | M199: 1 | N199: 1 | O199: 1 | P199: 1 | Q199: 1 | R199: 1 | S199: 1 | T199: 1 | U199: 1 | V199: 1 | W199: 1 | X199: 1 | Y199: 1 | Z199: 1 | AA199: 1 | AB199: 1 | AC199: 1 | AD199: 1 | AE199: 1 | AF199: 1 | AG199: 1 | AH199: 1 | AI199: 1 | AJ199: 1 | AK199: 1 | AL199: 1 | AM199: 1 | AN199: 2 | AO199: 2 | AP199: 2 | AQ199: 2 | AR199: 2 | AS199: 2 | AT199: 2 | AU199: 2 | AV199: 2 | AW199: 2
C200: 18 | D200: 183 | E200: 18 | J200: 1 | K200: 1 | L200: 1 | M200: 1 | N200: 1 | O200: 1 | P200: 1 | Q200: 1 | R200: 1 | S200: 1 | T200: 1 | U200: 1 | V200: 1 | W200: 1 | X200: 1 | Y200: 1 | Z200: 1 | AA200: 1 | AB200: 1 | AC200: 1 | AD200: 1 | AE200: 1 | AF200: 1 | AG200: 1 | AH200: 1 | AI200: 1 | AJ200: 1 | AK200: 1 | AL200: 1 | AM200: 1 | AN200: 2 | AO200: 2 | AP200: 2 | AQ200: 2 | AR200: 2 | AS200: 2 | AT200: 2 | AU200: 2 | AV200: 2 | AW200: 2
C201: 17 | D201: 184 | E201: 17 | J201: 1 | K201: 1 | L201: 1 | M201: 1 | N201: 1 | O201: 1 | P201: 1 | Q201: 1 | R201: 1 | S201: 1 | T201: 1 | U201: 1 | V201: 1 | W201: 1 | X201: 1 | Y201: 1 | Z201: 1 | AA201: 1 | AB201: 1 | AC201: 1 | AD201: 1 | AE201: 1 | AF201: 1 | AG201: 1 | AH201: 1 | AI201: 1 | AJ201: 1 | AK201: 1 | AL201: 1 | AM201: 1 | AN201: 2 | AO201: 2 | AP201: 2 | AQ201: 2 | AR201: 2 | AS201: 2 | AT201: 2 | AU201: 2 | AV201: 2 | AW201: 2
C202: 16 | D202: 185 | E202: 16 | J202: 1 | K202: 1 | L202: 1 | M202: 1 | N202: 1 | O202: 1 | P202: 1 | Q202: 1 | R202: 1 | S202: 1 | T202: 1 | U202: 1 | V202: 1 | W202: 1 | X202: 1 | Y202: 1 | Z202: 1 | AA202: 1 | AB202: 1 | AC202: 1 | AD202: 1 | AE202: 1 | AF202: 1 | AG202: 1 | AH202: 1 | AI202: 1 | AJ202: 1 | AK202: 1 | AL202: 1 | AM202: 1 | AN202: 2 | AO202: 2 | AP202: 2 | AQ202: 2 | AR202: 2 | AS202: 2 | AT202: 2 | AU202: 2 | AV202: 2 | AW202: 2
... 106 more rows

Sheet Rumfang 2
B1: Rumfang 2 - mere kasse | N1: =1/0.06 -> 16.66666667
C4: Fx: | D4: 1m³: | I4: Bedste forhold:
H5: dvs. at der bruges mindst muligt materiale (overflade) til at lave den størst mulige kasse (rumfang).
C7: Bredde= | D7: 1 | H7: Bredde= | I7: 101
C8: Højde= | D8: 1 | H8: Højde= | I8: 99
C9: Længde= | D9: 1 | H9: Længde= | I9: 98
C10: Rumfang (volumen)= | D10: =D7*D8*D9 -> 1 | E10: ≈ 1,00 | F10: m³ | H10: Rumfang (volumen)= | I10: =I7*I8*I9 -> 979902
C11: Overflade= | D11: =2*(D7*D8+D8*D9+D7*D9) -> 6 | H11: Overflade= | I11: =2*(I7*I8+I8*I9+I7*I9) -> 59198
I13: =I11/I10 -> 0.0604
H14: Bedste forhold: | I14: =ABS((1-I10/I11/$N$1))+1 -> 1.006823 | J14: (tættest på tallet 1)
B16: eller: | G16: eller:
C17: Bredde= | D17: 1.001 | H17: Bredde= | I17: 99.9
C18: Højde= | D18: 1.002 | H18: Højde= | I18: 100.999
C19: Længde= | D19: 1.003 | H19: Længde= | I19: 99.108
C20: Rumfang (volumen)= | D20: =D17*D18*D19 -> 1.006011006 | E20: ≈ 1,00 | F20: m³ | H20: Rumfang (volumen)= | I20: =I17*I18*I19 -> 999979.9083
C21: Overflade= | D21: =2*(D17*D18+D18*D19+D17*D19) -> 6.024022 | H21: Overflade= | I21: =2*(I17*I18+I18*I19+I17*I19) -> 60000.99638
I23: =I21/I20 -> 0.0600
H24: Bedste forhold: | I24: =ABS((1-I20/I21/$N$1))+1 -> 1.000037 | J24: (tættest på tallet 1)
A26: SLUT

Sheet Hjælp - 2
B1: HJÆLP - Rumfang 2 - mere kasse | N1: =1/0.06 -> 16.66666667
C4: Fx: | D4: 1m³: | I4: Bedste forhold:
H5: dvs. at der bruges mindst muligt materiale (overflade) til at lave den størst mulige kasse (rumfang).
C7: Bredde= | D7: 106 | H7: Bredde= | I7: 101.0204
C8: Højde= | D8: 106 | H8: Højde= | I8: 99
C9: Længde= | D9: 89 | H9: Længde= | I9: 99.99
C10: Rumfang (volumen)= | D10: =D7*D8*D9 -> 1000004 | E10: ≈ 1,00 | F10: m³ | H10: Rumfang (volumen)= | I10: =I7*I8*I9 -> 1000001.95
C11: Overflade= | D11: =2*(D7*D8+D8*D9+D7*D9) -> 60208 | H11: Overflade= | I11: =2*(I7*I8+I8*I9+I7*I9) -> 60002.11879
I13: =I11/I10 -> 0.0600
H14: Bedste forhold: | I14: =ABS((1-I10/I11/$N$1))+1 -> 1.000033 | J14: (tættest på tallet 1)
B16: eller: | G16: eller:
C17: Bredde= | D17: 105.935 | H17: Bredde= | I17: 100
C18: Højde= | D18: 105.935 | H18: Højde= | I18: 100
C19: Længde= | D19: 89.109 | H19: Længde= | I19: 100
C20: Rumfang (volumen)= | D20: =D17*D18*D19 -> 1000001.178 | E20: ≈ 1,00 | F20: m³ | H20: Rumfang (volumen)= | I20: =I17*I18*I19 -> 1000000
C21: Overflade= | D21: =2*(D17*D18+D18*D19+D17*D19) -> 60203.49611 | H21: Overflade= | I21: =2*(I17*I18+I18*I19+I17*I19) -> 60000
I23: =I21/I20 -> 0.0600
H24: Bedste forhold: | I24: =ABS((1-I20/I21/$N$1))+1 -> 1.000000 | J24: (tættest på tallet 1)
A26: SLUT

Sheet Rumfang 3
C1: Rumfang 3 - Akvarium
I2: Forlæns | J2: 1 | K2: 2 | L2: 3 | M2: 4 | N2: 5 | O2: 6 | P2: 7 | Q2: 8 | R2: 9 | S2: 10 | T2: 11 | U2: 12 | V2: 13 | W2: 14 | X2: 15 | Y2: 16 | Z2: 17 | AA2: 18 | AB2: 19 | AC2: 20 | AD2: 21 | AE2: 22 | AF2: 23 | AG2: 24 | AH2: 25 | AI2: 26 | AJ2: 27 | AK2: 28 | AL2: 29 | AM2: 30 | AN2: 31 | AO2: 32 | AP2: 33 | AQ2: 34 | AR2: 35 | AS2: 36 | AT2: 37 | AU2: 38 | AV2: 39 | AW2: 40 | AX2: 41 | AY2: 42 | AZ2: 43 | BA2: 44 | BB2: 45 | BC2: 46 | BD2: 47 | BE2: 48 | BF2: 49 | BG2: 50 | BH2: 51 | BI2: 52 | BJ2: 53 | BK2: 54 | BL2: 55 | BM2: 56 | BN2: 57 | BO2: 58 | BP2: 59 | BQ2: 60 | BR2: 61 | BS2: 62 | BT2: 63 | BU2: 64 | BV2: 65 | BW2: 66 | BX2: 67 | BY2: 68 | BZ2: 69 | CA2: 70 | CB2: 71 | CC2: 72 | CD2: 73 | CE2: 74 | CF2: 75 | CG2: 76 | CH2: 77 | CI2: 78 | CJ2: 79 | CK2: 80 | CL2: 81 | CM2: 82 | CN2: 83 | CO2: 84 | CP2: 85 | CQ2: 86 | CR2: 87 | CS2: 88 | CT2: 89 | CU2: 90 | CV2: 91 | CW2: 92 | CX2: 93 | CY2: 94 | CZ2: 95 | DA2: 96 | DB2: 97 | DC2: 98 | DD2: 99 | DE2: 100 | DF2: 101 | DG2: 102 | DH2: 103 | DI2: 104 | DJ2: 105 | DK2: 106 | DL2: 107 | DM2: 108 | DN2: 109 | DO2: 110 | DP2: 111 | DQ2: 112 | DR2: 113 | DS2: 114 | DT2: 115 | DU2: 116 | DV2: 117 | DW2: 118 | DX2: 119 | DY2: 120 | DZ2: 121 | EA2: 122 | EB2: 123 | EC2: 124 | ED2: 125 | EE2: 126 | EF2: 127 | EG2: 128 | EH2: 129 | EI2: 130 | EJ2: 131 | EK2: 132 | EL2: 133 | EM2: 134 | EN2: 135 | EO2: 136 | EP2: 137 | EQ2: 138 | ER2: 139 | ES2: 140 | ET2: 141 | EU2: 142 | EV2: 143 | EW2: 144 | EX2: 145 | EY2: 146 | EZ2: 147 | FA2: 148 | FB2: 149 | FC2: 150 | FD2: 151 | FE2: 152 | FF2: 153 | FG2: 154 | FH2: 155 | FI2: 156 | FJ2: 157 | FK2: 158 | FL2: 159 | FM2: 160 | FN2: 161 | FO2: 162 | FP2: 163 | FQ2: 164 | FR2: 165 | FS2: 166 | FT2: 167 | FU2: 168 | FV2: 169 | FW2: 170 | FX2: 171 | FY2: 172 | FZ2: 173 | GA2: 174 | GB2: 175 | GC2: 176 | GD2: 177 | GE2: 178 | GF2: 179 | GG2: 180 | GH2: 181 | GI2: 182 | GJ2: 183 | GK2: 184 | GL2: 185 | GM2: 186 | GN2: 187 | GO2: 188 | GP2: 189 | GQ2: 190 | GR2: 191 | GS2: 192 | GT2: 193 | GU2: 194 | GV2: 195 | GW2: 196 | GX2: 197 | GY2: 198 | GZ2: 199 | HA2: 200 | HB2: 201
C3: Hvad sker med rumfanget, når du ændrer sidemålene?
C4: Bredde : | D4: 86 | E4: cm | F4: (max = | G4: 180 | H4: )
C5: Højde : | D5: 104 | E5: cm | F5: (max = | G5: 180 | H5: )
C6: Dybde : | D6: 79 | E6: cm | F6: (max = | G6: =IF(A14<=A15,A14,A15) -> 96 | H6: )
C8: Rumfangsformel: | D8: Hvad skal stå her? | E8: cm³
A10: =IF(D4+D6<=200,200-D4,-(200-D4)) -> 114 | C10: Omregningsformel: | D10: Hvad skal stå her? | E10: mm³
A11: =IF(D5+D6<=200,200-D5,-(200-D5)) -> 96
A12: =IF(A10<0,A10,IF(A11<0,A11)) -> FALSE | C12: Omregningsformel: | D12: Hvad skal stå her? | E12: dm³ = | F12: =D12 -> Hvad skal stå her? | G12: liter
A13: =IF(A12=FALSE,IF(A10>A11,A11,A10)) -> 96
A14: =IF(AND(D4+D6<=200,200-D4>=0),200-D4,200-D4) -> 114 | C14: Omregningsformel: | D14: Hvad skal stå her? | E14: m³
A15: =IF(AND(D5+D6<=200,200-D5>=0),200-D5,200-D5) -> 96
A16: 201
A17: =IF(A14<=A15,A14,A15) -> 96
D18: 1 | E18: =$A$16-D18 -> 200 | J18: =IF($A$13,IF(AND(J$2>=1,J$2<=$D$4,$E18>=1,$E18<=$D$5),1,IF(AND(J$2>=$D$4+1,J$2<=$D$4+$D$6,$E18>=J$2-$D$4+1,$E18<=J$2-$D$4+$D$5),2,IF(AND($E18>=$D$5+1,$E18<=$D$5+$D$6,J$2>=$E18-$D$5+1,J$2<=$E18-$D$5+$D$4-1),3,""))),"") ->  | T18: =IF($A$13,IF(AND(T$2>=1,T$2<=$D$4,$E18>=1,$E18<=$D$5),1,IF(AND(T$2>=$D$4+1,T$2<=$D$4+$D$6,$E18>=T$2-$D$4+1,$E18<=T$2-$D$4+$D$5),2,IF(AND($E18>=$D$5+1,$E18<=$D$5+$D$6,T$2>=$E18-$D$5+1,T$2<=$E18-$D$5+$D$4-1),3,""))),"") ->  | AD18: =IF($A$13,IF(AND(AD$2>=1,AD$2<=$D$4,$E18>=1,$E18<=$D$5),1,IF(AND(AD$2>=$D$4+1,AD$2<=$D$4+$D$6,$E18>=AD$2-$D$4+1,$E18<=AD$2-$D$4+$D$5),2,IF(AND($E18>=$D$5+1,$E18<=$D$5+$D$6,AD$2>=$E18-$D$5+1,AD$2<=$E18-$D$5+$D$4-1),3,""))),"") ->  | AN18: =IF($A$13,IF(AND(AN$2>=1,AN$2<=$D$4,$E18>=1,$E18<=$D$5),1,IF(AND(AN$2>=$D$4+1,AN$2<=$D$4+$D$6,$E18>=AN$2-$D$4+1,$E18<=AN$2-$D$4+$D$5),2,IF(AND($E18>=$D$5+1,$E18<=$D$5+$D$6,AN$2>=$E18-$D$5+1,AN$2<=$E18-$D$5+$D$4-1),3,""))),"") ->  | AX18: =IF($A$13,IF(AND(AX$2>=1,AX$2<=$D$4,$E18>=1,$E18<=$D$5),1,IF(AND(AX$2>=$D$4+1,AX$2<=$D$4+$D$6,$E18>=AX$2-$D$4+1,$E18<=AX$2-$D$4+$D$5),2,IF(AND($E18>=$D$5+1,$E18<=$D$5+$D$6,AX$2>=$E18-$D$5+1,AX$2<=$E18-$D$5+$D$4-1),3,""))),"") ->  | BH18: =IF($A$13,IF(AND(BH$2>=1,BH$2<=$D$4,$E18>=1,$E18<=$D$5),1,IF(AND(BH$2>=$D$4+1,BH$2<=$D$4+$D$6,$E18>=BH$2-$D$4+1,$E18<=BH$2-$D$4+$D$5),2,IF(AND($E18>=$D$5+1,$E18<=$D$5+$D$6,BH$2>=$E18-$D$5+1,BH$2<=$E18-$D$5+$D$4-1),3,""))),"") ->  | BR18: =IF($A$13,IF(AND(BR$2>=1,BR$2<=$D$4,$E18>=1,$E18<=$D$5),1,IF(AND(BR$2>=$D$4+1,BR$2<=$D$4+$D$6,$E18>=BR$2-$D$4+1,$E18<=BR$2-$D$4+$D$5),2,IF(AND($E18>=$D$5+1,$E18<=$D$5+$D$6,BR$2>=$E18-$D$5+1,BR$2<=$E18-$D$5+$D$4-1),3,""))),"") ->  | CB18: =IF($A$13,IF(AND(CB$2>=1,CB$2<=$D$4,$E18>=1,$E18<=$D$5),1,IF(AND(CB$2>=$D$4+1,CB$2<=$D$4+$D$6,$E18>=CB$2-$D$4+1,$E18<=CB$2-$D$4+$D$5),2,IF(AND($E18>=$D$5+1,$E18<=$D$5+$D$6,CB$2>=$E18-$D$5+1,CB$2<=$E18-$D$5+$D$4-1),3,""))),"") ->  | CL18: =IF($A$13,IF(AND(CL$2>=1,CL$2<=$D$4,$E18>=1,$E18<=$D$5),1,IF(AND(CL$2>=$D$4+1,CL$2<=$D$4+$D$6,$E18>=CL$2-$D$4+1,$E18<=CL$2-$D$4+$D$5),2,IF(AND($E18>=$D$5+1,$E18<=$D$5+$D$6,CL$2>=$E18-$D$5+1,CL$2<=$E18-$D$5+$D$4-1),3,""))),"") ->  | CV18: =IF($A$13,IF(AND(CV$2>=1,CV$2<=$D$4,$E18>=1,$E18<=$D$5),1,IF(AND(CV$2>=$D$4+1,CV$2<=$D$4+$D$6,$E18>=CV$2-$D$4+1,$E18<=CV$2-$D$4+$D$5),2,IF(AND($E18>=$D$5+1,$E18<=$D$5+$D$6,CV$2>=$E18-$D$5+1,CV$2<=$E18-$D$5+$D$4-1),3,""))),"") ->  | DF18: =IF($A$13,IF(AND(DF$2>=1,DF$2<=$D$4,$E18>=1,$E18<=$D$5),1,IF(AND(DF$2>=$D$4+1,DF$2<=$D$4+$D$6,$E18>=DF$2-$D$4+1,$E18<=DF$2-$D$4+$D$5),2,IF(AND($E18>=$D$5+1,$E18<=$D$5+$D$6,DF$2>=$E18-$D$5+1,DF$2<=$E18-$D$5+$D$4-1),3,""))),"") ->  | DP18: =IF($A$13,IF(AND(DP$2>=1,DP$2<=$D$4,$E18>=1,$E18<=$D$5),1,IF(AND(DP$2>=$D$4+1,DP$2<=$D$4+$D$6,$E18>=DP$2-$D$4+1,$E18<=DP$2-$D$4+$D$5),2,IF(AND($E18>=$D$5+1,$E18<=$D$5+$D$6,DP$2>=$E18-$D$5+1,DP$2<=$E18-$D$5+$D$4-1),3,""))),"") ->  | DZ18: =IF($A$13,IF(AND(DZ$2>=1,DZ$2<=$D$4,$E18>=1,$E18<=$D$5),1,IF(AND(DZ$2>=$D$4+1,DZ$2<=$D$4+$D$6,$E18>=DZ$2-$D$4+1,$E18<=DZ$2-$D$4+$D$5),2,IF(AND($E18>=$D$5+1,$E18<=$D$5+$D$6,DZ$2>=$E18-$D$5+1,DZ$2<=$E18-$D$5+$D$4-1),3,""))),"") ->  | EJ18: =IF($A$13,IF(AND(EJ$2>=1,EJ$2<=$D$4,$E18>=1,$E18<=$D$5),1,IF(AND(EJ$2>=$D$4+1,EJ$2<=$D$4+$D$6,$E18>=EJ$2-$D$4+1,$E18<=EJ$2-$D$4+$D$5),2,IF(AND($E18>=$D$5+1,$E18<=$D$5+$D$6,EJ$2>=$E18-$D$5+1,EJ$2<=$E18-$D$5+$D$4-1),3,""))),"") ->  | ET18: =IF($A$13,IF(AND(ET$2>=1,ET$2<=$D$4,$E18>=1,$E18<=$D$5),1,IF(AND(ET$2>=$D$4+1,ET$2<=$D$4+$D$6,$E18>=ET$2-$D$4+1,$E18<=ET$2-$D$4+$D$5),2,IF(AND($E18>=$D$5+1,$E18<=$D$5+$D$6,ET$2>=$E18-$D$5+1,ET$2<=$E18-$D$5+$D$4-1),3,""))),"") ->  | FD18: =IF($A$13,IF(AND(FD$2>=1,FD$2<=$D$4,$E18>=1,$E18<=$D$5),1,IF(AND(FD$2>=$D$4+1,FD$2<=$D$4+$D$6,$E18>=FD$2-$D$4+1,$E18<=FD$2-$D$4+$D$5),2,IF(AND($E18>=$D$5+1,$E18<=$D$5+$D$6,FD$2>=$E18-$D$5+1,FD$2<=$E18-$D$5+$D$4-1),3,""))),"") ->  | FN18: =IF($A$13,IF(AND(FN$2>=1,FN$2<=$D$4,$E18>=1,$E18<=$D$5),1,IF(AND(FN$2>=$D$4+1,FN$2<=$D$4+$D$6,$E18>=FN$2-$D$4+1,$E18<=FN$2-$D$4+$D$5),2,IF(AND($E18>=$D$5+1,$E18<=$D$5+$D$6,FN$2>=$E18-$D$5+1,FN$2<=$E18-$D$5+$D$4-1),3,""))),"") ->  | FX18: =IF($A$13,IF(AND(FX$2>=1,FX$2<=$D$4,$E18>=1,$E18<=$D$5),1,IF(AND(FX$2>=$D$4+1,FX$2<=$D$4+$D$6,$E18>=FX$2-$D$4+1,$E18<=FX$2-$D$4+$D$5),2,IF(AND($E18>=$D$5+1,$E18<=$D$5+$D$6,FX$2>=$E18-$D$5+1,FX$2<=$E18-$D$5+$D$4-1),3,""))),"") ->  | GH18: =IF($A$13,IF(AND(GH$2>=1,GH$2<=$D$4,$E18>=1,$E18<=$D$5),1,IF(AND(GH$2>=$D$4+1,GH$2<=$D$4+$D$6,$E18>=GH$2-$D$4+1,$E18<=GH$2-$D$4+$D$5),2,IF(AND($E18>=$D$5+1,$E18<=$D$5+$D$6,GH$2>=$E18-$D$5+1,GH$2<=$E18-$D$5+$D$4-1),3,""))),"") ->  | GR18: =IF($A$13,IF(AND(GR$2>=1,GR$2<=$D$4,$E18>=1,$E18<=$D$5),1,IF(AND(GR$2>=$D$4+1,GR$2<=$D$4+$D$6,$E18>=GR$2-$D$4+1,$E18<=GR$2-$D$4+$D$5),2,IF(AND($E18>=$D$5+1,$E18<=$D$5+$D$6,GR$2>=$E18-$D$5+1,GR$2<=$E18-$D$5+$D$4-1),3,""))),"") -> 
D19: 2 | E19: 199
D20: 3 | E20: 198
D21: 4 | E21: 197
D22: 5 | E22: 196
D23: 6 | E23: 195
D24: 7 | E24: 194
D25: 8 | E25: 193
D26: 9 | E26: 192
D27: 10 | E27: 191
D28: 11 | E28: 190 | J28: =IF($A$13,IF(AND(J$2>=1,J$2<=$D$4,$E28>=1,$E28<=$D$5),1,IF(AND(J$2>=$D$4+1,J$2<=$D$4+$D$6,$E28>=J$2-$D$4+1,$E28<=J$2-$D$4+$D$5),2,IF(AND($E28>=$D$5+1,$E28<=$D$5+$D$6,J$2>=$E28-$D$5+1,J$2<=$E28-$D$5+$D$4-1),3,""))),"") ->  | T28: =IF($A$13,IF(AND(T$2>=1,T$2<=$D$4,$E28>=1,$E28<=$D$5),1,IF(AND(T$2>=$D$4+1,T$2<=$D$4+$D$6,$E28>=T$2-$D$4+1,$E28<=T$2-$D$4+$D$5),2,IF(AND($E28>=$D$5+1,$E28<=$D$5+$D$6,T$2>=$E28-$D$5+1,T$2<=$E28-$D$5+$D$4-1),3,""))),"") ->  | AD28: =IF($A$13,IF(AND(AD$2>=1,AD$2<=$D$4,$E28>=1,$E28<=$D$5),1,IF(AND(AD$2>=$D$4+1,AD$2<=$D$4+$D$6,$E28>=AD$2-$D$4+1,$E28<=AD$2-$D$4+$D$5),2,IF(AND($E28>=$D$5+1,$E28<=$D$5+$D$6,AD$2>=$E28-$D$5+1,AD$2<=$E28-$D$5+$D$4-1),3,""))),"") ->  | AN28: =IF($A$13,IF(AND(AN$2>=1,AN$2<=$D$4,$E28>=1,$E28<=$D$5),1,IF(AND(AN$2>=$D$4+1,AN$2<=$D$4+$D$6,$E28>=AN$2-$D$4+1,$E28<=AN$2-$D$4+$D$5),2,IF(AND($E28>=$D$5+1,$E28<=$D$5+$D$6,AN$2>=$E28-$D$5+1,AN$2<=$E28-$D$5+$D$4-1),3,""))),"") ->  | AX28: =IF($A$13,IF(AND(AX$2>=1,AX$2<=$D$4,$E28>=1,$E28<=$D$5),1,IF(AND(AX$2>=$D$4+1,AX$2<=$D$4+$D$6,$E28>=AX$2-$D$4+1,$E28<=AX$2-$D$4+$D$5),2,IF(AND($E28>=$D$5+1,$E28<=$D$5+$D$6,AX$2>=$E28-$D$5+1,AX$2<=$E28-$D$5+$D$4-1),3,""))),"") ->  | BH28: =IF($A$13,IF(AND(BH$2>=1,BH$2<=$D$4,$E28>=1,$E28<=$D$5),1,IF(AND(BH$2>=$D$4+1,BH$2<=$D$4+$D$6,$E28>=BH$2-$D$4+1,$E28<=BH$2-$D$4+$D$5),2,IF(AND($E28>=$D$5+1,$E28<=$D$5+$D$6,BH$2>=$E28-$D$5+1,BH$2<=$E28-$D$5+$D$4-1),3,""))),"") ->  | BR28: =IF($A$13,IF(AND(BR$2>=1,BR$2<=$D$4,$E28>=1,$E28<=$D$5),1,IF(AND(BR$2>=$D$4+1,BR$2<=$D$4+$D$6,$E28>=BR$2-$D$4+1,$E28<=BR$2-$D$4+$D$5),2,IF(AND($E28>=$D$5+1,$E28<=$D$5+$D$6,BR$2>=$E28-$D$5+1,BR$2<=$E28-$D$5+$D$4-1),3,""))),"") ->  | CB28: =IF($A$13,IF(AND(CB$2>=1,CB$2<=$D$4,$E28>=1,$E28<=$D$5),1,IF(AND(CB$2>=$D$4+1,CB$2<=$D$4+$D$6,$E28>=CB$2-$D$4+1,$E28<=CB$2-$D$4+$D$5),2,IF(AND($E28>=$D$5+1,$E28<=$D$5+$D$6,CB$2>=$E28-$D$5+1,CB$2<=$E28-$D$5+$D$4-1),3,""))),"") ->  | CL28: =IF($A$13,IF(AND(CL$2>=1,CL$2<=$D$4,$E28>=1,$E28<=$D$5),1,IF(AND(CL$2>=$D$4+1,CL$2<=$D$4+$D$6,$E28>=CL$2-$D$4+1,$E28<=CL$2-$D$4+$D$5),2,IF(AND($E28>=$D$5+1,$E28<=$D$5+$D$6,CL$2>=$E28-$D$5+1,CL$2<=$E28-$D$5+$D$4-1),3,""))),"") ->  | CV28: =IF($A$13,IF(AND(CV$2>=1,CV$2<=$D$4,$E28>=1,$E28<=$D$5),1,IF(AND(CV$2>=$D$4+1,CV$2<=$D$4+$D$6,$E28>=CV$2-$D$4+1,$E28<=CV$2-$D$4+$D$5),2,IF(AND($E28>=$D$5+1,$E28<=$D$5+$D$6,CV$2>=$E28-$D$5+1,CV$2<=$E28-$D$5+$D$4-1),3,""))),"") ->  | DF28: =IF($A$13,IF(AND(DF$2>=1,DF$2<=$D$4,$E28>=1,$E28<=$D$5),1,IF(AND(DF$2>=$D$4+1,DF$2<=$D$4+$D$6,$E28>=DF$2-$D$4+1,$E28<=DF$2-$D$4+$D$5),2,IF(AND($E28>=$D$5+1,$E28<=$D$5+$D$6,DF$2>=$E28-$D$5+1,DF$2<=$E28-$D$5+$D$4-1),3,""))),"") ->  | DP28: =IF($A$13,IF(AND(DP$2>=1,DP$2<=$D$4,$E28>=1,$E28<=$D$5),1,IF(AND(DP$2>=$D$4+1,DP$2<=$D$4+$D$6,$E28>=DP$2-$D$4+1,$E28<=DP$2-$D$4+$D$5),2,IF(AND($E28>=$D$5+1,$E28<=$D$5+$D$6,DP$2>=$E28-$D$5+1,DP$2<=$E28-$D$5+$D$4-1),3,""))),"") ->  | DZ28: =IF($A$13,IF(AND(DZ$2>=1,DZ$2<=$D$4,$E28>=1,$E28<=$D$5),1,IF(AND(DZ$2>=$D$4+1,DZ$2<=$D$4+$D$6,$E28>=DZ$2-$D$4+1,$E28<=DZ$2-$D$4+$D$5),2,IF(AND($E28>=$D$5+1,$E28<=$D$5+$D$6,DZ$2>=$E28-$D$5+1,DZ$2<=$E28-$D$5+$D$4-1),3,""))),"") ->  | EJ28: =IF($A$13,IF(AND(EJ$2>=1,EJ$2<=$D$4,$E28>=1,$E28<=$D$5),1,IF(AND(EJ$2>=$D$4+1,EJ$2<=$D$4+$D$6,$E28>=EJ$2-$D$4+1,$E28<=EJ$2-$D$4+$D$5),2,IF(AND($E28>=$D$5+1,$E28<=$D$5+$D$6,EJ$2>=$E28-$D$5+1,EJ$2<=$E28-$D$5+$D$4-1),3,""))),"") ->  | ET28: =IF($A$13,IF(AND(ET$2>=1,ET$2<=$D$4,$E28>=1,$E28<=$D$5),1,IF(AND(ET$2>=$D$4+1,ET$2<=$D$4+$D$6,$E28>=ET$2-$D$4+1,$E28<=ET$2-$D$4+$D$5),2,IF(AND($E28>=$D$5+1,$E28<=$D$5+$D$6,ET$2>=$E28-$D$5+1,ET$2<=$E28-$D$5+$D$4-1),3,""))),"") ->  | FD28: =IF($A$13,IF(AND(FD$2>=1,FD$2<=$D$4,$E28>=1,$E28<=$D$5),1,IF(AND(FD$2>=$D$4+1,FD$2<=$D$4+$D$6,$E28>=FD$2-$D$4+1,$E28<=FD$2-$D$4+$D$5),2,IF(AND($E28>=$D$5+1,$E28<=$D$5+$D$6,FD$2>=$E28-$D$5+1,FD$2<=$E28-$D$5+$D$4-1),3,""))),"") ->  | FN28: =IF($A$13,IF(AND(FN$2>=1,FN$2<=$D$4,$E28>=1,$E28<=$D$5),1,IF(AND(FN$2>=$D$4+1,FN$2<=$D$4+$D$6,$E28>=FN$2-$D$4+1,$E28<=FN$2-$D$4+$D$5),2,IF(AND($E28>=$D$5+1,$E28<=$D$5+$D$6,FN$2>=$E28-$D$5+1,FN$2<=$E28-$D$5+$D$4-1),3,""))),"") ->  | FX28: =IF($A$13,IF(AND(FX$2>=1,FX$2<=$D$4,$E28>=1,$E28<=$D$5),1,IF(AND(FX$2>=$D$4+1,FX$2<=$D$4+$D$6,$E28>=FX$2-$D$4+1,$E28<=FX$2-$D$4+$D$5),2,IF(AND($E28>=$D$5+1,$E28<=$D$5+$D$6,FX$2>=$E28-$D$5+1,FX$2<=$E28-$D$5+$D$4-1),3,""))),"") ->  | GH28: =IF($A$13,IF(AND(GH$2>=1,GH$2<=$D$4,$E28>=1,$E28<=$D$5),1,IF(AND(GH$2>=$D$4+1,GH$2<=$D$4+$D$6,$E28>=GH$2-$D$4+1,$E28<=GH$2-$D$4+$D$5),2,IF(AND($E28>=$D$5+1,$E28<=$D$5+$D$6,GH$2>=$E28-$D$5+1,GH$2<=$E28-$D$5+$D$4-1),3,""))),"") ->  | GR28: =IF($A$13,IF(AND(GR$2>=1,GR$2<=$D$4,$E28>=1,$E28<=$D$5),1,IF(AND(GR$2>=$D$4+1,GR$2<=$D$4+$D$6,$E28>=GR$2-$D$4+1,$E28<=GR$2-$D$4+$D$5),2,IF(AND($E28>=$D$5+1,$E28<=$D$5+$D$6,GR$2>=$E28-$D$5+1,GR$2<=$E28-$D$5+$D$4-1),3,""))),"") -> 
D29: 12 | E29: 189
D30: 13 | E30: 188
D31: 14 | E31: 187
D32: 15 | E32: 186
D33: 16 | E33: 185
D34: 17 | E34: 184
D35: 18 | E35: 183 | CK35: 3 | CL35: 3 | CM35: 3 | CN35: 3 | CO35: 3 | CP35: 3 | CQ35: 3 | CR35: 3 | CS35: 3 | CT35: 3 | CU35: 3 | CV35: 3 | CW35: 3 | CX35: 3 | CY35: 3 | CZ35: 3 | DA35: 3 | DB35: 3 | DC35: 3 | DD35: 3 | DE35: 3 | DF35: 3 | DG35: 3 | DH35: 3 | DI35: 3 | DJ35: 3 | DK35: 3 | DL35: 3 | DM35: 3 | DN35: 3 | DO35: 3 | DP35: 3 | DQ35: 3 | DR35: 3 | DS35: 3 | DT35: 3 | DU35: 3 | DV35: 3 | DW35: 3 | DX35: 3 | DY35: 3 | DZ35: 3 | EA35: 3 | EB35: 3 | EC35: 3 | ED35: 3 | EE35: 3 | EF35: 3 | EG35: 3 | EH35: 3 | EI35: 3 | EJ35: 3 | EK35: 3 | EL35: 3 | EM35: 3 | EN35: 3 | EO35: 3 | EP35: 3 | EQ35: 3 | ER35: 3 | ES35: 3 | ET35: 3 | EU35: 3 | EV35: 3 | EW35: 3 | EX35: 3 | EY35: 3 | EZ35: 3 | FA35: 3 | FB35: 3 | FC35: 3 | FD35: 3 | FE35: 3 | FF35: 3 | FG35: 3 | FH35: 3 | FI35: 3 | FJ35: 3 | FK35: 3 | FL35: 3 | FM35: 3 | FN35: 3 | FO35: 3 | FP35: 3 | FQ35: 3 | FR35: 2
D36: 19 | E36: 182 | CJ36: 3 | CK36: 3 | CL36: 3 | CM36: 3 | CN36: 3 | CO36: 3 | CP36: 3 | CQ36: 3 | CR36: 3 | CS36: 3 | CT36: 3 | CU36: 3 | CV36: 3 | CW36: 3 | CX36: 3 | CY36: 3 | CZ36: 3 | DA36: 3 | DB36: 3 | DC36: 3 | DD36: 3 | DE36: 3 | DF36: 3 | DG36: 3 | DH36: 3 | DI36: 3 | DJ36: 3 | DK36: 3 | DL36: 3 | DM36: 3 | DN36: 3 | DO36: 3 | DP36: 3 | DQ36: 3 | DR36: 3 | DS36: 3 | DT36: 3 | DU36: 3 | DV36: 3 | DW36: 3 | DX36: 3 | DY36: 3 | DZ36: 3 | EA36: 3 | EB36: 3 | EC36: 3 | ED36: 3 | EE36: 3 | EF36: 3 | EG36: 3 | EH36: 3 | EI36: 3 | EJ36: 3 | EK36: 3 | EL36: 3 | EM36: 3 | EN36: 3 | EO36: 3 | EP36: 3 | EQ36: 3 | ER36: 3 | ES36: 3 | ET36: 3 | EU36: 3 | EV36: 3 | EW36: 3 | EX36: 3 | EY36: 3 | EZ36: 3 | FA36: 3 | FB36: 3 | FC36: 3 | FD36: 3 | FE36: 3 | FF36: 3 | FG36: 3 | FH36: 3 | FI36: 3 | FJ36: 3 | FK36: 3 | FL36: 3 | FM36: 3 | FN36: 3 | FO36: 3 | FP36: 3 | FQ36: 2 | FR36: 2
D37: 20 | E37: 181 | CI37: 3 | CJ37: 3 | CK37: 3 | CL37: 3 | CM37: 3 | CN37: 3 | CO37: 3 | CP37: 3 | CQ37: 3 | CR37: 3 | CS37: 3 | CT37: 3 | CU37: 3 | CV37: 3 | CW37: 3 | CX37: 3 | CY37: 3 | CZ37: 3 | DA37: 3 | DB37: 3 | DC37: 3 | DD37: 3 | DE37: 3 | DF37: 3 | DG37: 3 | DH37: 3 | DI37: 3 | DJ37: 3 | DK37: 3 | DL37: 3 | DM37: 3 | DN37: 3 | DO37: 3 | DP37: 3 | DQ37: 3 | DR37: 3 | DS37: 3 | DT37: 3 | DU37: 3 | DV37: 3 | DW37: 3 | DX37: 3 | DY37: 3 | DZ37: 3 | EA37: 3 | EB37: 3 | EC37: 3 | ED37: 3 | EE37: 3 | EF37: 3 | EG37: 3 | EH37: 3 | EI37: 3 | EJ37: 3 | EK37: 3 | EL37: 3 | EM37: 3 | EN37: 3 | EO37: 3 | EP37: 3 | EQ37: 3 | ER37: 3 | ES37: 3 | ET37: 3 | EU37: 3 | EV37: 3 | EW37: 3 | EX37: 3 | EY37: 3 | EZ37: 3 | FA37: 3 | FB37: 3 | FC37: 3 | FD37: 3 | FE37: 3 | FF37: 3 | FG37: 3 | FH37: 3 | FI37: 3 | FJ37: 3 | FK37: 3 | FL37: 3 | FM37: 3 | FN37: 3 | FO37: 3 | FP37: 2 | FQ37: 2 | FR37: 2
D38: 21 | E38: 180 | J38: =IF($A$13,IF(AND(J$2>=1,J$2<=$D$4,$E38>=1,$E38<=$D$5),1,IF(AND(J$2>=$D$4+1,J$2<=$D$4+$D$6,$E38>=J$2-$D$4+1,$E38<=J$2-$D$4+$D$5),2,IF(AND($E38>=$D$5+1,$E38<=$D$5+$D$6,J$2>=$E38-$D$5+1,J$2<=$E38-$D$5+$D$4-1),3,""))),"") ->  | T38: =IF($A$13,IF(AND(T$2>=1,T$2<=$D$4,$E38>=1,$E38<=$D$5),1,IF(AND(T$2>=$D$4+1,T$2<=$D$4+$D$6,$E38>=T$2-$D$4+1,$E38<=T$2-$D$4+$D$5),2,IF(AND($E38>=$D$5+1,$E38<=$D$5+$D$6,T$2>=$E38-$D$5+1,T$2<=$E38-$D$5+$D$4-1),3,""))),"") ->  | AD38: =IF($A$13,IF(AND(AD$2>=1,AD$2<=$D$4,$E38>=1,$E38<=$D$5),1,IF(AND(AD$2>=$D$4+1,AD$2<=$D$4+$D$6,$E38>=AD$2-$D$4+1,$E38<=AD$2-$D$4+$D$5),2,IF(AND($E38>=$D$5+1,$E38<=$D$5+$D$6,AD$2>=$E38-$D$5+1,AD$2<=$E38-$D$5+$D$4-1),3,""))),"") ->  | AN38: =IF($A$13,IF(AND(AN$2>=1,AN$2<=$D$4,$E38>=1,$E38<=$D$5),1,IF(AND(AN$2>=$D$4+1,AN$2<=$D$4+$D$6,$E38>=AN$2-$D$4+1,$E38<=AN$2-$D$4+$D$5),2,IF(AND($E38>=$D$5+1,$E38<=$D$5+$D$6,AN$2>=$E38-$D$5+1,AN$2<=$E38-$D$5+$D$4-1),3,""))),"") ->  | AX38: =IF($A$13,IF(AND(AX$2>=1,AX$2<=$D$4,$E38>=1,$E38<=$D$5),1,IF(AND(AX$2>=$D$4+1,AX$2<=$D$4+$D$6,$E38>=AX$2-$D$4+1,$E38<=AX$2-$D$4+$D$5),2,IF(AND($E38>=$D$5+1,$E38<=$D$5+$D$6,AX$2>=$E38-$D$5+1,AX$2<=$E38-$D$5+$D$4-1),3,""))),"") ->  | BH38: =IF($A$13,IF(AND(BH$2>=1,BH$2<=$D$4,$E38>=1,$E38<=$D$5),1,IF(AND(BH$2>=$D$4+1,BH$2<=$D$4+$D$6,$E38>=BH$2-$D$4+1,$E38<=BH$2-$D$4+$D$5),2,IF(AND($E38>=$D$5+1,$E38<=$D$5+$D$6,BH$2>=$E38-$D$5+1,BH$2<=$E38-$D$5+$D$4-1),3,""))),"") ->  | BR38: =IF($A$13,IF(AND(BR$2>=1,BR$2<=$D$4,$E38>=1,$E38<=$D$5),1,IF(AND(BR$2>=$D$4+1,BR$2<=$D$4+$D$6,$E38>=BR$2-$D$4+1,$E38<=BR$2-$D$4+$D$5),2,IF(AND($E38>=$D$5+1,$E38<=$D$5+$D$6,BR$2>=$E38-$D$5+1,BR$2<=$E38-$D$5+$D$4-1),3,""))),"") ->  | CB38: =IF($A$13,IF(AND(CB$2>=1,CB$2<=$D$4,$E38>=1,$E38<=$D$5),1,IF(AND(CB$2>=$D$4+1,CB$2<=$D$4+$D$6,$E38>=CB$2-$D$4+1,$E38<=CB$2-$D$4+$D$5),2,IF(AND($E38>=$D$5+1,$E38<=$D$5+$D$6,CB$2>=$E38-$D$5+1,CB$2<=$E38-$D$5+$D$4-1),3,""))),"") ->  | CH38: 3 | CI38: 3 | CJ38: 3 | CK38: 3 | CL38: =IF($A$13,IF(AND(CL$2>=1,CL$2<=$D$4,$E38>=1,$E38<=$D$5),1,IF(AND(CL$2>=$D$4+1,CL$2<=$D$4+$D$6,$E38>=CL$2-$D$4+1,$E38<=CL$2-$D$4+$D$5),2,IF(AND($E38>=$D$5+1,$E38<=$D$5+$D$6,CL$2>=$E38-$D$5+1,CL$2<=$E38-$D$5+$D$4-1),3,""))),"") -> 3 | CM38: 3 | CN38: 3 | CO38: 3 | CP38: 3 | CQ38: 3 | CR38: 3 | CS38: 3 | CT38: 3 | CU38: 3 | CV38: =IF($A$13,IF(AND(CV$2>=1,CV$2<=$D$4,$E38>=1,$E38<=$D$5),1,IF(AND(CV$2>=$D$4+1,CV$2<=$D$4+$D$6,$E38>=CV$2-$D$4+1,$E38<=CV$2-$D$4+$D$5),2,IF(AND($E38>=$D$5+1,$E38<=$D$5+$D$6,CV$2>=$E38-$D$5+1,CV$2<=$E38-$D$5+$D$4-1),3,""))),"") -> 3 | CW38: 3 | CX38: 3 | CY38: 3 | CZ38: 3 | DA38: 3 | DB38: 3 | DC38: 3 | DD38: 3 | DE38: 3 | DF38: =IF($A$13,IF(AND(DF$2>=1,DF$2<=$D$4,$E38>=1,$E38<=$D$5),1,IF(AND(DF$2>=$D$4+1,DF$2<=$D$4+$D$6,$E38>=DF$2-$D$4+1,$E38<=DF$2-$D$4+$D$5),2,IF(AND($E38>=$D$5+1,$E38<=$D$5+$D$6,DF$2>=$E38-$D$5+1,DF$2<=$E38-$D$5+$D$4-1),3,""))),"") -> 3 | DG38: 3 | DH38: 3 | DI38: 3 | DJ38: 3 | DK38: 3 | DL38: 3 | DM38: 3 | DN38: 3 | DO38: 3 | DP38: =IF($A$13,IF(AND(DP$2>=1,DP$2<=$D$4,$E38>=1,$E38<=$D$5),1,IF(AND(DP$2>=$D$4+1,DP$2<=$D$4+$D$6,$E38>=DP$2-$D$4+1,$E38<=DP$2-$D$4+$D$5),2,IF(AND($E38>=$D$5+1,$E38<=$D$5+$D$6,DP$2>=$E38-$D$5+1,DP$2<=$E38-$D$5+$D$4-1),3,""))),"") -> 3 | DQ38: 3 | DR38: 3 | DS38: 3 | DT38: 3 | DU38: 3 | DV38: 3 | DW38: 3 | DX38: 3 | DY38: 3 | DZ38: =IF($A$13,IF(AND(DZ$2>=1,DZ$2<=$D$4,$E38>=1,$E38<=$D$5),1,IF(AND(DZ$2>=$D$4+1,DZ$2<=$D$4+$D$6,$E38>=DZ$2-$D$4+1,$E38<=DZ$2-$D$4+$D$5),2,IF(AND($E38>=$D$5+1,$E38<=$D$5+$D$6,DZ$2>=$E38-$D$5+1,DZ$2<=$E38-$D$5+$D$4-1),3,""))),"") -> 3 | EA38: 3 | EB38: 3 | EC38: 3 | ED38: 3 | EE38: 3 | EF38: 3 | EG38: 3 | EH38: 3 | EI38: 3 | EJ38: =IF($A$13,IF(AND(EJ$2>=1,EJ$2<=$D$4,$E38>=1,$E38<=$D$5),1,IF(AND(EJ$2>=$D$4+1,EJ$2<=$D$4+$D$6,$E38>=EJ$2-$D$4+1,$E38<=EJ$2-$D$4+$D$5),2,IF(AND($E38>=$D$5+1,$E38<=$D$5+$D$6,EJ$2>=$E38-$D$5+1,EJ$2<=$E38-$D$5+$D$4-1),3,""))),"") -> 3 | EK38: 3 | EL38: 3 | EM38: 3 | EN38: 3 | EO38: 3 | EP38: 3 | EQ38: 3 | ER38: 3 | ES38: 3 | ET38: =IF($A$13,IF(AND(ET$2>=1,ET$2<=$D$4,$E38>=1,$E38<=$D$5),1,IF(AND(ET$2>=$D$4+1,ET$2<=$D$4+$D$6,$E38>=ET$2-$D$4+1,$E38<=ET$2-$D$4+$D$5),2,IF(AND($E38>=$D$5+1,$E38<=$D$5+$D$6,ET$2>=$E38-$D$5+1,ET$2<=$E38-$D$5+$D$4-1),3,""))),"") -> 3 | EU38: 3 | EV38: 3 | EW38: 3 | EX38: 3 | EY38: 3 | EZ38: 3 | FA38: 3 | FB38: 3 | FC38: 3 | FD38: =IF($A$13,IF(AND(FD$2>=1,FD$2<=$D$4,$E38>=1,$E38<=$D$5),1,IF(AND(FD$2>=$D$4+1,FD$2<=$D$4+$D$6,$E38>=FD$2-$D$4+1,$E38<=FD$2-$D$4+$D$5),2,IF(AND($E38>=$D$5+1,$E38<=$D$5+$D$6,FD$2>=$E38-$D$5+1,FD$2<=$E38-$D$5+$D$4-1),3,""))),"") -> 3 | FE38: 3 | FF38: 3 | FG38: 3 | FH38: 3 | FI38: 3 | FJ38: 3 | FK38: 3 | FL38: 3 | FM38: 3 | FN38: =IF($A$13,IF(AND(FN$2>=1,FN$2<=$D$4,$E38>=1,$E38<=$D$5),1,IF(AND(FN$2>=$D$4+1,FN$2<=$D$4+$D$6,$E38>=FN$2-$D$4+1,$E38<=FN$2-$D$4+$D$5),2,IF(AND($E38>=$D$5+1,$E38<=$D$5+$D$6,FN$2>=$E38-$D$5+1,FN$2<=$E38-$D$5+$D$4-1),3,""))),"") -> 3 | FO38: 2 | FP38: 2 | FQ38: 2 | FR38: 2 | FX38: =IF($A$13,IF(AND(FX$2>=1,FX$2<=$D$4,$E38>=1,$E38<=$D$5),1,IF(AND(FX$2>=$D$4+1,FX$2<=$D$4+$D$6,$E38>=FX$2-$D$4+1,$E38<=FX$2-$D$4+$D$5),2,IF(AND($E38>=$D$5+1,$E38<=$D$5+$D$6,FX$2>=$E38-$D$5+1,FX$2<=$E38-$D$5+$D$4-1),3,""))),"") ->  | GH38: =IF($A$13,IF(AND(GH$2>=1,GH$2<=$D$4,$E38>=1,$E38<=$D$5),1,IF(AND(GH$2>=$D$4+1,GH$2<=$D$4+$D$6,$E38>=GH$2-$D$4+1,$E38<=GH$2-$D$4+$D$5),2,IF(AND($E38>=$D$5+1,$E38<=$D$5+$D$6,GH$2>=$E38-$D$5+1,GH$2<=$E38-$D$5+$D$4-1),3,""))),"") ->  | GR38: =IF($A$13,IF(AND(GR$2>=1,GR$2<=$D$4,$E38>=1,$E38<=$D$5),1,IF(AND(GR$2>=$D$4+1,GR$2<=$D$4+$D$6,$E38>=GR$2-$D$4+1,$E38<=GR$2-$D$4+$D$5),2,IF(AND($E38>=$D$5+1,$E38<=$D$5+$D$6,GR$2>=$E38-$D$5+1,GR$2<=$E38-$D$5+$D$4-1),3,""))),"") -> 
D39: 22 | E39: 179 | CG39: 3 | CH39: 3 | CI39: 3 | CJ39: 3 | CK39: 3 | CL39: 3 | CM39: 3 | CN39: 3 | CO39: 3 | CP39: 3 | CQ39: 3 | CR39: 3 | CS39: 3 | CT39: 3 | CU39: 3 | CV39: 3 | CW39: 3 | CX39: 3 | CY39: 3 | CZ39: 3 | DA39: 3 | DB39: 3 | DC39: 3 | DD39: 3 | DE39: 3 | DF39: 3 | DG39: 3 | DH39: 3 | DI39: 3 | DJ39: 3 | DK39: 3 | DL39: 3 | DM39: 3 | DN39: 3 | DO39: 3 | DP39: 3 | DQ39: 3 | DR39: 3 | DS39: 3 | DT39: 3 | DU39: 3 | DV39: 3 | DW39: 3 | DX39: 3 | DY39: 3 | DZ39: 3 | EA39: 3 | EB39: 3 | EC39: 3 | ED39: 3 | EE39: 3 | EF39: 3 | EG39: 3 | EH39: 3 | EI39: 3 | EJ39: 3 | EK39: 3 | EL39: 3 | EM39: 3 | EN39: 3 | EO39: 3 | EP39: 3 | EQ39: 3 | ER39: 3 | ES39: 3 | ET39: 3 | EU39: 3 | EV39: 3 | EW39: 3 | EX39: 3 | EY39: 3 | EZ39: 3 | FA39: 3 | FB39: 3 | FC39: 3 | FD39: 3 | FE39: 3 | FF39: 3 | FG39: 3 | FH39: 3 | FI39: 3 | FJ39: 3 | FK39: 3 | FL39: 3 | FM39: 3 | FN39: 2 | FO39: 2 | FP39: 2 | FQ39: 2 | FR39: 2
D40: 23 | E40: 178 | CF40: 3 | CG40: 3 | CH40: 3 | CI40: 3 | CJ40: 3 | CK40: 3 | CL40: 3 | CM40: 3 | CN40: 3 | CO40: 3 | CP40: 3 | CQ40: 3 | CR40: 3 | CS40: 3 | CT40: 3 | CU40: 3 | CV40: 3 | CW40: 3 | CX40: 3 | CY40: 3 | CZ40: 3 | DA40: 3 | DB40: 3 | DC40: 3 | DD40: 3 | DE40: 3 | DF40: 3 | DG40: 3 | DH40: 3 | DI40: 3 | DJ40: 3 | DK40: 3 | DL40: 3 | DM40: 3 | DN40: 3 | DO40: 3 | DP40: 3 | DQ40: 3 | DR40: 3 | DS40: 3 | DT40: 3 | DU40: 3 | DV40: 3 | DW40: 3 | DX40: 3 | DY40: 3 | DZ40: 3 | EA40: 3 | EB40: 3 | EC40: 3 | ED40: 3 | EE40: 3 | EF40: 3 | EG40: 3 | EH40: 3 | EI40: 3 | EJ40: 3 | EK40: 3 | EL40: 3 | EM40: 3 | EN40: 3 | EO40: 3 | EP40: 3 | EQ40: 3 | ER40: 3 | ES40: 3 | ET40: 3 | EU40: 3 | EV40: 3 | EW40: 3 | EX40: 3 | EY40: 3 | EZ40: 3 | FA40: 3 | FB40: 3 | FC40: 3 | FD40: 3 | FE40: 3 | FF40: 3 | FG40: 3 | FH40: 3 | FI40: 3 | FJ40: 3 | FK40: 3 | FL40: 3 | FM40: 2 | FN40: 2 | FO40: 2 | FP40: 2 | FQ40: 2 | FR40: 2
D41: 24 | E41: 177 | CE41: 3 | CF41: 3 | CG41: 3 | CH41: 3 | CI41: 3 | CJ41: 3 | CK41: 3 | CL41: 3 | CM41: 3 | CN41: 3 | CO41: 3 | CP41: 3 | CQ41: 3 | CR41: 3 | CS41: 3 | CT41: 3 | CU41: 3 | CV41: 3 | CW41: 3 | CX41: 3 | CY41: 3 | CZ41: 3 | DA41: 3 | DB41: 3 | DC41: 3 | DD41: 3 | DE41: 3 | DF41: 3 | DG41: 3 | DH41: 3 | DI41: 3 | DJ41: 3 | DK41: 3 | DL41: 3 | DM41: 3 | DN41: 3 | DO41: 3 | DP41: 3 | DQ41: 3 | DR41: 3 | DS41: 3 | DT41: 3 | DU41: 3 | DV41: 3 | DW41: 3 | DX41: 3 | DY41: 3 | DZ41: 3 | EA41: 3 | EB41: 3 | EC41: 3 | ED41: 3 | EE41: 3 | EF41: 3 | EG41: 3 | EH41: 3 | EI41: 3 | EJ41: 3 | EK41: 3 | EL41: 3 | EM41: 3 | EN41: 3 | EO41: 3 | EP41: 3 | EQ41: 3 | ER41: 3 | ES41: 3 | ET41: 3 | EU41: 3 | EV41: 3 | EW41: 3 | EX41: 3 | EY41: 3 | EZ41: 3 | FA41: 3 | FB41: 3 | FC41: 3 | FD41: 3 | FE41: 3 | FF41: 3 | FG41: 3 | FH41: 3 | FI41: 3 | FJ41: 3 | FK41: 3 | FL41: 2 | FM41: 2 | FN41: 2 | FO41: 2 | FP41: 2 | FQ41: 2 | FR41: 2
D42: 25 | E42: 176 | CD42: 3 | CE42: 3 | CF42: 3 | CG42: 3 | CH42: 3 | CI42: 3 | CJ42: 3 | CK42: 3 | CL42: 3 | CM42: 3 | CN42: 3 | CO42: 3 | CP42: 3 | CQ42: 3 | CR42: 3 | CS42: 3 | CT42: 3 | CU42: 3 | CV42: 3 | CW42: 3 | CX42: 3 | CY42: 3 | CZ42: 3 | DA42: 3 | DB42: 3 | DC42: 3 | DD42: 3 | DE42: 3 | DF42: 3 | DG42: 3 | DH42: 3 | DI42: 3 | DJ42: 3 | DK42: 3 | DL42: 3 | DM42: 3 | DN42: 3 | DO42: 3 | DP42: 3 | DQ42: 3 | DR42: 3 | DS42: 3 | DT42: 3 | DU42: 3 | DV42: 3 | DW42: 3 | DX42: 3 | DY42: 3 | DZ42: 3 | EA42: 3 | EB42: 3 | EC42: 3 | ED42: 3 | EE42: 3 | EF42: 3 | EG42: 3 | EH42: 3 | EI42: 3 | EJ42: 3 | EK42: 3 | EL42: 3 | EM42: 3 | EN42: 3 | EO42: 3 | EP42: 3 | EQ42: 3 | ER42: 3 | ES42: 3 | ET42: 3 | EU42: 3 | EV42: 3 | EW42: 3 | EX42: 3 | EY42: 3 | EZ42: 3 | FA42: 3 | FB42: 3 | FC42: 3 | FD42: 3 | FE42: 3 | FF42: 3 | FG42: 3 | FH42: 3 | FI42: 3 | FJ42: 3 | FK42: 2 | FL42: 2 | FM42: 2 | FN42: 2 | FO42: 2 | FP42: 2 | FQ42: 2 | FR42: 2
D43: 26 | E43: 175 | CC43: 3 | CD43: 3 | CE43: 3 | CF43: 3 | CG43: 3 | CH43: 3 | CI43: 3 | CJ43: 3 | CK43: 3 | CL43: 3 | CM43: 3 | CN43: 3 | CO43: 3 | CP43: 3 | CQ43: 3 | CR43: 3 | CS43: 3 | CT43: 3 | CU43: 3 | CV43: 3 | CW43: 3 | CX43: 3 | CY43: 3 | CZ43: 3 | DA43: 3 | DB43: 3 | DC43: 3 | DD43: 3 | DE43: 3 | DF43: 3 | DG43: 3 | DH43: 3 | DI43: 3 | DJ43: 3 | DK43: 3 | DL43: 3 | DM43: 3 | DN43: 3 | DO43: 3 | DP43: 3 | DQ43: 3 | DR43: 3 | DS43: 3 | DT43: 3 | DU43: 3 | DV43: 3 | DW43: 3 | DX43: 3 | DY43: 3 | DZ43: 3 | EA43: 3 | EB43: 3 | EC43: 3 | ED43: 3 | EE43: 3 | EF43: 3 | EG43: 3 | EH43: 3 | EI43: 3 | EJ43: 3 | EK43: 3 | EL43: 3 | EM43: 3 | EN43: 3 | EO43: 3 | EP43: 3 | EQ43: 3 | ER43: 3 | ES43: 3 | ET43: 3 | EU43: 3 | EV43: 3 | EW43: 3 | EX43: 3 | EY43: 3 | EZ43: 3 | FA43: 3 | FB43: 3 | FC43: 3 | FD43: 3 | FE43: 3 | FF43: 3 | FG43: 3 | FH43: 3 | FI43: 3 | FJ43: 2 | FK43: 2 | FL43: 2 | FM43: 2 | FN43: 2 | FO43: 2 | FP43: 2 | FQ43: 2 | FR43: 2
D44: 27 | E44: 174 | CB44: 3 | CC44: 3 | CD44: 3 | CE44: 3 | CF44: 3 | CG44: 3 | CH44: 3 | CI44: 3 | CJ44: 3 | CK44: 3 | CL44: 3 | CM44: 3 | CN44: 3 | CO44: 3 | CP44: 3 | CQ44: 3 | CR44: 3 | CS44: 3 | CT44: 3 | CU44: 3 | CV44: 3 | CW44: 3 | CX44: 3 | CY44: 3 | CZ44: 3 | DA44: 3 | DB44: 3 | DC44: 3 | DD44: 3 | DE44: 3 | DF44: 3 | DG44: 3 | DH44: 3 | DI44: 3 | DJ44: 3 | DK44: 3 | DL44: 3 | DM44: 3 | DN44: 3 | DO44: 3 | DP44: 3 | DQ44: 3 | DR44: 3 | DS44: 3 | DT44: 3 | DU44: 3 | DV44: 3 | DW44: 3 | DX44: 3 | DY44: 3 | DZ44: 3 | EA44: 3 | EB44: 3 | EC44: 3 | ED44: 3 | EE44: 3 | EF44: 3 | EG44: 3 | EH44: 3 | EI44: 3 | EJ44: 3 | EK44: 3 | EL44: 3 | EM44: 3 | EN44: 3 | EO44: 3 | EP44: 3 | EQ44: 3 | ER44: 3 | ES44: 3 | ET44: 3 | EU44: 3 | EV44: 3 | EW44: 3 | EX44: 3 | EY44: 3 | EZ44: 3 | FA44: 3 | FB44: 3 | FC44: 3 | FD44: 3 | FE44: 3 | FF44: 3 | FG44: 3 | FH44: 3 | FI44: 2 | FJ44: 2 | FK44: 2 | FL44: 2 | FM44: 2 | FN44: 2 | FO44: 2 | FP44: 2 | FQ44: 2 | FR44: 2
D45: 28 | E45: 173 | CA45: 3 | CB45: 3 | CC45: 3 | CD45: 3 | CE45: 3 | CF45: 3 | CG45: 3 | CH45: 3 | CI45: 3 | CJ45: 3 | CK45: 3 | CL45: 3 | CM45: 3 | CN45: 3 | CO45: 3 | CP45: 3 | CQ45: 3 | CR45: 3 | CS45: 3 | CT45: 3 | CU45: 3 | CV45: 3 | CW45: 3 | CX45: 3 | CY45: 3 | CZ45: 3 | DA45: 3 | DB45: 3 | DC45: 3 | DD45: 3 | DE45: 3 | DF45: 3 | DG45: 3 | DH45: 3 | DI45: 3 | DJ45: 3 | DK45: 3 | DL45: 3 | DM45: 3 | DN45: 3 | DO45: 3 | DP45: 3 | DQ45: 3 | DR45: 3 | DS45: 3 | DT45: 3 | DU45: 3 | DV45: 3 | DW45: 3 | DX45: 3 | DY45: 3 | DZ45: 3 | EA45: 3 | EB45: 3 | EC45: 3 | ED45: 3 | EE45: 3 | EF45: 3 | EG45: 3 | EH45: 3 | EI45: 3 | EJ45: 3 | EK45: 3 | EL45: 3 | EM45: 3 | EN45: 3 | EO45: 3 | EP45: 3 | EQ45: 3 | ER45: 3 | ES45: 3 | ET45: 3 | EU45: 3 | EV45: 3 | EW45: 3 | EX45: 3 | EY45: 3 | EZ45: 3 | FA45: 3 | FB45: 3 | FC45: 3 | FD45: 3 | FE45: 3 | FF45: 3 | FG45: 3 | FH45: 2 | FI45: 2 | FJ45: 2 | FK45: 2 | FL45: 2 | FM45: 2 | FN45: 2 | FO45: 2 | FP45: 2 | FQ45: 2 | FR45: 2
D46: 29 | E46: 172 | BZ46: 3 | CA46: 3 | CB46: 3 | CC46: 3 | CD46: 3 | CE46: 3 | CF46: 3 | CG46: 3 | CH46: 3 | CI46: 3 | CJ46: 3 | CK46: 3 | CL46: 3 | CM46: 3 | CN46: 3 | CO46: 3 | CP46: 3 | CQ46: 3 | CR46: 3 | CS46: 3 | CT46: 3 | CU46: 3 | CV46: 3 | CW46: 3 | CX46: 3 | CY46: 3 | CZ46: 3 | DA46: 3 | DB46: 3 | DC46: 3 | DD46: 3 | DE46: 3 | DF46: 3 | DG46: 3 | DH46: 3 | DI46: 3 | DJ46: 3 | DK46: 3 | DL46: 3 | DM46: 3 | DN46: 3 | DO46: 3 | DP46: 3 | DQ46: 3 | DR46: 3 | DS46: 3 | DT46: 3 | DU46: 3 | DV46: 3 | DW46: 3 | DX46: 3 | DY46: 3 | DZ46: 3 | EA46: 3 | EB46: 3 | EC46: 3 | ED46: 3 | EE46: 3 | EF46: 3 | EG46: 3 | EH46: 3 | EI46: 3 | EJ46: 3 | EK46: 3 | EL46: 3 | EM46: 3 | EN46: 3 | EO46: 3 | EP46: 3 | EQ46: 3 | ER46: 3 | ES46: 3 | ET46: 3 | EU46: 3 | EV46: 3 | EW46: 3 | EX46: 3 | EY46: 3 | EZ46: 3 | FA46: 3 | FB46: 3 | FC46: 3 | FD46: 3 | FE46: 3 | FF46: 3 | FG46: 2 | FH46: 2 | FI46: 2 | FJ46: 2 | FK46: 2 | FL46: 2 | FM46: 2 | FN46: 2 | FO46: 2 | FP46: 2 | FQ46: 2 | FR46: 2
D47: 30 | E47: 171 | BY47: 3 | BZ47: 3 | CA47: 3 | CB47: 3 | CC47: 3 | CD47: 3 | CE47: 3 | CF47: 3 | CG47: 3 | CH47: 3 | CI47: 3 | CJ47: 3 | CK47: 3 | CL47: 3 | CM47: 3 | CN47: 3 | CO47: 3 | CP47: 3 | CQ47: 3 | CR47: 3 | CS47: 3 | CT47: 3 | CU47: 3 | CV47: 3 | CW47: 3 | CX47: 3 | CY47: 3 | CZ47: 3 | DA47: 3 | DB47: 3 | DC47: 3 | DD47: 3 | DE47: 3 | DF47: 3 | DG47: 3 | DH47: 3 | DI47: 3 | DJ47: 3 | DK47: 3 | DL47: 3 | DM47: 3 | DN47: 3 | DO47: 3 | DP47: 3 | DQ47: 3 | DR47: 3 | DS47: 3 | DT47: 3 | DU47: 3 | DV47: 3 | DW47: 3 | DX47: 3 | DY47: 3 | DZ47: 3 | EA47: 3 | EB47: 3 | EC47: 3 | ED47: 3 | EE47: 3 | EF47: 3 | EG47: 3 | EH47: 3 | EI47: 3 | EJ47: 3 | EK47: 3 | EL47: 3 | EM47: 3 | EN47: 3 | EO47: 3 | EP47: 3 | EQ47: 3 | ER47: 3 | ES47: 3 | ET47: 3 | EU47: 3 | EV47: 3 | EW47: 3 | EX47: 3 | EY47: 3 | EZ47: 3 | FA47: 3 | FB47: 3 | FC47: 3 | FD47: 3 | FE47: 3 | FF47: 2 | FG47: 2 | FH47: 2 | FI47: 2 | FJ47: 2 | FK47: 2 | FL47: 2 | FM47: 2 | FN47: 2 | FO47: 2 | FP47: 2 | FQ47: 2 | FR47: 2
D48: 31 | E48: 170 | J48: =IF($A$13,IF(AND(J$2>=1,J$2<=$D$4,$E48>=1,$E48<=$D$5),1,IF(AND(J$2>=$D$4+1,J$2<=$D$4+$D$6,$E48>=J$2-$D$4+1,$E48<=J$2-$D$4+$D$5),2,IF(AND($E48>=$D$5+1,$E48<=$D$5+$D$6,J$2>=$E48-$D$5+1,J$2<=$E48-$D$5+$D$4-1),3,""))),"") ->  | T48: =IF($A$13,IF(AND(T$2>=1,T$2<=$D$4,$E48>=1,$E48<=$D$5),1,IF(AND(T$2>=$D$4+1,T$2<=$D$4+$D$6,$E48>=T$2-$D$4+1,$E48<=T$2-$D$4+$D$5),2,IF(AND($E48>=$D$5+1,$E48<=$D$5+$D$6,T$2>=$E48-$D$5+1,T$2<=$E48-$D$5+$D$4-1),3,""))),"") ->  | AD48: =IF($A$13,IF(AND(AD$2>=1,AD$2<=$D$4,$E48>=1,$E48<=$D$5),1,IF(AND(AD$2>=$D$4+1,AD$2<=$D$4+$D$6,$E48>=AD$2-$D$4+1,$E48<=AD$2-$D$4+$D$5),2,IF(AND($E48>=$D$5+1,$E48<=$D$5+$D$6,AD$2>=$E48-$D$5+1,AD$2<=$E48-$D$5+$D$4-1),3,""))),"") ->  | AN48: =IF($A$13,IF(AND(AN$2>=1,AN$2<=$D$4,$E48>=1,$E48<=$D$5),1,IF(AND(AN$2>=$D$4+1,AN$2<=$D$4+$D$6,$E48>=AN$2-$D$4+1,$E48<=AN$2-$D$4+$D$5),2,IF(AND($E48>=$D$5+1,$E48<=$D$5+$D$6,AN$2>=$E48-$D$5+1,AN$2<=$E48-$D$5+$D$4-1),3,""))),"") ->  | AX48: =IF($A$13,IF(AND(AX$2>=1,AX$2<=$D$4,$E48>=1,$E48<=$D$5),1,IF(AND(AX$2>=$D$4+1,AX$2<=$D$4+$D$6,$E48>=AX$2-$D$4+1,$E48<=AX$2-$D$4+$D$5),2,IF(AND($E48>=$D$5+1,$E48<=$D$5+$D$6,AX$2>=$E48-$D$5+1,AX$2<=$E48-$D$5+$D$4-1),3,""))),"") ->  | BH48: =IF($A$13,IF(AND(BH$2>=1,BH$2<=$D$4,$E48>=1,$E48<=$D$5),1,IF(AND(BH$2>=$D$4+1,BH$2<=$D$4+$D$6,$E48>=BH$2-$D$4+1,$E48<=BH$2-$D$4+$D$5),2,IF(AND($E48>=$D$5+1,$E48<=$D$5+$D$6,BH$2>=$E48-$D$5+1,BH$2<=$E48-$D$5+$D$4-1),3,""))),"") ->  | BR48: =IF($A$13,IF(AND(BR$2>=1,BR$2<=$D$4,$E48>=1,$E48<=$D$5),1,IF(AND(BR$2>=$D$4+1,BR$2<=$D$4+$D$6,$E48>=BR$2-$D$4+1,$E48<=BR$2-$D$4+$D$5),2,IF(AND($E48>=$D$5+1,$E48<=$D$5+$D$6,BR$2>=$E48-$D$5+1,BR$2<=$E48-$D$5+$D$4-1),3,""))),"") ->  | BX48: 3 | BY48: 3 | BZ48: 3 | CA48: 3 | CB48: =IF($A$13,IF(AND(CB$2>=1,CB$2<=$D$4,$E48>=1,$E48<=$D$5),1,IF(AND(CB$2>=$D$4+1,CB$2<=$D$4+$D$6,$E48>=CB$2-$D$4+1,$E48<=CB$2-$D$4+$D$5),2,IF(AND($E48>=$D$5+1,$E48<=$D$5+$D$6,CB$2>=$E48-$D$5+1,CB$2<=$E48-$D$5+$D$4-1),3,""))),"") -> 3 | CC48: 3 | CD48: 3 | CE48: 3 | CF48: 3 | CG48: 3 | CH48: 3 | CI48: 3 | CJ48: 3 | CK48: 3 | CL48: =IF($A$13,IF(AND(CL$2>=1,CL$2<=$D$4,$E48>=1,$E48<=$D$5),1,IF(AND(CL$2>=$D$4+1,CL$2<=$D$4+$D$6,$E48>=CL$2-$D$4+1,$E48<=CL$2-$D$4+$D$5),2,IF(AND($E48>=$D$5+1,$E48<=$D$5+$D$6,CL$2>=$E48-$D$5+1,CL$2<=$E48-$D$5+$D$4-1),3,""))),"") -> 3 | CM48: 3 | CN48: 3 | CO48: 3 | CP48: 3 | CQ48: 3 | CR48: 3 | CS48: 3 | CT48: 3 | CU48: 3 | CV48: =IF($A$13,IF(AND(CV$2>=1,CV$2<=$D$4,$E48>=1,$E48<=$D$5),1,IF(AND(CV$2>=$D$4+1,CV$2<=$D$4+$D$6,$E48>=CV$2-$D$4+1,$E48<=CV$2-$D$4+$D$5),2,IF(AND($E48>=$D$5+1,$E48<=$D$5+$D$6,CV$2>=$E48-$D$5+1,CV$2<=$E48-$D$5+$D$4-1),3,""))),"") -> 3 | CW48: 3 | CX48: 3 | CY48: 3 | CZ48: 3 | DA48: 3 | DB48: 3 | DC48: 3 | DD48: 3 | DE48: 3 | DF48: =IF($A$13,IF(AND(DF$2>=1,DF$2<=$D$4,$E48>=1,$E48<=$D$5),1,IF(AND(DF$2>=$D$4+1,DF$2<=$D$4+$D$6,$E48>=DF$2-$D$4+1,$E48<=DF$2-$D$4+$D$5),2,IF(AND($E48>=$D$5+1,$E48<=$D$5+$D$6,DF$2>=$E48-$D$5+1,DF$2<=$E48-$D$5+$D$4-1),3,""))),"") -> 3 | DG48: 3 | DH48: 3 | DI48: 3 | DJ48: 3 | DK48: 3 | DL48: 3 | DM48: 3 | DN48: 3 | DO48: 3 | DP48: =IF($A$13,IF(AND(DP$2>=1,DP$2<=$D$4,$E48>=1,$E48<=$D$5),1,IF(AND(DP$2>=$D$4+1,DP$2<=$D$4+$D$6,$E48>=DP$2-$D$4+1,$E48<=DP$2-$D$4+$D$5),2,IF(AND($E48>=$D$5+1,$E48<=$D$5+$D$6,DP$2>=$E48-$D$5+1,DP$2<=$E48-$D$5+$D$4-1),3,""))),"") -> 3 | DQ48: 3 | DR48: 3 | DS48: 3 | DT48: 3 | DU48: 3 | DV48: 3 | DW48: 3 | DX48: 3 | DY48: 3 | DZ48: =IF($A$13,IF(AND(DZ$2>=1,DZ$2<=$D$4,$E48>=1,$E48<=$D$5),1,IF(AND(DZ$2>=$D$4+1,DZ$2<=$D$4+$D$6,$E48>=DZ$2-$D$4+1,$E48<=DZ$2-$D$4+$D$5),2,IF(AND($E48>=$D$5+1,$E48<=$D$5+$D$6,DZ$2>=$E48-$D$5+1,DZ$2<=$E48-$D$5+$D$4-1),3,""))),"") -> 3 | EA48: 3 | EB48: 3 | EC48: 3 | ED48: 3 | EE48: 3 | EF48: 3 | EG48: 3 | EH48: 3 | EI48: 3 | EJ48: =IF($A$13,IF(AND(EJ$2>=1,EJ$2<=$D$4,$E48>=1,$E48<=$D$5),1,IF(AND(EJ$2>=$D$4+1,EJ$2<=$D$4+$D$6,$E48>=EJ$2-$D$4+1,$E48<=EJ$2-$D$4+$D$5),2,IF(AND($E48>=$D$5+1,$E48<=$D$5+$D$6,EJ$2>=$E48-$D$5+1,EJ$2<=$E48-$D$5+$D$4-1),3,""))),"") -> 3 | EK48: 3 | EL48: 3 | EM48: 3 | EN48: 3 | EO48: 3 | EP48: 3 | EQ48: 3 | ER48: 3 | ES48: 3 | ET48: =IF($A$13,IF(AND(ET$2>=1,ET$2<=$D$4,$E48>=1,$E48<=$D$5),1,IF(AND(ET$2>=$D$4+1,ET$2<=$D$4+$D$6,$E48>=ET$2-$D$4+1,$E48<=ET$2-$D$4+$D$5),2,IF(AND($E48>=$D$5+1,$E48<=$D$5+$D$6,ET$2>=$E48-$D$5+1,ET$2<=$E48-$D$5+$D$4-1),3,""))),"") -> 3 | EU48: 3 | EV48: 3 | EW48: 3 | EX48: 3 | EY48: 3 | EZ48: 3 | FA48: 3 | FB48: 3 | FC48: 3 | FD48: =IF($A$13,IF(AND(FD$2>=1,FD$2<=$D$4,$E48>=1,$E48<=$D$5),1,IF(AND(FD$2>=$D$4+1,FD$2<=$D$4+$D$6,$E48>=FD$2-$D$4+1,$E48<=FD$2-$D$4+$D$5),2,IF(AND($E48>=$D$5+1,$E48<=$D$5+$D$6,FD$2>=$E48-$D$5+1,FD$2<=$E48-$D$5+$D$4-1),3,""))),"") -> 3 | FE48: 2 | FF48: 2 | FG48: 2 | FH48: 2 | FI48: 2 | FJ48: 2 | FK48: 2 | FL48: 2 | FM48: 2 | FN48: =IF($A$13,IF(AND(FN$2>=1,FN$2<=$D$4,$E48>=1,$E48<=$D$5),1,IF(AND(FN$2>=$D$4+1,FN$2<=$D$4+$D$6,$E48>=FN$2-$D$4+1,$E48<=FN$2-$D$4+$D$5),2,IF(AND($E48>=$D$5+1,$E48<=$D$5+$D$6,FN$2>=$E48-$D$5+1,FN$2<=$E48-$D$5+$D$4-1),3,""))),"") -> 2 | FO48: 2 | FP48: 2 | FQ48: 2 | FR48: 2 | FX48: =IF($A$13,IF(AND(FX$2>=1,FX$2<=$D$4,$E48>=1,$E48<=$D$5),1,IF(AND(FX$2>=$D$4+1,FX$2<=$D$4+$D$6,$E48>=FX$2-$D$4+1,$E48<=FX$2-$D$4+$D$5),2,IF(AND($E48>=$D$5+1,$E48<=$D$5+$D$6,FX$2>=$E48-$D$5+1,FX$2<=$E48-$D$5+$D$4-1),3,""))),"") ->  | GH48: =IF($A$13,IF(AND(GH$2>=1,GH$2<=$D$4,$E48>=1,$E48<=$D$5),1,IF(AND(GH$2>=$D$4+1,GH$2<=$D$4+$D$6,$E48>=GH$2-$D$4+1,$E48<=GH$2-$D$4+$D$5),2,IF(AND($E48>=$D$5+1,$E48<=$D$5+$D$6,GH$2>=$E48-$D$5+1,GH$2<=$E48-$D$5+$D$4-1),3,""))),"") ->  | GR48: =IF($A$13,IF(AND(GR$2>=1,GR$2<=$D$4,$E48>=1,$E48<=$D$5),1,IF(AND(GR$2>=$D$4+1,GR$2<=$D$4+$D$6,$E48>=GR$2-$D$4+1,$E48<=GR$2-$D$4+$D$5),2,IF(AND($E48>=$D$5+1,$E48<=$D$5+$D$6,GR$2>=$E48-$D$5+1,GR$2<=$E48-$D$5+$D$4-1),3,""))),"") -> 
D49: 32 | E49: 169 | BW49: 3 | BX49: 3 | BY49: 3 | BZ49: 3 | CA49: 3 | CB49: 3 | CC49: 3 | CD49: 3 | CE49: 3 | CF49: 3 | CG49: 3 | CH49: 3 | CI49: 3 | CJ49: 3 | CK49: 3 | CL49: 3 | CM49: 3 | CN49: 3 | CO49: 3 | CP49: 3 | CQ49: 3 | CR49: 3 | CS49: 3 | CT49: 3 | CU49: 3 | CV49: 3 | CW49: 3 | CX49: 3 | CY49: 3 | CZ49: 3 | DA49: 3 | DB49: 3 | DC49: 3 | DD49: 3 | DE49: 3 | DF49: 3 | DG49: 3 | DH49: 3 | DI49: 3 | DJ49: 3 | DK49: 3 | DL49: 3 | DM49: 3 | DN49: 3 | DO49: 3 | DP49: 3 | DQ49: 3 | DR49: 3 | DS49: 3 | DT49: 3 | DU49: 3 | DV49: 3 | DW49: 3 | DX49: 3 | DY49: 3 | DZ49: 3 | EA49: 3 | EB49: 3 | EC49: 3 | ED49: 3 | EE49: 3 | EF49: 3 | EG49: 3 | EH49: 3 | EI49: 3 | EJ49: 3 | EK49: 3 | EL49: 3 | EM49: 3 | EN49: 3 | EO49: 3 | EP49: 3 | EQ49: 3 | ER49: 3 | ES49: 3 | ET49: 3 | EU49: 3 | EV49: 3 | EW49: 3 | EX49: 3 | EY49: 3 | EZ49: 3 | FA49: 3 | FB49: 3 | FC49: 3 | FD49: 2 | FE49: 2 | FF49: 2 | FG49: 2 | FH49: 2 | FI49: 2 | FJ49: 2 | FK49: 2 | FL49: 2 | FM49: 2 | FN49: 2 | FO49: 2 | FP49: 2 | FQ49: 2 | FR49: 2
D50: 33 | E50: 168 | BV50: 3 | BW50: 3 | BX50: 3 | BY50: 3 | BZ50: 3 | CA50: 3 | CB50: 3 | CC50: 3 | CD50: 3 | CE50: 3 | CF50: 3 | CG50: 3 | CH50: 3 | CI50: 3 | CJ50: 3 | CK50: 3 | CL50: 3 | CM50: 3 | CN50: 3 | CO50: 3 | CP50: 3 | CQ50: 3 | CR50: 3 | CS50: 3 | CT50: 3 | CU50: 3 | CV50: 3 | CW50: 3 | CX50: 3 | CY50: 3 | CZ50: 3 | DA50: 3 | DB50: 3 | DC50: 3 | DD50: 3 | DE50: 3 | DF50: 3 | DG50: 3 | DH50: 3 | DI50: 3 | DJ50: 3 | DK50: 3 | DL50: 3 | DM50: 3 | DN50: 3 | DO50: 3 | DP50: 3 | DQ50: 3 | DR50: 3 | DS50: 3 | DT50: 3 | DU50: 3 | DV50: 3 | DW50: 3 | DX50: 3 | DY50: 3 | DZ50: 3 | EA50: 3 | EB50: 3 | EC50: 3 | ED50: 3 | EE50: 3 | EF50: 3 | EG50: 3 | EH50: 3 | EI50: 3 | EJ50: 3 | EK50: 3 | EL50: 3 | EM50: 3 | EN50: 3 | EO50: 3 | EP50: 3 | EQ50: 3 | ER50: 3 | ES50: 3 | ET50: 3 | EU50: 3 | EV50: 3 | EW50: 3 | EX50: 3 | EY50: 3 | EZ50: 3 | FA50: 3 | FB50: 3 | FC50: 2 | FD50: 2 | FE50: 2 | FF50: 2 | FG50: 2 | FH50: 2 | FI50: 2 | FJ50: 2 | FK50: 2 | FL50: 2 | FM50: 2 | FN50: 2 | FO50: 2 | FP50: 2 | FQ50: 2 | FR50: 2
D51: 34 | E51: 167 | BU51: 3 | BV51: 3 | BW51: 3 | BX51: 3 | BY51: 3 | BZ51: 3 | CA51: 3 | CB51: 3 | CC51: 3 | CD51: 3 | CE51: 3 | CF51: 3 | CG51: 3 | CH51: 3 | CI51: 3 | CJ51: 3 | CK51: 3 | CL51: 3 | CM51: 3 | CN51: 3 | CO51: 3 | CP51: 3 | CQ51: 3 | CR51: 3 | CS51: 3 | CT51: 3 | CU51: 3 | CV51: 3 | CW51: 3 | CX51: 3 | CY51: 3 | CZ51: 3 | DA51: 3 | DB51: 3 | DC51: 3 | DD51: 3 | DE51: 3 | DF51: 3 | DG51: 3 | DH51: 3 | DI51: 3 | DJ51: 3 | DK51: 3 | DL51: 3 | DM51: 3 | DN51: 3 | DO51: 3 | DP51: 3 | DQ51: 3 | DR51: 3 | DS51: 3 | DT51: 3 | DU51: 3 | DV51: 3 | DW51: 3 | DX51: 3 | DY51: 3 | DZ51: 3 | EA51: 3 | EB51: 3 | EC51: 3 | ED51: 3 | EE51: 3 | EF51: 3 | EG51: 3 | EH51: 3 | EI51: 3 | EJ51: 3 | EK51: 3 | EL51: 3 | EM51: 3 | EN51: 3 | EO51: 3 | EP51: 3 | EQ51: 3 | ER51: 3 | ES51: 3 | ET51: 3 | EU51: 3 | EV51: 3 | EW51: 3 | EX51: 3 | EY51: 3 | EZ51: 3 | FA51: 3 | FB51: 2 | FC51: 2 | FD51: 2 | FE51: 2 | FF51: 2 | FG51: 2 | FH51: 2 | FI51: 2 | FJ51: 2 | FK51: 2 | FL51: 2 | FM51: 2 | FN51: 2 | FO51: 2 | FP51: 2 | FQ51: 2 | FR51: 2
D52: 35 | E52: 166 | BT52: 3 | BU52: 3 | BV52: 3 | BW52: 3 | BX52: 3 | BY52: 3 | BZ52: 3 | CA52: 3 | CB52: 3 | CC52: 3 | CD52: 3 | CE52: 3 | CF52: 3 | CG52: 3 | CH52: 3 | CI52: 3 | CJ52: 3 | CK52: 3 | CL52: 3 | CM52: 3 | CN52: 3 | CO52: 3 | CP52: 3 | CQ52: 3 | CR52: 3 | CS52: 3 | CT52: 3 | CU52: 3 | CV52: 3 | CW52: 3 | CX52: 3 | CY52: 3 | CZ52: 3 | DA52: 3 | DB52: 3 | DC52: 3 | DD52: 3 | DE52: 3 | DF52: 3 | DG52: 3 | DH52: 3 | DI52: 3 | DJ52: 3 | DK52: 3 | DL52: 3 | DM52: 3 | DN52: 3 | DO52: 3 | DP52: 3 | DQ52: 3 | DR52: 3 | DS52: 3 | DT52: 3 | DU52: 3 | DV52: 3 | DW52: 3 | DX52: 3 | DY52: 3 | DZ52: 3 | EA52: 3 | EB52: 3 | EC52: 3 | ED52: 3 | EE52: 3 | EF52: 3 | EG52: 3 | EH52: 3 | EI52: 3 | EJ52: 3 | EK52: 3 | EL52: 3 | EM52: 3 | EN52: 3 | EO52: 3 | EP52: 3 | EQ52: 3 | ER52: 3 | ES52: 3 | ET52: 3 | EU52: 3 | EV52: 3 | EW52: 3 | EX52: 3 | EY52: 3 | EZ52: 3 | FA52: 2 | FB52: 2 | FC52: 2 | FD52: 2 | FE52: 2 | FF52: 2 | FG52: 2 | FH52: 2 | FI52: 2 | FJ52: 2 | FK52: 2 | FL52: 2 | FM52: 2 | FN52: 2 | FO52: 2 | FP52: 2 | FQ52: 2 | FR52: 2
D53: 36 | E53: 165 | BS53: 3 | BT53: 3 | BU53: 3 | BV53: 3 | BW53: 3 | BX53: 3 | BY53: 3 | BZ53: 3 | CA53: 3 | CB53: 3 | CC53: 3 | CD53: 3 | CE53: 3 | CF53: 3 | CG53: 3 | CH53: 3 | CI53: 3 | CJ53: 3 | CK53: 3 | CL53: 3 | CM53: 3 | CN53: 3 | CO53: 3 | CP53: 3 | CQ53: 3 | CR53: 3 | CS53: 3 | CT53: 3 | CU53: 3 | CV53: 3 | CW53: 3 | CX53: 3 | CY53: 3 | CZ53: 3 | DA53: 3 | DB53: 3 | DC53: 3 | DD53: 3 | DE53: 3 | DF53: 3 | DG53: 3 | DH53: 3 | DI53: 3 | DJ53: 3 | DK53: 3 | DL53: 3 | DM53: 3 | DN53: 3 | DO53: 3 | DP53: 3 | DQ53: 3 | DR53: 3 | DS53: 3 | DT53: 3 | DU53: 3 | DV53: 3 | DW53: 3 | DX53: 3 | DY53: 3 | DZ53: 3 | EA53: 3 | EB53: 3 | EC53: 3 | ED53: 3 | EE53: 3 | EF53: 3 | EG53: 3 | EH53: 3 | EI53: 3 | EJ53: 3 | EK53: 3 | EL53: 3 | EM53: 3 | EN53: 3 | EO53: 3 | EP53: 3 | EQ53: 3 | ER53: 3 | ES53: 3 | ET53: 3 | EU53: 3 | EV53: 3 | EW53: 3 | EX53: 3 | EY53: 3 | EZ53: 2 | FA53: 2 | FB53: 2 | FC53: 2 | FD53: 2 | FE53: 2 | FF53: 2 | FG53: 2 | FH53: 2 | FI53: 2 | FJ53: 2 | FK53: 2 | FL53: 2 | FM53: 2 | FN53: 2 | FO53: 2 | FP53: 2 | FQ53: 2 | FR53: 2
D54: 37 | E54: 164 | BR54: 3 | BS54: 3 | BT54: 3 | BU54: 3 | BV54: 3 | BW54: 3 | BX54: 3 | BY54: 3 | BZ54: 3 | CA54: 3 | CB54: 3 | CC54: 3 | CD54: 3 | CE54: 3 | CF54: 3 | CG54: 3 | CH54: 3 | CI54: 3 | CJ54: 3 | CK54: 3 | CL54: 3 | CM54: 3 | CN54: 3 | CO54: 3 | CP54: 3 | CQ54: 3 | CR54: 3 | CS54: 3 | CT54: 3 | CU54: 3 | CV54: 3 | CW54: 3 | CX54: 3 | CY54: 3 | CZ54: 3 | DA54: 3 | DB54: 3 | DC54: 3 | DD54: 3 | DE54: 3 | DF54: 3 | DG54: 3 | DH54: 3 | DI54: 3 | DJ54: 3 | DK54: 3 | DL54: 3 | DM54: 3 | DN54: 3 | DO54: 3 | DP54: 3 | DQ54: 3 | DR54: 3 | DS54: 3 | DT54: 3 | DU54: 3 | DV54: 3 | DW54: 3 | DX54: 3 | DY54: 3 | DZ54: 3 | EA54: 3 | EB54: 3 | EC54: 3 | ED54: 3 | EE54: 3 | EF54: 3 | EG54: 3 | EH54: 3 | EI54: 3 | EJ54: 3 | EK54: 3 | EL54: 3 | EM54: 3 | EN54: 3 | EO54: 3 | EP54: 3 | EQ54: 3 | ER54: 3 | ES54: 3 | ET54: 3 | EU54: 3 | EV54: 3 | EW54: 3 | EX54: 3 | EY54: 2 | EZ54: 2 | FA54: 2 | FB54: 2 | FC54: 2 | FD54: 2 | FE54: 2 | FF54: 2 | FG54: 2 | FH54: 2 | FI54: 2 | FJ54: 2 | FK54: 2 | FL54: 2 | FM54: 2 | FN54: 2 | FO54: 2 | FP54: 2 | FQ54: 2 | FR54: 2
D55: 38 | E55: 163 | BQ55: 3 | BR55: 3 | BS55: 3 | BT55: 3 | BU55: 3 | BV55: 3 | BW55: 3 | BX55: 3 | BY55: 3 | BZ55: 3 | CA55: 3 | CB55: 3 | CC55: 3 | CD55: 3 | CE55: 3 | CF55: 3 | CG55: 3 | CH55: 3 | CI55: 3 | CJ55: 3 | CK55: 3 | CL55: 3 | CM55: 3 | CN55: 3 | CO55: 3 | CP55: 3 | CQ55: 3 | CR55: 3 | CS55: 3 | CT55: 3 | CU55: 3 | CV55: 3 | CW55: 3 | CX55: 3 | CY55: 3 | CZ55: 3 | DA55: 3 | DB55: 3 | DC55: 3 | DD55: 3 | DE55: 3 | DF55: 3 | DG55: 3 | DH55: 3 | DI55: 3 | DJ55: 3 | DK55: 3 | DL55: 3 | DM55: 3 | DN55: 3 | DO55: 3 | DP55: 3 | DQ55: 3 | DR55: 3 | DS55: 3 | DT55: 3 | DU55: 3 | DV55: 3 | DW55: 3 | DX55: 3 | DY55: 3 | DZ55: 3 | EA55: 3 | EB55: 3 | EC55: 3 | ED55: 3 | EE55: 3 | EF55: 3 | EG55: 3 | EH55: 3 | EI55: 3 | EJ55: 3 | EK55: 3 | EL55: 3 | EM55: 3 | EN55: 3 | EO55: 3 | EP55: 3 | EQ55: 3 | ER55: 3 | ES55: 3 | ET55: 3 | EU55: 3 | EV55: 3 | EW55: 3 | EX55: 2 | EY55: 2 | EZ55: 2 | FA55: 2 | FB55: 2 | FC55: 2 | FD55: 2 | FE55: 2 | FF55: 2 | FG55: 2 | FH55: 2 | FI55: 2 | FJ55: 2 | FK55: 2 | FL55: 2 | FM55: 2 | FN55: 2 | FO55: 2 | FP55: 2 | FQ55: 2 | FR55: 2
D56: 39 | E56: 162 | BP56: 3 | BQ56: 3 | BR56: 3 | BS56: 3 | BT56: 3 | BU56: 3 | BV56: 3 | BW56: 3 | BX56: 3 | BY56: 3 | BZ56: 3 | CA56: 3 | CB56: 3 | CC56: 3 | CD56: 3 | CE56: 3 | CF56: 3 | CG56: 3 | CH56: 3 | CI56: 3 | CJ56: 3 | CK56: 3 | CL56: 3 | CM56: 3 | CN56: 3 | CO56: 3 | CP56: 3 | CQ56: 3 | CR56: 3 | CS56: 3 | CT56: 3 | CU56: 3 | CV56: 3 | CW56: 3 | CX56: 3 | CY56: 3 | CZ56: 3 | DA56: 3 | DB56: 3 | DC56: 3 | DD56: 3 | DE56: 3 | DF56: 3 | DG56: 3 | DH56: 3 | DI56: 3 | DJ56: 3 | DK56: 3 | DL56: 3 | DM56: 3 | DN56: 3 | DO56: 3 | DP56: 3 | DQ56: 3 | DR56: 3 | DS56: 3 | DT56: 3 | DU56: 3 | DV56: 3 | DW56: 3 | DX56: 3 | DY56: 3 | DZ56: 3 | EA56: 3 | EB56: 3 | EC56: 3 | ED56: 3 | EE56: 3 | EF56: 3 | EG56: 3 | EH56: 3 | EI56: 3 | EJ56: 3 | EK56: 3 | EL56: 3 | EM56: 3 | EN56: 3 | EO56: 3 | EP56: 3 | EQ56: 3 | ER56: 3 | ES56: 3 | ET56: 3 | EU56: 3 | EV56: 3 | EW56: 2 | EX56: 2 | EY56: 2 | EZ56: 2 | FA56: 2 | FB56: 2 | FC56: 2 | FD56: 2 | FE56: 2 | FF56: 2 | FG56: 2 | FH56: 2 | FI56: 2 | FJ56: 2 | FK56: 2 | FL56: 2 | FM56: 2 | FN56: 2 | FO56: 2 | FP56: 2 | FQ56: 2 | FR56: 2
D57: 40 | E57: 161 | BO57: 3 | BP57: 3 | BQ57: 3 | BR57: 3 | BS57: 3 | BT57: 3 | BU57: 3 | BV57: 3 | BW57: 3 | BX57: 3 | BY57: 3 | BZ57: 3 | CA57: 3 | CB57: 3 | CC57: 3 | CD57: 3 | CE57: 3 | CF57: 3 | CG57: 3 | CH57: 3 | CI57: 3 | CJ57: 3 | CK57: 3 | CL57: 3 | CM57: 3 | CN57: 3 | CO57: 3 | CP57: 3 | CQ57: 3 | CR57: 3 | CS57: 3 | CT57: 3 | CU57: 3 | CV57: 3 | CW57: 3 | CX57: 3 | CY57: 3 | CZ57: 3 | DA57: 3 | DB57: 3 | DC57: 3 | DD57: 3 | DE57: 3 | DF57: 3 | DG57: 3 | DH57: 3 | DI57: 3 | DJ57: 3 | DK57: 3 | DL57: 3 | DM57: 3 | DN57: 3 | DO57: 3 | DP57: 3 | DQ57: 3 | DR57: 3 | DS57: 3 | DT57: 3 | DU57: 3 | DV57: 3 | DW57: 3 | DX57: 3 | DY57: 3 | DZ57: 3 | EA57: 3 | EB57: 3 | EC57: 3 | ED57: 3 | EE57: 3 | EF57: 3 | EG57: 3 | EH57: 3 | EI57: 3 | EJ57: 3 | EK57: 3 | EL57: 3 | EM57: 3 | EN57: 3 | EO57: 3 | EP57: 3 | EQ57: 3 | ER57: 3 | ES57: 3 | ET57: 3 | EU57: 3 | EV57: 2 | EW57: 2 | EX57: 2 | EY57: 2 | EZ57: 2 | FA57: 2 | FB57: 2 | FC57: 2 | FD57: 2 | FE57: 2 | FF57: 2 | FG57: 2 | FH57: 2 | FI57: 2 | FJ57: 2 | FK57: 2 | FL57: 2 | FM57: 2 | FN57: 2 | FO57: 2 | FP57: 2 | FQ57: 2 | FR57: 2
D58: 41 | E58: 160 | J58: =IF($A$13,IF(AND(J$2>=1,J$2<=$D$4,$E58>=1,$E58<=$D$5),1,IF(AND(J$2>=$D$4+1,J$2<=$D$4+$D$6,$E58>=J$2-$D$4+1,$E58<=J$2-$D$4+$D$5),2,IF(AND($E58>=$D$5+1,$E58<=$D$5+$D$6,J$2>=$E58-$D$5+1,J$2<=$E58-$D$5+$D$4-1),3,""))),"") ->  | T58: =IF($A$13,IF(AND(T$2>=1,T$2<=$D$4,$E58>=1,$E58<=$D$5),1,IF(AND(T$2>=$D$4+1,T$2<=$D$4+$D$6,$E58>=T$2-$D$4+1,$E58<=T$2-$D$4+$D$5),2,IF(AND($E58>=$D$5+1,$E58<=$D$5+$D$6,T$2>=$E58-$D$5+1,T$2<=$E58-$D$5+$D$4-1),3,""))),"") ->  | AD58: =IF($A$13,IF(AND(AD$2>=1,AD$2<=$D$4,$E58>=1,$E58<=$D$5),1,IF(AND(AD$2>=$D$4+1,AD$2<=$D$4+$D$6,$E58>=AD$2-$D$4+1,$E58<=AD$2-$D$4+$D$5),2,IF(AND($E58>=$D$5+1,$E58<=$D$5+$D$6,AD$2>=$E58-$D$5+1,AD$2<=$E58-$D$5+$D$4-1),3,""))),"") ->  | AN58: =IF($A$13,IF(AND(AN$2>=1,AN$2<=$D$4,$E58>=1,$E58<=$D$5),1,IF(AND(AN$2>=$D$4+1,AN$2<=$D$4+$D$6,$E58>=AN$2-$D$4+1,$E58<=AN$2-$D$4+$D$5),2,IF(AND($E58>=$D$5+1,$E58<=$D$5+$D$6,AN$2>=$E58-$D$5+1,AN$2<=$E58-$D$5+$D$4-1),3,""))),"") ->  | AX58: =IF($A$13,IF(AND(AX$2>=1,AX$2<=$D$4,$E58>=1,$E58<=$D$5),1,IF(AND(AX$2>=$D$4+1,AX$2<=$D$4+$D$6,$E58>=AX$2-$D$4+1,$E58<=AX$2-$D$4+$D$5),2,IF(AND($E58>=$D$5+1,$E58<=$D$5+$D$6,AX$2>=$E58-$D$5+1,AX$2<=$E58-$D$5+$D$4-1),3,""))),"") ->  | BH58: =IF($A$13,IF(AND(BH$2>=1,BH$2<=$D$4,$E58>=1,$E58<=$D$5),1,IF(AND(BH$2>=$D$4+1,BH$2<=$D$4+$D$6,$E58>=BH$2-$D$4+1,$E58<=BH$2-$D$4+$D$5),2,IF(AND($E58>=$D$5+1,$E58<=$D$5+$D$6,BH$2>=$E58-$D$5+1,BH$2<=$E58-$D$5+$D$4-1),3,""))),"") ->  | BN58: 3 | BO58: 3 | BP58: 3 | BQ58: 3 | BR58: =IF($A$13,IF(AND(BR$2>=1,BR$2<=$D$4,$E58>=1,$E58<=$D$5),1,IF(AND(BR$2>=$D$4+1,BR$2<=$D$4+$D$6,$E58>=BR$2-$D$4+1,$E58<=BR$2-$D$4+$D$5),2,IF(AND($E58>=$D$5+1,$E58<=$D$5+$D$6,BR$2>=$E58-$D$5+1,BR$2<=$E58-$D$5+$D$4-1),3,""))),"") -> 3 | BS58: 3 | BT58: 3 | BU58: 3 | BV58: 3 | BW58: 3 | BX58: 3 | BY58: 3 | BZ58: 3 | CA58: 3 | CB58: =IF($A$13,IF(AND(CB$2>=1,CB$2<=$D$4,$E58>=1,$E58<=$D$5),1,IF(AND(CB$2>=$D$4+1,CB$2<=$D$4+$D$6,$E58>=CB$2-$D$4+1,$E58<=CB$2-$D$4+$D$5),2,IF(AND($E58>=$D$5+1,$E58<=$D$5+$D$6,CB$2>=$E58-$D$5+1,CB$2<=$E58-$D$5+$D$4-1),3,""))),"") -> 3 | CC58: 3 | CD58: 3 | CE58: 3 | CF58: 3 | CG58: 3 | CH58: 3 | CI58: 3 | CJ58: 3 | CK58: 3 | CL58: =IF($A$13,IF(AND(CL$2>=1,CL$2<=$D$4,$E58>=1,$E58<=$D$5),1,IF(AND(CL$2>=$D$4+1,CL$2<=$D$4+$D$6,$E58>=CL$2-$D$4+1,$E58<=CL$2-$D$4+$D$5),2,IF(AND($E58>=$D$5+1,$E58<=$D$5+$D$6,CL$2>=$E58-$D$5+1,CL$2<=$E58-$D$5+$D$4-1),3,""))),"") -> 3 | CM58: 3 | CN58: 3 | CO58: 3 | CP58: 3 | CQ58: 3 | CR58: 3 | CS58: 3 | CT58: 3 | CU58: 3 | CV58: =IF($A$13,IF(AND(CV$2>=1,CV$2<=$D$4,$E58>=1,$E58<=$D$5),1,IF(AND(CV$2>=$D$4+1,CV$2<=$D$4+$D$6,$E58>=CV$2-$D$4+1,$E58<=CV$2-$D$4+$D$5),2,IF(AND($E58>=$D$5+1,$E58<=$D$5+$D$6,CV$2>=$E58-$D$5+1,CV$2<=$E58-$D$5+$D$4-1),3,""))),"") -> 3 | CW58: 3 | CX58: 3 | CY58: 3 | CZ58: 3 | DA58: 3 | DB58: 3 | DC58: 3 | DD58: 3 | DE58: 3 | DF58: =IF($A$13,IF(AND(DF$2>=1,DF$2<=$D$4,$E58>=1,$E58<=$D$5),1,IF(AND(DF$2>=$D$4+1,DF$2<=$D$4+$D$6,$E58>=DF$2-$D$4+1,$E58<=DF$2-$D$4+$D$5),2,IF(AND($E58>=$D$5+1,$E58<=$D$5+$D$6,DF$2>=$E58-$D$5+1,DF$2<=$E58-$D$5+$D$4-1),3,""))),"") -> 3 | DG58: 3 | DH58: 3 | DI58: 3 | DJ58: 3 | DK58: 3 | DL58: 3 | DM58: 3 | DN58: 3 | DO58: 3 | DP58: =IF($A$13,IF(AND(DP$2>=1,DP$2<=$D$4,$E58>=1,$E58<=$D$5),1,IF(AND(DP$2>=$D$4+1,DP$2<=$D$4+$D$6,$E58>=DP$2-$D$4+1,$E58<=DP$2-$D$4+$D$5),2,IF(AND($E58>=$D$5+1,$E58<=$D$5+$D$6,DP$2>=$E58-$D$5+1,DP$2<=$E58-$D$5+$D$4-1),3,""))),"") -> 3 | DQ58: 3 | DR58: 3 | DS58: 3 | DT58: 3 | DU58: 3 | DV58: 3 | DW58: 3 | DX58: 3 | DY58: 3 | DZ58: =IF($A$13,IF(AND(DZ$2>=1,DZ$2<=$D$4,$E58>=1,$E58<=$D$5),1,IF(AND(DZ$2>=$D$4+1,DZ$2<=$D$4+$D$6,$E58>=DZ$2-$D$4+1,$E58<=DZ$2-$D$4+$D$5),2,IF(AND($E58>=$D$5+1,$E58<=$D$5+$D$6,DZ$2>=$E58-$D$5+1,DZ$2<=$E58-$D$5+$D$4-1),3,""))),"") -> 3 | EA58: 3 | EB58: 3 | EC58: 3 | ED58: 3 | EE58: 3 | EF58: 3 | EG58: 3 | EH58: 3 | EI58: 3 | EJ58: =IF($A$13,IF(AND(EJ$2>=1,EJ$2<=$D$4,$E58>=1,$E58<=$D$5),1,IF(AND(EJ$2>=$D$4+1,EJ$2<=$D$4+$D$6,$E58>=EJ$2-$D$4+1,$E58<=EJ$2-$D$4+$D$5),2,IF(AND($E58>=$D$5+1,$E58<=$D$5+$D$6,EJ$2>=$E58-$D$5+1,EJ$2<=$E58-$D$5+$D$4-1),3,""))),"") -> 3 | EK58: 3 | EL58: 3 | EM58: 3 | EN58: 3 | EO58: 3 | EP58: 3 | EQ58: 3 | ER58: 3 | ES58: 3 | ET58: =IF($A$13,IF(AND(ET$2>=1,ET$2<=$D$4,$E58>=1,$E58<=$D$5),1,IF(AND(ET$2>=$D$4+1,ET$2<=$D$4+$D$6,$E58>=ET$2-$D$4+1,$E58<=ET$2-$D$4+$D$5),2,IF(AND($E58>=$D$5+1,$E58<=$D$5+$D$6,ET$2>=$E58-$D$5+1,ET$2<=$E58-$D$5+$D$4-1),3,""))),"") -> 3 | EU58: 2 | EV58: 2 | EW58: 2 | EX58: 2 | EY58: 2 | EZ58: 2 | FA58: 2 | FB58: 2 | FC58: 2 | FD58: =IF($A$13,IF(AND(FD$2>=1,FD$2<=$D$4,$E58>=1,$E58<=$D$5),1,IF(AND(FD$2>=$D$4+1,FD$2<=$D$4+$D$6,$E58>=FD$2-$D$4+1,$E58<=FD$2-$D$4+$D$5),2,IF(AND($E58>=$D$5+1,$E58<=$D$5+$D$6,FD$2>=$E58-$D$5+1,FD$2<=$E58-$D$5+$D$4-1),3,""))),"") -> 2 | FE58: 2 | FF58: 2 | FG58: 2 | FH58: 2 | FI58: 2 | FJ58: 2 | FK58: 2 | FL58: 2 | FM58: 2 | FN58: =IF($A$13,IF(AND(FN$2>=1,FN$2<=$D$4,$E58>=1,$E58<=$D$5),1,IF(AND(FN$2>=$D$4+1,FN$2<=$D$4+$D$6,$E58>=FN$2-$D$4+1,$E58<=FN$2-$D$4+$D$5),2,IF(AND($E58>=$D$5+1,$E58<=$D$5+$D$6,FN$2>=$E58-$D$5+1,FN$2<=$E58-$D$5+$D$4-1),3,""))),"") -> 2 | FO58: 2 | FP58: 2 | FQ58: 2 | FR58: 2 | FX58: =IF($A$13,IF(AND(FX$2>=1,FX$2<=$D$4,$E58>=1,$E58<=$D$5),1,IF(AND(FX$2>=$D$4+1,FX$2<=$D$4+$D$6,$E58>=FX$2-$D$4+1,$E58<=FX$2-$D$4+$D$5),2,IF(AND($E58>=$D$5+1,$E58<=$D$5+$D$6,FX$2>=$E58-$D$5+1,FX$2<=$E58-$D$5+$D$4-1),3,""))),"") ->  | GH58: =IF($A$13,IF(AND(GH$2>=1,GH$2<=$D$4,$E58>=1,$E58<=$D$5),1,IF(AND(GH$2>=$D$4+1,GH$2<=$D$4+$D$6,$E58>=GH$2-$D$4+1,$E58<=GH$2-$D$4+$D$5),2,IF(AND($E58>=$D$5+1,$E58<=$D$5+$D$6,GH$2>=$E58-$D$5+1,GH$2<=$E58-$D$5+$D$4-1),3,""))),"") ->  | GR58: =IF($A$13,IF(AND(GR$2>=1,GR$2<=$D$4,$E58>=1,$E58<=$D$5),1,IF(AND(GR$2>=$D$4+1,GR$2<=$D$4+$D$6,$E58>=GR$2-$D$4+1,$E58<=GR$2-$D$4+$D$5),2,IF(AND($E58>=$D$5+1,$E58<=$D$5+$D$6,GR$2>=$E58-$D$5+1,GR$2<=$E58-$D$5+$D$4-1),3,""))),"") -> 
D59: 42 | E59: 159 | BM59: 3 | BN59: 3 | BO59: 3 | BP59: 3 | BQ59: 3 | BR59: 3 | BS59: 3 | BT59: 3 | BU59: 3 | BV59: 3 | BW59: 3 | BX59: 3 | BY59: 3 | BZ59: 3 | CA59: 3 | CB59: 3 | CC59: 3 | CD59: 3 | CE59: 3 | CF59: 3 | CG59: 3 | CH59: 3 | CI59: 3 | CJ59: 3 | CK59: 3 | CL59: 3 | CM59: 3 | CN59: 3 | CO59: 3 | CP59: 3 | CQ59: 3 | CR59: 3 | CS59: 3 | CT59: 3 | CU59: 3 | CV59: 3 | CW59: 3 | CX59: 3 | CY59: 3 | CZ59: 3 | DA59: 3 | DB59: 3 | DC59: 3 | DD59: 3 | DE59: 3 | DF59: 3 | DG59: 3 | DH59: 3 | DI59: 3 | DJ59: 3 | DK59: 3 | DL59: 3 | DM59: 3 | DN59: 3 | DO59: 3 | DP59: 3 | DQ59: 3 | DR59: 3 | DS59: 3 | DT59: 3 | DU59: 3 | DV59: 3 | DW59: 3 | DX59: 3 | DY59: 3 | DZ59: 3 | EA59: 3 | EB59: 3 | EC59: 3 | ED59: 3 | EE59: 3 | EF59: 3 | EG59: 3 | EH59: 3 | EI59: 3 | EJ59: 3 | EK59: 3 | EL59: 3 | EM59: 3 | EN59: 3 | EO59: 3 | EP59: 3 | EQ59: 3 | ER59: 3 | ES59: 3 | ET59: 2 | EU59: 2 | EV59: 2 | EW59: 2 | EX59: 2 | EY59: 2 | EZ59: 2 | FA59: 2 | FB59: 2 | FC59: 2 | FD59: 2 | FE59: 2 | FF59: 2 | FG59: 2 | FH59: 2 | FI59: 2 | FJ59: 2 | FK59: 2 | FL59: 2 | FM59: 2 | FN59: 2 | FO59: 2 | FP59: 2 | FQ59: 2 | FR59: 2
D60: 43 | E60: 158 | BL60: 3 | BM60: 3 | BN60: 3 | BO60: 3 | BP60: 3 | BQ60: 3 | BR60: 3 | BS60: 3 | BT60: 3 | BU60: 3 | BV60: 3 | BW60: 3 | BX60: 3 | BY60: 3 | BZ60: 3 | CA60: 3 | CB60: 3 | CC60: 3 | CD60: 3 | CE60: 3 | CF60: 3 | CG60: 3 | CH60: 3 | CI60: 3 | CJ60: 3 | CK60: 3 | CL60: 3 | CM60: 3 | CN60: 3 | CO60: 3 | CP60: 3 | CQ60: 3 | CR60: 3 | CS60: 3 | CT60: 3 | CU60: 3 | CV60: 3 | CW60: 3 | CX60: 3 | CY60: 3 | CZ60: 3 | DA60: 3 | DB60: 3 | DC60: 3 | DD60: 3 | DE60: 3 | DF60: 3 | DG60: 3 | DH60: 3 | DI60: 3 | DJ60: 3 | DK60: 3 | DL60: 3 | DM60: 3 | DN60: 3 | DO60: 3 | DP60: 3 | DQ60: 3 | DR60: 3 | DS60: 3 | DT60: 3 | DU60: 3 | DV60: 3 | DW60: 3 | DX60: 3 | DY60: 3 | DZ60: 3 | EA60: 3 | EB60: 3 | EC60: 3 | ED60: 3 | EE60: 3 | EF60: 3 | EG60: 3 | EH60: 3 | EI60: 3 | EJ60: 3 | EK60: 3 | EL60: 3 | EM60: 3 | EN60: 3 | EO60: 3 | EP60: 3 | EQ60: 3 | ER60: 3 | ES60: 2 | ET60: 2 | EU60: 2 | EV60: 2 | EW60: 2 | EX60: 2 | EY60: 2 | EZ60: 2 | FA60: 2 | FB60: 2 | FC60: 2 | FD60: 2 | FE60: 2 | FF60: 2 | FG60: 2 | FH60: 2 | FI60: 2 | FJ60: 2 | FK60: 2 | FL60: 2 | FM60: 2 | FN60: 2 | FO60: 2 | FP60: 2 | FQ60: 2 | FR60: 2
D61: 44 | E61: 157 | BK61: 3 | BL61: 3 | BM61: 3 | BN61: 3 | BO61: 3 | BP61: 3 | BQ61: 3 | BR61: 3 | BS61: 3 | BT61: 3 | BU61: 3 | BV61: 3 | BW61: 3 | BX61: 3 | BY61: 3 | BZ61: 3 | CA61: 3 | CB61: 3 | CC61: 3 | CD61: 3 | CE61: 3 | CF61: 3 | CG61: 3 | CH61: 3 | CI61: 3 | CJ61: 3 | CK61: 3 | CL61: 3 | CM61: 3 | CN61: 3 | CO61: 3 | CP61: 3 | CQ61: 3 | CR61: 3 | CS61: 3 | CT61: 3 | CU61: 3 | CV61: 3 | CW61: 3 | CX61: 3 | CY61: 3 | CZ61: 3 | DA61: 3 | DB61: 3 | DC61: 3 | DD61: 3 | DE61: 3 | DF61: 3 | DG61: 3 | DH61: 3 | DI61: 3 | DJ61: 3 | DK61: 3 | DL61: 3 | DM61: 3 | DN61: 3 | DO61: 3 | DP61: 3 | DQ61: 3 | DR61: 3 | DS61: 3 | DT61: 3 | DU61: 3 | DV61: 3 | DW61: 3 | DX61: 3 | DY61: 3 | DZ61: 3 | EA61: 3 | EB61: 3 | EC61: 3 | ED61: 3 | EE61: 3 | EF61: 3 | EG61: 3 | EH61: 3 | EI61: 3 | EJ61: 3 | EK61: 3 | EL61: 3 | EM61: 3 | EN61: 3 | EO61: 3 | EP61: 3 | EQ61: 3 | ER61: 2 | ES61: 2 | ET61: 2 | EU61: 2 | EV61: 2 | EW61: 2 | EX61: 2 | EY61: 2 | EZ61: 2 | FA61: 2 | FB61: 2 | FC61: 2 | FD61: 2 | FE61: 2 | FF61: 2 | FG61: 2 | FH61: 2 | FI61: 2 | FJ61: 2 | FK61: 2 | FL61: 2 | FM61: 2 | FN61: 2 | FO61: 2 | FP61: 2 | FQ61: 2 | FR61: 2
D62: 45 | E62: 156 | BJ62: 3 | BK62: 3 | BL62: 3 | BM62: 3 | BN62: 3 | BO62: 3 | BP62: 3 | BQ62: 3 | BR62: 3 | BS62: 3 | BT62: 3 | BU62: 3 | BV62: 3 | BW62: 3 | BX62: 3 | BY62: 3 | BZ62: 3 | CA62: 3 | CB62: 3 | CC62: 3 | CD62: 3 | CE62: 3 | CF62: 3 | CG62: 3 | CH62: 3 | CI62: 3 | CJ62: 3 | CK62: 3 | CL62: 3 | CM62: 3 | CN62: 3 | CO62: 3 | CP62: 3 | CQ62: 3 | CR62: 3 | CS62: 3 | CT62: 3 | CU62: 3 | CV62: 3 | CW62: 3 | CX62: 3 | CY62: 3 | CZ62: 3 | DA62: 3 | DB62: 3 | DC62: 3 | DD62: 3 | DE62: 3 | DF62: 3 | DG62: 3 | DH62: 3 | DI62: 3 | DJ62: 3 | DK62: 3 | DL62: 3 | DM62: 3 | DN62: 3 | DO62: 3 | DP62: 3 | DQ62: 3 | DR62: 3 | DS62: 3 | DT62: 3 | DU62: 3 | DV62: 3 | DW62: 3 | DX62: 3 | DY62: 3 | DZ62: 3 | EA62: 3 | EB62: 3 | EC62: 3 | ED62: 3 | EE62: 3 | EF62: 3 | EG62: 3 | EH62: 3 | EI62: 3 | EJ62: 3 | EK62: 3 | EL62: 3 | EM62: 3 | EN62: 3 | EO62: 3 | EP62: 3 | EQ62: 2 | ER62: 2 | ES62: 2 | ET62: 2 | EU62: 2 | EV62: 2 | EW62: 2 | EX62: 2 | EY62: 2 | EZ62: 2 | FA62: 2 | FB62: 2 | FC62: 2 | FD62: 2 | FE62: 2 | FF62: 2 | FG62: 2 | FH62: 2 | FI62: 2 | FJ62: 2 | FK62: 2 | FL62: 2 | FM62: 2 | FN62: 2 | FO62: 2 | FP62: 2 | FQ62: 2 | FR62: 2
D63: 46 | E63: 155 | BI63: 3 | BJ63: 3 | BK63: 3 | BL63: 3 | BM63: 3 | BN63: 3 | BO63: 3 | BP63: 3 | BQ63: 3 | BR63: 3 | BS63: 3 | BT63: 3 | BU63: 3 | BV63: 3 | BW63: 3 | BX63: 3 | BY63: 3 | BZ63: 3 | CA63: 3 | CB63: 3 | CC63: 3 | CD63: 3 | CE63: 3 | CF63: 3 | CG63: 3 | CH63: 3 | CI63: 3 | CJ63: 3 | CK63: 3 | CL63: 3 | CM63: 3 | CN63: 3 | CO63: 3 | CP63: 3 | CQ63: 3 | CR63: 3 | CS63: 3 | CT63: 3 | CU63: 3 | CV63: 3 | CW63: 3 | CX63: 3 | CY63: 3 | CZ63: 3 | DA63: 3 | DB63: 3 | DC63: 3 | DD63: 3 | DE63: 3 | DF63: 3 | DG63: 3 | DH63: 3 | DI63: 3 | DJ63: 3 | DK63: 3 | DL63: 3 | DM63: 3 | DN63: 3 | DO63: 3 | DP63: 3 | DQ63: 3 | DR63: 3 | DS63: 3 | DT63: 3 | DU63: 3 | DV63: 3 | DW63: 3 | DX63: 3 | DY63: 3 | DZ63: 3 | EA63: 3 | EB63: 3 | EC63: 3 | ED63: 3 | EE63: 3 | EF63: 3 | EG63: 3 | EH63: 3 | EI63: 3 | EJ63: 3 | EK63: 3 | EL63: 3 | EM63: 3 | EN63: 3 | EO63: 3 | EP63: 2 | EQ63: 2 | ER63: 2 | ES63: 2 | ET63: 2 | EU63: 2 | EV63: 2 | EW63: 2 | EX63: 2 | EY63: 2 | EZ63: 2 | FA63: 2 | FB63: 2 | FC63: 2 | FD63: 2 | FE63: 2 | FF63: 2 | FG63: 2 | FH63: 2 | FI63: 2 | FJ63: 2 | FK63: 2 | FL63: 2 | FM63: 2 | FN63: 2 | FO63: 2 | FP63: 2 | FQ63: 2 | FR63: 2
D64: 47 | E64: 154 | BH64: 3 | BI64: 3 | BJ64: 3 | BK64: 3 | BL64: 3 | BM64: 3 | BN64: 3 | BO64: 3 | BP64: 3 | BQ64: 3 | BR64: 3 | BS64: 3 | BT64: 3 | BU64: 3 | BV64: 3 | BW64: 3 | BX64: 3 | BY64: 3 | BZ64: 3 | CA64: 3 | CB64: 3 | CC64: 3 | CD64: 3 | CE64: 3 | CF64: 3 | CG64: 3 | CH64: 3 | CI64: 3 | CJ64: 3 | CK64: 3 | CL64: 3 | CM64: 3 | CN64: 3 | CO64: 3 | CP64: 3 | CQ64: 3 | CR64: 3 | CS64: 3 | CT64: 3 | CU64: 3 | CV64: 3 | CW64: 3 | CX64: 3 | CY64: 3 | CZ64: 3 | DA64: 3 | DB64: 3 | DC64: 3 | DD64: 3 | DE64: 3 | DF64: 3 | DG64: 3 | DH64: 3 | DI64: 3 | DJ64: 3 | DK64: 3 | DL64: 3 | DM64: 3 | DN64: 3 | DO64: 3 | DP64: 3 | DQ64: 3 | DR64: 3 | DS64: 3 | DT64: 3 | DU64: 3 | DV64: 3 | DW64: 3 | DX64: 3 | DY64: 3 | DZ64: 3 | EA64: 3 | EB64: 3 | EC64: 3 | ED64: 3 | EE64: 3 | EF64: 3 | EG64: 3 | EH64: 3 | EI64: 3 | EJ64: 3 | EK64: 3 | EL64: 3 | EM64: 3 | EN64: 3 | EO64: 2 | EP64: 2 | EQ64: 2 | ER64: 2 | ES64: 2 | ET64: 2 | EU64: 2 | EV64: 2 | EW64: 2 | EX64: 2 | EY64: 2 | EZ64: 2 | FA64: 2 | FB64: 2 | FC64: 2 | FD64: 2 | FE64: 2 | FF64: 2 | FG64: 2 | FH64: 2 | FI64: 2 | FJ64: 2 | FK64: 2 | FL64: 2 | FM64: 2 | FN64: 2 | FO64: 2 | FP64: 2 | FQ64: 2 | FR64: 2
D65: 48 | E65: 153 | BG65: 3 | BH65: 3 | BI65: 3 | BJ65: 3 | BK65: 3 | BL65: 3 | BM65: 3 | BN65: 3 | BO65: 3 | BP65: 3 | BQ65: 3 | BR65: 3 | BS65: 3 | BT65: 3 | BU65: 3 | BV65: 3 | BW65: 3 | BX65: 3 | BY65: 3 | BZ65: 3 | CA65: 3 | CB65: 3 | CC65: 3 | CD65: 3 | CE65: 3 | CF65: 3 | CG65: 3 | CH65: 3 | CI65: 3 | CJ65: 3 | CK65: 3 | CL65: 3 | CM65: 3 | CN65: 3 | CO65: 3 | CP65: 3 | CQ65: 3 | CR65: 3 | CS65: 3 | CT65: 3 | CU65: 3 | CV65: 3 | CW65: 3 | CX65: 3 | CY65: 3 | CZ65: 3 | DA65: 3 | DB65: 3 | DC65: 3 | DD65: 3 | DE65: 3 | DF65: 3 | DG65: 3 | DH65: 3 | DI65: 3 | DJ65: 3 | DK65: 3 | DL65: 3 | DM65: 3 | DN65: 3 | DO65: 3 | DP65: 3 | DQ65: 3 | DR65: 3 | DS65: 3 | DT65: 3 | DU65: 3 | DV65: 3 | DW65: 3 | DX65: 3 | DY65: 3 | DZ65: 3 | EA65: 3 | EB65: 3 | EC65: 3 | ED65: 3 | EE65: 3 | EF65: 3 | EG65: 3 | EH65: 3 | EI65: 3 | EJ65: 3 | EK65: 3 | EL65: 3 | EM65: 3 | EN65: 2 | EO65: 2 | EP65: 2 | EQ65: 2 | ER65: 2 | ES65: 2 | ET65: 2 | EU65: 2 | EV65: 2 | EW65: 2 | EX65: 2 | EY65: 2 | EZ65: 2 | FA65: 2 | FB65: 2 | FC65: 2 | FD65: 2 | FE65: 2 | FF65: 2 | FG65: 2 | FH65: 2 | FI65: 2 | FJ65: 2 | FK65: 2 | FL65: 2 | FM65: 2 | FN65: 2 | FO65: 2 | FP65: 2 | FQ65: 2 | FR65: 2
D66: 49 | E66: 152 | BF66: 3 | BG66: 3 | BH66: 3 | BI66: 3 | BJ66: 3 | BK66: 3 | BL66: 3 | BM66: 3 | BN66: 3 | BO66: 3 | BP66: 3 | BQ66: 3 | BR66: 3 | BS66: 3 | BT66: 3 | BU66: 3 | BV66: 3 | BW66: 3 | BX66: 3 | BY66: 3 | BZ66: 3 | CA66: 3 | CB66: 3 | CC66: 3 | CD66: 3 | CE66: 3 | CF66: 3 | CG66: 3 | CH66: 3 | CI66: 3 | CJ66: 3 | CK66: 3 | CL66: 3 | CM66: 3 | CN66: 3 | CO66: 3 | CP66: 3 | CQ66: 3 | CR66: 3 | CS66: 3 | CT66: 3 | CU66: 3 | CV66: 3 | CW66: 3 | CX66: 3 | CY66: 3 | CZ66: 3 | DA66: 3 | DB66: 3 | DC66: 3 | DD66: 3 | DE66: 3 | DF66: 3 | DG66: 3 | DH66: 3 | DI66: 3 | DJ66: 3 | DK66: 3 | DL66: 3 | DM66: 3 | DN66: 3 | DO66: 3 | DP66: 3 | DQ66: 3 | DR66: 3 | DS66: 3 | DT66: 3 | DU66: 3 | DV66: 3 | DW66: 3 | DX66: 3 | DY66: 3 | DZ66: 3 | EA66: 3 | EB66: 3 | EC66: 3 | ED66: 3 | EE66: 3 | EF66: 3 | EG66: 3 | EH66: 3 | EI66: 3 | EJ66: 3 | EK66: 3 | EL66: 3 | EM66: 2 | EN66: 2 | EO66: 2 | EP66: 2 | EQ66: 2 | ER66: 2 | ES66: 2 | ET66: 2 | EU66: 2 | EV66: 2 | EW66: 2 | EX66: 2 | EY66: 2 | EZ66: 2 | FA66: 2 | FB66: 2 | FC66: 2 | FD66: 2 | FE66: 2 | FF66: 2 | FG66: 2 | FH66: 2 | FI66: 2 | FJ66: 2 | FK66: 2 | FL66: 2 | FM66: 2 | FN66: 2 | FO66: 2 | FP66: 2 | FQ66: 2 | FR66: 2
D67: 50 | E67: 151 | BE67: 3 | BF67: 3 | BG67: 3 | BH67: 3 | BI67: 3 | BJ67: 3 | BK67: 3 | BL67: 3 | BM67: 3 | BN67: 3 | BO67: 3 | BP67: 3 | BQ67: 3 | BR67: 3 | BS67: 3 | BT67: 3 | BU67: 3 | BV67: 3 | BW67: 3 | BX67: 3 | BY67: 3 | BZ67: 3 | CA67: 3 | CB67: 3 | CC67: 3 | CD67: 3 | CE67: 3 | CF67: 3 | CG67: 3 | CH67: 3 | CI67: 3 | CJ67: 3 | CK67: 3 | CL67: 3 | CM67: 3 | CN67: 3 | CO67: 3 | CP67: 3 | CQ67: 3 | CR67: 3 | CS67: 3 | CT67: 3 | CU67: 3 | CV67: 3 | CW67: 3 | CX67: 3 | CY67: 3 | CZ67: 3 | DA67: 3 | DB67: 3 | DC67: 3 | DD67: 3 | DE67: 3 | DF67: 3 | DG67: 3 | DH67: 3 | DI67: 3 | DJ67: 3 | DK67: 3 | DL67: 3 | DM67: 3 | DN67: 3 | DO67: 3 | DP67: 3 | DQ67: 3 | DR67: 3 | DS67: 3 | DT67: 3 | DU67: 3 | DV67: 3 | DW67: 3 | DX67: 3 | DY67: 3 | DZ67: 3 | EA67: 3 | EB67: 3 | EC67: 3 | ED67: 3 | EE67: 3 | EF67: 3 | EG67: 3 | EH67: 3 | EI67: 3 | EJ67: 3 | EK67: 3 | EL67: 2 | EM67: 2 | EN67: 2 | EO67: 2 | EP67: 2 | EQ67: 2 | ER67: 2 | ES67: 2 | ET67: 2 | EU67: 2 | EV67: 2 | EW67: 2 | EX67: 2 | EY67: 2 | EZ67: 2 | FA67: 2 | FB67: 2 | FC67: 2 | FD67: 2 | FE67: 2 | FF67: 2 | FG67: 2 | FH67: 2 | FI67: 2 | FJ67: 2 | FK67: 2 | FL67: 2 | FM67: 2 | FN67: 2 | FO67: 2 | FP67: 2 | FQ67: 2 | FR67: 2
D68: 51 | E68: 150 | J68: =IF($A$13,IF(AND(J$2>=1,J$2<=$D$4,$E68>=1,$E68<=$D$5),1,IF(AND(J$2>=$D$4+1,J$2<=$D$4+$D$6,$E68>=J$2-$D$4+1,$E68<=J$2-$D$4+$D$5),2,IF(AND($E68>=$D$5+1,$E68<=$D$5+$D$6,J$2>=$E68-$D$5+1,J$2<=$E68-$D$5+$D$4-1),3,""))),"") ->  | T68: =IF($A$13,IF(AND(T$2>=1,T$2<=$D$4,$E68>=1,$E68<=$D$5),1,IF(AND(T$2>=$D$4+1,T$2<=$D$4+$D$6,$E68>=T$2-$D$4+1,$E68<=T$2-$D$4+$D$5),2,IF(AND($E68>=$D$5+1,$E68<=$D$5+$D$6,T$2>=$E68-$D$5+1,T$2<=$E68-$D$5+$D$4-1),3,""))),"") ->  | AD68: =IF($A$13,IF(AND(AD$2>=1,AD$2<=$D$4,$E68>=1,$E68<=$D$5),1,IF(AND(AD$2>=$D$4+1,AD$2<=$D$4+$D$6,$E68>=AD$2-$D$4+1,$E68<=AD$2-$D$4+$D$5),2,IF(AND($E68>=$D$5+1,$E68<=$D$5+$D$6,AD$2>=$E68-$D$5+1,AD$2<=$E68-$D$5+$D$4-1),3,""))),"") ->  | AN68: =IF($A$13,IF(AND(AN$2>=1,AN$2<=$D$4,$E68>=1,$E68<=$D$5),1,IF(AND(AN$2>=$D$4+1,AN$2<=$D$4+$D$6,$E68>=AN$2-$D$4+1,$E68<=AN$2-$D$4+$D$5),2,IF(AND($E68>=$D$5+1,$E68<=$D$5+$D$6,AN$2>=$E68-$D$5+1,AN$2<=$E68-$D$5+$D$4-1),3,""))),"") ->  | AX68: =IF($A$13,IF(AND(AX$2>=1,AX$2<=$D$4,$E68>=1,$E68<=$D$5),1,IF(AND(AX$2>=$D$4+1,AX$2<=$D$4+$D$6,$E68>=AX$2-$D$4+1,$E68<=AX$2-$D$4+$D$5),2,IF(AND($E68>=$D$5+1,$E68<=$D$5+$D$6,AX$2>=$E68-$D$5+1,AX$2<=$E68-$D$5+$D$4-1),3,""))),"") ->  | BD68: 3 | BE68: 3 | BF68: 3 | BG68: 3 | BH68: =IF($A$13,IF(AND(BH$2>=1,BH$2<=$D$4,$E68>=1,$E68<=$D$5),1,IF(AND(BH$2>=$D$4+1,BH$2<=$D$4+$D$6,$E68>=BH$2-$D$4+1,$E68<=BH$2-$D$4+$D$5),2,IF(AND($E68>=$D$5+1,$E68<=$D$5+$D$6,BH$2>=$E68-$D$5+1,BH$2<=$E68-$D$5+$D$4-1),3,""))),"") -> 3 | BI68: 3 | BJ68: 3 | BK68: 3 | BL68: 3 | BM68: 3 | BN68: 3 | BO68: 3 | BP68: 3 | BQ68: 3 | BR68: =IF($A$13,IF(AND(BR$2>=1,BR$2<=$D$4,$E68>=1,$E68<=$D$5),1,IF(AND(BR$2>=$D$4+1,BR$2<=$D$4+$D$6,$E68>=BR$2-$D$4+1,$E68<=BR$2-$D$4+$D$5),2,IF(AND($E68>=$D$5+1,$E68<=$D$5+$D$6,BR$2>=$E68-$D$5+1,BR$2<=$E68-$D$5+$D$4-1),3,""))),"") -> 3 | BS68: 3 | BT68: 3 | BU68: 3 | BV68: 3 | BW68: 3 | BX68: 3 | BY68: 3 | BZ68: 3 | CA68: 3 | CB68: =IF($A$13,IF(AND(CB$2>=1,CB$2<=$D$4,$E68>=1,$E68<=$D$5),1,IF(AND(CB$2>=$D$4+1,CB$2<=$D$4+$D$6,$E68>=CB$2-$D$4+1,$E68<=CB$2-$D$4+$D$5),2,IF(AND($E68>=$D$5+1,$E68<=$D$5+$D$6,CB$2>=$E68-$D$5+1,CB$2<=$E68-$D$5+$D$4-1),3,""))),"") -> 3 | CC68: 3 | CD68: 3 | CE68: 3 | CF68: 3 | CG68: 3 | CH68: 3 | CI68: 3 | CJ68: 3 | CK68: 3 | CL68: =IF($A$13,IF(AND(CL$2>=1,CL$2<=$D$4,$E68>=1,$E68<=$D$5),1,IF(AND(CL$2>=$D$4+1,CL$2<=$D$4+$D$6,$E68>=CL$2-$D$4+1,$E68<=CL$2-$D$4+$D$5),2,IF(AND($E68>=$D$5+1,$E68<=$D$5+$D$6,CL$2>=$E68-$D$5+1,CL$2<=$E68-$D$5+$D$4-1),3,""))),"") -> 3 | CM68: 3 | CN68: 3 | CO68: 3 | CP68: 3 | CQ68: 3 | CR68: 3 | CS68: 3 | CT68: 3 | CU68: 3 | CV68: =IF($A$13,IF(AND(CV$2>=1,CV$2<=$D$4,$E68>=1,$E68<=$D$5),1,IF(AND(CV$2>=$D$4+1,CV$2<=$D$4+$D$6,$E68>=CV$2-$D$4+1,$E68<=CV$2-$D$4+$D$5),2,IF(AND($E68>=$D$5+1,$E68<=$D$5+$D$6,CV$2>=$E68-$D$5+1,CV$2<=$E68-$D$5+$D$4-1),3,""))),"") -> 3 | CW68: 3 | CX68: 3 | CY68: 3 | CZ68: 3 | DA68: 3 | DB68: 3 | DC68: 3 | DD68: 3 | DE68: 3 | DF68: =IF($A$13,IF(AND(DF$2>=1,DF$2<=$D$4,$E68>=1,$E68<=$D$5),1,IF(AND(DF$2>=$D$4+1,DF$2<=$D$4+$D$6,$E68>=DF$2-$D$4+1,$E68<=DF$2-$D$4+$D$5),2,IF(AND($E68>=$D$5+1,$E68<=$D$5+$D$6,DF$2>=$E68-$D$5+1,DF$2<=$E68-$D$5+$D$4-1),3,""))),"") -> 3 | DG68: 3 | DH68: 3 | DI68: 3 | DJ68: 3 | DK68: 3 | DL68: 3 | DM68: 3 | DN68: 3 | DO68: 3 | DP68: =IF($A$13,IF(AND(DP$2>=1,DP$2<=$D$4,$E68>=1,$E68<=$D$5),1,IF(AND(DP$2>=$D$4+1,DP$2<=$D$4+$D$6,$E68>=DP$2-$D$4+1,$E68<=DP$2-$D$4+$D$5),2,IF(AND($E68>=$D$5+1,$E68<=$D$5+$D$6,DP$2>=$E68-$D$5+1,DP$2<=$E68-$D$5+$D$4-1),3,""))),"") -> 3 | DQ68: 3 | DR68: 3 | DS68: 3 | DT68: 3 | DU68: 3 | DV68: 3 | DW68: 3 | DX68: 3 | DY68: 3 | DZ68: =IF($A$13,IF(AND(DZ$2>=1,DZ$2<=$D$4,$E68>=1,$E68<=$D$5),1,IF(AND(DZ$2>=$D$4+1,DZ$2<=$D$4+$D$6,$E68>=DZ$2-$D$4+1,$E68<=DZ$2-$D$4+$D$5),2,IF(AND($E68>=$D$5+1,$E68<=$D$5+$D$6,DZ$2>=$E68-$D$5+1,DZ$2<=$E68-$D$5+$D$4-1),3,""))),"") -> 3 | EA68: 3 | EB68: 3 | EC68: 3 | ED68: 3 | EE68: 3 | EF68: 3 | EG68: 3 | EH68: 3 | EI68: 3 | EJ68: =IF($A$13,IF(AND(EJ$2>=1,EJ$2<=$D$4,$E68>=1,$E68<=$D$5),1,IF(AND(EJ$2>=$D$4+1,EJ$2<=$D$4+$D$6,$E68>=EJ$2-$D$4+1,$E68<=EJ$2-$D$4+$D$5),2,IF(AND($E68>=$D$5+1,$E68<=$D$5+$D$6,EJ$2>=$E68-$D$5+1,EJ$2<=$E68-$D$5+$D$4-1),3,""))),"") -> 3 | EK68: 2 | EL68: 2 | EM68: 2 | EN68: 2 | EO68: 2 | EP68: 2 | EQ68: 2 | ER68: 2 | ES68: 2 | ET68: =IF($A$13,IF(AND(ET$2>=1,ET$2<=$D$4,$E68>=1,$E68<=$D$5),1,IF(AND(ET$2>=$D$4+1,ET$2<=$D$4+$D$6,$E68>=ET$2-$D$4+1,$E68<=ET$2-$D$4+$D$5),2,IF(AND($E68>=$D$5+1,$E68<=$D$5+$D$6,ET$2>=$E68-$D$5+1,ET$2<=$E68-$D$5+$D$4-1),3,""))),"") -> 2 | EU68: 2 | EV68: 2 | EW68: 2 | EX68: 2 | EY68: 2 | EZ68: 2 | FA68: 2 | FB68: 2 | FC68: 2 | FD68: =IF($A$13,IF(AND(FD$2>=1,FD$2<=$D$4,$E68>=1,$E68<=$D$5),1,IF(AND(FD$2>=$D$4+1,FD$2<=$D$4+$D$6,$E68>=FD$2-$D$4+1,$E68<=FD$2-$D$4+$D$5),2,IF(AND($E68>=$D$5+1,$E68<=$D$5+$D$6,FD$2>=$E68-$D$5+1,FD$2<=$E68-$D$5+$D$4-1),3,""))),"") -> 2 | FE68: 2 | FF68: 2 | FG68: 2 | FH68: 2 | FI68: 2 | FJ68: 2 | FK68: 2 | FL68: 2 | FM68: 2 | FN68: =IF($A$13,IF(AND(FN$2>=1,FN$2<=$D$4,$E68>=1,$E68<=$D$5),1,IF(AND(FN$2>=$D$4+1,FN$2<=$D$4+$D$6,$E68>=FN$2-$D$4+1,$E68<=FN$2-$D$4+$D$5),2,IF(AND($E68>=$D$5+1,$E68<=$D$5+$D$6,FN$2>=$E68-$D$5+1,FN$2<=$E68-$D$5+$D$4-1),3,""))),"") -> 2 | FO68: 2 | FP68: 2 | FQ68: 2 | FR68: 2 | FX68: =IF($A$13,IF(AND(FX$2>=1,FX$2<=$D$4,$E68>=1,$E68<=$D$5),1,IF(AND(FX$2>=$D$4+1,FX$2<=$D$4+$D$6,$E68>=FX$2-$D$4+1,$E68<=FX$2-$D$4+$D$5),2,IF(AND($E68>=$D$5+1,$E68<=$D$5+$D$6,FX$2>=$E68-$D$5+1,FX$2<=$E68-$D$5+$D$4-1),3,""))),"") ->  | GH68: =IF($A$13,IF(AND(GH$2>=1,GH$2<=$D$4,$E68>=1,$E68<=$D$5),1,IF(AND(GH$2>=$D$4+1,GH$2<=$D$4+$D$6,$E68>=GH$2-$D$4+1,$E68<=GH$2-$D$4+$D$5),2,IF(AND($E68>=$D$5+1,$E68<=$D$5+$D$6,GH$2>=$E68-$D$5+1,GH$2<=$E68-$D$5+$D$4-1),3,""))),"") ->  | GR68: =IF($A$13,IF(AND(GR$2>=1,GR$2<=$D$4,$E68>=1,$E68<=$D$5),1,IF(AND(GR$2>=$D$4+1,GR$2<=$D$4+$D$6,$E68>=GR$2-$D$4+1,$E68<=GR$2-$D$4+$D$5),2,IF(AND($E68>=$D$5+1,$E68<=$D$5+$D$6,GR$2>=$E68-$D$5+1,GR$2<=$E68-$D$5+$D$4-1),3,""))),"") -> 
D69: 52 | E69: 149 | BC69: 3 | BD69: 3 | BE69: 3 | BF69: 3 | BG69: 3 | BH69: 3 | BI69: 3 | BJ69: 3 | BK69: 3 | BL69: 3 | BM69: 3 | BN69: 3 | BO69: 3 | BP69: 3 | BQ69: 3 | BR69: 3 | BS69: 3 | BT69: 3 | BU69: 3 | BV69: 3 | BW69: 3 | BX69: 3 | BY69: 3 | BZ69: 3 | CA69: 3 | CB69: 3 | CC69: 3 | CD69: 3 | CE69: 3 | CF69: 3 | CG69: 3 | CH69: 3 | CI69: 3 | CJ69: 3 | CK69: 3 | CL69: 3 | CM69: 3 | CN69: 3 | CO69: 3 | CP69: 3 | CQ69: 3 | CR69: 3 | CS69: 3 | CT69: 3 | CU69: 3 | CV69: 3 | CW69: 3 | CX69: 3 | CY69: 3 | CZ69: 3 | DA69: 3 | DB69: 3 | DC69: 3 | DD69: 3 | DE69: 3 | DF69: 3 | DG69: 3 | DH69: 3 | DI69: 3 | DJ69: 3 | DK69: 3 | DL69: 3 | DM69: 3 | DN69: 3 | DO69: 3 | DP69: 3 | DQ69: 3 | DR69: 3 | DS69: 3 | DT69: 3 | DU69: 3 | DV69: 3 | DW69: 3 | DX69: 3 | DY69: 3 | DZ69: 3 | EA69: 3 | EB69: 3 | EC69: 3 | ED69: 3 | EE69: 3 | EF69: 3 | EG69: 3 | EH69: 3 | EI69: 3 | EJ69: 2 | EK69: 2 | EL69: 2 | EM69: 2 | EN69: 2 | EO69: 2 | EP69: 2 | EQ69: 2 | ER69: 2 | ES69: 2 | ET69: 2 | EU69: 2 | EV69: 2 | EW69: 2 | EX69: 2 | EY69: 2 | EZ69: 2 | FA69: 2 | FB69: 2 | FC69: 2 | FD69: 2 | FE69: 2 | FF69: 2 | FG69: 2 | FH69: 2 | FI69: 2 | FJ69: 2 | FK69: 2 | FL69: 2 | FM69: 2 | FN69: 2 | FO69: 2 | FP69: 2 | FQ69: 2 | FR69: 2
D70: 53 | E70: 148 | BB70: 3 | BC70: 3 | BD70: 3 | BE70: 3 | BF70: 3 | BG70: 3 | BH70: 3 | BI70: 3 | BJ70: 3 | BK70: 3 | BL70: 3 | BM70: 3 | BN70: 3 | BO70: 3 | BP70: 3 | BQ70: 3 | BR70: 3 | BS70: 3 | BT70: 3 | BU70: 3 | BV70: 3 | BW70: 3 | BX70: 3 | BY70: 3 | BZ70: 3 | CA70: 3 | CB70: 3 | CC70: 3 | CD70: 3 | CE70: 3 | CF70: 3 | CG70: 3 | CH70: 3 | CI70: 3 | CJ70: 3 | CK70: 3 | CL70: 3 | CM70: 3 | CN70: 3 | CO70: 3 | CP70: 3 | CQ70: 3 | CR70: 3 | CS70: 3 | CT70: 3 | CU70: 3 | CV70: 3 | CW70: 3 | CX70: 3 | CY70: 3 | CZ70: 3 | DA70: 3 | DB70: 3 | DC70: 3 | DD70: 3 | DE70: 3 | DF70: 3 | DG70: 3 | DH70: 3 | DI70: 3 | DJ70: 3 | DK70: 3 | DL70: 3 | DM70: 3 | DN70: 3 | DO70: 3 | DP70: 3 | DQ70: 3 | DR70: 3 | DS70: 3 | DT70: 3 | DU70: 3 | DV70: 3 | DW70: 3 | DX70: 3 | DY70: 3 | DZ70: 3 | EA70: 3 | EB70: 3 | EC70: 3 | ED70: 3 | EE70: 3 | EF70: 3 | EG70: 3 | EH70: 3 | EI70: 2 | EJ70: 2 | EK70: 2 | EL70: 2 | EM70: 2 | EN70: 2 | EO70: 2 | EP70: 2 | EQ70: 2 | ER70: 2 | ES70: 2 | ET70: 2 | EU70: 2 | EV70: 2 | EW70: 2 | EX70: 2 | EY70: 2 | EZ70: 2 | FA70: 2 | FB70: 2 | FC70: 2 | FD70: 2 | FE70: 2 | FF70: 2 | FG70: 2 | FH70: 2 | FI70: 2 | FJ70: 2 | FK70: 2 | FL70: 2 | FM70: 2 | FN70: 2 | FO70: 2 | FP70: 2 | FQ70: 2 | FR70: 2
D71: 54 | E71: 147 | BA71: 3 | BB71: 3 | BC71: 3 | BD71: 3 | BE71: 3 | BF71: 3 | BG71: 3 | BH71: 3 | BI71: 3 | BJ71: 3 | BK71: 3 | BL71: 3 | BM71: 3 | BN71: 3 | BO71: 3 | BP71: 3 | BQ71: 3 | BR71: 3 | BS71: 3 | BT71: 3 | BU71: 3 | BV71: 3 | BW71: 3 | BX71: 3 | BY71: 3 | BZ71: 3 | CA71: 3 | CB71: 3 | CC71: 3 | CD71: 3 | CE71: 3 | CF71: 3 | CG71: 3 | CH71: 3 | CI71: 3 | CJ71: 3 | CK71: 3 | CL71: 3 | CM71: 3 | CN71: 3 | CO71: 3 | CP71: 3 | CQ71: 3 | CR71: 3 | CS71: 3 | CT71: 3 | CU71: 3 | CV71: 3 | CW71: 3 | CX71: 3 | CY71: 3 | CZ71: 3 | DA71: 3 | DB71: 3 | DC71: 3 | DD71: 3 | DE71: 3 | DF71: 3 | DG71: 3 | DH71: 3 | DI71: 3 | DJ71: 3 | DK71: 3 | DL71: 3 | DM71: 3 | DN71: 3 | DO71: 3 | DP71: 3 | DQ71: 3 | DR71: 3 | DS71: 3 | DT71: 3 | DU71: 3 | DV71: 3 | DW71: 3 | DX71: 3 | DY71: 3 | DZ71: 3 | EA71: 3 | EB71: 3 | EC71: 3 | ED71: 3 | EE71: 3 | EF71: 3 | EG71: 3 | EH71: 2 | EI71: 2 | EJ71: 2 | EK71: 2 | EL71: 2 | EM71: 2 | EN71: 2 | EO71: 2 | EP71: 2 | EQ71: 2 | ER71: 2 | ES71: 2 | ET71: 2 | EU71: 2 | EV71: 2 | EW71: 2 | EX71: 2 | EY71: 2 | EZ71: 2 | FA71: 2 | FB71: 2 | FC71: 2 | FD71: 2 | FE71: 2 | FF71: 2 | FG71: 2 | FH71: 2 | FI71: 2 | FJ71: 2 | FK71: 2 | FL71: 2 | FM71: 2 | FN71: 2 | FO71: 2 | FP71: 2 | FQ71: 2 | FR71: 2
D72: 55 | E72: 146 | AZ72: 3 | BA72: 3 | BB72: 3 | BC72: 3 | BD72: 3 | BE72: 3 | BF72: 3 | BG72: 3 | BH72: 3 | BI72: 3 | BJ72: 3 | BK72: 3 | BL72: 3 | BM72: 3 | BN72: 3 | BO72: 3 | BP72: 3 | BQ72: 3 | BR72: 3 | BS72: 3 | BT72: 3 | BU72: 3 | BV72: 3 | BW72: 3 | BX72: 3 | BY72: 3 | BZ72: 3 | CA72: 3 | CB72: 3 | CC72: 3 | CD72: 3 | CE72: 3 | CF72: 3 | CG72: 3 | CH72: 3 | CI72: 3 | CJ72: 3 | CK72: 3 | CL72: 3 | CM72: 3 | CN72: 3 | CO72: 3 | CP72: 3 | CQ72: 3 | CR72: 3 | CS72: 3 | CT72: 3 | CU72: 3 | CV72: 3 | CW72: 3 | CX72: 3 | CY72: 3 | CZ72: 3 | DA72: 3 | DB72: 3 | DC72: 3 | DD72: 3 | DE72: 3 | DF72: 3 | DG72: 3 | DH72: 3 | DI72: 3 | DJ72: 3 | DK72: 3 | DL72: 3 | DM72: 3 | DN72: 3 | DO72: 3 | DP72: 3 | DQ72: 3 | DR72: 3 | DS72: 3 | DT72: 3 | DU72: 3 | DV72: 3 | DW72: 3 | DX72: 3 | DY72: 3 | DZ72: 3 | EA72: 3 | EB72: 3 | EC72: 3 | ED72: 3 | EE72: 3 | EF72: 3 | EG72: 2 | EH72: 2 | EI72: 2 | EJ72: 2 | EK72: 2 | EL72: 2 | EM72: 2 | EN72: 2 | EO72: 2 | EP72: 2 | EQ72: 2 | ER72: 2 | ES72: 2 | ET72: 2 | EU72: 2 | EV72: 2 | EW72: 2 | EX72: 2 | EY72: 2 | EZ72: 2 | FA72: 2 | FB72: 2 | FC72: 2 | FD72: 2 | FE72: 2 | FF72: 2 | FG72: 2 | FH72: 2 | FI72: 2 | FJ72: 2 | FK72: 2 | FL72: 2 | FM72: 2 | FN72: 2 | FO72: 2 | FP72: 2 | FQ72: 2 | FR72: 2
D73: 56 | E73: 145 | AY73: 3 | AZ73: 3 | BA73: 3 | BB73: 3 | BC73: 3 | BD73: 3 | BE73: 3 | BF73: 3 | BG73: 3 | BH73: 3 | BI73: 3 | BJ73: 3 | BK73: 3 | BL73: 3 | BM73: 3 | BN73: 3 | BO73: 3 | BP73: 3 | BQ73: 3 | BR73: 3 | BS73: 3 | BT73: 3 | BU73: 3 | BV73: 3 | BW73: 3 | BX73: 3 | BY73: 3 | BZ73: 3 | CA73: 3 | CB73: 3 | CC73: 3 | CD73: 3 | CE73: 3 | CF73: 3 | CG73: 3 | CH73: 3 | CI73: 3 | CJ73: 3 | CK73: 3 | CL73: 3 | CM73: 3 | CN73: 3 | CO73: 3 | CP73: 3 | CQ73: 3 | CR73: 3 | CS73: 3 | CT73: 3 | CU73: 3 | CV73: 3 | CW73: 3 | CX73: 3 | CY73: 3 | CZ73: 3 | DA73: 3 | DB73: 3 | DC73: 3 | DD73: 3 | DE73: 3 | DF73: 3 | DG73: 3 | DH73: 3 | DI73: 3 | DJ73: 3 | DK73: 3 | DL73: 3 | DM73: 3 | DN73: 3 | DO73: 3 | DP73: 3 | DQ73: 3 | DR73: 3 | DS73: 3 | DT73: 3 | DU73: 3 | DV73: 3 | DW73: 3 | DX73: 3 | DY73: 3 | DZ73: 3 | EA73: 3 | EB73: 3 | EC73: 3 | ED73: 3 | EE73: 3 | EF73: 2 | EG73: 2 | EH73: 2 | EI73: 2 | EJ73: 2 | EK73: 2 | EL73: 2 | EM73: 2 | EN73: 2 | EO73: 2 | EP73: 2 | EQ73: 2 | ER73: 2 | ES73: 2 | ET73: 2 | EU73: 2 | EV73: 2 | EW73: 2 | EX73: 2 | EY73: 2 | EZ73: 2 | FA73: 2 | FB73: 2 | FC73: 2 | FD73: 2 | FE73: 2 | FF73: 2 | FG73: 2 | FH73: 2 | FI73: 2 | FJ73: 2 | FK73: 2 | FL73: 2 | FM73: 2 | FN73: 2 | FO73: 2 | FP73: 2 | FQ73: 2 | FR73: 2
D74: 57 | E74: 144 | AX74: 3 | AY74: 3 | AZ74: 3 | BA74: 3 | BB74: 3 | BC74: 3 | BD74: 3 | BE74: 3 | BF74: 3 | BG74: 3 | BH74: 3 | BI74: 3 | BJ74: 3 | BK74: 3 | BL74: 3 | BM74: 3 | BN74: 3 | BO74: 3 | BP74: 3 | BQ74: 3 | BR74: 3 | BS74: 3 | BT74: 3 | BU74: 3 | BV74: 3 | BW74: 3 | BX74: 3 | BY74: 3 | BZ74: 3 | CA74: 3 | CB74: 3 | CC74: 3 | CD74: 3 | CE74: 3 | CF74: 3 | CG74: 3 | CH74: 3 | CI74: 3 | CJ74: 3 | CK74: 3 | CL74: 3 | CM74: 3 | CN74: 3 | CO74: 3 | CP74: 3 | CQ74: 3 | CR74: 3 | CS74: 3 | CT74: 3 | CU74: 3 | CV74: 3 | CW74: 3 | CX74: 3 | CY74: 3 | CZ74: 3 | DA74: 3 | DB74: 3 | DC74: 3 | DD74: 3 | DE74: 3 | DF74: 3 | DG74: 3 | DH74: 3 | DI74: 3 | DJ74: 3 | DK74: 3 | DL74: 3 | DM74: 3 | DN74: 3 | DO74: 3 | DP74: 3 | DQ74: 3 | DR74: 3 | DS74: 3 | DT74: 3 | DU74: 3 | DV74: 3 | DW74: 3 | DX74: 3 | DY74: 3 | DZ74: 3 | EA74: 3 | EB74: 3 | EC74: 3 | ED74: 3 | EE74: 2 | EF74: 2 | EG74: 2 | EH74: 2 | EI74: 2 | EJ74: 2 | EK74: 2 | EL74: 2 | EM74: 2 | EN74: 2 | EO74: 2 | EP74: 2 | EQ74: 2 | ER74: 2 | ES74: 2 | ET74: 2 | EU74: 2 | EV74: 2 | EW74: 2 | EX74: 2 | EY74: 2 | EZ74: 2 | FA74: 2 | FB74: 2 | FC74: 2 | FD74: 2 | FE74: 2 | FF74: 2 | FG74: 2 | FH74: 2 | FI74: 2 | FJ74: 2 | FK74: 2 | FL74: 2 | FM74: 2 | FN74: 2 | FO74: 2 | FP74: 2 | FQ74: 2 | FR74: 2
D75: 58 | E75: 143 | AW75: 3 | AX75: 3 | AY75: 3 | AZ75: 3 | BA75: 3 | BB75: 3 | BC75: 3 | BD75: 3 | BE75: 3 | BF75: 3 | BG75: 3 | BH75: 3 | BI75: 3 | BJ75: 3 | BK75: 3 | BL75: 3 | BM75: 3 | BN75: 3 | BO75: 3 | BP75: 3 | BQ75: 3 | BR75: 3 | BS75: 3 | BT75: 3 | BU75: 3 | BV75: 3 | BW75: 3 | BX75: 3 | BY75: 3 | BZ75: 3 | CA75: 3 | CB75: 3 | CC75: 3 | CD75: 3 | CE75: 3 | CF75: 3 | CG75: 3 | CH75: 3 | CI75: 3 | CJ75: 3 | CK75: 3 | CL75: 3 | CM75: 3 | CN75: 3 | CO75: 3 | CP75: 3 | CQ75: 3 | CR75: 3 | CS75: 3 | CT75: 3 | CU75: 3 | CV75: 3 | CW75: 3 | CX75: 3 | CY75: 3 | CZ75: 3 | DA75: 3 | DB75: 3 | DC75: 3 | DD75: 3 | DE75: 3 | DF75: 3 | DG75: 3 | DH75: 3 | DI75: 3 | DJ75: 3 | DK75: 3 | DL75: 3 | DM75: 3 | DN75: 3 | DO75: 3 | DP75: 3 | DQ75: 3 | DR75: 3 | DS75: 3 | DT75: 3 | DU75: 3 | DV75: 3 | DW75: 3 | DX75: 3 | DY75: 3 | DZ75: 3 | EA75: 3 | EB75: 3 | EC75: 3 | ED75: 2 | EE75: 2 | EF75: 2 | EG75: 2 | EH75: 2 | EI75: 2 | EJ75: 2 | EK75: 2 | EL75: 2 | EM75: 2 | EN75: 2 | EO75: 2 | EP75: 2 | EQ75: 2 | ER75: 2 | ES75: 2 | ET75: 2 | EU75: 2 | EV75: 2 | EW75: 2 | EX75: 2 | EY75: 2 | EZ75: 2 | FA75: 2 | FB75: 2 | FC75: 2 | FD75: 2 | FE75: 2 | FF75: 2 | FG75: 2 | FH75: 2 | FI75: 2 | FJ75: 2 | FK75: 2 | FL75: 2 | FM75: 2 | FN75: 2 | FO75: 2 | FP75: 2 | FQ75: 2 | FR75: 2
D76: 59 | E76: 142 | AV76: 3 | AW76: 3 | AX76: 3 | AY76: 3 | AZ76: 3 | BA76: 3 | BB76: 3 | BC76: 3 | BD76: 3 | BE76: 3 | BF76: 3 | BG76: 3 | BH76: 3 | BI76: 3 | BJ76: 3 | BK76: 3 | BL76: 3 | BM76: 3 | BN76: 3 | BO76: 3 | BP76: 3 | BQ76: 3 | BR76: 3 | BS76: 3 | BT76: 3 | BU76: 3 | BV76: 3 | BW76: 3 | BX76: 3 | BY76: 3 | BZ76: 3 | CA76: 3 | CB76: 3 | CC76: 3 | CD76: 3 | CE76: 3 | CF76: 3 | CG76: 3 | CH76: 3 | CI76: 3 | CJ76: 3 | CK76: 3 | CL76: 3 | CM76: 3 | CN76: 3 | CO76: 3 | CP76: 3 | CQ76: 3 | CR76: 3 | CS76: 3 | CT76: 3 | CU76: 3 | CV76: 3 | CW76: 3 | CX76: 3 | CY76: 3 | CZ76: 3 | DA76: 3 | DB76: 3 | DC76: 3 | DD76: 3 | DE76: 3 | DF76: 3 | DG76: 3 | DH76: 3 | DI76: 3 | DJ76: 3 | DK76: 3 | DL76: 3 | DM76: 3 | DN76: 3 | DO76: 3 | DP76: 3 | DQ76: 3 | DR76: 3 | DS76: 3 | DT76: 3 | DU76: 3 | DV76: 3 | DW76: 3 | DX76: 3 | DY76: 3 | DZ76: 3 | EA76: 3 | EB76: 3 | EC76: 2 | ED76: 2 | EE76: 2 | EF76: 2 | EG76: 2 | EH76: 2 | EI76: 2 | EJ76: 2 | EK76: 2 | EL76: 2 | EM76: 2 | EN76: 2 | EO76: 2 | EP76: 2 | EQ76: 2 | ER76: 2 | ES76: 2 | ET76: 2 | EU76: 2 | EV76: 2 | EW76: 2 | EX76: 2 | EY76: 2 | EZ76: 2 | FA76: 2 | FB76: 2 | FC76: 2 | FD76: 2 | FE76: 2 | FF76: 2 | FG76: 2 | FH76: 2 | FI76: 2 | FJ76: 2 | FK76: 2 | FL76: 2 | FM76: 2 | FN76: 2 | FO76: 2 | FP76: 2 | FQ76: 2 | FR76: 2
D77: 60 | E77: 141 | AU77: 3 | AV77: 3 | AW77: 3 | AX77: 3 | AY77: 3 | AZ77: 3 | BA77: 3 | BB77: 3 | BC77: 3 | BD77: 3 | BE77: 3 | BF77: 3 | BG77: 3 | BH77: 3 | BI77: 3 | BJ77: 3 | BK77: 3 | BL77: 3 | BM77: 3 | BN77: 3 | BO77: 3 | BP77: 3 | BQ77: 3 | BR77: 3 | BS77: 3 | BT77: 3 | BU77: 3 | BV77: 3 | BW77: 3 | BX77: 3 | BY77: 3 | BZ77: 3 | CA77: 3 | CB77: 3 | CC77: 3 | CD77: 3 | CE77: 3 | CF77: 3 | CG77: 3 | CH77: 3 | CI77: 3 | CJ77: 3 | CK77: 3 | CL77: 3 | CM77: 3 | CN77: 3 | CO77: 3 | CP77: 3 | CQ77: 3 | CR77: 3 | CS77: 3 | CT77: 3 | CU77: 3 | CV77: 3 | CW77: 3 | CX77: 3 | CY77: 3 | CZ77: 3 | DA77: 3 | DB77: 3 | DC77: 3 | DD77: 3 | DE77: 3 | DF77: 3 | DG77: 3 | DH77: 3 | DI77: 3 | DJ77: 3 | DK77: 3 | DL77: 3 | DM77: 3 | DN77: 3 | DO77: 3 | DP77: 3 | DQ77: 3 | DR77: 3 | DS77: 3 | DT77: 3 | DU77: 3 | DV77: 3 | DW77: 3 | DX77: 3 | DY77: 3 | DZ77: 3 | EA77: 3 | EB77: 2 | EC77: 2 | ED77: 2 | EE77: 2 | EF77: 2 | EG77: 2 | EH77: 2 | EI77: 2 | EJ77: 2 | EK77: 2 | EL77: 2 | EM77: 2 | EN77: 2 | EO77: 2 | EP77: 2 | EQ77: 2 | ER77: 2 | ES77: 2 | ET77: 2 | EU77: 2 | EV77: 2 | EW77: 2 | EX77: 2 | EY77: 2 | EZ77: 2 | FA77: 2 | FB77: 2 | FC77: 2 | FD77: 2 | FE77: 2 | FF77: 2 | FG77: 2 | FH77: 2 | FI77: 2 | FJ77: 2 | FK77: 2 | FL77: 2 | FM77: 2 | FN77: 2 | FO77: 2 | FP77: 2 | FQ77: 2 | FR77: 2
D78: 61 | E78: 140 | J78: =IF($A$13,IF(AND(J$2>=1,J$2<=$D$4,$E78>=1,$E78<=$D$5),1,IF(AND(J$2>=$D$4+1,J$2<=$D$4+$D$6,$E78>=J$2-$D$4+1,$E78<=J$2-$D$4+$D$5),2,IF(AND($E78>=$D$5+1,$E78<=$D$5+$D$6,J$2>=$E78-$D$5+1,J$2<=$E78-$D$5+$D$4-1),3,""))),"") ->  | T78: =IF($A$13,IF(AND(T$2>=1,T$2<=$D$4,$E78>=1,$E78<=$D$5),1,IF(AND(T$2>=$D$4+1,T$2<=$D$4+$D$6,$E78>=T$2-$D$4+1,$E78<=T$2-$D$4+$D$5),2,IF(AND($E78>=$D$5+1,$E78<=$D$5+$D$6,T$2>=$E78-$D$5+1,T$2<=$E78-$D$5+$D$4-1),3,""))),"") ->  | AD78: =IF($A$13,IF(AND(AD$2>=1,AD$2<=$D$4,$E78>=1,$E78<=$D$5),1,IF(AND(AD$2>=$D$4+1,AD$2<=$D$4+$D$6,$E78>=AD$2-$D$4+1,$E78<=AD$2-$D$4+$D$5),2,IF(AND($E78>=$D$5+1,$E78<=$D$5+$D$6,AD$2>=$E78-$D$5+1,AD$2<=$E78-$D$5+$D$4-1),3,""))),"") ->  | AN78: =IF($A$13,IF(AND(AN$2>=1,AN$2<=$D$4,$E78>=1,$E78<=$D$5),1,IF(AND(AN$2>=$D$4+1,AN$2<=$D$4+$D$6,$E78>=AN$2-$D$4+1,$E78<=AN$2-$D$4+$D$5),2,IF(AND($E78>=$D$5+1,$E78<=$D$5+$D$6,AN$2>=$E78-$D$5+1,AN$2<=$E78-$D$5+$D$4-1),3,""))),"") ->  | AT78: 3 | AU78: 3 | AV78: 3 | AW78: 3 | AX78: =IF($A$13,IF(AND(AX$2>=1,AX$2<=$D$4,$E78>=1,$E78<=$D$5),1,IF(AND(AX$2>=$D$4+1,AX$2<=$D$4+$D$6,$E78>=AX$2-$D$4+1,$E78<=AX$2-$D$4+$D$5),2,IF(AND($E78>=$D$5+1,$E78<=$D$5+$D$6,AX$2>=$E78-$D$5+1,AX$2<=$E78-$D$5+$D$4-1),3,""))),"") -> 3 | AY78: 3 | AZ78: 3 | BA78: 3 | BB78: 3 | BC78: 3 | BD78: 3 | BE78: 3 | BF78: 3 | BG78: 3 | BH78: =IF($A$13,IF(AND(BH$2>=1,BH$2<=$D$4,$E78>=1,$E78<=$D$5),1,IF(AND(BH$2>=$D$4+1,BH$2<=$D$4+$D$6,$E78>=BH$2-$D$4+1,$E78<=BH$2-$D$4+$D$5),2,IF(AND($E78>=$D$5+1,$E78<=$D$5+$D$6,BH$2>=$E78-$D$5+1,BH$2<=$E78-$D$5+$D$4-1),3,""))),"") -> 3 | BI78: 3 | BJ78: 3 | BK78: 3 | BL78: 3 | BM78: 3 | BN78: 3 | BO78: 3 | BP78: 3 | BQ78: 3 | BR78: =IF($A$13,IF(AND(BR$2>=1,BR$2<=$D$4,$E78>=1,$E78<=$D$5),1,IF(AND(BR$2>=$D$4+1,BR$2<=$D$4+$D$6,$E78>=BR$2-$D$4+1,$E78<=BR$2-$D$4+$D$5),2,IF(AND($E78>=$D$5+1,$E78<=$D$5+$D$6,BR$2>=$E78-$D$5+1,BR$2<=$E78-$D$5+$D$4-1),3,""))),"") -> 3 | BS78: 3 | BT78: 3 | BU78: 3 | BV78: 3 | BW78: 3 | BX78: 3 | BY78: 3 | BZ78: 3 | CA78: 3 | CB78: =IF($A$13,IF(AND(CB$2>=1,CB$2<=$D$4,$E78>=1,$E78<=$D$5),1,IF(AND(CB$2>=$D$4+1,CB$2<=$D$4+$D$6,$E78>=CB$2-$D$4+1,$E78<=CB$2-$D$4+$D$5),2,IF(AND($E78>=$D$5+1,$E78<=$D$5+$D$6,CB$2>=$E78-$D$5+1,CB$2<=$E78-$D$5+$D$4-1),3,""))),"") -> 3 | CC78: 3 | CD78: 3 | CE78: 3 | CF78: 3 | CG78: 3 | CH78: 3 | CI78: 3 | CJ78: 3 | CK78: 3 | CL78: =IF($A$13,IF(AND(CL$2>=1,CL$2<=$D$4,$E78>=1,$E78<=$D$5),1,IF(AND(CL$2>=$D$4+1,CL$2<=$D$4+$D$6,$E78>=CL$2-$D$4+1,$E78<=CL$2-$D$4+$D$5),2,IF(AND($E78>=$D$5+1,$E78<=$D$5+$D$6,CL$2>=$E78-$D$5+1,CL$2<=$E78-$D$5+$D$4-1),3,""))),"") -> 3 | CM78: 3 | CN78: 3 | CO78: 3 | CP78: 3 | CQ78: 3 | CR78: 3 | CS78: 3 | CT78: 3 | CU78: 3 | CV78: =IF($A$13,IF(AND(CV$2>=1,CV$2<=$D$4,$E78>=1,$E78<=$D$5),1,IF(AND(CV$2>=$D$4+1,CV$2<=$D$4+$D$6,$E78>=CV$2-$D$4+1,$E78<=CV$2-$D$4+$D$5),2,IF(AND($E78>=$D$5+1,$E78<=$D$5+$D$6,CV$2>=$E78-$D$5+1,CV$2<=$E78-$D$5+$D$4-1),3,""))),"") -> 3 | CW78: 3 | CX78: 3 | CY78: 3 | CZ78: 3 | DA78: 3 | DB78: 3 | DC78: 3 | DD78: 3 | DE78: 3 | DF78: =IF($A$13,IF(AND(DF$2>=1,DF$2<=$D$4,$E78>=1,$E78<=$D$5),1,IF(AND(DF$2>=$D$4+1,DF$2<=$D$4+$D$6,$E78>=DF$2-$D$4+1,$E78<=DF$2-$D$4+$D$5),2,IF(AND($E78>=$D$5+1,$E78<=$D$5+$D$6,DF$2>=$E78-$D$5+1,DF$2<=$E78-$D$5+$D$4-1),3,""))),"") -> 3 | DG78: 3 | DH78: 3 | DI78: 3 | DJ78: 3 | DK78: 3 | DL78: 3 | DM78: 3 | DN78: 3 | DO78: 3 | DP78: =IF($A$13,IF(AND(DP$2>=1,DP$2<=$D$4,$E78>=1,$E78<=$D$5),1,IF(AND(DP$2>=$D$4+1,DP$2<=$D$4+$D$6,$E78>=DP$2-$D$4+1,$E78<=DP$2-$D$4+$D$5),2,IF(AND($E78>=$D$5+1,$E78<=$D$5+$D$6,DP$2>=$E78-$D$5+1,DP$2<=$E78-$D$5+$D$4-1),3,""))),"") -> 3 | DQ78: 3 | DR78: 3 | DS78: 3 | DT78: 3 | DU78: 3 | DV78: 3 | DW78: 3 | DX78: 3 | DY78: 3 | DZ78: =IF($A$13,IF(AND(DZ$2>=1,DZ$2<=$D$4,$E78>=1,$E78<=$D$5),1,IF(AND(DZ$2>=$D$4+1,DZ$2<=$D$4+$D$6,$E78>=DZ$2-$D$4+1,$E78<=DZ$2-$D$4+$D$5),2,IF(AND($E78>=$D$5+1,$E78<=$D$5+$D$6,DZ$2>=$E78-$D$5+1,DZ$2<=$E78-$D$5+$D$4-1),3,""))),"") -> 3 | EA78: 2 | EB78: 2 | EC78: 2 | ED78: 2 | EE78: 2 | EF78: 2 | EG78: 2 | EH78: 2 | EI78: 2 | EJ78: =IF($A$13,IF(AND(EJ$2>=1,EJ$2<=$D$4,$E78>=1,$E78<=$D$5),1,IF(AND(EJ$2>=$D$4+1,EJ$2<=$D$4+$D$6,$E78>=EJ$2-$D$4+1,$E78<=EJ$2-$D$4+$D$5),2,IF(AND($E78>=$D$5+1,$E78<=$D$5+$D$6,EJ$2>=$E78-$D$5+1,EJ$2<=$E78-$D$5+$D$4-1),3,""))),"") -> 2 | EK78: 2 | EL78: 2 | EM78: 2 | EN78: 2 | EO78: 2 | EP78: 2 | EQ78: 2 | ER78: 2 | ES78: 2 | ET78: =IF($A$13,IF(AND(ET$2>=1,ET$2<=$D$4,$E78>=1,$E78<=$D$5),1,IF(AND(ET$2>=$D$4+1,ET$2<=$D$4+$D$6,$E78>=ET$2-$D$4+1,$E78<=ET$2-$D$4+$D$5),2,IF(AND($E78>=$D$5+1,$E78<=$D$5+$D$6,ET$2>=$E78-$D$5+1,ET$2<=$E78-$D$5+$D$4-1),3,""))),"") -> 2 | EU78: 2 | EV78: 2 | EW78: 2 | EX78: 2 | EY78: 2 | EZ78: 2 | FA78: 2 | FB78: 2 | FC78: 2 | FD78: =IF($A$13,IF(AND(FD$2>=1,FD$2<=$D$4,$E78>=1,$E78<=$D$5),1,IF(AND(FD$2>=$D$4+1,FD$2<=$D$4+$D$6,$E78>=FD$2-$D$4+1,$E78<=FD$2-$D$4+$D$5),2,IF(AND($E78>=$D$5+1,$E78<=$D$5+$D$6,FD$2>=$E78-$D$5+1,FD$2<=$E78-$D$5+$D$4-1),3,""))),"") -> 2 | FE78: 2 | FF78: 2 | FG78: 2 | FH78: 2 | FI78: 2 | FJ78: 2 | FK78: 2 | FL78: 2 | FM78: 2 | FN78: =IF($A$13,IF(AND(FN$2>=1,FN$2<=$D$4,$E78>=1,$E78<=$D$5),1,IF(AND(FN$2>=$D$4+1,FN$2<=$D$4+$D$6,$E78>=FN$2-$D$4+1,$E78<=FN$2-$D$4+$D$5),2,IF(AND($E78>=$D$5+1,$E78<=$D$5+$D$6,FN$2>=$E78-$D$5+1,FN$2<=$E78-$D$5+$D$4-1),3,""))),"") -> 2 | FO78: 2 | FP78: 2 | FQ78: 2 | FR78: 2 | FX78: =IF($A$13,IF(AND(FX$2>=1,FX$2<=$D$4,$E78>=1,$E78<=$D$5),1,IF(AND(FX$2>=$D$4+1,FX$2<=$D$4+$D$6,$E78>=FX$2-$D$4+1,$E78<=FX$2-$D$4+$D$5),2,IF(AND($E78>=$D$5+1,$E78<=$D$5+$D$6,FX$2>=$E78-$D$5+1,FX$2<=$E78-$D$5+$D$4-1),3,""))),"") ->  | GH78: =IF($A$13,IF(AND(GH$2>=1,GH$2<=$D$4,$E78>=1,$E78<=$D$5),1,IF(AND(GH$2>=$D$4+1,GH$2<=$D$4+$D$6,$E78>=GH$2-$D$4+1,$E78<=GH$2-$D$4+$D$5),2,IF(AND($E78>=$D$5+1,$E78<=$D$5+$D$6,GH$2>=$E78-$D$5+1,GH$2<=$E78-$D$5+$D$4-1),3,""))),"") ->  | GR78: =IF($A$13,IF(AND(GR$2>=1,GR$2<=$D$4,$E78>=1,$E78<=$D$5),1,IF(AND(GR$2>=$D$4+1,GR$2<=$D$4+$D$6,$E78>=GR$2-$D$4+1,$E78<=GR$2-$D$4+$D$5),2,IF(AND($E78>=$D$5+1,$E78<=$D$5+$D$6,GR$2>=$E78-$D$5+1,GR$2<=$E78-$D$5+$D$4-1),3,""))),"") -> 
D79: 62 | E79: 139 | AS79: 3 | AT79: 3 | AU79: 3 | AV79: 3 | AW79: 3 | AX79: 3 | AY79: 3 | AZ79: 3 | BA79: 3 | BB79: 3 | BC79: 3 | BD79: 3 | BE79: 3 | BF79: 3 | BG79: 3 | BH79: 3 | BI79: 3 | BJ79: 3 | BK79: 3 | BL79: 3 | BM79: 3 | BN79: 3 | BO79: 3 | BP79: 3 | BQ79: 3 | BR79: 3 | BS79: 3 | BT79: 3 | BU79: 3 | BV79: 3 | BW79: 3 | BX79: 3 | BY79: 3 | BZ79: 3 | CA79: 3 | CB79: 3 | CC79: 3 | CD79: 3 | CE79: 3 | CF79: 3 | CG79: 3 | CH79: 3 | CI79: 3 | CJ79: 3 | CK79: 3 | CL79: 3 | CM79: 3 | CN79: 3 | CO79: 3 | CP79: 3 | CQ79: 3 | CR79: 3 | CS79: 3 | CT79: 3 | CU79: 3 | CV79: 3 | CW79: 3 | CX79: 3 | CY79: 3 | CZ79: 3 | DA79: 3 | DB79: 3 | DC79: 3 | DD79: 3 | DE79: 3 | DF79: 3 | DG79: 3 | DH79: 3 | DI79: 3 | DJ79: 3 | DK79: 3 | DL79: 3 | DM79: 3 | DN79: 3 | DO79: 3 | DP79: 3 | DQ79: 3 | DR79: 3 | DS79: 3 | DT79: 3 | DU79: 3 | DV79: 3 | DW79: 3 | DX79: 3 | DY79: 3 | DZ79: 2 | EA79: 2 | EB79: 2 | EC79: 2 | ED79: 2 | EE79: 2 | EF79: 2 | EG79: 2 | EH79: 2 | EI79: 2 | EJ79: 2 | EK79: 2 | EL79: 2 | EM79: 2 | EN79: 2 | EO79: 2 | EP79: 2 | EQ79: 2 | ER79: 2 | ES79: 2 | ET79: 2 | EU79: 2 | EV79: 2 | EW79: 2 | EX79: 2 | EY79: 2 | EZ79: 2 | FA79: 2 | FB79: 2 | FC79: 2 | FD79: 2 | FE79: 2 | FF79: 2 | FG79: 2 | FH79: 2 | FI79: 2 | FJ79: 2 | FK79: 2 | FL79: 2 | FM79: 2 | FN79: 2 | FO79: 2 | FP79: 2 | FQ79: 2 | FR79: 2
D80: 63 | E80: 138 | AR80: 3 | AS80: 3 | AT80: 3 | AU80: 3 | AV80: 3 | AW80: 3 | AX80: 3 | AY80: 3 | AZ80: 3 | BA80: 3 | BB80: 3 | BC80: 3 | BD80: 3 | BE80: 3 | BF80: 3 | BG80: 3 | BH80: 3 | BI80: 3 | BJ80: 3 | BK80: 3 | BL80: 3 | BM80: 3 | BN80: 3 | BO80: 3 | BP80: 3 | BQ80: 3 | BR80: 3 | BS80: 3 | BT80: 3 | BU80: 3 | BV80: 3 | BW80: 3 | BX80: 3 | BY80: 3 | BZ80: 3 | CA80: 3 | CB80: 3 | CC80: 3 | CD80: 3 | CE80: 3 | CF80: 3 | CG80: 3 | CH80: 3 | CI80: 3 | CJ80: 3 | CK80: 3 | CL80: 3 | CM80: 3 | CN80: 3 | CO80: 3 | CP80: 3 | CQ80: 3 | CR80: 3 | CS80: 3 | CT80: 3 | CU80: 3 | CV80: 3 | CW80: 3 | CX80: 3 | CY80: 3 | CZ80: 3 | DA80: 3 | DB80: 3 | DC80: 3 | DD80: 3 | DE80: 3 | DF80: 3 | DG80: 3 | DH80: 3 | DI80: 3 | DJ80: 3 | DK80: 3 | DL80: 3 | DM80: 3 | DN80: 3 | DO80: 3 | DP80: 3 | DQ80: 3 | DR80: 3 | DS80: 3 | DT80: 3 | DU80: 3 | DV80: 3 | DW80: 3 | DX80: 3 | DY80: 2 | DZ80: 2 | EA80: 2 | EB80: 2 | EC80: 2 | ED80: 2 | EE80: 2 | EF80: 2 | EG80: 2 | EH80: 2 | EI80: 2 | EJ80: 2 | EK80: 2 | EL80: 2 | EM80: 2 | EN80: 2 | EO80: 2 | EP80: 2 | EQ80: 2 | ER80: 2 | ES80: 2 | ET80: 2 | EU80: 2 | EV80: 2 | EW80: 2 | EX80: 2 | EY80: 2 | EZ80: 2 | FA80: 2 | FB80: 2 | FC80: 2 | FD80: 2 | FE80: 2 | FF80: 2 | FG80: 2 | FH80: 2 | FI80: 2 | FJ80: 2 | FK80: 2 | FL80: 2 | FM80: 2 | FN80: 2 | FO80: 2 | FP80: 2 | FQ80: 2 | FR80: 2
D81: 64 | E81: 137 | AQ81: 3 | AR81: 3 | AS81: 3 | AT81: 3 | AU81: 3 | AV81: 3 | AW81: 3 | AX81: 3 | AY81: 3 | AZ81: 3 | BA81: 3 | BB81: 3 | BC81: 3 | BD81: 3 | BE81: 3 | BF81: 3 | BG81: 3 | BH81: 3 | BI81: 3 | BJ81: 3 | BK81: 3 | BL81: 3 | BM81: 3 | BN81: 3 | BO81: 3 | BP81: 3 | BQ81: 3 | BR81: 3 | BS81: 3 | BT81: 3 | BU81: 3 | BV81: 3 | BW81: 3 | BX81: 3 | BY81: 3 | BZ81: 3 | CA81: 3 | CB81: 3 | CC81: 3 | CD81: 3 | CE81: 3 | CF81: 3 | CG81: 3 | CH81: 3 | CI81: 3 | CJ81: 3 | CK81: 3 | CL81: 3 | CM81: 3 | CN81: 3 | CO81: 3 | CP81: 3 | CQ81: 3 | CR81: 3 | CS81: 3 | CT81: 3 | CU81: 3 | CV81: 3 | CW81: 3 | CX81: 3 | CY81: 3 | CZ81: 3 | DA81: 3 | DB81: 3 | DC81: 3 | DD81: 3 | DE81: 3 | DF81: 3 | DG81: 3 | DH81: 3 | DI81: 3 | DJ81: 3 | DK81: 3 | DL81: 3 | DM81: 3 | DN81: 3 | DO81: 3 | DP81: 3 | DQ81: 3 | DR81: 3 | DS81: 3 | DT81: 3 | DU81: 3 | DV81: 3 | DW81: 3 | DX81: 2 | DY81: 2 | DZ81: 2 | EA81: 2 | EB81: 2 | EC81: 2 | ED81: 2 | EE81: 2 | EF81: 2 | EG81: 2 | EH81: 2 | EI81: 2 | EJ81: 2 | EK81: 2 | EL81: 2 | EM81: 2 | EN81: 2 | EO81: 2 | EP81: 2 | EQ81: 2 | ER81: 2 | ES81: 2 | ET81: 2 | EU81: 2 | EV81: 2 | EW81: 2 | EX81: 2 | EY81: 2 | EZ81: 2 | FA81: 2 | FB81: 2 | FC81: 2 | FD81: 2 | FE81: 2 | FF81: 2 | FG81: 2 | FH81: 2 | FI81: 2 | FJ81: 2 | FK81: 2 | FL81: 2 | FM81: 2 | FN81: 2 | FO81: 2 | FP81: 2 | FQ81: 2 | FR81: 2
D82: 65 | E82: =$A$16-D82 -> 136 | AP82: 3 | AQ82: 3 | AR82: 3 | AS82: 3 | AT82: 3 | AU82: 3 | AV82: 3 | AW82: 3 | AX82: 3 | AY82: 3 | AZ82: 3 | BA82: 3 | BB82: 3 | BC82: 3 | BD82: 3 | BE82: 3 | BF82: 3 | BG82: 3 | BH82: 3 | BI82: 3 | BJ82: 3 | BK82: 3 | BL82: 3 | BM82: 3 | BN82: 3 | BO82: 3 | BP82: 3 | BQ82: 3 | BR82: 3 | BS82: 3 | BT82: 3 | BU82: 3 | BV82: 3 | BW82: 3 | BX82: 3 | BY82: 3 | BZ82: 3 | CA82: 3 | CB82: 3 | CC82: 3 | CD82: 3 | CE82: 3 | CF82: 3 | CG82: 3 | CH82: 3 | CI82: 3 | CJ82: 3 | CK82: 3 | CL82: 3 | CM82: 3 | CN82: 3 | CO82: 3 | CP82: 3 | CQ82: 3 | CR82: 3 | CS82: 3 | CT82: 3 | CU82: 3 | CV82: 3 | CW82: 3 | CX82: 3 | CY82: 3 | CZ82: 3 | DA82: 3 | DB82: 3 | DC82: 3 | DD82: 3 | DE82: 3 | DF82: 3 | DG82: 3 | DH82: 3 | DI82: 3 | DJ82: 3 | DK82: 3 | DL82: 3 | DM82: 3 | DN82: 3 | DO82: 3 | DP82: 3 | DQ82: 3 | DR82: 3 | DS82: 3 | DT82: 3 | DU82: 3 | DV82: 3 | DW82: 2 | DX82: 2 | DY82: 2 | DZ82: 2 | EA82: 2 | EB82: 2 | EC82: 2 | ED82: 2 | EE82: 2 | EF82: 2 | EG82: 2 | EH82: 2 | EI82: 2 | EJ82: 2 | EK82: 2 | EL82: 2 | EM82: 2 | EN82: 2 | EO82: 2 | EP82: 2 | EQ82: 2 | ER82: 2 | ES82: 2 | ET82: 2 | EU82: 2 | EV82: 2 | EW82: 2 | EX82: 2 | EY82: 2 | EZ82: 2 | FA82: 2 | FB82: 2 | FC82: 2 | FD82: 2 | FE82: 2 | FF82: 2 | FG82: 2 | FH82: 2 | FI82: 2 | FJ82: 2 | FK82: 2 | FL82: 2 | FM82: 2 | FN82: 2 | FO82: 2 | FP82: 2 | FQ82: 2 | FR82: 2
D83: 66 | E83: 135 | AO83: 3 | AP83: 3 | AQ83: 3 | AR83: 3 | AS83: 3 | AT83: 3 | AU83: 3 | AV83: 3 | AW83: 3 | AX83: 3 | AY83: 3 | AZ83: 3 | BA83: 3 | BB83: 3 | BC83: 3 | BD83: 3 | BE83: 3 | BF83: 3 | BG83: 3 | BH83: 3 | BI83: 3 | BJ83: 3 | BK83: 3 | BL83: 3 | BM83: 3 | BN83: 3 | BO83: 3 | BP83: 3 | BQ83: 3 | BR83: 3 | BS83: 3 | BT83: 3 | BU83: 3 | BV83: 3 | BW83: 3 | BX83: 3 | BY83: 3 | BZ83: 3 | CA83: 3 | CB83: 3 | CC83: 3 | CD83: 3 | CE83: 3 | CF83: 3 | CG83: 3 | CH83: 3 | CI83: 3 | CJ83: 3 | CK83: 3 | CL83: 3 | CM83: 3 | CN83: 3 | CO83: 3 | CP83: 3 | CQ83: 3 | CR83: 3 | CS83: 3 | CT83: 3 | CU83: 3 | CV83: 3 | CW83: 3 | CX83: 3 | CY83: 3 | CZ83: 3 | DA83: 3 | DB83: 3 | DC83: 3 | DD83: 3 | DE83: 3 | DF83: 3 | DG83: 3 | DH83: 3 | DI83: 3 | DJ83: 3 | DK83: 3 | DL83: 3 | DM83: 3 | DN83: 3 | DO83: 3 | DP83: 3 | DQ83: 3 | DR83: 3 | DS83: 3 | DT83: 3 | DU83: 3 | DV83: 2 | DW83: 2 | DX83: 2 | DY83: 2 | DZ83: 2 | EA83: 2 | EB83: 2 | EC83: 2 | ED83: 2 | EE83: 2 | EF83: 2 | EG83: 2 | EH83: 2 | EI83: 2 | EJ83: 2 | EK83: 2 | EL83: 2 | EM83: 2 | EN83: 2 | EO83: 2 | EP83: 2 | EQ83: 2 | ER83: 2 | ES83: 2 | ET83: 2 | EU83: 2 | EV83: 2 | EW83: 2 | EX83: 2 | EY83: 2 | EZ83: 2 | FA83: 2 | FB83: 2 | FC83: 2 | FD83: 2 | FE83: 2 | FF83: 2 | FG83: 2 | FH83: 2 | FI83: 2 | FJ83: 2 | FK83: 2 | FL83: 2 | FM83: 2 | FN83: 2 | FO83: 2 | FP83: 2 | FQ83: 2 | FR83: 2
D84: 67 | E84: 134 | AN84: 3 | AO84: 3 | AP84: 3 | AQ84: 3 | AR84: 3 | AS84: 3 | AT84: 3 | AU84: 3 | AV84: 3 | AW84: 3 | AX84: 3 | AY84: 3 | AZ84: 3 | BA84: 3 | BB84: 3 | BC84: 3 | BD84: 3 | BE84: 3 | BF84: 3 | BG84: 3 | BH84: 3 | BI84: 3 | BJ84: 3 | BK84: 3 | BL84: 3 | BM84: 3 | BN84: 3 | BO84: 3 | BP84: 3 | BQ84: 3 | BR84: 3 | BS84: 3 | BT84: 3 | BU84: 3 | BV84: 3 | BW84: 3 | BX84: 3 | BY84: 3 | BZ84: 3 | CA84: 3 | CB84: 3 | CC84: 3 | CD84: 3 | CE84: 3 | CF84: 3 | CG84: 3 | CH84: 3 | CI84: 3 | CJ84: 3 | CK84: 3 | CL84: 3 | CM84: 3 | CN84: 3 | CO84: 3 | CP84: 3 | CQ84: 3 | CR84: 3 | CS84: 3 | CT84: 3 | CU84: 3 | CV84: 3 | CW84: 3 | CX84: 3 | CY84: 3 | CZ84: 3 | DA84: 3 | DB84: 3 | DC84: 3 | DD84: 3 | DE84: 3 | DF84: 3 | DG84: 3 | DH84: 3 | DI84: 3 | DJ84: 3 | DK84: 3 | DL84: 3 | DM84: 3 | DN84: 3 | DO84: 3 | DP84: 3 | DQ84: 3 | DR84: 3 | DS84: 3 | DT84: 3 | DU84: 2 | DV84: 2 | DW84: 2 | DX84: 2 | DY84: 2 | DZ84: 2 | EA84: 2 | EB84: 2 | EC84: 2 | ED84: 2 | EE84: 2 | EF84: 2 | EG84: 2 | EH84: 2 | EI84: 2 | EJ84: 2 | EK84: 2 | EL84: 2 | EM84: 2 | EN84: 2 | EO84: 2 | EP84: 2 | EQ84: 2 | ER84: 2 | ES84: 2 | ET84: 2 | EU84: 2 | EV84: 2 | EW84: 2 | EX84: 2 | EY84: 2 | EZ84: 2 | FA84: 2 | FB84: 2 | FC84: 2 | FD84: 2 | FE84: 2 | FF84: 2 | FG84: 2 | FH84: 2 | FI84: 2 | FJ84: 2 | FK84: 2 | FL84: 2 | FM84: 2 | FN84: 2 | FO84: 2 | FP84: 2 | FQ84: 2 | FR84: 2
D85: 68 | E85: 133 | AM85: 3 | AN85: 3 | AO85: 3 | AP85: 3 | AQ85: 3 | AR85: 3 | AS85: 3 | AT85: 3 | AU85: 3 | AV85: 3 | AW85: 3 | AX85: 3 | AY85: 3 | AZ85: 3 | BA85: 3 | BB85: 3 | BC85: 3 | BD85: 3 | BE85: 3 | BF85: 3 | BG85: 3 | BH85: 3 | BI85: 3 | BJ85: 3 | BK85: 3 | BL85: 3 | BM85: 3 | BN85: 3 | BO85: 3 | BP85: 3 | BQ85: 3 | BR85: 3 | BS85: 3 | BT85: 3 | BU85: 3 | BV85: 3 | BW85: 3 | BX85: 3 | BY85: 3 | BZ85: 3 | CA85: 3 | CB85: 3 | CC85: 3 | CD85: 3 | CE85: 3 | CF85: 3 | CG85: 3 | CH85: 3 | CI85: 3 | CJ85: 3 | CK85: 3 | CL85: 3 | CM85: 3 | CN85: 3 | CO85: 3 | CP85: 3 | CQ85: 3 | CR85: 3 | CS85: 3 | CT85: 3 | CU85: 3 | CV85: 3 | CW85: 3 | CX85: 3 | CY85: 3 | CZ85: 3 | DA85: 3 | DB85: 3 | DC85: 3 | DD85: 3 | DE85: 3 | DF85: 3 | DG85: 3 | DH85: 3 | DI85: 3 | DJ85: 3 | DK85: 3 | DL85: 3 | DM85: 3 | DN85: 3 | DO85: 3 | DP85: 3 | DQ85: 3 | DR85: 3 | DS85: 3 | DT85: 2 | DU85: 2 | DV85: 2 | DW85: 2 | DX85: 2 | DY85: 2 | DZ85: 2 | EA85: 2 | EB85: 2 | EC85: 2 | ED85: 2 | EE85: 2 | EF85: 2 | EG85: 2 | EH85: 2 | EI85: 2 | EJ85: 2 | EK85: 2 | EL85: 2 | EM85: 2 | EN85: 2 | EO85: 2 | EP85: 2 | EQ85: 2 | ER85: 2 | ES85: 2 | ET85: 2 | EU85: 2 | EV85: 2 | EW85: 2 | EX85: 2 | EY85: 2 | EZ85: 2 | FA85: 2 | FB85: 2 | FC85: 2 | FD85: 2 | FE85: 2 | FF85: 2 | FG85: 2 | FH85: 2 | FI85: 2 | FJ85: 2 | FK85: 2 | FL85: 2 | FM85: 2 | FN85: 2 | FO85: 2 | FP85: 2 | FQ85: 2 | FR85: 2
D86: 69 | E86: 132 | AL86: 3 | AM86: 3 | AN86: 3 | AO86: 3 | AP86: 3 | AQ86: 3 | AR86: 3 | AS86: 3 | AT86: 3 | AU86: 3 | AV86: 3 | AW86: 3 | AX86: 3 | AY86: 3 | AZ86: 3 | BA86: 3 | BB86: 3 | BC86: 3 | BD86: 3 | BE86: 3 | BF86: 3 | BG86: 3 | BH86: 3 | BI86: 3 | BJ86: 3 | BK86: 3 | BL86: 3 | BM86: 3 | BN86: 3 | BO86: 3 | BP86: 3 | BQ86: 3 | BR86: 3 | BS86: 3 | BT86: 3 | BU86: 3 | BV86: 3 | BW86: 3 | BX86: 3 | BY86: 3 | BZ86: 3 | CA86: 3 | CB86: 3 | CC86: 3 | CD86: 3 | CE86: 3 | CF86: 3 | CG86: 3 | CH86: 3 | CI86: 3 | CJ86: 3 | CK86: 3 | CL86: 3 | CM86: 3 | CN86: 3 | CO86: 3 | CP86: 3 | CQ86: 3 | CR86: 3 | CS86: 3 | CT86: 3 | CU86: 3 | CV86: 3 | CW86: 3 | CX86: 3 | CY86: 3 | CZ86: 3 | DA86: 3 | DB86: 3 | DC86: 3 | DD86: 3 | DE86: 3 | DF86: 3 | DG86: 3 | DH86: 3 | DI86: 3 | DJ86: 3 | DK86: 3 | DL86: 3 | DM86: 3 | DN86: 3 | DO86: 3 | DP86: 3 | DQ86: 3 | DR86: 3 | DS86: 2 | DT86: 2 | DU86: 2 | DV86: 2 | DW86: 2 | DX86: 2 | DY86: 2 | DZ86: 2 | EA86: 2 | EB86: 2 | EC86: 2 | ED86: 2 | EE86: 2 | EF86: 2 | EG86: 2 | EH86: 2 | EI86: 2 | EJ86: 2 | EK86: 2 | EL86: 2 | EM86: 2 | EN86: 2 | EO86: 2 | EP86: 2 | EQ86: 2 | ER86: 2 | ES86: 2 | ET86: 2 | EU86: 2 | EV86: 2 | EW86: 2 | EX86: 2 | EY86: 2 | EZ86: 2 | FA86: 2 | FB86: 2 | FC86: 2 | FD86: 2 | FE86: 2 | FF86: 2 | FG86: 2 | FH86: 2 | FI86: 2 | FJ86: 2 | FK86: 2 | FL86: 2 | FM86: 2 | FN86: 2 | FO86: 2 | FP86: 2 | FQ86: 2 | FR86: 2
D87: 70 | E87: 131 | AK87: 3 | AL87: 3 | AM87: 3 | AN87: 3 | AO87: 3 | AP87: 3 | AQ87: 3 | AR87: 3 | AS87: 3 | AT87: 3 | AU87: 3 | AV87: 3 | AW87: 3 | AX87: 3 | AY87: 3 | AZ87: 3 | BA87: 3 | BB87: 3 | BC87: 3 | BD87: 3 | BE87: 3 | BF87: 3 | BG87: 3 | BH87: 3 | BI87: 3 | BJ87: 3 | BK87: 3 | BL87: 3 | BM87: 3 | BN87: 3 | BO87: 3 | BP87: 3 | BQ87: 3 | BR87: 3 | BS87: 3 | BT87: 3 | BU87: 3 | BV87: 3 | BW87: 3 | BX87: 3 | BY87: 3 | BZ87: 3 | CA87: 3 | CB87: 3 | CC87: 3 | CD87: 3 | CE87: 3 | CF87: 3 | CG87: 3 | CH87: 3 | CI87: 3 | CJ87: 3 | CK87: 3 | CL87: 3 | CM87: 3 | CN87: 3 | CO87: 3 | CP87: 3 | CQ87: 3 | CR87: 3 | CS87: 3 | CT87: 3 | CU87: 3 | CV87: 3 | CW87: 3 | CX87: 3 | CY87: 3 | CZ87: 3 | DA87: 3 | DB87: 3 | DC87: 3 | DD87: 3 | DE87: 3 | DF87: 3 | DG87: 3 | DH87: 3 | DI87: 3 | DJ87: 3 | DK87: 3 | DL87: 3 | DM87: 3 | DN87: 3 | DO87: 3 | DP87: 3 | DQ87: 3 | DR87: 2 | DS87: 2 | DT87: 2 | DU87: 2 | DV87: 2 | DW87: 2 | DX87: 2 | DY87: 2 | DZ87: 2 | EA87: 2 | EB87: 2 | EC87: 2 | ED87: 2 | EE87: 2 | EF87: 2 | EG87: 2 | EH87: 2 | EI87: 2 | EJ87: 2 | EK87: 2 | EL87: 2 | EM87: 2 | EN87: 2 | EO87: 2 | EP87: 2 | EQ87: 2 | ER87: 2 | ES87: 2 | ET87: 2 | EU87: 2 | EV87: 2 | EW87: 2 | EX87: 2 | EY87: 2 | EZ87: 2 | FA87: 2 | FB87: 2 | FC87: 2 | FD87: 2 | FE87: 2 | FF87: 2 | FG87: 2 | FH87: 2 | FI87: 2 | FJ87: 2 | FK87: 2 | FL87: 2 | FM87: 2 | FN87: 2 | FO87: 2 | FP87: 2 | FQ87: 2 | FR87: 2
D88: 71 | E88: 130 | J88: =IF($A$13,IF(AND(J$2>=1,J$2<=$D$4,$E88>=1,$E88<=$D$5),1,IF(AND(J$2>=$D$4+1,J$2<=$D$4+$D$6,$E88>=J$2-$D$4+1,$E88<=J$2-$D$4+$D$5),2,IF(AND($E88>=$D$5+1,$E88<=$D$5+$D$6,J$2>=$E88-$D$5+1,J$2<=$E88-$D$5+$D$4-1),3,""))),"") ->  | T88: =IF($A$13,IF(AND(T$2>=1,T$2<=$D$4,$E88>=1,$E88<=$D$5),1,IF(AND(T$2>=$D$4+1,T$2<=$D$4+$D$6,$E88>=T$2-$D$4+1,$E88<=T$2-$D$4+$D$5),2,IF(AND($E88>=$D$5+1,$E88<=$D$5+$D$6,T$2>=$E88-$D$5+1,T$2<=$E88-$D$5+$D$4-1),3,""))),"") ->  | AD88: =IF($A$13,IF(AND(AD$2>=1,AD$2<=$D$4,$E88>=1,$E88<=$D$5),1,IF(AND(AD$2>=$D$4+1,AD$2<=$D$4+$D$6,$E88>=AD$2-$D$4+1,$E88<=AD$2-$D$4+$D$5),2,IF(AND($E88>=$D$5+1,$E88<=$D$5+$D$6,AD$2>=$E88-$D$5+1,AD$2<=$E88-$D$5+$D$4-1),3,""))),"") ->  | AJ88: 3 | AK88: 3 | AL88: 3 | AM88: 3 | AN88: =IF($A$13,IF(AND(AN$2>=1,AN$2<=$D$4,$E88>=1,$E88<=$D$5),1,IF(AND(AN$2>=$D$4+1,AN$2<=$D$4+$D$6,$E88>=AN$2-$D$4+1,$E88<=AN$2-$D$4+$D$5),2,IF(AND($E88>=$D$5+1,$E88<=$D$5+$D$6,AN$2>=$E88-$D$5+1,AN$2<=$E88-$D$5+$D$4-1),3,""))),"") -> 3 | AO88: 3 | AP88: 3 | AQ88: 3 | AR88: 3 | AS88: 3 | AT88: 3 | AU88: 3 | AV88: 3 | AW88: 3 | AX88: =IF($A$13,IF(AND(AX$2>=1,AX$2<=$D$4,$E88>=1,$E88<=$D$5),1,IF(AND(AX$2>=$D$4+1,AX$2<=$D$4+$D$6,$E88>=AX$2-$D$4+1,$E88<=AX$2-$D$4+$D$5),2,IF(AND($E88>=$D$5+1,$E88<=$D$5+$D$6,AX$2>=$E88-$D$5+1,AX$2<=$E88-$D$5+$D$4-1),3,""))),"") -> 3 | AY88: 3 | AZ88: 3 | BA88: 3 | BB88: 3 | BC88: 3 | BD88: 3 | BE88: 3 | BF88: 3 | BG88: 3 | BH88: =IF($A$13,IF(AND(BH$2>=1,BH$2<=$D$4,$E88>=1,$E88<=$D$5),1,IF(AND(BH$2>=$D$4+1,BH$2<=$D$4+$D$6,$E88>=BH$2-$D$4+1,$E88<=BH$2-$D$4+$D$5),2,IF(AND($E88>=$D$5+1,$E88<=$D$5+$D$6,BH$2>=$E88-$D$5+1,BH$2<=$E88-$D$5+$D$4-1),3,""))),"") -> 3 | BI88: 3 | BJ88: 3 | BK88: 3 | BL88: 3 | BM88: 3 | BN88: 3 | BO88: 3 | BP88: 3 | BQ88: 3 | BR88: =IF($A$13,IF(AND(BR$2>=1,BR$2<=$D$4,$E88>=1,$E88<=$D$5),1,IF(AND(BR$2>=$D$4+1,BR$2<=$D$4+$D$6,$E88>=BR$2-$D$4+1,$E88<=BR$2-$D$4+$D$5),2,IF(AND($E88>=$D$5+1,$E88<=$D$5+$D$6,BR$2>=$E88-$D$5+1,BR$2<=$E88-$D$5+$D$4-1),3,""))),"") -> 3 | BS88: 3 | BT88: 3 | BU88: 3 | BV88: 3 | BW88: 3 | BX88: 3 | BY88: 3 | BZ88: 3 | CA88: 3 | CB88: =IF($A$13,IF(AND(CB$2>=1,CB$2<=$D$4,$E88>=1,$E88<=$D$5),1,IF(AND(CB$2>=$D$4+1,CB$2<=$D$4+$D$6,$E88>=CB$2-$D$4+1,$E88<=CB$2-$D$4+$D$5),2,IF(AND($E88>=$D$5+1,$E88<=$D$5+$D$6,CB$2>=$E88-$D$5+1,CB$2<=$E88-$D$5+$D$4-1),3,""))),"") -> 3 | CC88: 3 | CD88: 3 | CE88: 3 | CF88: 3 | CG88: 3 | CH88: 3 | CI88: 3 | CJ88: 3 | CK88: 3 | CL88: =IF($A$13,IF(AND(CL$2>=1,CL$2<=$D$4,$E88>=1,$E88<=$D$5),1,IF(AND(CL$2>=$D$4+1,CL$2<=$D$4+$D$6,$E88>=CL$2-$D$4+1,$E88<=CL$2-$D$4+$D$5),2,IF(AND($E88>=$D$5+1,$E88<=$D$5+$D$6,CL$2>=$E88-$D$5+1,CL$2<=$E88-$D$5+$D$4-1),3,""))),"") -> 3 | CM88: 3 | CN88: 3 | CO88: 3 | CP88: 3 | CQ88: 3 | CR88: 3 | CS88: 3 | CT88: 3 | CU88: 3 | CV88: =IF($A$13,IF(AND(CV$2>=1,CV$2<=$D$4,$E88>=1,$E88<=$D$5),1,IF(AND(CV$2>=$D$4+1,CV$2<=$D$4+$D$6,$E88>=CV$2-$D$4+1,$E88<=CV$2-$D$4+$D$5),2,IF(AND($E88>=$D$5+1,$E88<=$D$5+$D$6,CV$2>=$E88-$D$5+1,CV$2<=$E88-$D$5+$D$4-1),3,""))),"") -> 3 | CW88: 3 | CX88: 3 | CY88: 3 | CZ88: 3 | DA88: 3 | DB88: 3 | DC88: 3 | DD88: 3 | DE88: 3 | DF88: =IF($A$13,IF(AND(DF$2>=1,DF$2<=$D$4,$E88>=1,$E88<=$D$5),1,IF(AND(DF$2>=$D$4+1,DF$2<=$D$4+$D$6,$E88>=DF$2-$D$4+1,$E88<=DF$2-$D$4+$D$5),2,IF(AND($E88>=$D$5+1,$E88<=$D$5+$D$6,DF$2>=$E88-$D$5+1,DF$2<=$E88-$D$5+$D$4-1),3,""))),"") -> 3 | DG88: 3 | DH88: 3 | DI88: 3 | DJ88: 3 | DK88: 3 | DL88: 3 | DM88: 3 | DN88: 3 | DO88: 3 | DP88: =IF($A$13,IF(AND(DP$2>=1,DP$2<=$D$4,$E88>=1,$E88<=$D$5),1,IF(AND(DP$2>=$D$4+1,DP$2<=$D$4+$D$6,$E88>=DP$2-$D$4+1,$E88<=DP$2-$D$4+$D$5),2,IF(AND($E88>=$D$5+1,$E88<=$D$5+$D$6,DP$2>=$E88-$D$5+1,DP$2<=$E88-$D$5+$D$4-1),3,""))),"") -> 3 | DQ88: 2 | DR88: 2 | DS88: 2 | DT88: 2 | DU88: 2 | DV88: 2 | DW88: 2 | DX88: 2 | DY88: 2 | DZ88: =IF($A$13,IF(AND(DZ$2>=1,DZ$2<=$D$4,$E88>=1,$E88<=$D$5),1,IF(AND(DZ$2>=$D$4+1,DZ$2<=$D$4+$D$6,$E88>=DZ$2-$D$4+1,$E88<=DZ$2-$D$4+$D$5),2,IF(AND($E88>=$D$5+1,$E88<=$D$5+$D$6,DZ$2>=$E88-$D$5+1,DZ$2<=$E88-$D$5+$D$4-1),3,""))),"") -> 2 | EA88: 2 | EB88: 2 | EC88: 2 | ED88: 2 | EE88: 2 | EF88: 2 | EG88: 2 | EH88: 2 | EI88: 2 | EJ88: =IF($A$13,IF(AND(EJ$2>=1,EJ$2<=$D$4,$E88>=1,$E88<=$D$5),1,IF(AND(EJ$2>=$D$4+1,EJ$2<=$D$4+$D$6,$E88>=EJ$2-$D$4+1,$E88<=EJ$2-$D$4+$D$5),2,IF(AND($E88>=$D$5+1,$E88<=$D$5+$D$6,EJ$2>=$E88-$D$5+1,EJ$2<=$E88-$D$5+$D$4-1),3,""))),"") -> 2 | EK88: 2 | EL88: 2 | EM88: 2 | EN88: 2 | EO88: 2 | EP88: 2 | EQ88: 2 | ER88: 2 | ES88: 2 | ET88: =IF($A$13,IF(AND(ET$2>=1,ET$2<=$D$4,$E88>=1,$E88<=$D$5),1,IF(AND(ET$2>=$D$4+1,ET$2<=$D$4+$D$6,$E88>=ET$2-$D$4+1,$E88<=ET$2-$D$4+$D$5),2,IF(AND($E88>=$D$5+1,$E88<=$D$5+$D$6,ET$2>=$E88-$D$5+1,ET$2<=$E88-$D$5+$D$4-1),3,""))),"") -> 2 | EU88: 2 | EV88: 2 | EW88: 2 | EX88: 2 | EY88: 2 | EZ88: 2 | FA88: 2 | FB88: 2 | FC88: 2 | FD88: =IF($A$13,IF(AND(FD$2>=1,FD$2<=$D$4,$E88>=1,$E88<=$D$5),1,IF(AND(FD$2>=$D$4+1,FD$2<=$D$4+$D$6,$E88>=FD$2-$D$4+1,$E88<=FD$2-$D$4+$D$5),2,IF(AND($E88>=$D$5+1,$E88<=$D$5+$D$6,FD$2>=$E88-$D$5+1,FD$2<=$E88-$D$5+$D$4-1),3,""))),"") -> 2 | FE88: 2 | FF88: 2 | FG88: 2 | FH88: 2 | FI88: 2 | FJ88: 2 | FK88: 2 | FL88: 2 | FM88: 2 | FN88: =IF($A$13,IF(AND(FN$2>=1,FN$2<=$D$4,$E88>=1,$E88<=$D$5),1,IF(AND(FN$2>=$D$4+1,FN$2<=$D$4+$D$6,$E88>=FN$2-$D$4+1,$E88<=FN$2-$D$4+$D$5),2,IF(AND($E88>=$D$5+1,$E88<=$D$5+$D$6,FN$2>=$E88-$D$5+1,FN$2<=$E88-$D$5+$D$4-1),3,""))),"") -> 2 | FO88: 2 | FP88: 2 | FQ88: 2 | FR88: 2 | FX88: =IF($A$13,IF(AND(FX$2>=1,FX$2<=$D$4,$E88>=1,$E88<=$D$5),1,IF(AND(FX$2>=$D$4+1,FX$2<=$D$4+$D$6,$E88>=FX$2-$D$4+1,$E88<=FX$2-$D$4+$D$5),2,IF(AND($E88>=$D$5+1,$E88<=$D$5+$D$6,FX$2>=$E88-$D$5+1,FX$2<=$E88-$D$5+$D$4-1),3,""))),"") ->  | GH88: =IF($A$13,IF(AND(GH$2>=1,GH$2<=$D$4,$E88>=1,$E88<=$D$5),1,IF(AND(GH$2>=$D$4+1,GH$2<=$D$4+$D$6,$E88>=GH$2-$D$4+1,$E88<=GH$2-$D$4+$D$5),2,IF(AND($E88>=$D$5+1,$E88<=$D$5+$D$6,GH$2>=$E88-$D$5+1,GH$2<=$E88-$D$5+$D$4-1),3,""))),"") ->  | GR88: =IF($A$13,IF(AND(GR$2>=1,GR$2<=$D$4,$E88>=1,$E88<=$D$5),1,IF(AND(GR$2>=$D$4+1,GR$2<=$D$4+$D$6,$E88>=GR$2-$D$4+1,$E88<=GR$2-$D$4+$D$5),2,IF(AND($E88>=$D$5+1,$E88<=$D$5+$D$6,GR$2>=$E88-$D$5+1,GR$2<=$E88-$D$5+$D$4-1),3,""))),"") -> 
D89: 72 | E89: 129 | AI89: 3 | AJ89: 3 | AK89: 3 | AL89: 3 | AM89: 3 | AN89: 3 | AO89: 3 | AP89: 3 | AQ89: 3 | AR89: 3 | AS89: 3 | AT89: 3 | AU89: 3 | AV89: 3 | AW89: 3 | AX89: 3 | AY89: 3 | AZ89: 3 | BA89: 3 | BB89: 3 | BC89: 3 | BD89: 3 | BE89: 3 | BF89: 3 | BG89: 3 | BH89: 3 | BI89: 3 | BJ89: 3 | BK89: 3 | BL89: 3 | BM89: 3 | BN89: 3 | BO89: 3 | BP89: 3 | BQ89: 3 | BR89: 3 | BS89: 3 | BT89: 3 | BU89: 3 | BV89: 3 | BW89: 3 | BX89: 3 | BY89: 3 | BZ89: 3 | CA89: 3 | CB89: 3 | CC89: 3 | CD89: 3 | CE89: 3 | CF89: 3 | CG89: 3 | CH89: 3 | CI89: 3 | CJ89: 3 | CK89: 3 | CL89: 3 | CM89: 3 | CN89: 3 | CO89: 3 | CP89: 3 | CQ89: 3 | CR89: 3 | CS89: 3 | CT89: 3 | CU89: 3 | CV89: 3 | CW89: 3 | CX89: 3 | CY89: 3 | CZ89: 3 | DA89: 3 | DB89: 3 | DC89: 3 | DD89: 3 | DE89: 3 | DF89: 3 | DG89: 3 | DH89: 3 | DI89: 3 | DJ89: 3 | DK89: 3 | DL89: 3 | DM89: 3 | DN89: 3 | DO89: 3 | DP89: 2 | DQ89: 2 | DR89: 2 | DS89: 2 | DT89: 2 | DU89: 2 | DV89: 2 | DW89: 2 | DX89: 2 | DY89: 2 | DZ89: 2 | EA89: 2 | EB89: 2 | EC89: 2 | ED89: 2 | EE89: 2 | EF89: 2 | EG89: 2 | EH89: 2 | EI89: 2 | EJ89: 2 | EK89: 2 | EL89: 2 | EM89: 2 | EN89: 2 | EO89: 2 | EP89: 2 | EQ89: 2 | ER89: 2 | ES89: 2 | ET89: 2 | EU89: 2 | EV89: 2 | EW89: 2 | EX89: 2 | EY89: 2 | EZ89: 2 | FA89: 2 | FB89: 2 | FC89: 2 | FD89: 2 | FE89: 2 | FF89: 2 | FG89: 2 | FH89: 2 | FI89: 2 | FJ89: 2 | FK89: 2 | FL89: 2 | FM89: 2 | FN89: 2 | FO89: 2 | FP89: 2 | FQ89: 2 | FR89: 2
D90: 73 | E90: 128 | AH90: 3 | AI90: 3 | AJ90: 3 | AK90: 3 | AL90: 3 | AM90: 3 | AN90: 3 | AO90: 3 | AP90: 3 | AQ90: 3 | AR90: 3 | AS90: 3 | AT90: 3 | AU90: 3 | AV90: 3 | AW90: 3 | AX90: 3 | AY90: 3 | AZ90: 3 | BA90: 3 | BB90: 3 | BC90: 3 | BD90: 3 | BE90: 3 | BF90: 3 | BG90: 3 | BH90: 3 | BI90: 3 | BJ90: 3 | BK90: 3 | BL90: 3 | BM90: 3 | BN90: 3 | BO90: 3 | BP90: 3 | BQ90: 3 | BR90: 3 | BS90: 3 | BT90: 3 | BU90: 3 | BV90: 3 | BW90: 3 | BX90: 3 | BY90: 3 | BZ90: 3 | CA90: 3 | CB90: 3 | CC90: 3 | CD90: 3 | CE90: 3 | CF90: 3 | CG90: 3 | CH90: 3 | CI90: 3 | CJ90: 3 | CK90: 3 | CL90: 3 | CM90: 3 | CN90: 3 | CO90: 3 | CP90: 3 | CQ90: 3 | CR90: 3 | CS90: 3 | CT90: 3 | CU90: 3 | CV90: 3 | CW90: 3 | CX90: 3 | CY90: 3 | CZ90: 3 | DA90: 3 | DB90: 3 | DC90: 3 | DD90: 3 | DE90: 3 | DF90: 3 | DG90: 3 | DH90: 3 | DI90: 3 | DJ90: 3 | DK90: 3 | DL90: 3 | DM90: 3 | DN90: 3 | DO90: 2 | DP90: 2 | DQ90: 2 | DR90: 2 | DS90: 2 | DT90: 2 | DU90: 2 | DV90: 2 | DW90: 2 | DX90: 2 | DY90: 2 | DZ90: 2 | EA90: 2 | EB90: 2 | EC90: 2 | ED90: 2 | EE90: 2 | EF90: 2 | EG90: 2 | EH90: 2 | EI90: 2 | EJ90: 2 | EK90: 2 | EL90: 2 | EM90: 2 | EN90: 2 | EO90: 2 | EP90: 2 | EQ90: 2 | ER90: 2 | ES90: 2 | ET90: 2 | EU90: 2 | EV90: 2 | EW90: 2 | EX90: 2 | EY90: 2 | EZ90: 2 | FA90: 2 | FB90: 2 | FC90: 2 | FD90: 2 | FE90: 2 | FF90: 2 | FG90: 2 | FH90: 2 | FI90: 2 | FJ90: 2 | FK90: 2 | FL90: 2 | FM90: 2 | FN90: 2 | FO90: 2 | FP90: 2 | FQ90: 2 | FR90: 2
D91: 74 | E91: 127 | AG91: 3 | AH91: 3 | AI91: 3 | AJ91: 3 | AK91: 3 | AL91: 3 | AM91: 3 | AN91: 3 | AO91: 3 | AP91: 3 | AQ91: 3 | AR91: 3 | AS91: 3 | AT91: 3 | AU91: 3 | AV91: 3 | AW91: 3 | AX91: 3 | AY91: 3 | AZ91: 3 | BA91: 3 | BB91: 3 | BC91: 3 | BD91: 3 | BE91: 3 | BF91: 3 | BG91: 3 | BH91: 3 | BI91: 3 | BJ91: 3 | BK91: 3 | BL91: 3 | BM91: 3 | BN91: 3 | BO91: 3 | BP91: 3 | BQ91: 3 | BR91: 3 | BS91: 3 | BT91: 3 | BU91: 3 | BV91: 3 | BW91: 3 | BX91: 3 | BY91: 3 | BZ91: 3 | CA91: 3 | CB91: 3 | CC91: 3 | CD91: 3 | CE91: 3 | CF91: 3 | CG91: 3 | CH91: 3 | CI91: 3 | CJ91: 3 | CK91: 3 | CL91: 3 | CM91: 3 | CN91: 3 | CO91: 3 | CP91: 3 | CQ91: 3 | CR91: 3 | CS91: 3 | CT91: 3 | CU91: 3 | CV91: 3 | CW91: 3 | CX91: 3 | CY91: 3 | CZ91: 3 | DA91: 3 | DB91: 3 | DC91: 3 | DD91: 3 | DE91: 3 | DF91: 3 | DG91: 3 | DH91: 3 | DI91: 3 | DJ91: 3 | DK91: 3 | DL91: 3 | DM91: 3 | DN91: 2 | DO91: 2 | DP91: 2 | DQ91: 2 | DR91: 2 | DS91: 2 | DT91: 2 | DU91: 2 | DV91: 2 | DW91: 2 | DX91: 2 | DY91: 2 | DZ91: 2 | EA91: 2 | EB91: 2 | EC91: 2 | ED91: 2 | EE91: 2 | EF91: 2 | EG91: 2 | EH91: 2 | EI91: 2 | EJ91: 2 | EK91: 2 | EL91: 2 | EM91: 2 | EN91: 2 | EO91: 2 | EP91: 2 | EQ91: 2 | ER91: 2 | ES91: 2 | ET91: 2 | EU91: 2 | EV91: 2 | EW91: 2 | EX91: 2 | EY91: 2 | EZ91: 2 | FA91: 2 | FB91: 2 | FC91: 2 | FD91: 2 | FE91: 2 | FF91: 2 | FG91: 2 | FH91: 2 | FI91: 2 | FJ91: 2 | FK91: 2 | FL91: 2 | FM91: 2 | FN91: 2 | FO91: 2 | FP91: 2 | FQ91: 2 | FR91: 2
D92: 75 | E92: 126 | AF92: 3 | AG92: 3 | AH92: 3 | AI92: 3 | AJ92: 3 | AK92: 3 | AL92: 3 | AM92: 3 | AN92: 3 | AO92: 3 | AP92: 3 | AQ92: 3 | AR92: 3 | AS92: 3 | AT92: 3 | AU92: 3 | AV92: 3 | AW92: 3 | AX92: 3 | AY92: 3 | AZ92: 3 | BA92: 3 | BB92: 3 | BC92: 3 | BD92: 3 | BE92: 3 | BF92: 3 | BG92: 3 | BH92: 3 | BI92: 3 | BJ92: 3 | BK92: 3 | BL92: 3 | BM92: 3 | BN92: 3 | BO92: 3 | BP92: 3 | BQ92: 3 | BR92: 3 | BS92: 3 | BT92: 3 | BU92: 3 | BV92: 3 | BW92: 3 | BX92: 3 | BY92: 3 | BZ92: 3 | CA92: 3 | CB92: 3 | CC92: 3 | CD92: 3 | CE92: 3 | CF92: 3 | CG92: 3 | CH92: 3 | CI92: 3 | CJ92: 3 | CK92: 3 | CL92: 3 | CM92: 3 | CN92: 3 | CO92: 3 | CP92: 3 | CQ92: 3 | CR92: 3 | CS92: 3 | CT92: 3 | CU92: 3 | CV92: 3 | CW92: 3 | CX92: 3 | CY92: 3 | CZ92: 3 | DA92: 3 | DB92: 3 | DC92: 3 | DD92: 3 | DE92: 3 | DF92: 3 | DG92: 3 | DH92: 3 | DI92: 3 | DJ92: 3 | DK92: 3 | DL92: 3 | DM92: 2 | DN92: 2 | DO92: 2 | DP92: 2 | DQ92: 2 | DR92: 2 | DS92: 2 | DT92: 2 | DU92: 2 | DV92: 2 | DW92: 2 | DX92: 2 | DY92: 2 | DZ92: 2 | EA92: 2 | EB92: 2 | EC92: 2 | ED92: 2 | EE92: 2 | EF92: 2 | EG92: 2 | EH92: 2 | EI92: 2 | EJ92: 2 | EK92: 2 | EL92: 2 | EM92: 2 | EN92: 2 | EO92: 2 | EP92: 2 | EQ92: 2 | ER92: 2 | ES92: 2 | ET92: 2 | EU92: 2 | EV92: 2 | EW92: 2 | EX92: 2 | EY92: 2 | EZ92: 2 | FA92: 2 | FB92: 2 | FC92: 2 | FD92: 2 | FE92: 2 | FF92: 2 | FG92: 2 | FH92: 2 | FI92: 2 | FJ92: 2 | FK92: 2 | FL92: 2 | FM92: 2 | FN92: 2 | FO92: 2 | FP92: 2 | FQ92: 2 | FR92: 2
D93: 76 | E93: 125 | AE93: 3 | AF93: 3 | AG93: 3 | AH93: 3 | AI93: 3 | AJ93: 3 | AK93: 3 | AL93: 3 | AM93: 3 | AN93: 3 | AO93: 3 | AP93: 3 | AQ93: 3 | AR93: 3 | AS93: 3 | AT93: 3 | AU93: 3 | AV93: 3 | AW93: 3 | AX93: 3 | AY93: 3 | AZ93: 3 | BA93: 3 | BB93: 3 | BC93: 3 | BD93: 3 | BE93: 3 | BF93: 3 | BG93: 3 | BH93: 3 | BI93: 3 | BJ93: 3 | BK93: 3 | BL93: 3 | BM93: 3 | BN93: 3 | BO93: 3 | BP93: 3 | BQ93: 3 | BR93: 3 | BS93: 3 | BT93: 3 | BU93: 3 | BV93: 3 | BW93: 3 | BX93: 3 | BY93: 3 | BZ93: 3 | CA93: 3 | CB93: 3 | CC93: 3 | CD93: 3 | CE93: 3 | CF93: 3 | CG93: 3 | CH93: 3 | CI93: 3 | CJ93: 3 | CK93: 3 | CL93: 3 | CM93: 3 | CN93: 3 | CO93: 3 | CP93: 3 | CQ93: 3 | CR93: 3 | CS93: 3 | CT93: 3 | CU93: 3 | CV93: 3 | CW93: 3 | CX93: 3 | CY93: 3 | CZ93: 3 | DA93: 3 | DB93: 3 | DC93: 3 | DD93: 3 | DE93: 3 | DF93: 3 | DG93: 3 | DH93: 3 | DI93: 3 | DJ93: 3 | DK93: 3 | DL93: 2 | DM93: 2 | DN93: 2 | DO93: 2 | DP93: 2 | DQ93: 2 | DR93: 2 | DS93: 2 | DT93: 2 | DU93: 2 | DV93: 2 | DW93: 2 | DX93: 2 | DY93: 2 | DZ93: 2 | EA93: 2 | EB93: 2 | EC93: 2 | ED93: 2 | EE93: 2 | EF93: 2 | EG93: 2 | EH93: 2 | EI93: 2 | EJ93: 2 | EK93: 2 | EL93: 2 | EM93: 2 | EN93: 2 | EO93: 2 | EP93: 2 | EQ93: 2 | ER93: 2 | ES93: 2 | ET93: 2 | EU93: 2 | EV93: 2 | EW93: 2 | EX93: 2 | EY93: 2 | EZ93: 2 | FA93: 2 | FB93: 2 | FC93: 2 | FD93: 2 | FE93: 2 | FF93: 2 | FG93: 2 | FH93: 2 | FI93: 2 | FJ93: 2 | FK93: 2 | FL93: 2 | FM93: 2 | FN93: 2 | FO93: 2 | FP93: 2 | FQ93: 2 | FR93: 2
D94: 77 | E94: 124 | AD94: 3 | AE94: 3 | AF94: 3 | AG94: 3 | AH94: 3 | AI94: 3 | AJ94: 3 | AK94: 3 | AL94: 3 | AM94: 3 | AN94: 3 | AO94: 3 | AP94: 3 | AQ94: 3 | AR94: 3 | AS94: 3 | AT94: 3 | AU94: 3 | AV94: 3 | AW94: 3 | AX94: 3 | AY94: 3 | AZ94: 3 | BA94: 3 | BB94: 3 | BC94: 3 | BD94: 3 | BE94: 3 | BF94: 3 | BG94: 3 | BH94: 3 | BI94: 3 | BJ94: 3 | BK94: 3 | BL94: 3 | BM94: 3 | BN94: 3 | BO94: 3 | BP94: 3 | BQ94: 3 | BR94: 3 | BS94: 3 | BT94: 3 | BU94: 3 | BV94: 3 | BW94: 3 | BX94: 3 | BY94: 3 | BZ94: 3 | CA94: 3 | CB94: 3 | CC94: 3 | CD94: 3 | CE94: 3 | CF94: 3 | CG94: 3 | CH94: 3 | CI94: 3 | CJ94: 3 | CK94: 3 | CL94: 3 | CM94: 3 | CN94: 3 | CO94: 3 | CP94: 3 | CQ94: 3 | CR94: 3 | CS94: 3 | CT94: 3 | CU94: 3 | CV94: 3 | CW94: 3 | CX94: 3 | CY94: 3 | CZ94: 3 | DA94: 3 | DB94: 3 | DC94: 3 | DD94: 3 | DE94: 3 | DF94: 3 | DG94: 3 | DH94: 3 | DI94: 3 | DJ94: 3 | DK94: 2 | DL94: 2 | DM94: 2 | DN94: 2 | DO94: 2 | DP94: 2 | DQ94: 2 | DR94: 2 | DS94: 2 | DT94: 2 | DU94: 2 | DV94: 2 | DW94: 2 | DX94: 2 | DY94: 2 | DZ94: 2 | EA94: 2 | EB94: 2 | EC94: 2 | ED94: 2 | EE94: 2 | EF94: 2 | EG94: 2 | EH94: 2 | EI94: 2 | EJ94: 2 | EK94: 2 | EL94: 2 | EM94: 2 | EN94: 2 | EO94: 2 | EP94: 2 | EQ94: 2 | ER94: 2 | ES94: 2 | ET94: 2 | EU94: 2 | EV94: 2 | EW94: 2 | EX94: 2 | EY94: 2 | EZ94: 2 | FA94: 2 | FB94: 2 | FC94: 2 | FD94: 2 | FE94: 2 | FF94: 2 | FG94: 2 | FH94: 2 | FI94: 2 | FJ94: 2 | FK94: 2 | FL94: 2 | FM94: 2 | FN94: 2 | FO94: 2 | FP94: 2 | FQ94: 2 | FR94: 2
D95: 78 | E95: 123 | AC95: 3 | AD95: 3 | AE95: 3 | AF95: 3 | AG95: 3 | AH95: 3 | AI95: 3 | AJ95: 3 | AK95: 3 | AL95: 3 | AM95: 3 | AN95: 3 | AO95: 3 | AP95: 3 | AQ95: 3 | AR95: 3 | AS95: 3 | AT95: 3 | AU95: 3 | AV95: 3 | AW95: 3 | AX95: 3 | AY95: 3 | AZ95: 3 | BA95: 3 | BB95: 3 | BC95: 3 | BD95: 3 | BE95: 3 | BF95: 3 | BG95: 3 | BH95: 3 | BI95: 3 | BJ95: 3 | BK95: 3 | BL95: 3 | BM95: 3 | BN95: 3 | BO95: 3 | BP95: 3 | BQ95: 3 | BR95: 3 | BS95: 3 | BT95: 3 | BU95: 3 | BV95: 3 | BW95: 3 | BX95: 3 | BY95: 3 | BZ95: 3 | CA95: 3 | CB95: 3 | CC95: 3 | CD95: 3 | CE95: 3 | CF95: 3 | CG95: 3 | CH95: 3 | CI95: 3 | CJ95: 3 | CK95: 3 | CL95: 3 | CM95: 3 | CN95: 3 | CO95: 3 | CP95: 3 | CQ95: 3 | CR95: 3 | CS95: 3 | CT95: 3 | CU95: 3 | CV95: 3 | CW95: 3 | CX95: 3 | CY95: 3 | CZ95: 3 | DA95: 3 | DB95: 3 | DC95: 3 | DD95: 3 | DE95: 3 | DF95: 3 | DG95: 3 | DH95: 3 | DI95: 3 | DJ95: 2 | DK95: 2 | DL95: 2 | DM95: 2 | DN95: 2 | DO95: 2 | DP95: 2 | DQ95: 2 | DR95: 2 | DS95: 2 | DT95: 2 | DU95: 2 | DV95: 2 | DW95: 2 | DX95: 2 | DY95: 2 | DZ95: 2 | EA95: 2 | EB95: 2 | EC95: 2 | ED95: 2 | EE95: 2 | EF95: 2 | EG95: 2 | EH95: 2 | EI95: 2 | EJ95: 2 | EK95: 2 | EL95: 2 | EM95: 2 | EN95: 2 | EO95: 2 | EP95: 2 | EQ95: 2 | ER95: 2 | ES95: 2 | ET95: 2 | EU95: 2 | EV95: 2 | EW95: 2 | EX95: 2 | EY95: 2 | EZ95: 2 | FA95: 2 | FB95: 2 | FC95: 2 | FD95: 2 | FE95: 2 | FF95: 2 | FG95: 2 | FH95: 2 | FI95: 2 | FJ95: 2 | FK95: 2 | FL95: 2 | FM95: 2 | FN95: 2 | FO95: 2 | FP95: 2 | FQ95: 2 | FR95: 2
D96: 79 | E96: 122 | AB96: 3 | AC96: 3 | AD96: 3 | AE96: 3 | AF96: 3 | AG96: 3 | AH96: 3 | AI96: 3 | AJ96: 3 | AK96: 3 | AL96: 3 | AM96: 3 | AN96: 3 | AO96: 3 | AP96: 3 | AQ96: 3 | AR96: 3 | AS96: 3 | AT96: 3 | AU96: 3 | AV96: 3 | AW96: 3 | AX96: 3 | AY96: 3 | AZ96: 3 | BA96: 3 | BB96: 3 | BC96: 3 | BD96: 3 | BE96: 3 | BF96: 3 | BG96: 3 | BH96: 3 | BI96: 3 | BJ96: 3 | BK96: 3 | BL96: 3 | BM96: 3 | BN96: 3 | BO96: 3 | BP96: 3 | BQ96: 3 | BR96: 3 | BS96: 3 | BT96: 3 | BU96: 3 | BV96: 3 | BW96: 3 | BX96: 3 | BY96: 3 | BZ96: 3 | CA96: 3 | CB96: 3 | CC96: 3 | CD96: 3 | CE96: 3 | CF96: 3 | CG96: 3 | CH96: 3 | CI96: 3 | CJ96: 3 | CK96: 3 | CL96: 3 | CM96: 3 | CN96: 3 | CO96: 3 | CP96: 3 | CQ96: 3 | CR96: 3 | CS96: 3 | CT96: 3 | CU96: 3 | CV96: 3 | CW96: 3 | CX96: 3 | CY96: 3 | CZ96: 3 | DA96: 3 | DB96: 3 | DC96: 3 | DD96: 3 | DE96: 3 | DF96: 3 | DG96: 3 | DH96: 3 | DI96: 2 | DJ96: 2 | DK96: 2 | DL96: 2 | DM96: 2 | DN96: 2 | DO96: 2 | DP96: 2 | DQ96: 2 | DR96: 2 | DS96: 2 | DT96: 2 | DU96: 2 | DV96: 2 | DW96: 2 | DX96: 2 | DY96: 2 | DZ96: 2 | EA96: 2 | EB96: 2 | EC96: 2 | ED96: 2 | EE96: 2 | EF96: 2 | EG96: 2 | EH96: 2 | EI96: 2 | EJ96: 2 | EK96: 2 | EL96: 2 | EM96: 2 | EN96: 2 | EO96: 2 | EP96: 2 | EQ96: 2 | ER96: 2 | ES96: 2 | ET96: 2 | EU96: 2 | EV96: 2 | EW96: 2 | EX96: 2 | EY96: 2 | EZ96: 2 | FA96: 2 | FB96: 2 | FC96: 2 | FD96: 2 | FE96: 2 | FF96: 2 | FG96: 2 | FH96: 2 | FI96: 2 | FJ96: 2 | FK96: 2 | FL96: 2 | FM96: 2 | FN96: 2 | FO96: 2 | FP96: 2 | FQ96: 2 | FR96: 2
D97: 80 | E97: 121 | AA97: 3 | AB97: 3 | AC97: 3 | AD97: 3 | AE97: 3 | AF97: 3 | AG97: 3 | AH97: 3 | AI97: 3 | AJ97: 3 | AK97: 3 | AL97: 3 | AM97: 3 | AN97: 3 | AO97: 3 | AP97: 3 | AQ97: 3 | AR97: 3 | AS97: 3 | AT97: 3 | AU97: 3 | AV97: 3 | AW97: 3 | AX97: 3 | AY97: 3 | AZ97: 3 | BA97: 3 | BB97: 3 | BC97: 3 | BD97: 3 | BE97: 3 | BF97: 3 | BG97: 3 | BH97: 3 | BI97: 3 | BJ97: 3 | BK97: 3 | BL97: 3 | BM97: 3 | BN97: 3 | BO97: 3 | BP97: 3 | BQ97: 3 | BR97: 3 | BS97: 3 | BT97: 3 | BU97: 3 | BV97: 3 | BW97: 3 | BX97: 3 | BY97: 3 | BZ97: 3 | CA97: 3 | CB97: 3 | CC97: 3 | CD97: 3 | CE97: 3 | CF97: 3 | CG97: 3 | CH97: 3 | CI97: 3 | CJ97: 3 | CK97: 3 | CL97: 3 | CM97: 3 | CN97: 3 | CO97: 3 | CP97: 3 | CQ97: 3 | CR97: 3 | CS97: 3 | CT97: 3 | CU97: 3 | CV97: 3 | CW97: 3 | CX97: 3 | CY97: 3 | CZ97: 3 | DA97: 3 | DB97: 3 | DC97: 3 | DD97: 3 | DE97: 3 | DF97: 3 | DG97: 3 | DH97: 2 | DI97: 2 | DJ97: 2 | DK97: 2 | DL97: 2 | DM97: 2 | DN97: 2 | DO97: 2 | DP97: 2 | DQ97: 2 | DR97: 2 | DS97: 2 | DT97: 2 | DU97: 2 | DV97: 2 | DW97: 2 | DX97: 2 | DY97: 2 | DZ97: 2 | EA97: 2 | EB97: 2 | EC97: 2 | ED97: 2 | EE97: 2 | EF97: 2 | EG97: 2 | EH97: 2 | EI97: 2 | EJ97: 2 | EK97: 2 | EL97: 2 | EM97: 2 | EN97: 2 | EO97: 2 | EP97: 2 | EQ97: 2 | ER97: 2 | ES97: 2 | ET97: 2 | EU97: 2 | EV97: 2 | EW97: 2 | EX97: 2 | EY97: 2 | EZ97: 2 | FA97: 2 | FB97: 2 | FC97: 2 | FD97: 2 | FE97: 2 | FF97: 2 | FG97: 2 | FH97: 2 | FI97: 2 | FJ97: 2 | FK97: 2 | FL97: 2 | FM97: 2 | FN97: 2 | FO97: 2 | FP97: 2 | FQ97: 2 | FR97: 2
D98: 81 | E98: 120 | J98: =IF($A$13,IF(AND(J$2>=1,J$2<=$D$4,$E98>=1,$E98<=$D$5),1,IF(AND(J$2>=$D$4+1,J$2<=$D$4+$D$6,$E98>=J$2-$D$4+1,$E98<=J$2-$D$4+$D$5),2,IF(AND($E98>=$D$5+1,$E98<=$D$5+$D$6,J$2>=$E98-$D$5+1,J$2<=$E98-$D$5+$D$4-1),3,""))),"") ->  | T98: =IF($A$13,IF(AND(T$2>=1,T$2<=$D$4,$E98>=1,$E98<=$D$5),1,IF(AND(T$2>=$D$4+1,T$2<=$D$4+$D$6,$E98>=T$2-$D$4+1,$E98<=T$2-$D$4+$D$5),2,IF(AND($E98>=$D$5+1,$E98<=$D$5+$D$6,T$2>=$E98-$D$5+1,T$2<=$E98-$D$5+$D$4-1),3,""))),"") ->  | Z98: 3 | AA98: 3 | AB98: 3 | AC98: 3 | AD98: =IF($A$13,IF(AND(AD$2>=1,AD$2<=$D$4,$E98>=1,$E98<=$D$5),1,IF(AND(AD$2>=$D$4+1,AD$2<=$D$4+$D$6,$E98>=AD$2-$D$4+1,$E98<=AD$2-$D$4+$D$5),2,IF(AND($E98>=$D$5+1,$E98<=$D$5+$D$6,AD$2>=$E98-$D$5+1,AD$2<=$E98-$D$5+$D$4-1),3,""))),"") -> 3 | AE98: 3 | AF98: 3 | AG98: 3 | AH98: 3 | AI98: 3 | AJ98: 3 | AK98: 3 | AL98: 3 | AM98: 3 | AN98: =IF($A$13,IF(AND(AN$2>=1,AN$2<=$D$4,$E98>=1,$E98<=$D$5),1,IF(AND(AN$2>=$D$4+1,AN$2<=$D$4+$D$6,$E98>=AN$2-$D$4+1,$E98<=AN$2-$D$4+$D$5),2,IF(AND($E98>=$D$5+1,$E98<=$D$5+$D$6,AN$2>=$E98-$D$5+1,AN$2<=$E98-$D$5+$D$4-1),3,""))),"") -> 3 | AO98: 3 | AP98: 3 | AQ98: 3 | AR98: 3 | AS98: 3 | AT98: 3 | AU98: 3 | AV98: 3 | AW98: 3 | AX98: =IF($A$13,IF(AND(AX$2>=1,AX$2<=$D$4,$E98>=1,$E98<=$D$5),1,IF(AND(AX$2>=$D$4+1,AX$2<=$D$4+$D$6,$E98>=AX$2-$D$4+1,$E98<=AX$2-$D$4+$D$5),2,IF(AND($E98>=$D$5+1,$E98<=$D$5+$D$6,AX$2>=$E98-$D$5+1,AX$2<=$E98-$D$5+$D$4-1),3,""))),"") -> 3 | AY98: 3 | AZ98: 3 | BA98: 3 | BB98: 3 | BC98: 3 | BD98: 3 | BE98: 3 | BF98: 3 | BG98: 3 | BH98: =IF($A$13,IF(AND(BH$2>=1,BH$2<=$D$4,$E98>=1,$E98<=$D$5),1,IF(AND(BH$2>=$D$4+1,BH$2<=$D$4+$D$6,$E98>=BH$2-$D$4+1,$E98<=BH$2-$D$4+$D$5),2,IF(AND($E98>=$D$5+1,$E98<=$D$5+$D$6,BH$2>=$E98-$D$5+1,BH$2<=$E98-$D$5+$D$4-1),3,""))),"") -> 3 | BI98: 3 | BJ98: 3 | BK98: 3 | BL98: 3 | BM98: 3 | BN98: 3 | BO98: 3 | BP98: 3 | BQ98: 3 | BR98: =IF($A$13,IF(AND(BR$2>=1,BR$2<=$D$4,$E98>=1,$E98<=$D$5),1,IF(AND(BR$2>=$D$4+1,BR$2<=$D$4+$D$6,$E98>=BR$2-$D$4+1,$E98<=BR$2-$D$4+$D$5),2,IF(AND($E98>=$D$5+1,$E98<=$D$5+$D$6,BR$2>=$E98-$D$5+1,BR$2<=$E98-$D$5+$D$4-1),3,""))),"") -> 3 | BS98: 3 | BT98: 3 | BU98: 3 | BV98: 3 | BW98: 3 | BX98: 3 | BY98: 3 | BZ98: 3 | CA98: 3 | CB98: =IF($A$13,IF(AND(CB$2>=1,CB$2<=$D$4,$E98>=1,$E98<=$D$5),1,IF(AND(CB$2>=$D$4+1,CB$2<=$D$4+$D$6,$E98>=CB$2-$D$4+1,$E98<=CB$2-$D$4+$D$5),2,IF(AND($E98>=$D$5+1,$E98<=$D$5+$D$6,CB$2>=$E98-$D$5+1,CB$2<=$E98-$D$5+$D$4-1),3,""))),"") -> 3 | CC98: 3 | CD98: 3 | CE98: 3 | CF98: 3 | CG98: 3 | CH98: 3 | CI98: 3 | CJ98: 3 | CK98: 3 | CL98: =IF($A$13,IF(AND(CL$2>=1,CL$2<=$D$4,$E98>=1,$E98<=$D$5),1,IF(AND(CL$2>=$D$4+1,CL$2<=$D$4+$D$6,$E98>=CL$2-$D$4+1,$E98<=CL$2-$D$4+$D$5),2,IF(AND($E98>=$D$5+1,$E98<=$D$5+$D$6,CL$2>=$E98-$D$5+1,CL$2<=$E98-$D$5+$D$4-1),3,""))),"") -> 3 | CM98: 3 | CN98: 3 | CO98: 3 | CP98: 3 | CQ98: 3 | CR98: 3 | CS98: 3 | CT98: 3 | CU98: 3 | CV98: =IF($A$13,IF(AND(CV$2>=1,CV$2<=$D$4,$E98>=1,$E98<=$D$5),1,IF(AND(CV$2>=$D$4+1,CV$2<=$D$4+$D$6,$E98>=CV$2-$D$4+1,$E98<=CV$2-$D$4+$D$5),2,IF(AND($E98>=$D$5+1,$E98<=$D$5+$D$6,CV$2>=$E98-$D$5+1,CV$2<=$E98-$D$5+$D$4-1),3,""))),"") -> 3 | CW98: 3 | CX98: 3 | CY98: 3 | CZ98: 3 | DA98: 3 | DB98: 3 | DC98: 3 | DD98: 3 | DE98: 3 | DF98: =IF($A$13,IF(AND(DF$2>=1,DF$2<=$D$4,$E98>=1,$E98<=$D$5),1,IF(AND(DF$2>=$D$4+1,DF$2<=$D$4+$D$6,$E98>=DF$2-$D$4+1,$E98<=DF$2-$D$4+$D$5),2,IF(AND($E98>=$D$5+1,$E98<=$D$5+$D$6,DF$2>=$E98-$D$5+1,DF$2<=$E98-$D$5+$D$4-1),3,""))),"") -> 3 | DG98: 2 | DH98: 2 | DI98: 2 | DJ98: 2 | DK98: 2 | DL98: 2 | DM98: 2 | DN98: 2 | DO98: 2 | DP98: =IF($A$13,IF(AND(DP$2>=1,DP$2<=$D$4,$E98>=1,$E98<=$D$5),1,IF(AND(DP$2>=$D$4+1,DP$2<=$D$4+$D$6,$E98>=DP$2-$D$4+1,$E98<=DP$2-$D$4+$D$5),2,IF(AND($E98>=$D$5+1,$E98<=$D$5+$D$6,DP$2>=$E98-$D$5+1,DP$2<=$E98-$D$5+$D$4-1),3,""))),"") -> 2 | DQ98: 2 | DR98: 2 | DS98: 2 | DT98: 2 | DU98: 2 | DV98: 2 | DW98: 2 | DX98: 2 | DY98: 2 | DZ98: =IF($A$13,IF(AND(DZ$2>=1,DZ$2<=$D$4,$E98>=1,$E98<=$D$5),1,IF(AND(DZ$2>=$D$4+1,DZ$2<=$D$4+$D$6,$E98>=DZ$2-$D$4+1,$E98<=DZ$2-$D$4+$D$5),2,IF(AND($E98>=$D$5+1,$E98<=$D$5+$D$6,DZ$2>=$E98-$D$5+1,DZ$2<=$E98-$D$5+$D$4-1),3,""))),"") -> 2 | EA98: 2 | EB98: 2 | EC98: 2 | ED98: 2 | EE98: 2 | EF98: 2 | EG98: 2 | EH98: 2 | EI98: 2 | EJ98: =IF($A$13,IF(AND(EJ$2>=1,EJ$2<=$D$4,$E98>=1,$E98<=$D$5),1,IF(AND(EJ$2>=$D$4+1,EJ$2<=$D$4+$D$6,$E98>=EJ$2-$D$4+1,$E98<=EJ$2-$D$4+$D$5),2,IF(AND($E98>=$D$5+1,$E98<=$D$5+$D$6,EJ$2>=$E98-$D$5+1,EJ$2<=$E98-$D$5+$D$4-1),3,""))),"") -> 2 | EK98: 2 | EL98: 2 | EM98: 2 | EN98: 2 | EO98: 2 | EP98: 2 | EQ98: 2 | ER98: 2 | ES98: 2 | ET98: =IF($A$13,IF(AND(ET$2>=1,ET$2<=$D$4,$E98>=1,$E98<=$D$5),1,IF(AND(ET$2>=$D$4+1,ET$2<=$D$4+$D$6,$E98>=ET$2-$D$4+1,$E98<=ET$2-$D$4+$D$5),2,IF(AND($E98>=$D$5+1,$E98<=$D$5+$D$6,ET$2>=$E98-$D$5+1,ET$2<=$E98-$D$5+$D$4-1),3,""))),"") -> 2 | EU98: 2 | EV98: 2 | EW98: 2 | EX98: 2 | EY98: 2 | EZ98: 2 | FA98: 2 | FB98: 2 | FC98: 2 | FD98: =IF($A$13,IF(AND(FD$2>=1,FD$2<=$D$4,$E98>=1,$E98<=$D$5),1,IF(AND(FD$2>=$D$4+1,FD$2<=$D$4+$D$6,$E98>=FD$2-$D$4+1,$E98<=FD$2-$D$4+$D$5),2,IF(AND($E98>=$D$5+1,$E98<=$D$5+$D$6,FD$2>=$E98-$D$5+1,FD$2<=$E98-$D$5+$D$4-1),3,""))),"") -> 2 | FE98: 2 | FF98: 2 | FG98: 2 | FH98: 2 | FI98: 2 | FJ98: 2 | FK98: 2 | FL98: 2 | FM98: 2 | FN98: =IF($A$13,IF(AND(FN$2>=1,FN$2<=$D$4,$E98>=1,$E98<=$D$5),1,IF(AND(FN$2>=$D$4+1,FN$2<=$D$4+$D$6,$E98>=FN$2-$D$4+1,$E98<=FN$2-$D$4+$D$5),2,IF(AND($E98>=$D$5+1,$E98<=$D$5+$D$6,FN$2>=$E98-$D$5+1,FN$2<=$E98-$D$5+$D$4-1),3,""))),"") -> 2 | FO98: 2 | FP98: 2 | FQ98: 2 | FR98: 2 | FX98: =IF($A$13,IF(AND(FX$2>=1,FX$2<=$D$4,$E98>=1,$E98<=$D$5),1,IF(AND(FX$2>=$D$4+1,FX$2<=$D$4+$D$6,$E98>=FX$2-$D$4+1,$E98<=FX$2-$D$4+$D$5),2,IF(AND($E98>=$D$5+1,$E98<=$D$5+$D$6,FX$2>=$E98-$D$5+1,FX$2<=$E98-$D$5+$D$4-1),3,""))),"") ->  | GH98: =IF($A$13,IF(AND(GH$2>=1,GH$2<=$D$4,$E98>=1,$E98<=$D$5),1,IF(AND(GH$2>=$D$4+1,GH$2<=$D$4+$D$6,$E98>=GH$2-$D$4+1,$E98<=GH$2-$D$4+$D$5),2,IF(AND($E98>=$D$5+1,$E98<=$D$5+$D$6,GH$2>=$E98-$D$5+1,GH$2<=$E98-$D$5+$D$4-1),3,""))),"") ->  | GR98: =IF($A$13,IF(AND(GR$2>=1,GR$2<=$D$4,$E98>=1,$E98<=$D$5),1,IF(AND(GR$2>=$D$4+1,GR$2<=$D$4+$D$6,$E98>=GR$2-$D$4+1,$E98<=GR$2-$D$4+$D$5),2,IF(AND($E98>=$D$5+1,$E98<=$D$5+$D$6,GR$2>=$E98-$D$5+1,GR$2<=$E98-$D$5+$D$4-1),3,""))),"") -> 
D99: 82 | E99: 119 | Y99: 3 | Z99: 3 | AA99: 3 | AB99: 3 | AC99: 3 | AD99: 3 | AE99: 3 | AF99: 3 | AG99: 3 | AH99: 3 | AI99: 3 | AJ99: 3 | AK99: 3 | AL99: 3 | AM99: 3 | AN99: 3 | AO99: 3 | AP99: 3 | AQ99: 3 | AR99: 3 | AS99: 3 | AT99: 3 | AU99: 3 | AV99: 3 | AW99: 3 | AX99: 3 | AY99: 3 | AZ99: 3 | BA99: 3 | BB99: 3 | BC99: 3 | BD99: 3 | BE99: 3 | BF99: 3 | BG99: 3 | BH99: 3 | BI99: 3 | BJ99: 3 | BK99: 3 | BL99: 3 | BM99: 3 | BN99: 3 | BO99: 3 | BP99: 3 | BQ99: 3 | BR99: 3 | BS99: 3 | BT99: 3 | BU99: 3 | BV99: 3 | BW99: 3 | BX99: 3 | BY99: 3 | BZ99: 3 | CA99: 3 | CB99: 3 | CC99: 3 | CD99: 3 | CE99: 3 | CF99: 3 | CG99: 3 | CH99: 3 | CI99: 3 | CJ99: 3 | CK99: 3 | CL99: 3 | CM99: 3 | CN99: 3 | CO99: 3 | CP99: 3 | CQ99: 3 | CR99: 3 | CS99: 3 | CT99: 3 | CU99: 3 | CV99: 3 | CW99: 3 | CX99: 3 | CY99: 3 | CZ99: 3 | DA99: 3 | DB99: 3 | DC99: 3 | DD99: 3 | DE99: 3 | DF99: 2 | DG99: 2 | DH99: 2 | DI99: 2 | DJ99: 2 | DK99: 2 | DL99: 2 | DM99: 2 | DN99: 2 | DO99: 2 | DP99: 2 | DQ99: 2 | DR99: 2 | DS99: 2 | DT99: 2 | DU99: 2 | DV99: 2 | DW99: 2 | DX99: 2 | DY99: 2 | DZ99: 2 | EA99: 2 | EB99: 2 | EC99: 2 | ED99: 2 | EE99: 2 | EF99: 2 | EG99: 2 | EH99: 2 | EI99: 2 | EJ99: 2 | EK99: 2 | EL99: 2 | EM99: 2 | EN99: 2 | EO99: 2 | EP99: 2 | EQ99: 2 | ER99: 2 | ES99: 2 | ET99: 2 | EU99: 2 | EV99: 2 | EW99: 2 | EX99: 2 | EY99: 2 | EZ99: 2 | FA99: 2 | FB99: 2 | FC99: 2 | FD99: 2 | FE99: 2 | FF99: 2 | FG99: 2 | FH99: 2 | FI99: 2 | FJ99: 2 | FK99: 2 | FL99: 2 | FM99: 2 | FN99: 2 | FO99: 2 | FP99: 2 | FQ99: 2 | FR99: 2
D100: 83 | E100: 118 | X100: 3 | Y100: 3 | Z100: 3 | AA100: 3 | AB100: 3 | AC100: 3 | AD100: 3 | AE100: 3 | AF100: 3 | AG100: 3 | AH100: 3 | AI100: 3 | AJ100: 3 | AK100: 3 | AL100: 3 | AM100: 3 | AN100: 3 | AO100: 3 | AP100: 3 | AQ100: 3 | AR100: 3 | AS100: 3 | AT100: 3 | AU100: 3 | AV100: 3 | AW100: 3 | AX100: 3 | AY100: 3 | AZ100: 3 | BA100: 3 | BB100: 3 | BC100: 3 | BD100: 3 | BE100: 3 | BF100: 3 | BG100: 3 | BH100: 3 | BI100: 3 | BJ100: 3 | BK100: 3 | BL100: 3 | BM100: 3 | BN100: 3 | BO100: 3 | BP100: 3 | BQ100: 3 | BR100: 3 | BS100: 3 | BT100: 3 | BU100: 3 | BV100: 3 | BW100: 3 | BX100: 3 | BY100: 3 | BZ100: 3 | CA100: 3 | CB100: 3 | CC100: 3 | CD100: 3 | CE100: 3 | CF100: 3 | CG100: 3 | CH100: 3 | CI100: 3 | CJ100: 3 | CK100: 3 | CL100: 3 | CM100: 3 | CN100: 3 | CO100: 3 | CP100: 3 | CQ100: 3 | CR100: 3 | CS100: 3 | CT100: 3 | CU100: 3 | CV100: 3 | CW100: 3 | CX100: 3 | CY100: 3 | CZ100: 3 | DA100: 3 | DB100: 3 | DC100: 3 | DD100: 3 | DE100: 2 | DF100: 2 | DG100: 2 | DH100: 2 | DI100: 2 | DJ100: 2 | DK100: 2 | DL100: 2 | DM100: 2 | DN100: 2 | DO100: 2 | DP100: 2 | DQ100: 2 | DR100: 2 | DS100: 2 | DT100: 2 | DU100: 2 | DV100: 2 | DW100: 2 | DX100: 2 | DY100: 2 | DZ100: 2 | EA100: 2 | EB100: 2 | EC100: 2 | ED100: 2 | EE100: 2 | EF100: 2 | EG100: 2 | EH100: 2 | EI100: 2 | EJ100: 2 | EK100: 2 | EL100: 2 | EM100: 2 | EN100: 2 | EO100: 2 | EP100: 2 | EQ100: 2 | ER100: 2 | ES100: 2 | ET100: 2 | EU100: 2 | EV100: 2 | EW100: 2 | EX100: 2 | EY100: 2 | EZ100: 2 | FA100: 2 | FB100: 2 | FC100: 2 | FD100: 2 | FE100: 2 | FF100: 2 | FG100: 2 | FH100: 2 | FI100: 2 | FJ100: 2 | FK100: 2 | FL100: 2 | FM100: 2 | FN100: 2 | FO100: 2 | FP100: 2 | FQ100: 2 | FR100: 2
D101: 84 | E101: 117 | W101: 3 | X101: 3 | Y101: 3 | Z101: 3 | AA101: 3 | AB101: 3 | AC101: 3 | AD101: 3 | AE101: 3 | AF101: 3 | AG101: 3 | AH101: 3 | AI101: 3 | AJ101: 3 | AK101: 3 | AL101: 3 | AM101: 3 | AN101: 3 | AO101: 3 | AP101: 3 | AQ101: 3 | AR101: 3 | AS101: 3 | AT101: 3 | AU101: 3 | AV101: 3 | AW101: 3 | AX101: 3 | AY101: 3 | AZ101: 3 | BA101: 3 | BB101: 3 | BC101: 3 | BD101: 3 | BE101: 3 | BF101: 3 | BG101: 3 | BH101: 3 | BI101: 3 | BJ101: 3 | BK101: 3 | BL101: 3 | BM101: 3 | BN101: 3 | BO101: 3 | BP101: 3 | BQ101: 3 | BR101: 3 | BS101: 3 | BT101: 3 | BU101: 3 | BV101: 3 | BW101: 3 | BX101: 3 | BY101: 3 | BZ101: 3 | CA101: 3 | CB101: 3 | CC101: 3 | CD101: 3 | CE101: 3 | CF101: 3 | CG101: 3 | CH101: 3 | CI101: 3 | CJ101: 3 | CK101: 3 | CL101: 3 | CM101: 3 | CN101: 3 | CO101: 3 | CP101: 3 | CQ101: 3 | CR101: 3 | CS101: 3 | CT101: 3 | CU101: 3 | CV101: 3 | CW101: 3 | CX101: 3 | CY101: 3 | CZ101: 3 | DA101: 3 | DB101: 3 | DC101: 3 | DD101: 2 | DE101: 2 | DF101: 2 | DG101: 2 | DH101: 2 | DI101: 2 | DJ101: 2 | DK101: 2 | DL101: 2 | DM101: 2 | DN101: 2 | DO101: 2 | DP101: 2 | DQ101: 2 | DR101: 2 | DS101: 2 | DT101: 2 | DU101: 2 | DV101: 2 | DW101: 2 | DX101: 2 | DY101: 2 | DZ101: 2 | EA101: 2 | EB101: 2 | EC101: 2 | ED101: 2 | EE101: 2 | EF101: 2 | EG101: 2 | EH101: 2 | EI101: 2 | EJ101: 2 | EK101: 2 | EL101: 2 | EM101: 2 | EN101: 2 | EO101: 2 | EP101: 2 | EQ101: 2 | ER101: 2 | ES101: 2 | ET101: 2 | EU101: 2 | EV101: 2 | EW101: 2 | EX101: 2 | EY101: 2 | EZ101: 2 | FA101: 2 | FB101: 2 | FC101: 2 | FD101: 2 | FE101: 2 | FF101: 2 | FG101: 2 | FH101: 2 | FI101: 2 | FJ101: 2 | FK101: 2 | FL101: 2 | FM101: 2 | FN101: 2 | FO101: 2 | FP101: 2 | FQ101: 2 | FR101: 2
D102: 85 | E102: 116 | V102: 3 | W102: 3 | X102: 3 | Y102: 3 | Z102: 3 | AA102: 3 | AB102: 3 | AC102: 3 | AD102: 3 | AE102: 3 | AF102: 3 | AG102: 3 | AH102: 3 | AI102: 3 | AJ102: 3 | AK102: 3 | AL102: 3 | AM102: 3 | AN102: 3 | AO102: 3 | AP102: 3 | AQ102: 3 | AR102: 3 | AS102: 3 | AT102: 3 | AU102: 3 | AV102: 3 | AW102: 3 | AX102: 3 | AY102: 3 | AZ102: 3 | BA102: 3 | BB102: 3 | BC102: 3 | BD102: 3 | BE102: 3 | BF102: 3 | BG102: 3 | BH102: 3 | BI102: 3 | BJ102: 3 | BK102: 3 | BL102: 3 | BM102: 3 | BN102: 3 | BO102: 3 | BP102: 3 | BQ102: 3 | BR102: 3 | BS102: 3 | BT102: 3 | BU102: 3 | BV102: 3 | BW102: 3 | BX102: 3 | BY102: 3 | BZ102: 3 | CA102: 3 | CB102: 3 | CC102: 3 | CD102: 3 | CE102: 3 | CF102: 3 | CG102: 3 | CH102: 3 | CI102: 3 | CJ102: 3 | CK102: 3 | CL102: 3 | CM102: 3 | CN102: 3 | CO102: 3 | CP102: 3 | CQ102: 3 | CR102: 3 | CS102: 3 | CT102: 3 | CU102: 3 | CV102: 3 | CW102: 3 | CX102: 3 | CY102: 3 | CZ102: 3 | DA102: 3 | DB102: 3 | DC102: 2 | DD102: 2 | DE102: 2 | DF102: 2 | DG102: 2 | DH102: 2 | DI102: 2 | DJ102: 2 | DK102: 2 | DL102: 2 | DM102: 2 | DN102: 2 | DO102: 2 | DP102: 2 | DQ102: 2 | DR102: 2 | DS102: 2 | DT102: 2 | DU102: 2 | DV102: 2 | DW102: 2 | DX102: 2 | DY102: 2 | DZ102: 2 | EA102: 2 | EB102: 2 | EC102: 2 | ED102: 2 | EE102: 2 | EF102: 2 | EG102: 2 | EH102: 2 | EI102: 2 | EJ102: 2 | EK102: 2 | EL102: 2 | EM102: 2 | EN102: 2 | EO102: 2 | EP102: 2 | EQ102: 2 | ER102: 2 | ES102: 2 | ET102: 2 | EU102: 2 | EV102: 2 | EW102: 2 | EX102: 2 | EY102: 2 | EZ102: 2 | FA102: 2 | FB102: 2 | FC102: 2 | FD102: 2 | FE102: 2 | FF102: 2 | FG102: 2 | FH102: 2 | FI102: 2 | FJ102: 2 | FK102: 2 | FL102: 2 | FM102: 2 | FN102: 2 | FO102: 2 | FP102: 2 | FQ102: 2 | FR102: 2
D103: 86 | E103: 115 | U103: 3 | V103: 3 | W103: 3 | X103: 3 | Y103: 3 | Z103: 3 | AA103: 3 | AB103: 3 | AC103: 3 | AD103: 3 | AE103: 3 | AF103: 3 | AG103: 3 | AH103: 3 | AI103: 3 | AJ103: 3 | AK103: 3 | AL103: 3 | AM103: 3 | AN103: 3 | AO103: 3 | AP103: 3 | AQ103: 3 | AR103: 3 | AS103: 3 | AT103: 3 | AU103: 3 | AV103: 3 | AW103: 3 | AX103: 3 | AY103: 3 | AZ103: 3 | BA103: 3 | BB103: 3 | BC103: 3 | BD103: 3 | BE103: 3 | BF103: 3 | BG103: 3 | BH103: 3 | BI103: 3 | BJ103: 3 | BK103: 3 | BL103: 3 | BM103: 3 | BN103: 3 | BO103: 3 | BP103: 3 | BQ103: 3 | BR103: 3 | BS103: 3 | BT103: 3 | BU103: 3 | BV103: 3 | BW103: 3 | BX103: 3 | BY103: 3 | BZ103: 3 | CA103: 3 | CB103: 3 | CC103: 3 | CD103: 3 | CE103: 3 | CF103: 3 | CG103: 3 | CH103: 3 | CI103: 3 | CJ103: 3 | CK103: 3 | CL103: 3 | CM103: 3 | CN103: 3 | CO103: 3 | CP103: 3 | CQ103: 3 | CR103: 3 | CS103: 3 | CT103: 3 | CU103: 3 | CV103: 3 | CW103: 3 | CX103: 3 | CY103: 3 | CZ103: 3 | DA103: 3 | DB103: 2 | DC103: 2 | DD103: 2 | DE103: 2 | DF103: 2 | DG103: 2 | DH103: 2 | DI103: 2 | DJ103: 2 | DK103: 2 | DL103: 2 | DM103: 2 | DN103: 2 | DO103: 2 | DP103: 2 | DQ103: 2 | DR103: 2 | DS103: 2 | DT103: 2 | DU103: 2 | DV103: 2 | DW103: 2 | DX103: 2 | DY103: 2 | DZ103: 2 | EA103: 2 | EB103: 2 | EC103: 2 | ED103: 2 | EE103: 2 | EF103: 2 | EG103: 2 | EH103: 2 | EI103: 2 | EJ103: 2 | EK103: 2 | EL103: 2 | EM103: 2 | EN103: 2 | EO103: 2 | EP103: 2 | EQ103: 2 | ER103: 2 | ES103: 2 | ET103: 2 | EU103: 2 | EV103: 2 | EW103: 2 | EX103: 2 | EY103: 2 | EZ103: 2 | FA103: 2 | FB103: 2 | FC103: 2 | FD103: 2 | FE103: 2 | FF103: 2 | FG103: 2 | FH103: 2 | FI103: 2 | FJ103: 2 | FK103: 2 | FL103: 2 | FM103: 2 | FN103: 2 | FO103: 2 | FP103: 2 | FQ103: 2 | FR103: 2
D104: 87 | E104: 114 | T104: 3 | U104: 3 | V104: 3 | W104: 3 | X104: 3 | Y104: 3 | Z104: 3 | AA104: 3 | AB104: 3 | AC104: 3 | AD104: 3 | AE104: 3 | AF104: 3 | AG104: 3 | AH104: 3 | AI104: 3 | AJ104: 3 | AK104: 3 | AL104: 3 | AM104: 3 | AN104: 3 | AO104: 3 | AP104: 3 | AQ104: 3 | AR104: 3 | AS104: 3 | AT104: 3 | AU104: 3 | AV104: 3 | AW104: 3 | AX104: 3 | AY104: 3 | AZ104: 3 | BA104: 3 | BB104: 3 | BC104: 3 | BD104: 3 | BE104: 3 | BF104: 3 | BG104: 3 | BH104: 3 | BI104: 3 | BJ104: 3 | BK104: 3 | BL104: 3 | BM104: 3 | BN104: 3 | BO104: 3 | BP104: 3 | BQ104: 3 | BR104: 3 | BS104: 3 | BT104: 3 | BU104: 3 | BV104: 3 | BW104: 3 | BX104: 3 | BY104: 3 | BZ104: 3 | CA104: 3 | CB104: 3 | CC104: 3 | CD104: 3 | CE104: 3 | CF104: 3 | CG104: 3 | CH104: 3 | CI104: 3 | CJ104: 3 | CK104: 3 | CL104: 3 | CM104: 3 | CN104: 3 | CO104: 3 | CP104: 3 | CQ104: 3 | CR104: 3 | CS104: 3 | CT104: 3 | CU104: 3 | CV104: 3 | CW104: 3 | CX104: 3 | CY104: 3 | CZ104: 3 | DA104: 2 | DB104: 2 | DC104: 2 | DD104: 2 | DE104: 2 | DF104: 2 | DG104: 2 | DH104: 2 | DI104: 2 | DJ104: 2 | DK104: 2 | DL104: 2 | DM104: 2 | DN104: 2 | DO104: 2 | DP104: 2 | DQ104: 2 | DR104: 2 | DS104: 2 | DT104: 2 | DU104: 2 | DV104: 2 | DW104: 2 | DX104: 2 | DY104: 2 | DZ104: 2 | EA104: 2 | EB104: 2 | EC104: 2 | ED104: 2 | EE104: 2 | EF104: 2 | EG104: 2 | EH104: 2 | EI104: 2 | EJ104: 2 | EK104: 2 | EL104: 2 | EM104: 2 | EN104: 2 | EO104: 2 | EP104: 2 | EQ104: 2 | ER104: 2 | ES104: 2 | ET104: 2 | EU104: 2 | EV104: 2 | EW104: 2 | EX104: 2 | EY104: 2 | EZ104: 2 | FA104: 2 | FB104: 2 | FC104: 2 | FD104: 2 | FE104: 2 | FF104: 2 | FG104: 2 | FH104: 2 | FI104: 2 | FJ104: 2 | FK104: 2 | FL104: 2 | FM104: 2 | FN104: 2 | FO104: 2 | FP104: 2 | FQ104: 2 | FR104: 2
D105: 88 | E105: 113 | S105: 3 | T105: 3 | U105: 3 | V105: 3 | W105: 3 | X105: 3 | Y105: 3 | Z105: 3 | AA105: 3 | AB105: 3 | AC105: 3 | AD105: 3 | AE105: 3 | AF105: 3 | AG105: 3 | AH105: 3 | AI105: 3 | AJ105: 3 | AK105: 3 | AL105: 3 | AM105: 3 | AN105: 3 | AO105: 3 | AP105: 3 | AQ105: 3 | AR105: 3 | AS105: 3 | AT105: 3 | AU105: 3 | AV105: 3 | AW105: 3 | AX105: 3 | AY105: 3 | AZ105: 3 | BA105: 3 | BB105: 3 | BC105: 3 | BD105: 3 | BE105: 3 | BF105: 3 | BG105: 3 | BH105: 3 | BI105: 3 | BJ105: 3 | BK105: 3 | BL105: 3 | BM105: 3 | BN105: 3 | BO105: 3 | BP105: 3 | BQ105: 3 | BR105: 3 | BS105: 3 | BT105: 3 | BU105: 3 | BV105: 3 | BW105: 3 | BX105: 3 | BY105: 3 | BZ105: 3 | CA105: 3 | CB105: 3 | CC105: 3 | CD105: 3 | CE105: 3 | CF105: 3 | CG105: 3 | CH105: 3 | CI105: 3 | CJ105: 3 | CK105: 3 | CL105: 3 | CM105: 3 | CN105: 3 | CO105: 3 | CP105: 3 | CQ105: 3 | CR105: 3 | CS105: 3 | CT105: 3 | CU105: 3 | CV105: 3 | CW105: 3 | CX105: 3 | CY105: 3 | CZ105: 2 | DA105: 2 | DB105: 2 | DC105: 2 | DD105: 2 | DE105: 2 | DF105: 2 | DG105: 2 | DH105: 2 | DI105: 2 | DJ105: 2 | DK105: 2 | DL105: 2 | DM105: 2 | DN105: 2 | DO105: 2 | DP105: 2 | DQ105: 2 | DR105: 2 | DS105: 2 | DT105: 2 | DU105: 2 | DV105: 2 | DW105: 2 | DX105: 2 | DY105: 2 | DZ105: 2 | EA105: 2 | EB105: 2 | EC105: 2 | ED105: 2 | EE105: 2 | EF105: 2 | EG105: 2 | EH105: 2 | EI105: 2 | EJ105: 2 | EK105: 2 | EL105: 2 | EM105: 2 | EN105: 2 | EO105: 2 | EP105: 2 | EQ105: 2 | ER105: 2 | ES105: 2 | ET105: 2 | EU105: 2 | EV105: 2 | EW105: 2 | EX105: 2 | EY105: 2 | EZ105: 2 | FA105: 2 | FB105: 2 | FC105: 2 | FD105: 2 | FE105: 2 | FF105: 2 | FG105: 2 | FH105: 2 | FI105: 2 | FJ105: 2 | FK105: 2 | FL105: 2 | FM105: 2 | FN105: 2 | FO105: 2 | FP105: 2 | FQ105: 2 | FR105: 2
D106: 89 | E106: 112 | R106: 3 | S106: 3 | T106: 3 | U106: 3 | V106: 3 | W106: 3 | X106: 3 | Y106: 3 | Z106: 3 | AA106: 3 | AB106: 3 | AC106: 3 | AD106: 3 | AE106: 3 | AF106: 3 | AG106: 3 | AH106: 3 | AI106: 3 | AJ106: 3 | AK106: 3 | AL106: 3 | AM106: 3 | AN106: 3 | AO106: 3 | AP106: 3 | AQ106: 3 | AR106: 3 | AS106: 3 | AT106: 3 | AU106: 3 | AV106: 3 | AW106: 3 | AX106: 3 | AY106: 3 | AZ106: 3 | BA106: 3 | BB106: 3 | BC106: 3 | BD106: 3 | BE106: 3 | BF106: 3 | BG106: 3 | BH106: 3 | BI106: 3 | BJ106: 3 | BK106: 3 | BL106: 3 | BM106: 3 | BN106: 3 | BO106: 3 | BP106: 3 | BQ106: 3 | BR106: 3 | BS106: 3 | BT106: 3 | BU106: 3 | BV106: 3 | BW106: 3 | BX106: 3 | BY106: 3 | BZ106: 3 | CA106: 3 | CB106: 3 | CC106: 3 | CD106: 3 | CE106: 3 | CF106: 3 | CG106: 3 | CH106: 3 | CI106: 3 | CJ106: 3 | CK106: 3 | CL106: 3 | CM106: 3 | CN106: 3 | CO106: 3 | CP106: 3 | CQ106: 3 | CR106: 3 | CS106: 3 | CT106: 3 | CU106: 3 | CV106: 3 | CW106: 3 | CX106: 3 | CY106: 2 | CZ106: 2 | DA106: 2 | DB106: 2 | DC106: 2 | DD106: 2 | DE106: 2 | DF106: 2 | DG106: 2 | DH106: 2 | DI106: 2 | DJ106: 2 | DK106: 2 | DL106: 2 | DM106: 2 | DN106: 2 | DO106: 2 | DP106: 2 | DQ106: 2 | DR106: 2 | DS106: 2 | DT106: 2 | DU106: 2 | DV106: 2 | DW106: 2 | DX106: 2 | DY106: 2 | DZ106: 2 | EA106: 2 | EB106: 2 | EC106: 2 | ED106: 2 | EE106: 2 | EF106: 2 | EG106: 2 | EH106: 2 | EI106: 2 | EJ106: 2 | EK106: 2 | EL106: 2 | EM106: 2 | EN106: 2 | EO106: 2 | EP106: 2 | EQ106: 2 | ER106: 2 | ES106: 2 | ET106: 2 | EU106: 2 | EV106: 2 | EW106: 2 | EX106: 2 | EY106: 2 | EZ106: 2 | FA106: 2 | FB106: 2 | FC106: 2 | FD106: 2 | FE106: 2 | FF106: 2 | FG106: 2 | FH106: 2 | FI106: 2 | FJ106: 2 | FK106: 2 | FL106: 2 | FM106: 2 | FN106: 2 | FO106: 2 | FP106: 2 | FQ106: 2 | FR106: 2
D107: 90 | E107: 111 | Q107: 3 | R107: 3 | S107: 3 | T107: 3 | U107: 3 | V107: 3 | W107: 3 | X107: 3 | Y107: 3 | Z107: 3 | AA107: 3 | AB107: 3 | AC107: 3 | AD107: 3 | AE107: 3 | AF107: 3 | AG107: 3 | AH107: 3 | AI107: 3 | AJ107: 3 | AK107: 3 | AL107: 3 | AM107: 3 | AN107: 3 | AO107: 3 | AP107: 3 | AQ107: 3 | AR107: 3 | AS107: 3 | AT107: 3 | AU107: 3 | AV107: 3 | AW107: 3 | AX107: 3 | AY107: 3 | AZ107: 3 | BA107: 3 | BB107: 3 | BC107: 3 | BD107: 3 | BE107: 3 | BF107: 3 | BG107: 3 | BH107: 3 | BI107: 3 | BJ107: 3 | BK107: 3 | BL107: 3 | BM107: 3 | BN107: 3 | BO107: 3 | BP107: 3 | BQ107: 3 | BR107: 3 | BS107: 3 | BT107: 3 | BU107: 3 | BV107: 3 | BW107: 3 | BX107: 3 | BY107: 3 | BZ107: 3 | CA107: 3 | CB107: 3 | CC107: 3 | CD107: 3 | CE107: 3 | CF107: 3 | CG107: 3 | CH107: 3 | CI107: 3 | CJ107: 3 | CK107: 3 | CL107: 3 | CM107: 3 | CN107: 3 | CO107: 3 | CP107: 3 | CQ107: 3 | CR107: 3 | CS107: 3 | CT107: 3 | CU107: 3 | CV107: 3 | CW107: 3 | CX107: 2 | CY107: 2 | CZ107: 2 | DA107: 2 | DB107: 2 | DC107: 2 | DD107: 2 | DE107: 2 | DF107: 2 | DG107: 2 | DH107: 2 | DI107: 2 | DJ107: 2 | DK107: 2 | DL107: 2 | DM107: 2 | DN107: 2 | DO107: 2 | DP107: 2 | DQ107: 2 | DR107: 2 | DS107: 2 | DT107: 2 | DU107: 2 | DV107: 2 | DW107: 2 | DX107: 2 | DY107: 2 | DZ107: 2 | EA107: 2 | EB107: 2 | EC107: 2 | ED107: 2 | EE107: 2 | EF107: 2 | EG107: 2 | EH107: 2 | EI107: 2 | EJ107: 2 | EK107: 2 | EL107: 2 | EM107: 2 | EN107: 2 | EO107: 2 | EP107: 2 | EQ107: 2 | ER107: 2 | ES107: 2 | ET107: 2 | EU107: 2 | EV107: 2 | EW107: 2 | EX107: 2 | EY107: 2 | EZ107: 2 | FA107: 2 | FB107: 2 | FC107: 2 | FD107: 2 | FE107: 2 | FF107: 2 | FG107: 2 | FH107: 2 | FI107: 2 | FJ107: 2 | FK107: 2 | FL107: 2 | FM107: 2 | FN107: 2 | FO107: 2 | FP107: 2 | FQ107: 2 | FR107: 2
D108: 91 | E108: 110 | J108: =IF($A$13,IF(AND(J$2>=1,J$2<=$D$4,$E108>=1,$E108<=$D$5),1,IF(AND(J$2>=$D$4+1,J$2<=$D$4+$D$6,$E108>=J$2-$D$4+1,$E108<=J$2-$D$4+$D$5),2,IF(AND($E108>=$D$5+1,$E108<=$D$5+$D$6,J$2>=$E108-$D$5+1,J$2<=$E108-$D$5+$D$4-1),3,""))),"") ->  | P108: 3 | Q108: 3 | R108: 3 | S108: 3 | T108: =IF($A$13,IF(AND(T$2>=1,T$2<=$D$4,$E108>=1,$E108<=$D$5),1,IF(AND(T$2>=$D$4+1,T$2<=$D$4+$D$6,$E108>=T$2-$D$4+1,$E108<=T$2-$D$4+$D$5),2,IF(AND($E108>=$D$5+1,$E108<=$D$5+$D$6,T$2>=$E108-$D$5+1,T$2<=$E108-$D$5+$D$4-1),3,""))),"") -> 3 | U108: 3 | V108: 3 | W108: 3 | X108: 3 | Y108: 3 | Z108: 3 | AA108: 3 | AB108: 3 | AC108: 3 | AD108: =IF($A$13,IF(AND(AD$2>=1,AD$2<=$D$4,$E108>=1,$E108<=$D$5),1,IF(AND(AD$2>=$D$4+1,AD$2<=$D$4+$D$6,$E108>=AD$2-$D$4+1,$E108<=AD$2-$D$4+$D$5),2,IF(AND($E108>=$D$5+1,$E108<=$D$5+$D$6,AD$2>=$E108-$D$5+1,AD$2<=$E108-$D$5+$D$4-1),3,""))),"") -> 3 | AE108: 3 | AF108: 3 | AG108: 3 | AH108: 3 | AI108: 3 | AJ108: 3 | AK108: 3 | AL108: 3 | AM108: 3 | AN108: =IF($A$13,IF(AND(AN$2>=1,AN$2<=$D$4,$E108>=1,$E108<=$D$5),1,IF(AND(AN$2>=$D$4+1,AN$2<=$D$4+$D$6,$E108>=AN$2-$D$4+1,$E108<=AN$2-$D$4+$D$5),2,IF(AND($E108>=$D$5+1,$E108<=$D$5+$D$6,AN$2>=$E108-$D$5+1,AN$2<=$E108-$D$5+$D$4-1),3,""))),"") -> 3 | AO108: 3 | AP108: 3 | AQ108: 3 | AR108: 3 | AS108: 3 | AT108: 3 | AU108: 3 | AV108: 3 | AW108: 3 | AX108: =IF($A$13,IF(AND(AX$2>=1,AX$2<=$D$4,$E108>=1,$E108<=$D$5),1,IF(AND(AX$2>=$D$4+1,AX$2<=$D$4+$D$6,$E108>=AX$2-$D$4+1,$E108<=AX$2-$D$4+$D$5),2,IF(AND($E108>=$D$5+1,$E108<=$D$5+$D$6,AX$2>=$E108-$D$5+1,AX$2<=$E108-$D$5+$D$4-1),3,""))),"") -> 3 | AY108: 3 | AZ108: 3 | BA108: 3 | BB108: 3 | BC108: 3 | BD108: 3 | BE108: 3 | BF108: 3 | BG108: 3 | BH108: =IF($A$13,IF(AND(BH$2>=1,BH$2<=$D$4,$E108>=1,$E108<=$D$5),1,IF(AND(BH$2>=$D$4+1,BH$2<=$D$4+$D$6,$E108>=BH$2-$D$4+1,$E108<=BH$2-$D$4+$D$5),2,IF(AND($E108>=$D$5+1,$E108<=$D$5+$D$6,BH$2>=$E108-$D$5+1,BH$2<=$E108-$D$5+$D$4-1),3,""))),"") -> 3 | BI108: 3 | BJ108: 3 | BK108: 3 | BL108: 3 | BM108: 3 | BN108: 3 | BO108: 3 | BP108: 3 | BQ108: 3 | BR108: =IF($A$13,IF(AND(BR$2>=1,BR$2<=$D$4,$E108>=1,$E108<=$D$5),1,IF(AND(BR$2>=$D$4+1,BR$2<=$D$4+$D$6,$E108>=BR$2-$D$4+1,$E108<=BR$2-$D$4+$D$5),2,IF(AND($E108>=$D$5+1,$E108<=$D$5+$D$6,BR$2>=$E108-$D$5+1,BR$2<=$E108-$D$5+$D$4-1),3,""))),"") -> 3 | BS108: 3 | BT108: 3 | BU108: 3 | BV108: 3 | BW108: 3 | BX108: 3 | BY108: 3 | BZ108: 3 | CA108: 3 | CB108: =IF($A$13,IF(AND(CB$2>=1,CB$2<=$D$4,$E108>=1,$E108<=$D$5),1,IF(AND(CB$2>=$D$4+1,CB$2<=$D$4+$D$6,$E108>=CB$2-$D$4+1,$E108<=CB$2-$D$4+$D$5),2,IF(AND($E108>=$D$5+1,$E108<=$D$5+$D$6,CB$2>=$E108-$D$5+1,CB$2<=$E108-$D$5+$D$4-1),3,""))),"") -> 3 | CC108: 3 | CD108: 3 | CE108: 3 | CF108: 3 | CG108: 3 | CH108: 3 | CI108: 3 | CJ108: 3 | CK108: 3 | CL108: =IF($A$13,IF(AND(CL$2>=1,CL$2<=$D$4,$E108>=1,$E108<=$D$5),1,IF(AND(CL$2>=$D$4+1,CL$2<=$D$4+$D$6,$E108>=CL$2-$D$4+1,$E108<=CL$2-$D$4+$D$5),2,IF(AND($E108>=$D$5+1,$E108<=$D$5+$D$6,CL$2>=$E108-$D$5+1,CL$2<=$E108-$D$5+$D$4-1),3,""))),"") -> 3 | CM108: 3 | CN108: 3 | CO108: 3 | CP108: 3 | CQ108: 3 | CR108: 3 | CS108: 3 | CT108: 3 | CU108: 3 | CV108: =IF($A$13,IF(AND(CV$2>=1,CV$2<=$D$4,$E108>=1,$E108<=$D$5),1,IF(AND(CV$2>=$D$4+1,CV$2<=$D$4+$D$6,$E108>=CV$2-$D$4+1,$E108<=CV$2-$D$4+$D$5),2,IF(AND($E108>=$D$5+1,$E108<=$D$5+$D$6,CV$2>=$E108-$D$5+1,CV$2<=$E108-$D$5+$D$4-1),3,""))),"") -> 3 | CW108: 2 | CX108: 2 | CY108: 2 | CZ108: 2 | DA108: 2 | DB108: 2 | DC108: 2 | DD108: 2 | DE108: 2 | DF108: =IF($A$13,IF(AND(DF$2>=1,DF$2<=$D$4,$E108>=1,$E108<=$D$5),1,IF(AND(DF$2>=$D$4+1,DF$2<=$D$4+$D$6,$E108>=DF$2-$D$4+1,$E108<=DF$2-$D$4+$D$5),2,IF(AND($E108>=$D$5+1,$E108<=$D$5+$D$6,DF$2>=$E108-$D$5+1,DF$2<=$E108-$D$5+$D$4-1),3,""))),"") -> 2 | DG108: 2 | DH108: 2 | DI108: 2 | DJ108: 2 | DK108: 2 | DL108: 2 | DM108: 2 | DN108: 2 | DO108: 2 | DP108: =IF($A$13,IF(AND(DP$2>=1,DP$2<=$D$4,$E108>=1,$E108<=$D$5),1,IF(AND(DP$2>=$D$4+1,DP$2<=$D$4+$D$6,$E108>=DP$2-$D$4+1,$E108<=DP$2-$D$4+$D$5),2,IF(AND($E108>=$D$5+1,$E108<=$D$5+$D$6,DP$2>=$E108-$D$5+1,DP$2<=$E108-$D$5+$D$4-1),3,""))),"") -> 2 | DQ108: 2 | DR108: 2 | DS108: 2 | DT108: 2 | DU108: 2 | DV108: 2 | DW108: 2 | DX108: 2 | DY108: 2 | DZ108: =IF($A$13,IF(AND(DZ$2>=1,DZ$2<=$D$4,$E108>=1,$E108<=$D$5),1,IF(AND(DZ$2>=$D$4+1,DZ$2<=$D$4+$D$6,$E108>=DZ$2-$D$4+1,$E108<=DZ$2-$D$4+$D$5),2,IF(AND($E108>=$D$5+1,$E108<=$D$5+$D$6,DZ$2>=$E108-$D$5+1,DZ$2<=$E108-$D$5+$D$4-1),3,""))),"") -> 2 | EA108: 2 | EB108: 2 | EC108: 2 | ED108: 2 | EE108: 2 | EF108: 2 | EG108: 2 | EH108: 2 | EI108: 2 | EJ108: =IF($A$13,IF(AND(EJ$2>=1,EJ$2<=$D$4,$E108>=1,$E108<=$D$5),1,IF(AND(EJ$2>=$D$4+1,EJ$2<=$D$4+$D$6,$E108>=EJ$2-$D$4+1,$E108<=EJ$2-$D$4+$D$5),2,IF(AND($E108>=$D$5+1,$E108<=$D$5+$D$6,EJ$2>=$E108-$D$5+1,EJ$2<=$E108-$D$5+$D$4-1),3,""))),"") -> 2 | EK108: 2 | EL108: 2 | EM108: 2 | EN108: 2 | EO108: 2 | EP108: 2 | EQ108: 2 | ER108: 2 | ES108: 2 | ET108: =IF($A$13,IF(AND(ET$2>=1,ET$2<=$D$4,$E108>=1,$E108<=$D$5),1,IF(AND(ET$2>=$D$4+1,ET$2<=$D$4+$D$6,$E108>=ET$2-$D$4+1,$E108<=ET$2-$D$4+$D$5),2,IF(AND($E108>=$D$5+1,$E108<=$D$5+$D$6,ET$2>=$E108-$D$5+1,ET$2<=$E108-$D$5+$D$4-1),3,""))),"") -> 2 | EU108: 2 | EV108: 2 | EW108: 2 | EX108: 2 | EY108: 2 | EZ108: 2 | FA108: 2 | FB108: 2 | FC108: 2 | FD108: =IF($A$13,IF(AND(FD$2>=1,FD$2<=$D$4,$E108>=1,$E108<=$D$5),1,IF(AND(FD$2>=$D$4+1,FD$2<=$D$4+$D$6,$E108>=FD$2-$D$4+1,$E108<=FD$2-$D$4+$D$5),2,IF(AND($E108>=$D$5+1,$E108<=$D$5+$D$6,FD$2>=$E108-$D$5+1,FD$2<=$E108-$D$5+$D$4-1),3,""))),"") -> 2 | FE108: 2 | FF108: 2 | FG108: 2 | FH108: 2 | FI108: 2 | FJ108: 2 | FK108: 2 | FL108: 2 | FM108: 2 | FN108: =IF($A$13,IF(AND(FN$2>=1,FN$2<=$D$4,$E108>=1,$E108<=$D$5),1,IF(AND(FN$2>=$D$4+1,FN$2<=$D$4+$D$6,$E108>=FN$2-$D$4+1,$E108<=FN$2-$D$4+$D$5),2,IF(AND($E108>=$D$5+1,$E108<=$D$5+$D$6,FN$2>=$E108-$D$5+1,FN$2<=$E108-$D$5+$D$4-1),3,""))),"") -> 2 | FO108: 2 | FP108: 2 | FQ108: 2 | FR108: 2 | FX108: =IF($A$13,IF(AND(FX$2>=1,FX$2<=$D$4,$E108>=1,$E108<=$D$5),1,IF(AND(FX$2>=$D$4+1,FX$2<=$D$4+$D$6,$E108>=FX$2-$D$4+1,$E108<=FX$2-$D$4+$D$5),2,IF(AND($E108>=$D$5+1,$E108<=$D$5+$D$6,FX$2>=$E108-$D$5+1,FX$2<=$E108-$D$5+$D$4-1),3,""))),"") ->  | GH108: =IF($A$13,IF(AND(GH$2>=1,GH$2<=$D$4,$E108>=1,$E108<=$D$5),1,IF(AND(GH$2>=$D$4+1,GH$2<=$D$4+$D$6,$E108>=GH$2-$D$4+1,$E108<=GH$2-$D$4+$D$5),2,IF(AND($E108>=$D$5+1,$E108<=$D$5+$D$6,GH$2>=$E108-$D$5+1,GH$2<=$E108-$D$5+$D$4-1),3,""))),"") ->  | GR108: =IF($A$13,IF(AND(GR$2>=1,GR$2<=$D$4,$E108>=1,$E108<=$D$5),1,IF(AND(GR$2>=$D$4+1,GR$2<=$D$4+$D$6,$E108>=GR$2-$D$4+1,$E108<=GR$2-$D$4+$D$5),2,IF(AND($E108>=$D$5+1,$E108<=$D$5+$D$6,GR$2>=$E108-$D$5+1,GR$2<=$E108-$D$5+$D$4-1),3,""))),"") -> 
D109: 92 | E109: 109 | O109: 3 | P109: 3 | Q109: 3 | R109: 3 | S109: 3 | T109: 3 | U109: 3 | V109: 3 | W109: 3 | X109: 3 | Y109: 3 | Z109: 3 | AA109: 3 | AB109: 3 | AC109: 3 | AD109: 3 | AE109: 3 | AF109: 3 | AG109: 3 | AH109: 3 | AI109: 3 | AJ109: 3 | AK109: 3 | AL109: 3 | AM109: 3 | AN109: 3 | AO109: 3 | AP109: 3 | AQ109: 3 | AR109: 3 | AS109: 3 | AT109: 3 | AU109: 3 | AV109: 3 | AW109: 3 | AX109: 3 | AY109: 3 | AZ109: 3 | BA109: 3 | BB109: 3 | BC109: 3 | BD109: 3 | BE109: 3 | BF109: 3 | BG109: 3 | BH109: 3 | BI109: 3 | BJ109: 3 | BK109: 3 | BL109: 3 | BM109: 3 | BN109: 3 | BO109: 3 | BP109: 3 | BQ109: 3 | BR109: 3 | BS109: 3 | BT109: 3 | BU109: 3 | BV109: 3 | BW109: 3 | BX109: 3 | BY109: 3 | BZ109: 3 | CA109: 3 | CB109: 3 | CC109: 3 | CD109: 3 | CE109: 3 | CF109: 3 | CG109: 3 | CH109: 3 | CI109: 3 | CJ109: 3 | CK109: 3 | CL109: 3 | CM109: 3 | CN109: 3 | CO109: 3 | CP109: 3 | CQ109: 3 | CR109: 3 | CS109: 3 | CT109: 3 | CU109: 3 | CV109: 2 | CW109: 2 | CX109: 2 | CY109: 2 | CZ109: 2 | DA109: 2 | DB109: 2 | DC109: 2 | DD109: 2 | DE109: 2 | DF109: 2 | DG109: 2 | DH109: 2 | DI109: 2 | DJ109: 2 | DK109: 2 | DL109: 2 | DM109: 2 | DN109: 2 | DO109: 2 | DP109: 2 | DQ109: 2 | DR109: 2 | DS109: 2 | DT109: 2 | DU109: 2 | DV109: 2 | DW109: 2 | DX109: 2 | DY109: 2 | DZ109: 2 | EA109: 2 | EB109: 2 | EC109: 2 | ED109: 2 | EE109: 2 | EF109: 2 | EG109: 2 | EH109: 2 | EI109: 2 | EJ109: 2 | EK109: 2 | EL109: 2 | EM109: 2 | EN109: 2 | EO109: 2 | EP109: 2 | EQ109: 2 | ER109: 2 | ES109: 2 | ET109: 2 | EU109: 2 | EV109: 2 | EW109: 2 | EX109: 2 | EY109: 2 | EZ109: 2 | FA109: 2 | FB109: 2 | FC109: 2 | FD109: 2 | FE109: 2 | FF109: 2 | FG109: 2 | FH109: 2 | FI109: 2 | FJ109: 2 | FK109: 2 | FL109: 2 | FM109: 2 | FN109: 2 | FO109: 2 | FP109: 2 | FQ109: 2 | FR109: 2
D110: 93 | E110: 108 | N110: 3 | O110: 3 | P110: 3 | Q110: 3 | R110: 3 | S110: 3 | T110: 3 | U110: 3 | V110: 3 | W110: 3 | X110: 3 | Y110: 3 | Z110: 3 | AA110: 3 | AB110: 3 | AC110: 3 | AD110: 3 | AE110: 3 | AF110: 3 | AG110: 3 | AH110: 3 | AI110: 3 | AJ110: 3 | AK110: 3 | AL110: 3 | AM110: 3 | AN110: 3 | AO110: 3 | AP110: 3 | AQ110: 3 | AR110: 3 | AS110: 3 | AT110: 3 | AU110: 3 | AV110: 3 | AW110: 3 | AX110: 3 | AY110: 3 | AZ110: 3 | BA110: 3 | BB110: 3 | BC110: 3 | BD110: 3 | BE110: 3 | BF110: 3 | BG110: 3 | BH110: 3 | BI110: 3 | BJ110: 3 | BK110: 3 | BL110: 3 | BM110: 3 | BN110: 3 | BO110: 3 | BP110: 3 | BQ110: 3 | BR110: 3 | BS110: 3 | BT110: 3 | BU110: 3 | BV110: 3 | BW110: 3 | BX110: 3 | BY110: 3 | BZ110: 3 | CA110: 3 | CB110: 3 | CC110: 3 | CD110: 3 | CE110: 3 | CF110: 3 | CG110: 3 | CH110: 3 | CI110: 3 | CJ110: 3 | CK110: 3 | CL110: 3 | CM110: 3 | CN110: 3 | CO110: 3 | CP110: 3 | CQ110: 3 | CR110: 3 | CS110: 3 | CT110: 3 | CU110: 2 | CV110: 2 | CW110: 2 | CX110: 2 | CY110: 2 | CZ110: 2 | DA110: 2 | DB110: 2 | DC110: 2 | DD110: 2 | DE110: 2 | DF110: 2 | DG110: 2 | DH110: 2 | DI110: 2 | DJ110: 2 | DK110: 2 | DL110: 2 | DM110: 2 | DN110: 2 | DO110: 2 | DP110: 2 | DQ110: 2 | DR110: 2 | DS110: 2 | DT110: 2 | DU110: 2 | DV110: 2 | DW110: 2 | DX110: 2 | DY110: 2 | DZ110: 2 | EA110: 2 | EB110: 2 | EC110: 2 | ED110: 2 | EE110: 2 | EF110: 2 | EG110: 2 | EH110: 2 | EI110: 2 | EJ110: 2 | EK110: 2 | EL110: 2 | EM110: 2 | EN110: 2 | EO110: 2 | EP110: 2 | EQ110: 2 | ER110: 2 | ES110: 2 | ET110: 2 | EU110: 2 | EV110: 2 | EW110: 2 | EX110: 2 | EY110: 2 | EZ110: 2 | FA110: 2 | FB110: 2 | FC110: 2 | FD110: 2 | FE110: 2 | FF110: 2 | FG110: 2 | FH110: 2 | FI110: 2 | FJ110: 2 | FK110: 2 | FL110: 2 | FM110: 2 | FN110: 2 | FO110: 2 | FP110: 2 | FQ110: 2 | FR110: 2
D111: 94 | E111: 107 | M111: 3 | N111: 3 | O111: 3 | P111: 3 | Q111: 3 | R111: 3 | S111: 3 | T111: 3 | U111: 3 | V111: 3 | W111: 3 | X111: 3 | Y111: 3 | Z111: 3 | AA111: 3 | AB111: 3 | AC111: 3 | AD111: 3 | AE111: 3 | AF111: 3 | AG111: 3 | AH111: 3 | AI111: 3 | AJ111: 3 | AK111: 3 | AL111: 3 | AM111: 3 | AN111: 3 | AO111: 3 | AP111: 3 | AQ111: 3 | AR111: 3 | AS111: 3 | AT111: 3 | AU111: 3 | AV111: 3 | AW111: 3 | AX111: 3 | AY111: 3 | AZ111: 3 | BA111: 3 | BB111: 3 | BC111: 3 | BD111: 3 | BE111: 3 | BF111: 3 | BG111: 3 | BH111: 3 | BI111: 3 | BJ111: 3 | BK111: 3 | BL111: 3 | BM111: 3 | BN111: 3 | BO111: 3 | BP111: 3 | BQ111: 3 | BR111: 3 | BS111: 3 | BT111: 3 | BU111: 3 | BV111: 3 | BW111: 3 | BX111: 3 | BY111: 3 | BZ111: 3 | CA111: 3 | CB111: 3 | CC111: 3 | CD111: 3 | CE111: 3 | CF111: 3 | CG111: 3 | CH111: 3 | CI111: 3 | CJ111: 3 | CK111: 3 | CL111: 3 | CM111: 3 | CN111: 3 | CO111: 3 | CP111: 3 | CQ111: 3 | CR111: 3 | CS111: 3 | CT111: 2 | CU111: 2 | CV111: 2 | CW111: 2 | CX111: 2 | CY111: 2 | CZ111: 2 | DA111: 2 | DB111: 2 | DC111: 2 | DD111: 2 | DE111: 2 | DF111: 2 | DG111: 2 | DH111: 2 | DI111: 2 | DJ111: 2 | DK111: 2 | DL111: 2 | DM111: 2 | DN111: 2 | DO111: 2 | DP111: 2 | DQ111: 2 | DR111: 2 | DS111: 2 | DT111: 2 | DU111: 2 | DV111: 2 | DW111: 2 | DX111: 2 | DY111: 2 | DZ111: 2 | EA111: 2 | EB111: 2 | EC111: 2 | ED111: 2 | EE111: 2 | EF111: 2 | EG111: 2 | EH111: 2 | EI111: 2 | EJ111: 2 | EK111: 2 | EL111: 2 | EM111: 2 | EN111: 2 | EO111: 2 | EP111: 2 | EQ111: 2 | ER111: 2 | ES111: 2 | ET111: 2 | EU111: 2 | EV111: 2 | EW111: 2 | EX111: 2 | EY111: 2 | EZ111: 2 | FA111: 2 | FB111: 2 | FC111: 2 | FD111: 2 | FE111: 2 | FF111: 2 | FG111: 2 | FH111: 2 | FI111: 2 | FJ111: 2 | FK111: 2 | FL111: 2 | FM111: 2 | FN111: 2 | FO111: 2 | FP111: 2 | FQ111: 2 | FR111: 2
D112: 95 | E112: 106 | L112: 3 | M112: 3 | N112: 3 | O112: 3 | P112: 3 | Q112: 3 | R112: 3 | S112: 3 | T112: 3 | U112: 3 | V112: 3 | W112: 3 | X112: 3 | Y112: 3 | Z112: 3 | AA112: 3 | AB112: 3 | AC112: 3 | AD112: 3 | AE112: 3 | AF112: 3 | AG112: 3 | AH112: 3 | AI112: 3 | AJ112: 3 | AK112: 3 | AL112: 3 | AM112: 3 | AN112: 3 | AO112: 3 | AP112: 3 | AQ112: 3 | AR112: 3 | AS112: 3 | AT112: 3 | AU112: 3 | AV112: 3 | AW112: 3 | AX112: 3 | AY112: 3 | AZ112: 3 | BA112: 3 | BB112: 3 | BC112: 3 | BD112: 3 | BE112: 3 | BF112: 3 | BG112: 3 | BH112: 3 | BI112: 3 | BJ112: 3 | BK112: 3 | BL112: 3 | BM112: 3 | BN112: 3 | BO112: 3 | BP112: 3 | BQ112: 3 | BR112: 3 | BS112: 3 | BT112: 3 | BU112: 3 | BV112: 3 | BW112: 3 | BX112: 3 | BY112: 3 | BZ112: 3 | CA112: 3 | CB112: 3 | CC112: 3 | CD112: 3 | CE112: 3 | CF112: 3 | CG112: 3 | CH112: 3 | CI112: 3 | CJ112: 3 | CK112: 3 | CL112: 3 | CM112: 3 | CN112: 3 | CO112: 3 | CP112: 3 | CQ112: 3 | CR112: 3 | CS112: 2 | CT112: 2 | CU112: 2 | CV112: 2 | CW112: 2 | CX112: 2 | CY112: 2 | CZ112: 2 | DA112: 2 | DB112: 2 | DC112: 2 | DD112: 2 | DE112: 2 | DF112: 2 | DG112: 2 | DH112: 2 | DI112: 2 | DJ112: 2 | DK112: 2 | DL112: 2 | DM112: 2 | DN112: 2 | DO112: 2 | DP112: 2 | DQ112: 2 | DR112: 2 | DS112: 2 | DT112: 2 | DU112: 2 | DV112: 2 | DW112: 2 | DX112: 2 | DY112: 2 | DZ112: 2 | EA112: 2 | EB112: 2 | EC112: 2 | ED112: 2 | EE112: 2 | EF112: 2 | EG112: 2 | EH112: 2 | EI112: 2 | EJ112: 2 | EK112: 2 | EL112: 2 | EM112: 2 | EN112: 2 | EO112: 2 | EP112: 2 | EQ112: 2 | ER112: 2 | ES112: 2 | ET112: 2 | EU112: 2 | EV112: 2 | EW112: 2 | EX112: 2 | EY112: 2 | EZ112: 2 | FA112: 2 | FB112: 2 | FC112: 2 | FD112: 2 | FE112: 2 | FF112: 2 | FG112: 2 | FH112: 2 | FI112: 2 | FJ112: 2 | FK112: 2 | FL112: 2 | FM112: 2 | FN112: 2 | FO112: 2 | FP112: 2 | FQ112: 2 | FR112: 2
D113: 96 | E113: 105 | K113: 3 | L113: 3 | M113: 3 | N113: 3 | O113: 3 | P113: 3 | Q113: 3 | R113: 3 | S113: 3 | T113: 3 | U113: 3 | V113: 3 | W113: 3 | X113: 3 | Y113: 3 | Z113: 3 | AA113: 3 | AB113: 3 | AC113: 3 | AD113: 3 | AE113: 3 | AF113: 3 | AG113: 3 | AH113: 3 | AI113: 3 | AJ113: 3 | AK113: 3 | AL113: 3 | AM113: 3 | AN113: 3 | AO113: 3 | AP113: 3 | AQ113: 3 | AR113: 3 | AS113: 3 | AT113: 3 | AU113: 3 | AV113: 3 | AW113: 3 | AX113: 3 | AY113: 3 | AZ113: 3 | BA113: 3 | BB113: 3 | BC113: 3 | BD113: 3 | BE113: 3 | BF113: 3 | BG113: 3 | BH113: 3 | BI113: 3 | BJ113: 3 | BK113: 3 | BL113: 3 | BM113: 3 | BN113: 3 | BO113: 3 | BP113: 3 | BQ113: 3 | BR113: 3 | BS113: 3 | BT113: 3 | BU113: 3 | BV113: 3 | BW113: 3 | BX113: 3 | BY113: 3 | BZ113: 3 | CA113: 3 | CB113: 3 | CC113: 3 | CD113: 3 | CE113: 3 | CF113: 3 | CG113: 3 | CH113: 3 | CI113: 3 | CJ113: 3 | CK113: 3 | CL113: 3 | CM113: 3 | CN113: 3 | CO113: 3 | CP113: 3 | CQ113: 3 | CR113: 2 | CS113: 2 | CT113: 2 | CU113: 2 | CV113: 2 | CW113: 2 | CX113: 2 | CY113: 2 | CZ113: 2 | DA113: 2 | DB113: 2 | DC113: 2 | DD113: 2 | DE113: 2 | DF113: 2 | DG113: 2 | DH113: 2 | DI113: 2 | DJ113: 2 | DK113: 2 | DL113: 2 | DM113: 2 | DN113: 2 | DO113: 2 | DP113: 2 | DQ113: 2 | DR113: 2 | DS113: 2 | DT113: 2 | DU113: 2 | DV113: 2 | DW113: 2 | DX113: 2 | DY113: 2 | DZ113: 2 | EA113: 2 | EB113: 2 | EC113: 2 | ED113: 2 | EE113: 2 | EF113: 2 | EG113: 2 | EH113: 2 | EI113: 2 | EJ113: 2 | EK113: 2 | EL113: 2 | EM113: 2 | EN113: 2 | EO113: 2 | EP113: 2 | EQ113: 2 | ER113: 2 | ES113: 2 | ET113: 2 | EU113: 2 | EV113: 2 | EW113: 2 | EX113: 2 | EY113: 2 | EZ113: 2 | FA113: 2 | FB113: 2 | FC113: 2 | FD113: 2 | FE113: 2 | FF113: 2 | FG113: 2 | FH113: 2 | FI113: 2 | FJ113: 2 | FK113: 2 | FL113: 2 | FM113: 2 | FN113: 2 | FO113: 2 | FP113: 2 | FQ113: 2 | FR113: 2
D114: 97 | E114: 104 | J114: 1 | K114: 1 | L114: 1 | M114: 1 | N114: 1 | O114: 1 | P114: 1 | Q114: 1 | R114: 1 | S114: 1 | T114: 1 | U114: 1 | V114: 1 | W114: 1 | X114: 1 | Y114: 1 | Z114: 1 | AA114: 1 | AB114: 1 | AC114: 1 | AD114: 1 | AE114: 1 | AF114: 1 | AG114: 1 | AH114: 1 | AI114: 1 | AJ114: 1 | AK114: 1 | AL114: 1 | AM114: 1 | AN114: 1 | AO114: 1 | AP114: 1 | AQ114: 1 | AR114: 1 | AS114: 1 | AT114: 1 | AU114: 1 | AV114: 1 | AW114: 1 | AX114: 1 | AY114: 1 | AZ114: 1 | BA114: 1 | BB114: 1 | BC114: 1 | BD114: 1 | BE114: 1 | BF114: 1 | BG114: 1 | BH114: 1 | BI114: 1 | BJ114: 1 | BK114: 1 | BL114: 1 | BM114: 1 | BN114: 1 | BO114: 1 | BP114: 1 | BQ114: 1 | BR114: 1 | BS114: 1 | BT114: 1 | BU114: 1 | BV114: 1 | BW114: 1 | BX114: 1 | BY114: 1 | BZ114: 1 | CA114: 1 | CB114: 1 | CC114: 1 | CD114: 1 | CE114: 1 | CF114: 1 | CG114: 1 | CH114: 1 | CI114: 1 | CJ114: 1 | CK114: 1 | CL114: 1 | CM114: 1 | CN114: 1 | CO114: 1 | CP114: 1 | CQ114: 1 | CR114: 2 | CS114: 2 | CT114: 2 | CU114: 2 | CV114: 2 | CW114: 2 | CX114: 2 | CY114: 2 | CZ114: 2 | DA114: 2 | DB114: 2 | DC114: 2 | DD114: 2 | DE114: 2 | DF114: 2 | DG114: 2 | DH114: 2 | DI114: 2 | DJ114: 2 | DK114: 2 | DL114: 2 | DM114: 2 | DN114: 2 | DO114: 2 | DP114: 2 | DQ114: 2 | DR114: 2 | DS114: 2 | DT114: 2 | DU114: 2 | DV114: 2 | DW114: 2 | DX114: 2 | DY114: 2 | DZ114: 2 | EA114: 2 | EB114: 2 | EC114: 2 | ED114: 2 | EE114: 2 | EF114: 2 | EG114: 2 | EH114: 2 | EI114: 2 | EJ114: 2 | EK114: 2 | EL114: 2 | EM114: 2 | EN114: 2 | EO114: 2 | EP114: 2 | EQ114: 2 | ER114: 2 | ES114: 2 | ET114: 2 | EU114: 2 | EV114: 2 | EW114: 2 | EX114: 2 | EY114: 2 | EZ114: 2 | FA114: 2 | FB114: 2 | FC114: 2 | FD114: 2 | FE114: 2 | FF114: 2 | FG114: 2 | FH114: 2 | FI114: 2 | FJ114: 2 | FK114: 2 | FL114: 2 | FM114: 2 | FN114: 2 | FO114: 2 | FP114: 2 | FQ114: 2 | FR114: 2
D115: 98 | E115: 103 | J115: 1 | K115: 1 | L115: 1 | M115: 1 | N115: 1 | O115: 1 | P115: 1 | Q115: 1 | R115: 1 | S115: 1 | T115: 1 | U115: 1 | V115: 1 | W115: 1 | X115: 1 | Y115: 1 | Z115: 1 | AA115: 1 | AB115: 1 | AC115: 1 | AD115: 1 | AE115: 1 | AF115: 1 | AG115: 1 | AH115: 1 | AI115: 1 | AJ115: 1 | AK115: 1 | AL115: 1 | AM115: 1 | AN115: 1 | AO115: 1 | AP115: 1 | AQ115: 1 | AR115: 1 | AS115: 1 | AT115: 1 | AU115: 1 | AV115: 1 | AW115: 1 | AX115: 1 | AY115: 1 | AZ115: 1 | BA115: 1 | BB115: 1 | BC115: 1 | BD115: 1 | BE115: 1 | BF115: 1 | BG115: 1 | BH115: 1 | BI115: 1 | BJ115: 1 | BK115: 1 | BL115: 1 | BM115: 1 | BN115: 1 | BO115: 1 | BP115: 1 | BQ115: 1 | BR115: 1 | BS115: 1 | BT115: 1 | BU115: 1 | BV115: 1 | BW115: 1 | BX115: 1 | BY115: 1 | BZ115: 1 | CA115: 1 | CB115: 1 | CC115: 1 | CD115: 1 | CE115: 1 | CF115: 1 | CG115: 1 | CH115: 1 | CI115: 1 | CJ115: 1 | CK115: 1 | CL115: 1 | CM115: 1 | CN115: 1 | CO115: 1 | CP115: 1 | CQ115: 1 | CR115: 2 | CS115: 2 | CT115: 2 | CU115: 2 | CV115: 2 | CW115: 2 | CX115: 2 | CY115: 2 | CZ115: 2 | DA115: 2 | DB115: 2 | DC115: 2 | DD115: 2 | DE115: 2 | DF115: 2 | DG115: 2 | DH115: 2 | DI115: 2 | DJ115: 2 | DK115: 2 | DL115: 2 | DM115: 2 | DN115: 2 | DO115: 2 | DP115: 2 | DQ115: 2 | DR115: 2 | DS115: 2 | DT115: 2 | DU115: 2 | DV115: 2 | DW115: 2 | DX115: 2 | DY115: 2 | DZ115: 2 | EA115: 2 | EB115: 2 | EC115: 2 | ED115: 2 | EE115: 2 | EF115: 2 | EG115: 2 | EH115: 2 | EI115: 2 | EJ115: 2 | EK115: 2 | EL115: 2 | EM115: 2 | EN115: 2 | EO115: 2 | EP115: 2 | EQ115: 2 | ER115: 2 | ES115: 2 | ET115: 2 | EU115: 2 | EV115: 2 | EW115: 2 | EX115: 2 | EY115: 2 | EZ115: 2 | FA115: 2 | FB115: 2 | FC115: 2 | FD115: 2 | FE115: 2 | FF115: 2 | FG115: 2 | FH115: 2 | FI115: 2 | FJ115: 2 | FK115: 2 | FL115: 2 | FM115: 2 | FN115: 2 | FO115: 2 | FP115: 2 | FQ115: 2 | FR115: 2
D116: 99 | E116: 102 | J116: 1 | K116: 1 | L116: 1 | M116: 1 | N116: 1 | O116: 1 | P116: 1 | Q116: 1 | R116: 1 | S116: 1 | T116: 1 | U116: 1 | V116: 1 | W116: 1 | X116: 1 | Y116: 1 | Z116: 1 | AA116: 1 | AB116: 1 | AC116: 1 | AD116: 1 | AE116: 1 | AF116: 1 | AG116: 1 | AH116: 1 | AI116: 1 | AJ116: 1 | AK116: 1 | AL116: 1 | AM116: 1 | AN116: 1 | AO116: 1 | AP116: 1 | AQ116: 1 | AR116: 1 | AS116: 1 | AT116: 1 | AU116: 1 | AV116: 1 | AW116: 1 | AX116: 1 | AY116: 1 | AZ116: 1 | BA116: 1 | BB116: 1 | BC116: 1 | BD116: 1 | BE116: 1 | BF116: 1 | BG116: 1 | BH116: 1 | BI116: 1 | BJ116: 1 | BK116: 1 | BL116: 1 | BM116: 1 | BN116: 1 | BO116: 1 | BP116: 1 | BQ116: 1 | BR116: 1 | BS116: 1 | BT116: 1 | BU116: 1 | BV116: 1 | BW116: 1 | BX116: 1 | BY116: 1 | BZ116: 1 | CA116: 1 | CB116: 1 | CC116: 1 | CD116: 1 | CE116: 1 | CF116: 1 | CG116: 1 | CH116: 1 | CI116: 1 | CJ116: 1 | CK116: 1 | CL116: 1 | CM116: 1 | CN116: 1 | CO116: 1 | CP116: 1 | CQ116: 1 | CR116: 2 | CS116: 2 | CT116: 2 | CU116: 2 | CV116: 2 | CW116: 2 | CX116: 2 | CY116: 2 | CZ116: 2 | DA116: 2 | DB116: 2 | DC116: 2 | DD116: 2 | DE116: 2 | DF116: 2 | DG116: 2 | DH116: 2 | DI116: 2 | DJ116: 2 | DK116: 2 | DL116: 2 | DM116: 2 | DN116: 2 | DO116: 2 | DP116: 2 | DQ116: 2 | DR116: 2 | DS116: 2 | DT116: 2 | DU116: 2 | DV116: 2 | DW116: 2 | DX116: 2 | DY116: 2 | DZ116: 2 | EA116: 2 | EB116: 2 | EC116: 2 | ED116: 2 | EE116: 2 | EF116: 2 | EG116: 2 | EH116: 2 | EI116: 2 | EJ116: 2 | EK116: 2 | EL116: 2 | EM116: 2 | EN116: 2 | EO116: 2 | EP116: 2 | EQ116: 2 | ER116: 2 | ES116: 2 | ET116: 2 | EU116: 2 | EV116: 2 | EW116: 2 | EX116: 2 | EY116: 2 | EZ116: 2 | FA116: 2 | FB116: 2 | FC116: 2 | FD116: 2 | FE116: 2 | FF116: 2 | FG116: 2 | FH116: 2 | FI116: 2 | FJ116: 2 | FK116: 2 | FL116: 2 | FM116: 2 | FN116: 2 | FO116: 2 | FP116: 2 | FQ116: 2 | FR116: 2
D117: 100 | E117: 101 | J117: 1 | K117: 1 | L117: 1 | M117: 1 | N117: 1 | O117: 1 | P117: 1 | Q117: 1 | R117: 1 | S117: 1 | T117: 1 | U117: 1 | V117: 1 | W117: 1 | X117: 1 | Y117: 1 | Z117: 1 | AA117: 1 | AB117: 1 | AC117: 1 | AD117: 1 | AE117: 1 | AF117: 1 | AG117: 1 | AH117: 1 | AI117: 1 | AJ117: 1 | AK117: 1 | AL117: 1 | AM117: 1 | AN117: 1 | AO117: 1 | AP117: 1 | AQ117: 1 | AR117: 1 | AS117: 1 | AT117: 1 | AU117: 1 | AV117: 1 | AW117: 1 | AX117: 1 | AY117: 1 | AZ117: 1 | BA117: 1 | BB117: 1 | BC117: 1 | BD117: 1 | BE117: 1 | BF117: 1 | BG117: 1 | BH117: 1 | BI117: 1 | BJ117: 1 | BK117: 1 | BL117: 1 | BM117: 1 | BN117: 1 | BO117: 1 | BP117: 1 | BQ117: 1 | BR117: 1 | BS117: 1 | BT117: 1 | BU117: 1 | BV117: 1 | BW117: 1 | BX117: 1 | BY117: 1 | BZ117: 1 | CA117: 1 | CB117: 1 | CC117: 1 | CD117: 1 | CE117: 1 | CF117: 1 | CG117: 1 | CH117: 1 | CI117: 1 | CJ117: 1 | CK117: 1 | CL117: 1 | CM117: 1 | CN117: 1 | CO117: 1 | CP117: 1 | CQ117: 1 | CR117: 2 | CS117: 2 | CT117: 2 | CU117: 2 | CV117: 2 | CW117: 2 | CX117: 2 | CY117: 2 | CZ117: 2 | DA117: 2 | DB117: 2 | DC117: 2 | DD117: 2 | DE117: 2 | DF117: 2 | DG117: 2 | DH117: 2 | DI117: 2 | DJ117: 2 | DK117: 2 | DL117: 2 | DM117: 2 | DN117: 2 | DO117: 2 | DP117: 2 | DQ117: 2 | DR117: 2 | DS117: 2 | DT117: 2 | DU117: 2 | DV117: 2 | DW117: 2 | DX117: 2 | DY117: 2 | DZ117: 2 | EA117: 2 | EB117: 2 | EC117: 2 | ED117: 2 | EE117: 2 | EF117: 2 | EG117: 2 | EH117: 2 | EI117: 2 | EJ117: 2 | EK117: 2 | EL117: 2 | EM117: 2 | EN117: 2 | EO117: 2 | EP117: 2 | EQ117: 2 | ER117: 2 | ES117: 2 | ET117: 2 | EU117: 2 | EV117: 2 | EW117: 2 | EX117: 2 | EY117: 2 | EZ117: 2 | FA117: 2 | FB117: 2 | FC117: 2 | FD117: 2 | FE117: 2 | FF117: 2 | FG117: 2 | FH117: 2 | FI117: 2 | FJ117: 2 | FK117: 2 | FL117: 2 | FM117: 2 | FN117: 2 | FO117: 2 | FP117: 2 | FQ117: 2 | FR117: 2
D118: 101 | E118: 100 | J118: =IF($A$13,IF(AND(J$2>=1,J$2<=$D$4,$E118>=1,$E118<=$D$5),1,IF(AND(J$2>=$D$4+1,J$2<=$D$4+$D$6,$E118>=J$2-$D$4+1,$E118<=J$2-$D$4+$D$5),2,IF(AND($E118>=$D$5+1,$E118<=$D$5+$D$6,J$2>=$E118-$D$5+1,J$2<=$E118-$D$5+$D$4-1),3,""))),"") -> 1 | K118: 1 | L118: 1 | M118: 1 | N118: 1 | O118: 1 | P118: 1 | Q118: 1 | R118: 1 | S118: 1 | T118: =IF($A$13,IF(AND(T$2>=1,T$2<=$D$4,$E118>=1,$E118<=$D$5),1,IF(AND(T$2>=$D$4+1,T$2<=$D$4+$D$6,$E118>=T$2-$D$4+1,$E118<=T$2-$D$4+$D$5),2,IF(AND($E118>=$D$5+1,$E118<=$D$5+$D$6,T$2>=$E118-$D$5+1,T$2<=$E118-$D$5+$D$4-1),3,""))),"") -> 1 | U118: 1 | V118: 1 | W118: 1 | X118: 1 | Y118: 1 | Z118: 1 | AA118: 1 | AB118: 1 | AC118: 1 | AD118: =IF($A$13,IF(AND(AD$2>=1,AD$2<=$D$4,$E118>=1,$E118<=$D$5),1,IF(AND(AD$2>=$D$4+1,AD$2<=$D$4+$D$6,$E118>=AD$2-$D$4+1,$E118<=AD$2-$D$4+$D$5),2,IF(AND($E118>=$D$5+1,$E118<=$D$5+$D$6,AD$2>=$E118-$D$5+1,AD$2<=$E118-$D$5+$D$4-1),3,""))),"") -> 1 | AE118: 1 | AF118: 1 | AG118: 1 | AH118: 1 | AI118: 1 | AJ118: 1 | AK118: 1 | AL118: 1 | AM118: 1 | AN118: =IF($A$13,IF(AND(AN$2>=1,AN$2<=$D$4,$E118>=1,$E118<=$D$5),1,IF(AND(AN$2>=$D$4+1,AN$2<=$D$4+$D$6,$E118>=AN$2-$D$4+1,$E118<=AN$2-$D$4+$D$5),2,IF(AND($E118>=$D$5+1,$E118<=$D$5+$D$6,AN$2>=$E118-$D$5+1,AN$2<=$E118-$D$5+$D$4-1),3,""))),"") -> 1 | AO118: 1 | AP118: 1 | AQ118: 1 | AR118: 1 | AS118: 1 | AT118: 1 | AU118: 1 | AV118: 1 | AW118: 1 | AX118: =IF($A$13,IF(AND(AX$2>=1,AX$2<=$D$4,$E118>=1,$E118<=$D$5),1,IF(AND(AX$2>=$D$4+1,AX$2<=$D$4+$D$6,$E118>=AX$2-$D$4+1,$E118<=AX$2-$D$4+$D$5),2,IF(AND($E118>=$D$5+1,$E118<=$D$5+$D$6,AX$2>=$E118-$D$5+1,AX$2<=$E118-$D$5+$D$4-1),3,""))),"") -> 1 | AY118: 1 | AZ118: 1 | BA118: 1 | BB118: 1 | BC118: 1 | BD118: 1 | BE118: 1 | BF118: 1 | BG118: 1 | BH118: =IF($A$13,IF(AND(BH$2>=1,BH$2<=$D$4,$E118>=1,$E118<=$D$5),1,IF(AND(BH$2>=$D$4+1,BH$2<=$D$4+$D$6,$E118>=BH$2-$D$4+1,$E118<=BH$2-$D$4+$D$5),2,IF(AND($E118>=$D$5+1,$E118<=$D$5+$D$6,BH$2>=$E118-$D$5+1,BH$2<=$E118-$D$5+$D$4-1),3,""))),"") -> 1 | BI118: 1 | BJ118: 1 | BK118: 1 | BL118: 1 | BM118: 1 | BN118: 1 | BO118: 1 | BP118: 1 | BQ118: 1 | BR118: =IF($A$13,IF(AND(BR$2>=1,BR$2<=$D$4,$E118>=1,$E118<=$D$5),1,IF(AND(BR$2>=$D$4+1,BR$2<=$D$4+$D$6,$E118>=BR$2-$D$4+1,$E118<=BR$2-$D$4+$D$5),2,IF(AND($E118>=$D$5+1,$E118<=$D$5+$D$6,BR$2>=$E118-$D$5+1,BR$2<=$E118-$D$5+$D$4-1),3,""))),"") -> 1 | BS118: 1 | BT118: 1 | BU118: 1 | BV118: 1 | BW118: 1 | BX118: 1 | BY118: 1 | BZ118: 1 | CA118: 1 | CB118: =IF($A$13,IF(AND(CB$2>=1,CB$2<=$D$4,$E118>=1,$E118<=$D$5),1,IF(AND(CB$2>=$D$4+1,CB$2<=$D$4+$D$6,$E118>=CB$2-$D$4+1,$E118<=CB$2-$D$4+$D$5),2,IF(AND($E118>=$D$5+1,$E118<=$D$5+$D$6,CB$2>=$E118-$D$5+1,CB$2<=$E118-$D$5+$D$4-1),3,""))),"") -> 1 | CC118: 1 | CD118: 1 | CE118: 1 | CF118: 1 | CG118: 1 | CH118: 1 | CI118: 1 | CJ118: 1 | CK118: 1 | CL118: =IF($A$13,IF(AND(CL$2>=1,CL$2<=$D$4,$E118>=1,$E118<=$D$5),1,IF(AND(CL$2>=$D$4+1,CL$2<=$D$4+$D$6,$E118>=CL$2-$D$4+1,$E118<=CL$2-$D$4+$D$5),2,IF(AND($E118>=$D$5+1,$E118<=$D$5+$D$6,CL$2>=$E118-$D$5+1,CL$2<=$E118-$D$5+$D$4-1),3,""))),"") -> 1 | CM118: 1 | CN118: 1 | CO118: 1 | CP118: 1 | CQ118: 1 | CR118: 2 | CS118: 2 | CT118: 2 | CU118: 2 | CV118: =IF($A$13,IF(AND(CV$2>=1,CV$2<=$D$4,$E118>=1,$E118<=$D$5),1,IF(AND(CV$2>=$D$4+1,CV$2<=$D$4+$D$6,$E118>=CV$2-$D$4+1,$E118<=CV$2-$D$4+$D$5),2,IF(AND($E118>=$D$5+1,$E118<=$D$5+$D$6,CV$2>=$E118-$D$5+1,CV$2<=$E118-$D$5+$D$4-1),3,""))),"") -> 2 | CW118: 2 | CX118: 2 | CY118: 2 | CZ118: 2 | DA118: 2 | DB118: 2 | DC118: 2 | DD118: 2 | DE118: 2 | DF118: =IF($A$13,IF(AND(DF$2>=1,DF$2<=$D$4,$E118>=1,$E118<=$D$5),1,IF(AND(DF$2>=$D$4+1,DF$2<=$D$4+$D$6,$E118>=DF$2-$D$4+1,$E118<=DF$2-$D$4+$D$5),2,IF(AND($E118>=$D$5+1,$E118<=$D$5+$D$6,DF$2>=$E118-$D$5+1,DF$2<=$E118-$D$5+$D$4-1),3,""))),"") -> 2 | DG118: 2 | DH118: 2 | DI118: 2 | DJ118: 2 | DK118: 2 | DL118: 2 | DM118: 2 | DN118: 2 | DO118: 2 | DP118: =IF($A$13,IF(AND(DP$2>=1,DP$2<=$D$4,$E118>=1,$E118<=$D$5),1,IF(AND(DP$2>=$D$4+1,DP$2<=$D$4+$D$6,$E118>=DP$2-$D$4+1,$E118<=DP$2-$D$4+$D$5),2,IF(AND($E118>=$D$5+1,$E118<=$D$5+$D$6,DP$2>=$E118-$D$5+1,DP$2<=$E118-$D$5+$D$4-1),3,""))),"") -> 2 | DQ118: 2 | DR118: 2 | DS118: 2 | DT118: 2 | DU118: 2 | DV118: 2 | DW118: 2 | DX118: 2 | DY118: 2 | DZ118: =IF($A$13,IF(AND(DZ$2>=1,DZ$2<=$D$4,$E118>=1,$E118<=$D$5),1,IF(AND(DZ$2>=$D$4+1,DZ$2<=$D$4+$D$6,$E118>=DZ$2-$D$4+1,$E118<=DZ$2-$D$4+$D$5),2,IF(AND($E118>=$D$5+1,$E118<=$D$5+$D$6,DZ$2>=$E118-$D$5+1,DZ$2<=$E118-$D$5+$D$4-1),3,""))),"") -> 2 | EA118: 2 | EB118: 2 | EC118: 2 | ED118: 2 | EE118: 2 | EF118: 2 | EG118: 2 | EH118: 2 | EI118: 2 | EJ118: =IF($A$13,IF(AND(EJ$2>=1,EJ$2<=$D$4,$E118>=1,$E118<=$D$5),1,IF(AND(EJ$2>=$D$4+1,EJ$2<=$D$4+$D$6,$E118>=EJ$2-$D$4+1,$E118<=EJ$2-$D$4+$D$5),2,IF(AND($E118>=$D$5+1,$E118<=$D$5+$D$6,EJ$2>=$E118-$D$5+1,EJ$2<=$E118-$D$5+$D$4-1),3,""))),"") -> 2 | EK118: 2 | EL118: 2 | EM118: 2 | EN118: 2 | EO118: 2 | EP118: 2 | EQ118: 2 | ER118: 2 | ES118: 2 | ET118: =IF($A$13,IF(AND(ET$2>=1,ET$2<=$D$4,$E118>=1,$E118<=$D$5),1,IF(AND(ET$2>=$D$4+1,ET$2<=$D$4+$D$6,$E118>=ET$2-$D$4+1,$E118<=ET$2-$D$4+$D$5),2,IF(AND($E118>=$D$5+1,$E118<=$D$5+$D$6,ET$2>=$E118-$D$5+1,ET$2<=$E118-$D$5+$D$4-1),3,""))),"") -> 2 | EU118: 2 | EV118: 2 | EW118: 2 | EX118: 2 | EY118: 2 | EZ118: 2 | FA118: 2 | FB118: 2 | FC118: 2 | FD118: =IF($A$13,IF(AND(FD$2>=1,FD$2<=$D$4,$E118>=1,$E118<=$D$5),1,IF(AND(FD$2>=$D$4+1,FD$2<=$D$4+$D$6,$E118>=FD$2-$D$4+1,$E118<=FD$2-$D$4+$D$5),2,IF(AND($E118>=$D$5+1,$E118<=$D$5+$D$6,FD$2>=$E118-$D$5+1,FD$2<=$E118-$D$5+$D$4-1),3,""))),"") -> 2 | FE118: 2 | FF118: 2 | FG118: 2 | FH118: 2 | FI118: 2 | FJ118: 2 | FK118: 2 | FL118: 2 | FM118: 2 | FN118: =IF($A$13,IF(AND(FN$2>=1,FN$2<=$D$4,$E118>=1,$E118<=$D$5),1,IF(AND(FN$2>=$D$4+1,FN$2<=$D$4+$D$6,$E118>=FN$2-$D$4+1,$E118<=FN$2-$D$4+$D$5),2,IF(AND($E118>=$D$5+1,$E118<=$D$5+$D$6,FN$2>=$E118-$D$5+1,FN$2<=$E118-$D$5+$D$4-1),3,""))),"") -> 2 | FO118: 2 | FP118: 2 | FQ118: 2 | FR118: 2 | FX118: =IF($A$13,IF(AND(FX$2>=1,FX$2<=$D$4,$E118>=1,$E118<=$D$5),1,IF(AND(FX$2>=$D$4+1,FX$2<=$D$4+$D$6,$E118>=FX$2-$D$4+1,$E118<=FX$2-$D$4+$D$5),2,IF(AND($E118>=$D$5+1,$E118<=$D$5+$D$6,FX$2>=$E118-$D$5+1,FX$2<=$E118-$D$5+$D$4-1),3,""))),"") ->  | GH118: =IF($A$13,IF(AND(GH$2>=1,GH$2<=$D$4,$E118>=1,$E118<=$D$5),1,IF(AND(GH$2>=$D$4+1,GH$2<=$D$4+$D$6,$E118>=GH$2-$D$4+1,$E118<=GH$2-$D$4+$D$5),2,IF(AND($E118>=$D$5+1,$E118<=$D$5+$D$6,GH$2>=$E118-$D$5+1,GH$2<=$E118-$D$5+$D$4-1),3,""))),"") ->  | GR118: =IF($A$13,IF(AND(GR$2>=1,GR$2<=$D$4,$E118>=1,$E118<=$D$5),1,IF(AND(GR$2>=$D$4+1,GR$2<=$D$4+$D$6,$E118>=GR$2-$D$4+1,$E118<=GR$2-$D$4+$D$5),2,IF(AND($E118>=$D$5+1,$E118<=$D$5+$D$6,GR$2>=$E118-$D$5+1,GR$2<=$E118-$D$5+$D$4-1),3,""))),"") -> 
D119: 102 | E119: 99 | J119: 1 | K119: 1 | L119: 1 | M119: 1 | N119: 1 | O119: 1 | P119: 1 | Q119: 1 | R119: 1 | S119: 1 | T119: 1 | U119: 1 | V119: 1 | W119: 1 | X119: 1 | Y119: 1 | Z119: 1 | AA119: 1 | AB119: 1 | AC119: 1 | AD119: 1 | AE119: 1 | AF119: 1 | AG119: 1 | AH119: 1 | AI119: 1 | AJ119: 1 | AK119: 1 | AL119: 1 | AM119: 1 | AN119: 1 | AO119: 1 | AP119: 1 | AQ119: 1 | AR119: 1 | AS119: 1 | AT119: 1 | AU119: 1 | AV119: 1 | AW119: 1 | AX119: 1 | AY119: 1 | AZ119: 1 | BA119: 1 | BB119: 1 | BC119: 1 | BD119: 1 | BE119: 1 | BF119: 1 | BG119: 1 | BH119: 1 | BI119: 1 | BJ119: 1 | BK119: 1 | BL119: 1 | BM119: 1 | BN119: 1 | BO119: 1 | BP119: 1 | BQ119: 1 | BR119: 1 | BS119: 1 | BT119: 1 | BU119: 1 | BV119: 1 | BW119: 1 | BX119: 1 | BY119: 1 | BZ119: 1 | CA119: 1 | CB119: 1 | CC119: 1 | CD119: 1 | CE119: 1 | CF119: 1 | CG119: 1 | CH119: 1 | CI119: 1 | CJ119: 1 | CK119: 1 | CL119: 1 | CM119: 1 | CN119: 1 | CO119: 1 | CP119: 1 | CQ119: 1 | CR119: 2 | CS119: 2 | CT119: 2 | CU119: 2 | CV119: 2 | CW119: 2 | CX119: 2 | CY119: 2 | CZ119: 2 | DA119: 2 | DB119: 2 | DC119: 2 | DD119: 2 | DE119: 2 | DF119: 2 | DG119: 2 | DH119: 2 | DI119: 2 | DJ119: 2 | DK119: 2 | DL119: 2 | DM119: 2 | DN119: 2 | DO119: 2 | DP119: 2 | DQ119: 2 | DR119: 2 | DS119: 2 | DT119: 2 | DU119: 2 | DV119: 2 | DW119: 2 | DX119: 2 | DY119: 2 | DZ119: 2 | EA119: 2 | EB119: 2 | EC119: 2 | ED119: 2 | EE119: 2 | EF119: 2 | EG119: 2 | EH119: 2 | EI119: 2 | EJ119: 2 | EK119: 2 | EL119: 2 | EM119: 2 | EN119: 2 | EO119: 2 | EP119: 2 | EQ119: 2 | ER119: 2 | ES119: 2 | ET119: 2 | EU119: 2 | EV119: 2 | EW119: 2 | EX119: 2 | EY119: 2 | EZ119: 2 | FA119: 2 | FB119: 2 | FC119: 2 | FD119: 2 | FE119: 2 | FF119: 2 | FG119: 2 | FH119: 2 | FI119: 2 | FJ119: 2 | FK119: 2 | FL119: 2 | FM119: 2 | FN119: 2 | FO119: 2 | FP119: 2 | FQ119: 2 | FR119: 2
D120: 103 | E120: 98 | J120: 1 | K120: 1 | L120: 1 | M120: 1 | N120: 1 | O120: 1 | P120: 1 | Q120: 1 | R120: 1 | S120: 1 | T120: 1 | U120: 1 | V120: 1 | W120: 1 | X120: 1 | Y120: 1 | Z120: 1 | AA120: 1 | AB120: 1 | AC120: 1 | AD120: 1 | AE120: 1 | AF120: 1 | AG120: 1 | AH120: 1 | AI120: 1 | AJ120: 1 | AK120: 1 | AL120: 1 | AM120: 1 | AN120: 1 | AO120: 1 | AP120: 1 | AQ120: 1 | AR120: 1 | AS120: 1 | AT120: 1 | AU120: 1 | AV120: 1 | AW120: 1 | AX120: 1 | AY120: 1 | AZ120: 1 | BA120: 1 | BB120: 1 | BC120: 1 | BD120: 1 | BE120: 1 | BF120: 1 | BG120: 1 | BH120: 1 | BI120: 1 | BJ120: 1 | BK120: 1 | BL120: 1 | BM120: 1 | BN120: 1 | BO120: 1 | BP120: 1 | BQ120: 1 | BR120: 1 | BS120: 1 | BT120: 1 | BU120: 1 | BV120: 1 | BW120: 1 | BX120: 1 | BY120: 1 | BZ120: 1 | CA120: 1 | CB120: 1 | CC120: 1 | CD120: 1 | CE120: 1 | CF120: 1 | CG120: 1 | CH120: 1 | CI120: 1 | CJ120: 1 | CK120: 1 | CL120: 1 | CM120: 1 | CN120: 1 | CO120: 1 | CP120: 1 | CQ120: 1 | CR120: 2 | CS120: 2 | CT120: 2 | CU120: 2 | CV120: 2 | CW120: 2 | CX120: 2 | CY120: 2 | CZ120: 2 | DA120: 2 | DB120: 2 | DC120: 2 | DD120: 2 | DE120: 2 | DF120: 2 | DG120: 2 | DH120: 2 | DI120: 2 | DJ120: 2 | DK120: 2 | DL120: 2 | DM120: 2 | DN120: 2 | DO120: 2 | DP120: 2 | DQ120: 2 | DR120: 2 | DS120: 2 | DT120: 2 | DU120: 2 | DV120: 2 | DW120: 2 | DX120: 2 | DY120: 2 | DZ120: 2 | EA120: 2 | EB120: 2 | EC120: 2 | ED120: 2 | EE120: 2 | EF120: 2 | EG120: 2 | EH120: 2 | EI120: 2 | EJ120: 2 | EK120: 2 | EL120: 2 | EM120: 2 | EN120: 2 | EO120: 2 | EP120: 2 | EQ120: 2 | ER120: 2 | ES120: 2 | ET120: 2 | EU120: 2 | EV120: 2 | EW120: 2 | EX120: 2 | EY120: 2 | EZ120: 2 | FA120: 2 | FB120: 2 | FC120: 2 | FD120: 2 | FE120: 2 | FF120: 2 | FG120: 2 | FH120: 2 | FI120: 2 | FJ120: 2 | FK120: 2 | FL120: 2 | FM120: 2 | FN120: 2 | FO120: 2 | FP120: 2 | FQ120: 2 | FR120: 2
D121: 104 | E121: 97 | J121: 1 | K121: 1 | L121: 1 | M121: 1 | N121: 1 | O121: 1 | P121: 1 | Q121: 1 | R121: 1 | S121: 1 | T121: 1 | U121: 1 | V121: 1 | W121: 1 | X121: 1 | Y121: 1 | Z121: 1 | AA121: 1 | AB121: 1 | AC121: 1 | AD121: 1 | AE121: 1 | AF121: 1 | AG121: 1 | AH121: 1 | AI121: 1 | AJ121: 1 | AK121: 1 | AL121: 1 | AM121: 1 | AN121: 1 | AO121: 1 | AP121: 1 | AQ121: 1 | AR121: 1 | AS121: 1 | AT121: 1 | AU121: 1 | AV121: 1 | AW121: 1 | AX121: 1 | AY121: 1 | AZ121: 1 | BA121: 1 | BB121: 1 | BC121: 1 | BD121: 1 | BE121: 1 | BF121: 1 | BG121: 1 | BH121: 1 | BI121: 1 | BJ121: 1 | BK121: 1 | BL121: 1 | BM121: 1 | BN121: 1 | BO121: 1 | BP121: 1 | BQ121: 1 | BR121: 1 | BS121: 1 | BT121: 1 | BU121: 1 | BV121: 1 | BW121: 1 | BX121: 1 | BY121: 1 | BZ121: 1 | CA121: 1 | CB121: 1 | CC121: 1 | CD121: 1 | CE121: 1 | CF121: 1 | CG121: 1 | CH121: 1 | CI121: 1 | CJ121: 1 | CK121: 1 | CL121: 1 | CM121: 1 | CN121: 1 | CO121: 1 | CP121: 1 | CQ121: 1 | CR121: 2 | CS121: 2 | CT121: 2 | CU121: 2 | CV121: 2 | CW121: 2 | CX121: 2 | CY121: 2 | CZ121: 2 | DA121: 2 | DB121: 2 | DC121: 2 | DD121: 2 | DE121: 2 | DF121: 2 | DG121: 2 | DH121: 2 | DI121: 2 | DJ121: 2 | DK121: 2 | DL121: 2 | DM121: 2 | DN121: 2 | DO121: 2 | DP121: 2 | DQ121: 2 | DR121: 2 | DS121: 2 | DT121: 2 | DU121: 2 | DV121: 2 | DW121: 2 | DX121: 2 | DY121: 2 | DZ121: 2 | EA121: 2 | EB121: 2 | EC121: 2 | ED121: 2 | EE121: 2 | EF121: 2 | EG121: 2 | EH121: 2 | EI121: 2 | EJ121: 2 | EK121: 2 | EL121: 2 | EM121: 2 | EN121: 2 | EO121: 2 | EP121: 2 | EQ121: 2 | ER121: 2 | ES121: 2 | ET121: 2 | EU121: 2 | EV121: 2 | EW121: 2 | EX121: 2 | EY121: 2 | EZ121: 2 | FA121: 2 | FB121: 2 | FC121: 2 | FD121: 2 | FE121: 2 | FF121: 2 | FG121: 2 | FH121: 2 | FI121: 2 | FJ121: 2 | FK121: 2 | FL121: 2 | FM121: 2 | FN121: 2 | FO121: 2 | FP121: 2 | FQ121: 2 | FR121: 2
D122: 105 | E122: 96 | J122: 1 | K122: 1 | L122: 1 | M122: 1 | N122: 1 | O122: 1 | P122: 1 | Q122: 1 | R122: 1 | S122: 1 | T122: 1 | U122: 1 | V122: 1 | W122: 1 | X122: 1 | Y122: 1 | Z122: 1 | AA122: 1 | AB122: 1 | AC122: 1 | AD122: 1 | AE122: 1 | AF122: 1 | AG122: 1 | AH122: 1 | AI122: 1 | AJ122: 1 | AK122: 1 | AL122: 1 | AM122: 1 | AN122: 1 | AO122: 1 | AP122: 1 | AQ122: 1 | AR122: 1 | AS122: 1 | AT122: 1 | AU122: 1 | AV122: 1 | AW122: 1 | AX122: 1 | AY122: 1 | AZ122: 1 | BA122: 1 | BB122: 1 | BC122: 1 | BD122: 1 | BE122: 1 | BF122: 1 | BG122: 1 | BH122: 1 | BI122: 1 | BJ122: 1 | BK122: 1 | BL122: 1 | BM122: 1 | BN122: 1 | BO122: 1 | BP122: 1 | BQ122: 1 | BR122: 1 | BS122: 1 | BT122: 1 | BU122: 1 | BV122: 1 | BW122: 1 | BX122: 1 | BY122: 1 | BZ122: 1 | CA122: 1 | CB122: 1 | CC122: 1 | CD122: 1 | CE122: 1 | CF122: 1 | CG122: 1 | CH122: 1 | CI122: 1 | CJ122: 1 | CK122: 1 | CL122: 1 | CM122: 1 | CN122: 1 | CO122: 1 | CP122: 1 | CQ122: 1 | CR122: 2 | CS122: 2 | CT122: 2 | CU122: 2 | CV122: 2 | CW122: 2 | CX122: 2 | CY122: 2 | CZ122: 2 | DA122: 2 | DB122: 2 | DC122: 2 | DD122: 2 | DE122: 2 | DF122: 2 | DG122: 2 | DH122: 2 | DI122: 2 | DJ122: 2 | DK122: 2 | DL122: 2 | DM122: 2 | DN122: 2 | DO122: 2 | DP122: 2 | DQ122: 2 | DR122: 2 | DS122: 2 | DT122: 2 | DU122: 2 | DV122: 2 | DW122: 2 | DX122: 2 | DY122: 2 | DZ122: 2 | EA122: 2 | EB122: 2 | EC122: 2 | ED122: 2 | EE122: 2 | EF122: 2 | EG122: 2 | EH122: 2 | EI122: 2 | EJ122: 2 | EK122: 2 | EL122: 2 | EM122: 2 | EN122: 2 | EO122: 2 | EP122: 2 | EQ122: 2 | ER122: 2 | ES122: 2 | ET122: 2 | EU122: 2 | EV122: 2 | EW122: 2 | EX122: 2 | EY122: 2 | EZ122: 2 | FA122: 2 | FB122: 2 | FC122: 2 | FD122: 2 | FE122: 2 | FF122: 2 | FG122: 2 | FH122: 2 | FI122: 2 | FJ122: 2 | FK122: 2 | FL122: 2 | FM122: 2 | FN122: 2 | FO122: 2 | FP122: 2 | FQ122: 2 | FR122: 2
D123: 106 | E123: 95 | J123: 1 | K123: 1 | L123: 1 | M123: 1 | N123: 1 | O123: 1 | P123: 1 | Q123: 1 | R123: 1 | S123: 1 | T123: 1 | U123: 1 | V123: 1 | W123: 1 | X123: 1 | Y123: 1 | Z123: 1 | AA123: 1 | AB123: 1 | AC123: 1 | AD123: 1 | AE123: 1 | AF123: 1 | AG123: 1 | AH123: 1 | AI123: 1 | AJ123: 1 | AK123: 1 | AL123: 1 | AM123: 1 | AN123: 1 | AO123: 1 | AP123: 1 | AQ123: 1 | AR123: 1 | AS123: 1 | AT123: 1 | AU123: 1 | AV123: 1 | AW123: 1 | AX123: 1 | AY123: 1 | AZ123: 1 | BA123: 1 | BB123: 1 | BC123: 1 | BD123: 1 | BE123: 1 | BF123: 1 | BG123: 1 | BH123: 1 | BI123: 1 | BJ123: 1 | BK123: 1 | BL123: 1 | BM123: 1 | BN123: 1 | BO123: 1 | BP123: 1 | BQ123: 1 | BR123: 1 | BS123: 1 | BT123: 1 | BU123: 1 | BV123: 1 | BW123: 1 | BX123: 1 | BY123: 1 | BZ123: 1 | CA123: 1 | CB123: 1 | CC123: 1 | CD123: 1 | CE123: 1 | CF123: 1 | CG123: 1 | CH123: 1 | CI123: 1 | CJ123: 1 | CK123: 1 | CL123: 1 | CM123: 1 | CN123: 1 | CO123: 1 | CP123: 1 | CQ123: 1 | CR123: 2 | CS123: 2 | CT123: 2 | CU123: 2 | CV123: 2 | CW123: 2 | CX123: 2 | CY123: 2 | CZ123: 2 | DA123: 2 | DB123: 2 | DC123: 2 | DD123: 2 | DE123: 2 | DF123: 2 | DG123: 2 | DH123: 2 | DI123: 2 | DJ123: 2 | DK123: 2 | DL123: 2 | DM123: 2 | DN123: 2 | DO123: 2 | DP123: 2 | DQ123: 2 | DR123: 2 | DS123: 2 | DT123: 2 | DU123: 2 | DV123: 2 | DW123: 2 | DX123: 2 | DY123: 2 | DZ123: 2 | EA123: 2 | EB123: 2 | EC123: 2 | ED123: 2 | EE123: 2 | EF123: 2 | EG123: 2 | EH123: 2 | EI123: 2 | EJ123: 2 | EK123: 2 | EL123: 2 | EM123: 2 | EN123: 2 | EO123: 2 | EP123: 2 | EQ123: 2 | ER123: 2 | ES123: 2 | ET123: 2 | EU123: 2 | EV123: 2 | EW123: 2 | EX123: 2 | EY123: 2 | EZ123: 2 | FA123: 2 | FB123: 2 | FC123: 2 | FD123: 2 | FE123: 2 | FF123: 2 | FG123: 2 | FH123: 2 | FI123: 2 | FJ123: 2 | FK123: 2 | FL123: 2 | FM123: 2 | FN123: 2 | FO123: 2 | FP123: 2 | FQ123: 2 | FR123: 2
